Workbook

Sheet Contenido
B8: __________________________________________________________________________________________________________________________________________________________
B9: ISA y sus empresas
B10: Kit de Valoración
B13: Contenido
B15: Nota preventiva
B16: ISA ha elaborado el siguiente reporte a título informativo. La Empresa no se responsabiliza de ninguna decisión de inversión a partir de este reporte. Algunas declaraciones contenidas en el mismo reflejan nuestros puntos de vista actuales con respecto a acontecimientos futuros y, por tanto, se basan en presunciones, estimaciones o proyecciones que están sujetas a riesgos y factores que pueden causar que la información aquí contenida, sea susceptible de alteraciones, ajustes o modificaciones en cualquier momento. Esos riesgos y factores se relacionan directamente con los resultados, desempeño y logros de la Empresa, e incluyen, entre otros aspectos, cambios generales en el sector eléctrico, condiciones económicas, políticas gubernamentales tanto nacionales como internacionales, variaciones en las tasas de interés, inflación, volatilidad en las tasas de cambio y niveles de impuestos. Como resultado de estos riesgos y factores, los resultados actuales pueden diferir materialmente de las estimaciones proyectadas y, por lo tanto, la información aquí presentada en ningún caso podrá asumirse como cierta, completa o definitiva. La Empresa no asume responsabilidad alguna derivada de la información suministrada, ni en su estado actual ni tampoco por cualquier variación o modificación que sufra con posterioridad. En consecuencia, ISA se reserva la posibilidad de alterar, adicionar o reemplazar a su exclusivo criterio cualquier tipo de información contenida en este informe, sin que ello implique que la Empresa asuma obligación alguna de actualizar esas declaraciones como resultado de nueva información, eventos futuros o cualquier otro factor que puedan impactar el contenido de este reporte. El uso de esta información es de exclusiva responsabilidad del usuario. En ningún caso, dicha información podrá ser considerada como recomendación financiera, legal, tributaria, contable o de cualquier otra índole, así como tampoco, deberá interpretarse como una recomendación de inversión. Cualquier potencial inversionista deberá asesorarse con profesionales debidamente acreditados que cuenten con conocimientos técnicos, para efectos de tener conocimiento detallado e informado de todas las implicaciones tributarias, legales y financieras para la toma de cualquier decisión de inversión o desinversión. ISA no se hace responsable de ningún tipo de pérdida, daño o perjuicio, directo o indirecto, monetario o de cualquier otra naturaleza, que pueda sufrir cualquier persona con motivo de decisiones tomadas con fundamento en el contenido de este reporte. La información aquí contenida, no podrá considerarse bajo escenario alguno como una oferta, solicitud o recomendación de compra o venta de valores, de celebrar cualquier otro tipo de transacciones para sí mismo o a favor de terceras personas, o de perfeccionar cualquier tipo de contratos o actos jurídicos en cualquier jurisdicción que resulte aplicable.
B19: Estados Financieros trimestrales:
B20: Estados financieros trimestrales consolidados
B21: Estados financieros trimestrales TE Colombia | C21: ISA
C22: Intercolombia
C23: Transelca
B25: Estados financieros trimestrales TE Brasil
B26: Flujo RBSE
B27: Estados financieros trimestrales TE Perú | C27: Transmantaro
C28: REP
C29: ISA Perú
B31: Estados financieros trimestrales TE Chile
B32: Estados financieros trimestrales Vías Colombia
B33: Estados financieros trimestrales Vías Chile
B35: Deuda Consolidada Créditos
B37: Deuda Consolidada Bonos
B39: Perfil de deuda
B41: CAPEX
B43: Regulación TE
B45: Regulación Vías
B47: Tráfico Vías
B49: Dividendos
B51: Proyectos en construcción
B53: Vencimiento Concesiones
B55: Participación en compañías

Sheet EEFF_Consolidados
A1: Volver al Contenido
B3: ESTADOS DE RESULTADOS CONSOLIDADOS
B4: Cifras expresadas en millones de pesos colombianos
C7: 2016 | D7: 2017 | E7: 1T18 | F7: 2T18 | G7: 3T18 | H7: 4T18 | I7: 1T19 | J7: 2T19 | K7: 3T19 | L7: 4T19 | M7: 1T20 | N7: 2T20 | O7: 3T20 | P7: 4T20 | Q7: 1T21 | R7: 2T21 | S7: 3T21 | T7: 4T21 | W7: 1T22 | X7: 2T22 | Y7: 3T22 | Z7: 4T22 | AA7: 1T23 | AB7: 2T23 | AC7: 3T23 | AD7: 4T23 | AE7: 1T24 | AF7: 2T24 | AG7: 3T24 | AH7: 4T24
B9: Ingresos de construcción | C9: 1303189 | D9: 777045 | E9: 151913 | F9: 174569 | G9: 145130 | H9: 519400 | I9: 222479 | J9: 368582 | K9: 330344 | L9: 519864 | M9: 351250 | N9: 440397 | O9: 653454 | P9: 749199 | Q9: 428145 | R9: 545032 | S9: 536798 | T9: 624565 | V9: Ingresos de construcción | W9: 457615 | X9: 688018 | Y9: 972829 | Z9: 913222 | AA9: 884266 | AB9: 727498 | AC9: 700230 | AD9: 838290 | AE9: 1003987 | AF9: 839510 | AG9: 947928 | AH9: 1303444
B10: Costos de construcción | C10: 1259856 | D10: 751031 | E10: 143392 | F10: 168951 | G10: 134987 | H10: 209921 | I10: 134437 | J10: 206523 | K10: 241195 | L10: 373468 | M10: 296938 | N10: 372794 | O10: 473739 | P10: 485383 | Q10: 375369 | R10: 463710 | S10: 485039 | T10: 560602 | V10: Costos de construcción | W10: 419155 | X10: 634626 | Y10: 834406 | Z10: 914299 | AA10: 750743 | AB10: 592294 | AC10: 588525 | AD10: 668622 | AE10: 882589 | AF10: 705129 | AG10: 823777 | AH10: 1173835
B11: EBITDA de construcción | C11: 43333 | D11: 26014 | E11: 8521 | F11: 5618 | G11: 10143 | H11: 309479 | I11: 88042 | J11: 162059 | K11: 89149 | L11: 146396 | M11: 54312 | N11: 67603 | O11: 179715 | P11: 263816 | Q11: 52776 | R11: 81322 | S11: 51759 | T11: 63963 | V11: Utilidad de construcción | W11: 38460 | X11: 53392 | Y11: 138423 | Z11: -1077 | AA11: 133523 | AB11: 135204 | AC11: 111705 | AD11: 169668 | AE11: 121398 | AF11: 134381 | AG11: 124151 | AH11: 129609
R12: 0 | X12: 0 | Y12: 0
B13: Ingresos por servicios de transmisión de energía eléctrica | C13: 8738226 | D13: 4335715 | E13: 969721 | F13: 910044 | G13: 1378425 | H13: 1144556 | I13: 1140208 | J13: 1258709 | K13: 1158653 | L13: 1225917 | M13: 1308769 | N13: 1812167 | O13: 1547356 | P13: 1303708 | Q13: 1372599 | R13: 1682664 | S13: 1757977 | T13: 1765161 | V13: Ingresos por servicios de transmisión de energía eléctrica | W13: 1693554 | X13: 1917102 | Y13: 1673479 | Z13: 1885958 | AA13: 2124065 | AB13: 1991269 | AC13: 1820572 | AD13: 1866159 | AE13: 1968733 | AF13: 1826449 | AG13: 1801135 | AH13: 2069358
B14: Ingresos por cargos de conexión | C14: 211553 | D14: 223979 | E14: 56086 | F14: 57126 | G14: 59056 | H14: 60620 | I14: 58700 | J14: 60150 | K14: 62983 | L14: 61922 | M14: 62775 | N14: 63492 | O14: 65946 | P14: 67988 | Q14: 66956 | R14: 69589 | S14: 72081 | T14: 75427 | V14: Ingresos por cargos de conexión | W14: 128379 | X14: 134902 | Y14: 136332 | Z14: 141056 | AA14: 151287 | AB14: 146899 | AC14: 155139 | AD14: 186545 | AE14: 169052 | AF14: 180897 | AG14: 178796 | AH14: 298052
B15: Ingresos de vías | C15: 1126331 | D15: 1088430 | E15: 265986 | F15: 253788 | G15: 230163 | H15: 265923 | I15: 261113 | J15: 272995 | K15: 274916 | L15: 280055 | M15: 238508 | N15: 261797 | O15: 253735 | P15: 366336 | Q15: 342795 | R15: 337183 | S15: 337274 | T15: 426422 | V15: Ingresos de vías | W15: 361441 | X15: 374181 | Y15: 611338 | Z15: 653916 | AA15: 570121 | AB15: 541674 | AC15: 347941 | AD15: 501132 | AE15: 384719 | AF15: 428189 | AG15: 411358 | AH15: 476306
B16: Ingresos por despacho y coordinación CND - MEM | C16: 75112 | D16: 83402 | E16: 21235 | F16: 21477 | G16: 21604 | H16: 21653 | I16: 22759 | J16: 23083 | K16: 23273 | L16: 23398 | M16: 25324 | N16: 25662 | O16: 25439 | P16: 25544 | Q16: 29356 | R16: 29906 | S16: 30255 | T16: 30558 | V16: Ingresos por despacho y coordinación CND - MEM | W16: 0 | X16: 0 | Y16: 0 | AA16: 0 | AB16: 0 | AC16: 0 | AD16: 0 | AE16: 0 | AF16: 0 | AG16: 0 | AH16: 0
B17: Servicios MEM (STN, SIC, SDI) | C17: 39625 | D17: 32644 | E17: 7275 | F17: 10330 | G17: 9911 | H17: 13137 | I17: 10535 | J17: 12341 | K17: 13277 | L17: 12572 | M17: 12167 | N17: 13982 | O17: 13188 | P17: 14417 | Q17: 8270 | R17: 10452 | S17: 13311 | T17: 15028 | V17: Servicios MEM (STN, SIC, SDI) | W17: 0 | X17: 0 | Y17: 0 | AA17: 0 | AB17: 0 | AC17: 0 | AD17: 0 | AE17: 0 | AF17: 0 | AG17: 0 | AH17: 0
B18: Ingresos de telecomunicaciones | C18: 337167 | D18: 345386 | E18: 80606 | F18: 80373 | G18: 78648 | H18: 85095 | I18: 82804 | J18: 87319 | K18: 87360 | L18: 101557 | M18: 90327 | N18: 96428 | O18: 96017 | P18: 96396 | Q18: 97795 | R18: 103859 | S18: 104910 | T18: 107750 | V18: Ingresos de telecomunicaciones | W18: 106710 | X18: 111991 | Y18: 125524 | Z18: 139428 | AA18: 124306 | AB18: 121252 | AC18: 112128 | AD18: 117544 | AE18: 102070 | AF18: 111600 | AG18: 124909 | AH18: 116070
B19: Otros ingresos operacionales | C19: 61423 | D19: 67664 | E19: 78364 | F19: 20591 | G19: 22017 | H19: 19889 | I19: 17567 | J19: 18145 | K19: 20543 | L19: 24885 | M19: 17328 | N19: 17268 | O19: 21536 | P19: 29926 | Q19: 19130 | R19: 64409 | S19: 14286 | T19: 41270 | V19: Otros ingresos operacionales | W19: 18657 | X19: 29765 | Y19: 38739 | Z19: 43370 | AA19: 57268 | AB19: 18552 | AC19: 20310 | AD19: 47016 | AE19: 39779 | AF19: 59415 | AG19: 56933 | AH19: 59024
B20: Costos y gastos AOM | C20: 1708947 | D20: 1764077 | E20: 417515 | F20: 413924 | G20: 416013 | H20: 517759 | I20: 454460 | J20: 469804 | K20: 484688 | L20: 488827 | M20: 453207 | N20: 455659 | O20: 436741 | P20: 619906 | Q20: 483964 | R20: 468190 | S20: 513930 | T20: 689981 | V20: Costos y gastos AOM | W20: 553420 | X20: 580392 | Y20: 615951 | Z20: 793563 | AA20: 728732 | AB20: 707906 | AC20: 685952 | AD20: 878684 | AE20: 708153 | AF20: 733615 | AG20: 755661 | AH20: 870498
B21: EBITDA de Operación | C21: 8880490 | D21: 4413143 | E21: 1061758 | F21: 939805 | G21: 1383811 | H21: 1093114 | I21: 1139226 | J21: 1262938 | K21: 1156317 | L21: 1241479 | M21: 1301991 | N21: 1835137 | O21: 1586476 | P21: 1284409 | Q21: 1452937 | R21: 1829872 | S21: 1816164 | T21: 1771635 | V21: (-) Provisiones, Depreciaciones y Amortizaciones. | W21: 275073 | X21: 269972 | Y21: 289597 | Z21: 447342 | AA21: 318840 | AB21: 303987 | AC21: 285008 | AD21: 556689 | AE21: 293679 | AF21: 267651 | AG21: 346575 | AH21: 77573
B22: EBITDA Total | C22: 8923823 | D22: 4439157 | E22: 1070279 | F22: 945423 | G22: 1393954 | H22: 1402593 | I22: 1227268 | J22: 1424997 | K22: 1245466 | L22: 1387875 | M22: 1356303 | N22: 1902740 | O22: 1766191 | P22: 1548225 | Q22: 1505713 | R22: 1911194 | S22: 1867923 | T22: 1835598 | V22: Utilidad Bruta de Operación | W22: 1480248 | X22: 1717577 | Y22: =1678415+1449 -> 1679864 | Z22: =+Z13+Z14+Z15+Z18+Z19-Z20-Z21 -> 1622823 | AA22: 1979475 | AB22: 1807753 | AC22: 1485130 | AD22: 1283023 | AE22: 1662521 | AF22: 1605284 | AG22: 1470895 | AH22: 312300
W23: =+SUM(W13:W19)-W20-W21-W22 -> 0 | X23: =+SUM(X13:X19)-X20-X21-X22 -> 0 | Y23: =+SUM(Y13:Y19)-Y20-Y21-Y22 -> 0
B24: (-) Provisiones, Depreciaciones y Amortizaciones. | C24: 668843 | D24: 630639 | E24: 181503 | F24: 184218 | G24: 200071 | H24: 215324 | I24: 188306 | J24: 199288 | K24: 215028 | L24: 222683 | M24: 230613 | N24: 247392 | O24: 270115 | P24: 248710 | Q24: 222231 | R24: 253860 | S24: 270056 | T24: 281830 | X24: 0
B25: Metodo de participación neto ingreso /(gasto) | C25: 233690 | D25: 139291 | E25: 37879 | F25: 39191 | G25: 112373 | H25: 48931 | I25: 35000 | J25: 60841 | K25: 75155 | L25: 42732 | M25: 123715 | N25: 8038 | O25: 119518 | P25: 268095 | Q25: 141024 | R25: 135123 | S25: 115395 | T25: 165175 | V25: Metodo de participación neto ingreso /(gasto) | W25: 149033 | X25: 176973 | Y25: 151586 | Z25: 38154 | AA25: 246713 | AB25: 97962 | AC25: 40831 | AD25: 144030 | AE25: 136504 | AF25: 135562 | AG25: 55255 | AH25: 212781
B26: Otros neto ingreso /(gasto) | C26: 14564 | D26: 179116 | E26: 10184 | F26: 20650 | G26: 12733 | H26: -41341 | I26: 8045 | J26: 3628 | K26: 5987 | L26: 52152 | M26: 9555 | N26: 97334 | O26: -1327 | P26: 9772 | Q26: 2810 | R26: -12727 | S26: 2271 | T26: 2587 | V26: Otros neto ingreso /(gasto) | W26: 3825 | X26: 13305 | Y26: -3128 | Z26: 16871 | AA26: 5300 | AB26: 47005 | AC26: -16226 | AD26: -71952 | AE26: 10061 | AF26: 45110 | AG26: 1066721 | AH26: -84829
B27: Utilidad por actividades de operación | C27: 8503234 | D27: 4126925 | E27: 936839 | F27: 821046 | G27: 1318989 | H27: 1194859 | I27: 1082007 | J27: 1290178 | K27: 1111580 | L27: 1260076 | M27: 1258960 | N27: 1760720 | O27: 1614267 | P27: 1577382 | Q27: 1427316 | R27: 1779730 | S27: 1715533 | T27: 1721530 | V27: Utilidad por actividades de operación | W27: 1671566 | X27: 1961247 | Y27: 1966745 | Z27: =Z11+Z22+Z25+Z26 -> 1676771 | AA27: 2365011 | AB27: 2087924 | AC27: 1621440 | AD27: 1524769 | AE27: 1930484 | AF27: 1920337 | AG27: 2717022 | AH27: 1842358
R28: 0 | W28: =+W22+W25+W26+W11-W27 -> 0 | X28: =+X22+X25+X26+X11-X27 -> 0 | Y28: =+Y22+Y25+Y26+Y11-Y27 -> 0
B29: Financiero neto ingreso/(gasto) | C29: -1033341 | D29: -866819 | E29: -282504 | F29: -257605 | G29: -287933 | H29: -259570 | I29: -267279 | J29: -335663 | K29: -308126 | L29: -301596 | M29: -336026 | N29: -299787 | O29: -294009 | P29: -443050 | Q29: -382053 | R29: -444924 | S29: -848793 | T29: -657359 | V29: Financiero neto ingreso/(gasto) | W29: -637473 | X29: -703241 | Y29: -623407 | Z29: -631036 | AA29: -636685 | AB29: -645779 | AC29: -429868 | AD29: -455178 | AE29: -550638 | AF29: -528846 | AG29: -454575 | AH29: -558839
B30: Utilidad antes de impuestos | C30: 7469893 | D30: 3260106 | E30: 654335 | F30: 563441 | G30: 1031056 | H30: 935289 | I30: 814728 | J30: 954515 | K30: 803454 | L30: 958480 | M30: 922934 | N30: 1460933 | O30: 1320258 | P30: 1134332 | Q30: 1045263 | R30: 1334806 | S30: 866740 | T30: 1064171 | V30: Utilidad antes de impuestos | W30: 1034093 | X30: 1258006 | Y30: 1343338 | Z30: 1045735 | AA30: 1728326 | AB30: 1442145 | AC30: 1191572 | AD30: 1069591 | AE30: 1379846 | AF30: 1391491 | AG30: 2262447 | AH30: 1283519
C31: 0 | D31: 0 | E31: 0 | F31: 0 | G31: 0 | H31: 0 | I31: 0 | J31: 0 | K31: 0 | L31: 0 | M31: 0 | N31: 0 | O31: 0 | P31: 0 | Q31: 0 | R31: 0 | S31: 0 | T31: 0 | W31: 0 | X31: 0 | Y31: 0
B32: Provisión impuesto de renta | C32: 2452158 | D32: 916298 | E32: 193757 | F32: 182166 | G32: 248363 | H32: -40559 | I32: 233948 | J32: 240825 | K32: 158852 | L32: 139191 | M32: 201215 | N32: 385378 | O32: 340210 | P32: 147429 | Q32: 251845 | R32: 330545 | S32: 352681 | T32: 171197 | V32: Provisión impuesto de renta | W32: 282148 | X32: 80121 | Y32: 349859 | Z32: 293336 | AA32: 328470 | AB32: 222566 | AC32: 310790 | AD32: 267346 | AE32: 279334 | AF32: 297834 | AG32: 633589 | AH32: 175497
B33: Utilidad antes de interés minoritario | C33: 5017735 | D33: 2343808 | E33: 460578 | F33: 381275 | G33: 782693 | H33: 975848 | I33: 580780 | J33: 713690 | K33: 644602 | L33: 819289 | M33: 721719 | N33: 1075555 | O33: 980048 | P33: 986903 | Q33: 793418 | R33: 1004261 | S33: 514059 | T33: 892974 | V33: Utilidad antes de interés minoritario | W33: 751945 | X33: 1177885 | Y33: 993479 | Z33: 752399 | AA33: 1399856 | AB33: 1219579 | AC33: 880782 | AD33: 802245 | AE33: 1100512 | AF33: 1093657 | AG33: 1628858 | AH33: 1108022
X34: 0 | Y34: 0
B35: Interés minoritario | C35: 2881106 | D35: 905872 | E35: 163004 | F35: 149018 | G35: 369666 | H35: 394324 | I35: 227655 | J35: 274600 | K35: 238751 | L35: 378623 | M35: 307695 | N35: 496270 | O35: 413922 | P35: 487147 | Q35: 285483 | R35: 418369 | S35: 392693 | T35: 442630 | V35: Interés minoritario | W35: 320565 | X35: 507468 | Y35: 325454 | Z35: 319640 | AA35: 571756 | AB35: 525839 | AC35: 368544 | AD35: 370335 | AE35: 466138 | AF35: 386193 | AG35: 737780 | AH35: 533365
B36: Utilidad neta | C36: 2136629 | D36: 1437936 | E36: 297574 | F36: 232257 | G36: 413027 | H36: 581524 | I36: 353125 | J36: 439090 | K36: 405851 | L36: 440666 | M36: 414024 | N36: 579285 | O36: 566126 | P36: 499756 | Q36: 507935 | R36: 585892 | S36: 121366 | T36: 450344 | V36: Utilidad neta | W36: 431380 | X36: 670417 | Y36: 668025 | Z36: 432759 | AA36: 828100 | AB36: 693740 | AC36: 512238 | AD36: 431910 | AE36: 634374 | AF36: 707464 | AG36: 891078 | AH36: 574657
Q37: 0.2409393617 | R37: 0.2476352369 | S37: 0.4069051849 | T37: 0.1608735814
B39: *Cambio en el cálculo del EBITDA por nueva metodología | V39: EBITDA TOTAL | W39: 1965304 | X39: 2226468 | Y39: 2276675 | Z39: 2093645 | AA39: 2711640 | AB39: 2394363 | AC39: 1928094 | AD39: 2080183 | AE39: 2265324 | AF39: 2225235 | AG39: 3023869 | AH39: 2232231
B42: ESTADOS CONSOLIDADOS DE SITUACIÓN FINANCIERA
B43: Valores expresados en millones de pesos colombianos
W45: 1T22 | X45: 2T22 | Y45: 3T22 | Z45: 4T22 | AA45: 1T23 | AB45: 2T23 | AC45: 3T23 | AD45: 4T23 | AE45: 1T24 | AF45: 2T24 | AG45: =+AG7 -> 3T24 | AH45: =+AH7 -> 4T24
B46: ACTIVO | V46: ACTIVO
B47: Activo corriente | V47: Activo corriente
B48: Efectivo y equivalentes de efectivo | C48: 1146761 | D48: 1541551 | E48: 1628454 | F48: 1622252 | G48: 1801289 | H48: 1522060 | I48: 1831109 | J48: 1757502 | K48: 1542056 | L48: 2487201 | M48: 2797801 | N48: 3541940 | O48: 3570166.316 | P48: 3781713 | Q48: 3437159 | R48: 4745206 | S48: 4967287 | T48: 4686462 | V48: Efectivo y equivalentes de efectivo | W48: 4768417 | X48: 4766464 | Y48: 5007943 | Z48: 5369350 | AA48: 6691898.598 | AB48: 4449949.695 | AC48: 4568115.996 | AD48: 4071928 | AE48: 4911704 | AF48: 4668994 | AG48: 4483589.154 | AH48: 5924486.853
B49: Activos financieros | C49: 3828360 | D49: 4390555 | E49: 4337409 | F49: 4049690 | G49: 4615663 | H49: 4845365 | I49: 4730855 | J49: 5926728 | K49: 6221853 | L49: 6337727 | M49: 4930958 | N49: 4855048 | O49: 4858695.693 | P49: 5171007 | Q49: 5167613 | R49: 4779221 | S49: 4982876 | T49: 5260260 | V49: Activos financieros | W49: 5280483 | X49: 5857522 | Y49: 6736997 | Z49: 7423870 | AA49: 7115576.398 | AB49: 6731432.072 | AC49: 7019277.552 | AD49: 7124897 | AE49: 6794030 | AF49: 7157120 | AG49: 7833030.597 | AH49: 6506924.919
B50: Impuestos corrientes | C50: 463818 | D50: 309451 | E50: 458949 | F50: 607518 | G50: 678584 | H50: 316730 | I50: 303134 | J50: 406480 | K50: 479061 | L50: 247981 | M50: 305749 | N50: 398388 | O50: 474583.129 | P50: 260466 | Q50: 361090 | R50: 426452 | S50: 484816 | T50: 271444 | V50: Impuestos corrientes | W50: 264541 | X50: 337760 | Y50: 357945 | Z50: 384069 | AA50: 409121.8996 | AB50: 480142.56 | AC50: 469691.3228 | AD50: 648591 | AE50: 651949 | AF50: 619948 | AG50: 630155.7358 | AH50: 678516.3794
B51: Inventarios - neto | C51: 101743 | D51: 83481 | E51: 77289 | F51: 80026 | G51: 79889 | H51: 98271 | I51: 90607 | J51: 90452 | K51: 93743 | L51: 151527 | M51: 120948 | N51: 98789 | O51: 108311.741 | P51: 100645 | Q51: 107602 | R51: 117081 | S51: 116938 | T51: 125392 | V51: Inventarios - neto | W51: 126491 | X51: 141514 | Y51: 167607 | Z51: 197370 | AA51: 195771.8636 | AB51: 180128.8411 | AC51: 193843.3959 | AD51: 227631 | AE51: 172393 | AF51: 195744 | AG51: 173178.5739 | AH51: 177976.2151
B52: Activos no financieros | C52: 132491 | D52: 95357 | E52: 144122 | F52: 153863 | G52: 213114 | H52: 241757 | I52: 255342 | J52: 247279 | K52: 264265 | L52: 225219 | M52: 341073 | N52: 276307 | O52: 396207.973 | P52: 394877 | Q52: 397795 | R52: 372692 | S52: 465324 | T52: 326432 | V52: Activos no financieros | W52: 375997 | X52: 371061 | Y52: 351185 | Z52: 347090 | AA52: 412028.7096 | AB52: 467887.0913 | AC52: 451780.9485 | AD52: 333624 | AE52: 315245 | AF52: 245790 | AG52: 283500.0687 | AH52: 254188.0669
B53: Préstamos por cobrar partes relacionadas | C53: 0 | D53: 335 | E53: 5000 | F53: 2160 | G53: 603 | H53: 31 | I53: 575 | J53: 4625 | K53: 7426 | L53: 126 | M53: 98 | N53: 164 | O53: 189.692 | P53: 77 | Q53: 83 | R53: 138 | S53: 110 | T53: 113 | V53: Préstamos por cobrar partes relacionadas | W53: 0 | X53: 114 | Y53: 212 | Z53: 222 | AD53: 789 | AE53: 769
B54: Total activo corriente | C54: 5673173 | D54: 6420730 | E54: 6651223 | F54: 6515509 | G54: 7389142 | H54: 7024214 | I54: 7211622 | J54: 8433066 | K54: 8608404 | L54: 9449781 | M54: 8496627 | N54: 9170636 | O54: 9408154.544 | P54: 9708785 | Q54: 9471342 | R54: 10440790 | S54: 11017351 | T54: 10670103 | V54: Total activo corriente | W54: 10815929 | X54: 11474435 | Y54: 12621889 | Z54: 13721971 | AA54: 14824397.47 | AB54: 12309540.26 | AC54: 12702709.21 | AD54: 12407461 | AE54: 12846090 | AF54: 12887597 | AG54: 13403454.13 | AH54: 13542092.43
B55: Activo no corriente | R55: 0 | V55: Activo no corriente
B56: Efectivo restringido | C56: 60495 | D56: 78204 | E56: 88224 | F56: 124375 | G56: 88533 | H56: 339007 | I56: 266055 | J56: 195559 | K56: 114913 | L56: 97347 | M56: 78828 | N56: 363474 | O56: 238183.849 | P56: 217646 | Q56: 330867 | R56: 322747 | S56: 63739 | T56: 138688 | V56: Efectivo restringido | W56: 145222 | X56: 217813 | Y56: 333464 | Z56: 328283 | AA56: 275128.6833 | AB56: 614360.0278 | AC56: 199434.8072 | AD56: 68106 | AE56: 144512 | AF56: 76801 | AG56: 43920.82941 | AH56: 39413.96819
B57: Impuestos no corrientes | C57: 0 | D57: 46870 | E57: 43303 | F57: 44649 | G57: 46680 | H57: 27241 | I57: 27736 | J57: 26279 | K57: 30994 | L57: 6174 | M57: 13453 | N57: 20611 | O57: 25327.064 | P57: 5156 | Q57: 11486 | R57: 14349 | S57: 18933 | T57: 5274 | V57: Impuestos no corrientes | W57: 8409 | X57: 13707 | Y57: 19786 | Z57: 8570 | AA57: 29973.89407 | AB57: 5576.07236 | AC57: 5933.260701 | AD57: 7330 | AE57: 20873 | AF57: 21267 | AG57: 30500.91291 | AH57: 32357.31937
B58: Inversiones en asociadas y negocios conjuntos | C58: 1690711 | D58: 3093842 | E58: 2921736 | F58: 2717913 | G58: 2669320 | H58: 2871781 | I58: 2886392 | J58: 3001307 | K58: 3079648 | L58: 3119350 | M58: 3231320 | N58: 2861797 | O58: 2942426.425 | P58: 3124526 | Q58: 3286100 | R58: 3732594 | S58: 3637681 | T58: 3719877 | V58: Inversiones en asociadas y negocios conjuntos | W58: 4243596 | X58: 4401210 | Y58: 4902904 | Z58: 5281171 | AA58: 5347788.808 | AB58: 5175872.897 | AC58: 4830542.823 | AD58: 4617325 | AE58: 4610845 | AF58: 4627161 | AG58: 4714428.137 | AH58: 4516726.817
B59: Instrumentos financieros | C59: 16315 | D59: 16335 | E59: 16335 | F59: 16332 | G59: 16332 | H59: 15478 | I59: 15478 | J59: 15478 | K59: 15478 | L59: 15478 | M59: 16572 | N59: 16723 | O59: 17101.957 | P59: 17102 | Q59: 17148 | R59: 17325 | S59: 17468 | T59: 17468 | V59: Instrumentos financieros | W59: 18741 | X59: 19062 | Y59: 19569 | Z59: 19242 | AA59: 19437.90788 | AB59: 19205.68103 | AC59: 19736.71758 | AD59: 19424 | AE59: 20134 | AF59: 59204 | AG59: 67803.73032 | AH59: 79088.35076
B60: Activos financieros | C60: 16569813 | D60: 17609166 | E60: 16116400 | F60: 14908284 | G60: 15015133 | H60: 16896526 | I60: 16821004 | J60: 17488539 | K60: 17313005 | L60: 16769982 | M60: 17490328 | N60: 16435742 | O60: 17130598.37 | P60: 18845990 | Q60: 20570903 | R60: 23844889 | S60: 22822894 | T60: 23435289 | V60: Activos financieros | W60: 25723585 | X60: 25621538 | Y60: 27806745 | Z60: 31591010 | AA60: 32212742.41 | AB60: 31299762.08 | AC60: 29392333.28 | AD60: 29134682 | AE60: 28675990 | AF60: 29583065 | AG60: 31909465.92 | AH60: 31336495.93
B61: Inventarios - Neto | C61: 72931 | D61: 85778 | E61: 72025 | F61: 67498 | G61: 66431 | H61: 63359 | I61: 62277 | J61: 63439 | K61: 66037 | L61: 64808 | M61: 84407 | N61: 65428 | O61: 62449.442 | P61: 64521 | Q61: 64648 | R61: 65549 | S61: 67821 | T61: 65599 | V61: Inventarios - Neto | W61: 72502 | X61: 70677 | Y61: 76601 | Z61: 103325 | AA61: 107472.5178 | AB61: 136921.3593 | AC61: 161971.7903 | AD61: 163789 | AE61: 177775 | AF61: 141885 | AG61: 169329.3036 | AH61: 163116.0441
B62: Propiedades, planta y equipo - Neto | C62: 7761835 | D62: 9056402 | E62: 9134609 | F62: 9545706 | G62: 9777637 | H62: 10195114 | I62: 10333190 | J62: 10256896 | K62: 10687625 | L62: 11095458 | M62: 12043453 | N62: 11747471 | O62: 12189428.21 | P62: 12179180 | Q62: 12328996 | R62: 12578580 | S62: 12736366 | T62: 12973393 | V62: Propiedades, planta y equipo - Neto | W62: 12796356 | X62: 13287418 | Y62: 13837031 | Z62: 14484288 | AA62: 14468171.43 | AB62: 14113703.55 | AC62: 14213830 | AD62: 14260803 | AE62: 14364429 | AF62: 14788895 | AG62: 14954825.04 | AH62: 15494470.31
B63: Propiedades de Inversión - neto | C63: 0 | D63: 0 | E63: 0 | F63: 0 | G63: 0 | H63: 0 | I63: 0 | J63: 0 | K63: 0 | L63: 0 | M63: 0 | N63: 0 | O63: 0 | P63: 0 | Q63: 0 | R63: 0 | S63: 0 | T63: 0 | V63: Propiedades de Inversión - neto | X63: 0 | Y63: 0 | Z63: 0 | AA63: 0 | AB63: 0 | AC63: 0 | AD63: 0 | AE63: 0 | AF63: 0 | AG63: 0 | AH63: 0
B64: Activos mantenidos para la venta | C64: 0 | D64: 0 | E64: 0 | F64: 0 | G64: 0 | H64: 0 | I64: 0 | J64: 0 | K64: 0 | L64: 0 | M64: 0 | N64: 0 | O64: 0 | P64: 0 | Q64: 0 | R64: 0 | S64: 0 | T64: 0 | V64: Activos mantenidos para la venta | X64: 0 | Y64: 0 | Z64: 0 | AA64: 0 | AB64: 0 | AC64: 0 | AD64: 0 | AE64: 0 | AF64: 0 | AG64: 0 | AH64: 0
B65: Intangibles - Neto | C65: 6179860 | D65: 6424494 | E65: 6010730 | F65: 6258157 | G65: 6297004 | H65: 6827331 | I65: 6639257 | J65: 6898749 | K65: 7331560 | L65: 7055014 | M65: 8583520 | N65: 8026572 | O65: 8948239.968 | P65: 8277346 | Q65: 9435310 | R65: 9613978 | S65: 9763450 | T65: 10246813 | V65: Intangibles - Neto | W65: 9772257 | X65: 10646635 | Y65: 11781603 | Z65: 12736745 | AA65: 12394270.38 | AB65: 11305597.13 | AC65: 10911807.26 | AD65: 10237184 | AE65: 10226286 | AF65: 10954598 | AG65: 10980145.98 | AH65: 11428837.29
B66: Activos no financieros | C66: 67802 | D66: 65015 | E66: 58212 | F66: 60609 | G66: 60989 | H66: 93676 | I66: 97570 | J66: 97748 | K66: 96536 | L66: 106428 | M66: 96500 | N66: 70755 | O66: 78723.961 | P66: 128094 | Q66: 174641 | R66: 176565 | S66: 180300 | T66: 168915 | V66: Activos no financieros | W66: 164657 | X66: 144969 | Y66: 148509 | Z66: 166207 | AA66: 174810.2689 | AB66: 160024.1729 | AC66: 109706.436 | AD66: 158235 | AE66: 165240 | AF66: 201501 | AG66: 202675.9753 | AH66: 181949.3289
B67: Impuesto diferido | C67: 415450 | D67: 504264 | E67: 463029 | F67: 448246 | G67: 464027 | H67: 591278 | I67: 642483 | J67: 724702 | K67: 834493 | L67: 791388 | M67: 965854 | N67: 907704 | O67: 1018011.673 | P67: 1608436 | Q67: 1700617 | R67: 1816483 | S67: 2247971 | T67: 256432 | V67: Impuesto diferido | W67: 247997 | X67: 292548 | Y67: 283085 | Z67: 292707 | AA67: 270136.1709 | AB67: 229652.7706 | AC67: 210657.5454 | AD67: 142836 | AE67: 136201 | AF67: 138937 | AG67: 164719.6753 | AH67: 180799.3573
B68: Activos en arrendamiento financiero - Neto | C68: 0 | D68: 7401 | E68: 2980 | F68: 7459 | G68: 7074 | H68: 22514 | I68: 23831 | J68: 63565 | K68: 61386 | L68: 220311 | M68: 239071 | N68: 213124 | O68: 220874.481 | P68: 0 | Q68: 224684 | R68: 0 | S68: 0 | T68: 0 | V68: Activos en arrendamiento financiero - Neto | X68: 0 | Y68: 0 | Z68: 0 | AA68: 0 | AB68: 0 | AC68: 0 | AD68: 0 | AE68: 0 | AF68: 0 | AG68: 0 | AH68: 0
B69: Activos Intangibles en arrendamiento financiero - Neto | C69: 0 | D69: 0 | E69: 0 | F69: 0 | G69: 0 | H69: 0 | I69: 0 | J69: 0 | K69: 0 | L69: 1390 | M69: 0 | N69: 1782 | O69: 409.587 | P69: 0 | Q69: 379 | R69: 0 | S69: 0 | T69: 0 | V69: Activos Intangibles en arrendamiento financiero - Neto | X69: 0 | Y69: 0 | Z69: 0
B70: Préstamos por cobrar partes relacionadas | C70: 0 | D70: 0 | E70: 1216 | F70: 151 | G70: 2 | H70: 335 | I70: 389 | J70: 337 | K70: 337 | L70: 335 | M70: 337 | N70: 337 | O70: 336.627 | P70: 17287 | Q70: 19267 | R70: 337 | S70: 337 | T70: 335 | V70: Préstamos por cobrar partes relacionadas | W70: 0 | X70: 335 | Y70: 336 | Z70: 335
B71: Total activo no corriente | C71: 32835212 | D71: 36987771 | E71: 34928799 | F71: 34199379 | G71: 34509162 | H71: 37943640 | I71: 37815662 | J71: 38832598 | K71: 39632012 | L71: 39343463 | M71: 42843643 | N71: 40731520 | O71: 42872111.62 | P71: 44485284 | Q71: 48165046 | R71: 52183396 | S71: 51556960 | T71: 51028083 | V71: Total activo no corriente | W71: 53193322 | X71: 54715912 | Y71: 59209633 | Z71: 65011883 | AA71: 65299932.47 | AB71: 63060675.74 | AC71: 60055953.92 | AD71: 58809715 | AE71: 58542285 | AF71: 60593314 | AG71: 63237815.51 | AH71: 63453254.72
B72: TOTAL ACTIVO | C72: 38508385 | D72: 43408501 | E72: 41580022 | F72: 40714888 | G72: 41898304 | H72: 44967854 | I72: 45027284 | J72: 47265664 | K72: 48240416 | L72: 48793244 | M72: 51340270 | N72: 49902156 | O72: 52280266.16 | P72: 54194069 | Q72: 57636388 | R72: 62624186 | S72: 62574311 | T72: 61698186 | V72: TOTAL ACTIVO | W72: 64009251 | X72: 66190347 | Y72: 71831522 | Z72: 78733854 | AA72: 80124329.94 | AB72: 75370216 | AC72: 72758663.13 | AD72: 71217176 | AE72: 71388375 | AF72: 73480910 | AG72: 76641269.64 | AH72: 76995347.16
X73: 0 | Y73: 0
B74: PASIVO MAS PATRIMONIO DE LOS ACCIONISTAS | V74: PASIVO MAS PATRIMONIO DE LOS ACCIONISTAS
B75: Pasivo corriente | V75: Pasivo corriente
B76: Pasivos financieros | C76: 1674203 | D76: 1603839 | E76: 1412122 | F76: 1563656 | G76: 1614296 | H76: 1751632 | I76: 1592926 | J76: 1406427 | K76: 1787726 | L76: 1698041 | M76: 2222137 | N76: 2360855 | O76: 1590591.168 | P76: 1266015 | Q76: 1586526 | R76: 2772660 | S76: 3029718 | T76: 2866267 | V76: Pasivos financieros | W76: 2581547 | X76: 2034435 | Y76: 1866502 | Z76: 2080458 | AA76: 2370843.589 | AB76: 4093471.583 | AC76: 4241385.389 | AD76: 2477276 | AE76: 1981023 | AF76: 2673395 | AG76: 2897208.354 | AH76: 2491673.186
B77: Cuentas por pagar | C77: 905227 | D77: 779013 | E77: 1206346 | F77: 1133748 | G77: 762854 | H77: 635442 | I77: 1271533 | J77: 1202679 | K77: 887582 | L77: 973517 | M77: 1703190 | N77: 1444107 | O77: 1194236.534 | P77: 996573 | Q77: 2864357 | R77: 2328817 | S77: 1364141 | T77: 949140 | V77: Cuentas por pagar | W77: 1781819 | X77: 1755325 | Y77: 1548931 | Z77: 1704252 | AA77: 3593768.276 | AB77: 1968371.276 | AC77: 1755732.582 | AD77: 1681937 | AE77: 2969042 | AF77: 1791810 | AG77: 1414041.179 | AH77: 1928440.468
B78: Vinculados Economicos | C78: 0 | D78: 53 | E78: 68400 | F78: 2075 | G78: 99 | H78: 0 | I78: 0 | J78: 0 | K78: 62 | L78: 59 | M78: 75 | N78: 73 | O78: 0 | P78: 62 | Q78: 67 | R78: 68 | S78: 51 | T78: 0 | V78: Vinculados Economicos | W78: 0 | X78: 0 | Y78: 0 | Z78: 0 | AA78: 0 | AB78: 0 | AC78: 0 | AD78: 0 | AE78: 0 | AF78: 0 | AG78: 0 | AH78: 0
B79: Beneficios a los empleados | C79: 73253 | D79: 83690 | E79: 61445 | F79: 70305 | G79: 84674 | H79: 99330 | I79: 89182 | J79: 91977 | K79: 117996 | L79: 101658 | M79: 95984 | N79: 102107 | O79: 128523.752 | P79: 120979 | Q79: 108104 | R79: 117147 | S79: 138087 | T79: 140154 | V79: Beneficios a los empleados | W79: 118930 | X79: 128620 | Y79: 162656 | Z79: 165248 | AA79: 134211.5953 | AB79: 151470.0607 | AC79: 185766.1563 | AD79: 174948 | AE79: 149909 | AF79: 170018 | AG79: 197994.7855 | AH79: 193473.6934
B80: Impuestos corrientes | C80: 245065 | D80: 407912 | E80: 494984 | F80: 635223 | G80: 799047 | H80: 251656 | I80: 380708 | J80: 518227 | K80: 589799 | L80: 268197 | M80: 357015 | N80: 470736 | O80: 618913.038 | P80: 376021 | Q80: 547982 | R80: 644816 | S80: 763735 | T80: 369353 | V80: Impuestos corrientes | W80: 382270 | X80: 392333 | Y80: 487252 | Z80: 629568 | AA80: 509761.4055 | AB80: 386184.7088 | AC80: 340949.5167 | AD80: 361140 | AE80: 412922 | AF80: 423264 | AG80: 638733.2039 | AH80: 564879.1078
B81: Provisiones | C81: 537283 | D81: 121006 | E81: 116647 | F81: 128507 | G81: 125220 | H81: 95924 | I81: 141933 | J81: 140934 | K81: 146155 | L81: 551058 | M81: 334793 | N81: 275555 | O81: 277686.892 | P81: 368985 | Q81: 404022 | R81: 418503 | S81: 392568 | T81: 154089 | V81: Provisiones | W81: 142509 | X81: 150927 | Y81: 161205 | Z81: 206613 | AA81: 204642.6031 | AB81: 203442.8874 | AC81: 218124.5027 | AD81: 225888 | AE81: 220336 | AF81: 223577 | AG81: 178581.452 | AH81: 134053.5669
B82: Pasivos no financieros | C82: 229713 | D82: 114763 | E82: 121031 | F82: 122952 | G82: 110771 | H82: 89795 | I82: 109794 | J82: 112964 | K82: 117632 | L82: 82557 | M82: 84482 | N82: 84413 | O82: 85246.808 | P82: 274406 | Q82: 175774 | R82: 157508 | S82: 323252 | T82: 491046 | V82: Pasivos no financieros | W82: 385564 | X82: 360425 | Y82: 379046 | Z82: 573918 | AA82: 485251.3181 | AB82: 435913.8194 | AC82: 596681.1641 | AD82: 386112 | AE82: 431838 | AF82: 353290 | AG82: 334698.9632 | AH82: 308822.5034
B83: Otros Pasivos Financieros -Coberturas | C83: 0 | D83: 0 | E83: 219 | F83: 0 | G83: 0 | H83: 0 | I83: 0 | J83: 0 | K83: 0 | L83: 0 | M83: 0 | N83: 0 | O83: 0 | P83: 0 | Q83: 0 | R83: 0 | S83: 0 | T83: 0 | V83: Otros Pasivos Financieros -Coberturas | X83: 0 | Y83: 0 | Z83: 0 | AA83: 0 | AB83: 0 | AC83: 0 | AD83: 0 | AE83: 0 | AF83: 0 | AG83: 0 | AH83: 0
B84: Total pasivo corriente | C84: 3664744 | D84: 3110276 | E84: 3481194 | F84: 3656466 | G84: 3496961 | H84: 2923779 | I84: 3586076 | J84: 3473208 | K84: 3646952 | L84: 3675087 | M84: 4797676 | N84: 4737846 | O84: 3895198.192 | P84: 3403041 | Q84: 5686832 | R84: 6439519 | S84: 6011552 | T84: 4970049 | V84: Total pasivo corriente | W84: 5392639 | X84: 4822065 | Y84: 4605592 | Z84: 5360057 | AA84: 7298478.787 | AB84: 7238854.335 | AC84: 7338639.311 | AD84: 5307302 | AE84: 6165071 | AF84: 5635355 | AG84: 5661257.937 | AH84: 5621342.525
B85: Pasivo no corriente | V85: Pasivo no corriente
B86: Pasivos financieros | C86: 10797222 | D86: 14085189 | E86: 13786538 | F86: 13870661 | G86: 14522384 | H86: 15438954 | I86: 15477291 | J86: 16611023 | K86: 16604521 | L86: 16059516 | M86: 17827828 | N86: 17883592 | O86: 19779190.58 | P86: 21202820 | Q86: 22385117 | R86: 23361384 | S86: 23906515 | T86: 25074175 | V86: Pasivos financieros | W86: 25388202 | X86: 26868430 | Y86: 29676480 | Z86: 32089642 | AA86: 32475669.63 | AB86: 28508160.91 | AC86: 27143334.6 | AD86: 28516340 | AE86: 29127826 | AF86: 30148148 | AG86: 30607514.53 | AH86: 31813938.81
B87: Cuentas por pagar | C87: 979227 | D87: 994998 | E87: 873259 | F87: 856131 | G87: 844531 | H87: 908158 | I87: 876310 | J87: 942608 | K87: 921570 | L87: 974314 | M87: 1018639 | N87: 1030325 | O87: 1078282.123 | P87: 222268 | Q87: 1199239 | R87: 1201491 | S87: 241803 | T87: 215467 | V87: Cuentas por pagar | W87: 250428 | X87: 221758 | Y87: 226989 | Z87: 227633 | AA87: 214244.6623 | AB87: 192924.2791 | AC87: 210320.8669 | AD87: 159942 | AE87: 167628 | AF87: 160654 | AG87: 164078.0474 | AH87: 147568.6369
B88: Préstamos por pagar partes relacionadas | C88: 482 | D88: 294 | E88: 3143 | F88: 2471 | G88: 49 | H88: 0 | I88: 0 | J88: 0 | K88: 0 | L88: 0 | M88: 0 | N88: 0 | O88: 0 | P88: 0 | Q88: 0 | R88: 0 | S88: -6 | T88: 0 | V88: Préstamos por pagar partes relacionadas | X88: 0 | Y88: 0 | Z88: 0 | AA88: 0 | AB88: 0 | AC88: 0 | AD88: 0 | AE88: 0 | AF88: 0 | AG88: 0 | AH88: 0
B89: Impuestos no corrientes | C89: 1041742 | D89: 1054405 | E89: 958397 | F89: 855667 | G89: 851055 | H89: 986905 | I89: 975881 | J89: 1018136 | K89: 991260 | L89: 963722 | M89: 922503 | N89: 867949 | O89: 864277.349 | P89: 869716 | Q89: 1002171 | R89: 1185693 | S89: 1153348 | T89: 1208927 | V89: Impuestos no corrientes | W89: 1379322 | X89: 1428158 | Y89: 1532525 | Z89: 1705412 | AA89: 1732523.72 | AB89: 1691220.171 | AC89: 1610642.312 | AD89: 1613290 | AE89: 1659040 | AF89: 1638346 | AG89: 1818386.712 | AH89: 1782468.084
B90: Beneficios a los empleados | C90: 457326 | D90: 490130 | E90: 498227 | F90: 503086 | G90: 498345 | H90: 390147 | I90: 401258 | J90: 407101 | K90: 416175 | L90: 465417 | M90: 474587 | N90: 484745 | O90: 491689.048 | P90: 781100 | Q90: 793608 | R90: 844516 | S90: 838512 | T90: 769153 | V90: Beneficios a los empleados | W90: 823569 | X90: 837564 | Y90: 878289 | Z90: 479839 | AA90: 485889.6253 | AB90: 480394.1954 | AC90: 471210.8548 | AD90: 732308 | AE90: 730918 | AF90: 726025 | AG90: 736255.4424 | AH90: 413275.6279
B91: Provisiones | C91: 267893 | D91: 253275 | E91: 263566 | F91: 256831 | G91: 262263 | H91: 247497 | I91: 242271 | J91: 253075 | K91: 269538 | L91: 211188 | M91: 264140 | N91: 252228 | O91: 280326.238 | P91: 247877 | Q91: 293984 | R91: 309852 | S91: 312828 | T91: 337270 | V91: Provisiones | W91: 338076 | X91: 359333 | Y91: 387472 | Z91: 487586 | AA91: 504413.5896 | AB91: 457934.6295 | AC91: 471454.8367 | AD91: 553619 | AE91: 554236 | AF91: 567812 | AG91: 429968.1983 | AH91: 540012.8016
B92: Pasivos no financieros | C92: 401776 | D92: 490647 | E92: 466119 | F92: 481188 | G92: 502174 | H92: 499634 | I92: 488702 | J92: 477728 | K92: 483473 | L92: 499037 | M92: 513217 | N92: 486731 | O92: 476018.126 | P92: 1541354 | Q92: 454777 | R92: 451281 | S92: 1298751 | T92: 1347113 | V92: Pasivos no financieros | W92: 1332162 | X92: 1316542 | Y92: 1339174 | Z92: 1653701 | AA92: 1687162.855 | AB92: 1645610.411 | AC92: 1412418.642 | AD92: 1385146 | AE92: 1219099 | AF92: 1407592 | AG92: 1379852.314 | AH92: 1291905.895
B93: Impuesto diferido | C93: 3986495 | D93: 4505765 | E93: 4230824 | F93: 4023540 | G93: 4080568 | H93: 4630953 | I93: 4595558 | J93: 4757707 | K93: 4945150 | L93: 4841749 | M93: 5093887 | N93: 4926919 | O93: 5089269.845 | P93: 5779700 | Q93: 6340649 | R93: 6936500 | S93: 7369836 | T93: 5643037 | V93: Impuesto diferido | W93: 6033456 | X93: 6052354 | Y93: 6505603 | Z93: 7179613 | AA93: 7261366.521 | AB93: 6927921.825 | AC93: 6638388.782 | AD93: 6582835 | AE93: 6459107 | AF93: 6612001 | AG93: 7052838.326 | AH93: 7116828.634
B94: Total pasivo no corriente | C94: 17932163 | D94: 21874703 | E94: 21080073 | F94: 20849575 | G94: 21561369 | H94: 23102248 | I94: 23057271 | J94: 24467378 | K94: 24631687 | L94: 24014943 | M94: 26114801 | N94: 25932489 | O94: 28059053.31 | P94: 30644835 | Q94: 32469545 | R94: 34290717 | S94: 35121587 | T94: 34595142 | V94: Total pasivo no corriente | W94: 35545215 | X94: 37084139 | Y94: 40546532 | Z94: 43823426 | AA94: 44361270.6 | AB94: 39904166.42 | AC94: 37957770.89 | AD94: 39543480 | AE94: 39917855 | AF94: 41260579 | AG94: 42188893.57 | AH94: 43105998.49
B95: TOTAL PASIVO | C95: 21596907 | D95: 24984979 | E95: 24561267 | F95: 24506041 | G95: 25058330 | H95: 26026027 | I95: 26643347 | J95: 27940586 | K95: 28278639 | L95: 27690030 | M95: 30912477 | N95: 30670335 | O95: 31954251.5 | P95: 34047876 | Q95: 38156377 | R95: 40730236 | S95: 41133139 | T95: 39565191 | V95: TOTAL PASIVO | W95: 40937854 | X95: 41906204 | Y95: 45152124 | Z95: 49183483 | AA95: 51659749.39 | AB95: 47143020.76 | AC95: 45296410.2 | AD95: 44850782 | AE95: 46082926 | AF95: 46895934 | AG95: 47850151.5 | AH95: 48727341.02
R96: 0 | X96: 0 | Y96: 0
B97: Patrimonio de los accionistas | V97: Patrimonio de los accionistas
B98: Capital suscrito y pagado | C98: 36916 | D98: 36916 | E98: 36916 | F98: 36916 | G98: 36916 | H98: 36916 | I98: 36916 | J98: 36916 | K98: 36916 | L98: 36916 | M98: 36916 | N98: 36916 | O98: 36916.335 | P98: 36916 | Q98: 36916 | R98: 36916 | S98: 36916 | T98: 36916 | V98: Capital suscrito y pagado | W98: 36916 | X98: 36916 | Y98: 36916 | Z98: 36916 | AA98: 36916.33493 | AB98: 36916.33493 | AC98: 36916.33493 | AD98: 36916 | AE98: 36916 | AF98: 36916 | AG98: 36916.33493 | AH98: 36916.33493
B99: Prima en colocación de acciones | C99: 1428128 | D99: 1428128 | E99: 1428128 | F99: 1428128 | G99: 1428128 | H99: 1428128 | I99: 1428128 | J99: 1428128 | K99: 1428128 | L99: 1428128 | M99: 1428128 | N99: 1428128 | O99: 1428127.891 | P99: 1428128 | Q99: 1428128 | R99: 1428128 | S99: 1428128 | T99: 1428128 | V99: Prima en colocación de acciones | W99: 1428128 | X99: 1428128 | Y99: 1428128 | Z99: 1428128 | AA99: 1428127.891 | AB99: 1428127.891 | AC99: 1428127.891 | AD99: 1428128 | AE99: 1428128 | AF99: 1428128 | AG99: 1428127.891 | AH99: 1428127.891
B100: Reservas | C100: 1878709 | D100: 3585959 | E100: 4428306 | F100: 4428306 | G100: 4428306 | H100: 4428306 | I100: 5346023 | J100: 5346023 | K100: 5346023 | L100: 5346023 | M100: 6241845 | N100: 6241845 | O100: 6241845.219 | P100: 6241845 | Q100: 6861491 | R100: 6861491 | S100: 6861491 | T100: 6861491 | V100: Reservas | W100: 7690798 | X100: 7690798 | Y100: 7690798 | Z100: 7690798 | AA100: 7952815.76 | AB100: 7952815.76 | AC100: 7952815.76 | AD100: 7952816 | AE100: 9181061 | AF100: 9181061 | AG100: 9181060.679 | AH100: 9181060.679
B101: Resultados retenidos | C101: 3232907 | D101: 3228134 | E101: 3223361 | F101: 3223361 | G101: 3223361 | H101: 3217227 | I101: 3212454 | J101: 3212454 | K101: 3212454 | L101: 3212454 | M101: 3207681 | N101: 3207681 | O101: 3207681.186 | P101: 3207681 | Q101: 3203922 | R101: 3203922 | S101: 3203922 | T101: 3203921 | V101: Resultados retenidos | W101: 3210907 | X101: 3210907 | Y101: 3210907 | Z101: 3210907 | AA101: 3221890.741 | AB101: 3221890.741 | AC101: 3221890.741 | AD101: 3221891 | AE101: 3230576 | AF101: 3230576 | AG101: 3230575.941 | AH101: 3230575.941
B102: Resultado del año | C102: 2136629 | D102: 1437936 | E102: 297574 | F102: 529831 | G102: 942858 | H102: 1524382 | I102: 353125 | J102: 792215 | K102: 1198066 | L102: 1638732 | M102: 378507 | N102: 928923 | O102: 1412690.426 | P102: 2059191 | Q102: 507935 | R102: 1093826 | S102: 1215193 | T102: 1665536 | V102: Resultado del año | W102: 431380 | X102: 1101797 | Y102: 1769822 | Z102: 2202581 | AA102: 828098.779 | AB102: 1522088.32 | AC102: 2034445.996 | AD102: 2466453 | AE102: 634455 | AF102: 1341999 | AG102: 2233170.003 | AH102: 2807941.183
B103: Otro Resultado Integral | C103: 1150568 | D103: 1239964 | E103: 654756 | F103: 411702 | G103: 377232 | H103: 1234415 | I103: 1023603 | J103: 1090675 | K103: 1275496 | L103: 779923 | M103: 1451479 | N103: 527193 | O103: 910035.817 | P103: 194014 | Q103: 745958 | R103: 1288773 | S103: 984049 | T103: 1167865 | V103: Otro Resultado Integral | W103: 1562608 | X103: 1547106 | Y103: 2287569 | Z103: 3866489 | AA103: 3816397.239 | AB103: 2834340.817 | AC103: 1867482.628 | AD103: 1178848 | AE103: 676717 | AF103: 1074237 | AG103: 1393347.584 | AH103: 1161689.781
B104: Patrimonio atribuible a propietarios de la controladora | C104: 9863857 | D104: 10957037 | E104: 10069041 | F104: 10058244 | G104: 10436801 | H104: 11869374 | I104: 11400249 | J104: 11906411 | K104: 12497083 | L104: 12442176 | M104: 12744556 | N104: 12370686 | O104: 13237296.87 | P104: 13167775 | Q104: 12784350 | R104: 13913056 | S104: 13729699 | T104: 14363857 | V104: Patrimonio atribuible a propietarios de la controladora | W104: 14360737 | X104: 15015652 | Y104: 16424140 | Z104: 18435819 | AA104: 17284246.74 | AB104: 16996179.86 | AC104: 16541679.35 | AD104: 16285052 | AE104: 15187852 | AF104: 16292917 | AG104: 17503198.43 | AH104: 17846311.81
B105: Participaciones no controladoras | C105: 7047621 | D105: 7466485 | E105: 6949714 | F105: 6150603 | G105: 6403173 | H105: 7072453 | I105: 6983688 | J105: 7418667 | K105: 7464694 | L105: 8661038 | M105: 7683237 | N105: 6861135 | O105: 7088717.789 | P105: 6978418 | Q105: 6695661 | R105: 7980894 | S105: 7711473 | T105: 7769138 | V105: Participaciones no controladoras | W105: 8710660 | X105: 9268491 | Y105: 10255258 | Z105: 11114552 | AA105: 11180333.8 | AB105: 11231015.38 | AC105: 10920573.58 | AD105: 10081342 | AE105: 10117597 | AF105: 10292060 | AG105: 11287919.7 | AH105: 10421694.33
B106: Total patrimonio de los accionistas | C106: 16911478 | D106: 18423522 | E106: 17018755 | F106: 16208847 | G106: 16839974 | H106: 18941827 | I106: 18383937 | J106: 19325078 | K106: 19961777 | L106: 21103214 | M106: 20427793 | N106: 19231821 | O106: 20326014.66 | P106: 20146193 | Q106: 19480011 | R106: 21893950 | S106: 21441172 | T106: 22132995 | V106: Total patrimonio de los accionistas | W106: 23071397 | X106: 24284143 | Y106: 26679398 | Z106: 29550371 | AA106: 28464580.55 | AB106: 28227195.25 | AC106: 27462252.93 | AD106: 26366394 | AE106: 25305449 | AF106: 26584977 | AG106: 28791118.13 | AH106: 28268006.14
B107: TOTAL PASIVO Y PATRIMONIO DE LOS ACCIONISTAS | C107: 38508385 | D107: 43408501 | E107: 41580022 | F107: 40714888 | G107: 41898304 | H107: 44967854 | I107: 45027284 | J107: 47265664 | K107: 48240416 | L107: 48793244 | M107: 51340270 | N107: 49902156 | O107: 52280266.16 | P107: 54194069 | Q107: 57636388 | R107: 62624186 | S107: 62574311 | T107: 61698186 | V107: TOTAL PASIVO Y PATRIMONIO DE LOS ACCIONISTAS | W107: 64009251 | X107: 66190347 | Y107: 71831522 | Z107: 78733854 | AA107: 80124329.94 | AB107: 75370216 | AC107: 72758663.13 | AD107: 71217176 | AE107: 71388375 | AF107: 73480910 | AG107: 76641269.64 | AH107: 76995347.16
C108: 0 | D108: 0 | E108: 0 | F108: 0 | G108: 0 | H108: 0 | I108: 0 | J108: 0 | K108: 0 | P108: 0 | Q108: 0 | R108: 0 | S108: 0
C109: 0 | D109: 0 | E109: 0 | F109: 0 | G109: 0 | H109: 0 | I109: 0 | J109: 0 | K109: 0

Sheet EEFF_TE_Col
A1: Volver al Contenido
A3: □ | B3: ESTADOS DE RESULTADOS SEPARADOS ISA
B4: Cifras expresadas en millones de pesos colombianos
C7: 2016 | D7: 2017 | E7: 1T18 | F7: 2T18 | G7: 3T18 | H7: 4T18 | I7: 1T19 | J7: 2T19 | K7: 3T19 | L7: 4T19 | M7: 1T20 | N7: 2T20 | O7: 3T20 | P7: 4T20 | Q7: 1T21 | R7: 2T21 | S7: 3T21 | T7: 4T21 | W7: 1T22 | X7: 2T22 | Y7: 3T22 | Z7: 4T22 | AB7: 1T23 | AC7: 2T23 | AD7: 3T23 | AE7: 4T23 | AF7: 1T24 | AG7: 2T24 | AH7: 3T24 | AI7: 4T24
B8: Ingresos | V8: Ingresos | AA8: Ingresos
B9: Ingresos contrato de cuentas en participación | C9: 837439 | D9: 805898 | E9: 202706 | F9: 203436 | G9: 209060 | H9: 211029 | I9: 216677 | J9: 217960 | K9: 230260 | L9: 229258 | M9: 247540 | N9: 248543 | O9: 244340 | P9: =975322-O9-N9-M9 -> 234899 | Q9: 251022 | R9: 260188 | S9: 267790 | T9: 304385 | V9: Utilidad contrato de cuentas en participación | W9: 348348 | X9: 359895 | Y9: 392265 | Z9: 351064 | AA9: Utilidad contrato de cuentas en participación | AB9: 387916 | AC9: 373502 | AD9: 365706 | AE9: 410640 | AF9: 430799 | AG9: 423708 | AH9: 389688 | AI9: 399869
B10: Servicios de transmisión de energía eléctrica | C10: 20887 | D10: 64590 | E10: 15695 | F10: 11937 | G10: 26749 | H10: 63631 | I10: 62304 | J10: 58386 | K10: 65690 | L10: 61101 | M10: 57851 | N10: 61311 | O10: 61687 | P10: =246402-O10-N10-M10 -> 65553 | Q10: 76884 | R10: 77767 | S10: 79926 | T10: 55882 | V10: Servicios de transmisión de energía eléctrica | W10: 37341 | X10: 37969 | Y10: 61422 | Z10: 68012 | AA10: Servicios de transmisión de energía eléctrica | AB10: 48659 | AC10: 36579 | AD10: 30071 | AE10: 29199 | AF10: 36381 | AG10: 36856 | AH10: 38710 | AI10: 40418
B11: Cargos por conexión | C11: 2166 | D11: 2176 | E11: 551 | F11: 553 | G11: 556 | H11: 568 | I11: 559 | J11: 579 | K11: 584 | L11: 591 | M11: 589 | N11: 592 | O11: 593 | P11: =2372-O11-N11-M11 -> 598 | Q11: 609 | R11: 653 | S11: 664 | T11: 688 | V11: Cargos por conexión | W11: 792 | X11: 838 | Y11: 694 | Z11: 826 | AA11: Cargos por conexión | AB11: 842 | AC11: 834 | AD11: 815 | AE11: 829 | AF11: 825 | AG11: 832 | AH11: 690 | AI11: 797
B12: Proyectos de infraestructura | C12: 10847 | D12: 6472 | E12: 288 | F12: 2495 | G12: 543 | H12: 3662 | I12: 986 | J12: 3555 | K12: 722 | L12: 1454 | M12: 556 | N12: 2386 | O12: 2065 | P12: =6533-O12-N12-M12 -> 1526 | Q12: 1829 | R12: 2018 | S12: 354 | T12: 1046 | V12: Proyectos de infraestructura | W12: -139 | X12: 440 | Y12: 1011 | Z12: 3146 | AA12: Proyectos de infraestructura | AB12: -324 | AC12: 2746 | AD12: 2981 | AE12: 3152 | AF12: 2735 | AG12: 2895 | AH12: 4429 | AI12: 3725
B13: Telecomunicaciones | C13: 979 | D13: 3784 | E13: 197 | F13: 228 | G13: 202 | H13: 3836 | I13: 405 | J13: 405 | K13: 405 | L13: 405 | M13: 195 | N13: 80 | O13: 80 | P13: =418-O13-N13-M13 -> 63 | Q13: 46 | R13: 54 | S13: 54 | T13: 54 | V13: Telecomunicaciones | W13: 0 | X13: 0 | Y13: 163 | Z13: 54 | AA13: Telecomunicaciones | AB13: 54 | AC13: 54 | AD13: 54 | AE13: 54 | AF13: 54 | AG13: 54 | AH13: 54 | AI13: 54
B14: Otros ingresos operacionales | C14: 8923 | D14: 6319 | E14: 63172 | F14: 2324 | G14: 3437 | H14: -1634 | I14: 1275 | J14: 2305 | K14: 1938 | L14: 1964 | M14: 2013 | N14: 2182 | O14: 2150 | P14: =8438-O14-N14-M14 -> 2093 | Q14: 3135 | R14: 2112 | S14: 2338 | T14: 2401 | V14: Otros ingresos operacionales | W14: 4594 | X14: 2575 | Y14: 2300 | Z14: 2125 | AA14: Otros ingresos operacionales | AB14: 2918 | AC14: -1299 | AD14: 32 | AE14: 9287 | AF14: 3891 | AG14: 20604 | AH14: 3811 | AI14: 1980
B15: Total ingresos | C15: =+SUM(C9:C14) -> 881241 | D15: =+SUM(D9:D14) -> 889239 | E15: =+SUM(E9:E14) -> 282609 | F15: 220973 | G15: 240547 | H15: 281092 | I15: 282206 | J15: 283190 | K15: 299599 | L15: 294773 | M15: 308744 | N15: 315094 | O15: 310915 | P15: 304732 | Q15: 333525 | R15: 342792 | S15: 351126 | T15: 364456 | U15: 0 | V15: Total ingresos | W15: 390936 | X15: 401717 | Y15: 457855 | Z15: 425227 | AA15: Total ingresos | AB15: 440065 | AC15: 412416 | AD15: 399659 | AE15: 453161 | AF15: 474685 | AG15: 484949 | AH15: 437382 | AI15: 446843
B16: Costos y gastos AOM | C16: 138135 | D16: 137075 | E16: 38850 | F16: 27810 | G16: 30029 | H16: 33058 | I16: 43956 | J16: 34908 | K16: 32330 | L16: 45151 | M16: 46417 | N16: 34301 | O16: 33304 | P16: =164657-O16-N16-M16 -> 50635 | Q16: 35957 | R16: 50598 | S16: 38459 | T16: 57181 | V16: Costos y gastos AOM | W16: 50600 | X16: 40779 | Y16: 48525.12717 | Z16: 59790 | AA16: Costos y gastos AOM | AB16: 70954 | AC16: 60568 | AD16: 55853 | AE16: 84445 | AF16: 79220 | AG16: 66095 | AH16: 66896 | AI16: 90681
B17: EBITDA | C17: =+C15-C16 -> 743106 | D17: =+D15-D16 -> 752164 | E17: 243759 | F17: 193163 | G17: 210518 | H17: 248034 | I17: 238250 | J17: =+J15-J16 -> 248282 | K17: 267269 | L17: 249622 | M17: 262327 | N17: 280793 | O17: 277611 | P17: 254097 | Q17: 297568 | R17: 292194 | S17: 312667 | T17: 307275 | V17: (-) Provisiones, Depreciaciones y Amortizaciones. | W17: 55495 | X17: 50268 | Y17: 52839.99993 | Z17: 55815 | AA17: (-) Provisiones, Depreciaciones y Amortizaciones. | AB17: 56855 | AC17: 56256 | AD17: 58925 | AE17: 65899 | AF17: 60504 | AG17: 59694 | AH17: 65072 | AI17: 75724
V18: Utilidad Bruta | W18: 284841 | X18: 310670 | Y18: 356490 | Z18: =+Z15-Z16-Z17 -> 309622 | AA18: Utilidad Bruta | AB18: =+AB15-AB16-AB17 -> 312256 | AC18: 295592 | AD18: 284881 | AE18: 302817 | AF18: 334961 | AG18: 359160 | AH18: 305414 | AI18: 280438
B19: (-) Provisiones, Depreciaciones y Amortizaciones. | C19: 189361 | D19: 166345 | E19: 44671 | F19: 43742 | G19: 43552 | H19: 34912 | I19: 44008 | J19: 42137 | K19: 48383 | L19: 37586 | M19: 43933 | N19: 44289 | O19: 44095 | P19: =176786-O19-N19-M19 -> 44469 | Q19: 50132 | R19: 50598 | S19: 50158 | T19: 60290
B20: Metodo de participación neto ingreso /(gasto) | C20: 1906783 | D20: 1128274 | E20: 203004 | F20: 175187 | G20: 344397 | H20: 350199 | I20: 277267 | J20: 359351 | K20: 332630 | L20: 318187 | M20: =272185+35517 -> 307702 | N20: =428492+28869 -> 457361 | O20: =361720+82358 -> 444078 | P20: =1621538-O20-N20-M20 -> 412397 | Q20: 384338 | R20: 442842 | S20: 158921 | T20: 362471 | V20: Metodo de participación neto ingreso /(gasto) | W20: 300231 | X20: 509143 | Y20: 479072 | Z20: 352945 | AA20: Metodo de participación neto ingreso /(gasto) | AB20: 690320 | AC20: 592650 | AD20: 390544 | AE20: 364573 | AF20: 516782 | AG20: 554001 | AH20: 776875 | AI20: 435420
B21: Otros neto ingreso /(gasto) | C21: 3226 | D21: 3930 | E21: 155 | F21: -66 | G21: 1641 | H21: -2449 | I21: -902 | J21: 128 | K21: -182 | L21: 17123 | M21: 2652 | N21: -3454 | O21: -3694 | P21: =-5866-O21-N21-M21 -> -1370 | Q21: 1649 | R21: 13 | S21: -34 | T21: 1888 | V21: Otros neto ingreso /(gasto) | W21: 1853 | X21: 2033 | Y21: -143 | Z21: 327 | AA21: Otros neto ingreso /(gasto) | AB21: 2464 | AC21: 71 | AD21: 473 | AE21: 99 | AF21: 828 | AG21: 8630 | AH21: 235 | AI21: 5649
B22: Utilidad por actividades de operación | C22: 2463754 | D22: 1718023 | E22: 402247 | F22: 324542 | G22: 513004 | H22: 560872 | I22: 470607 | J22: 565624 | K22: 551334 | L22: 547346 | M22: =+M17-M19+M20+M21 -> 528748 | N22: =+N17-N19+N20+N21 -> 690411 | O22: =+O17-O19+O20+O21 -> 673900 | P22: =+P17-P19+P20+P21 -> 620655 | Q22: =+Q17-Q19+Q20+Q21 -> 633423 | R22: 684451 | S22: =+S17-S19+S20+S21 -> 421396 | T22: =+T17-T19+T20+T21 -> 611344 | V22: Utilidad por actividades de operación | W22: 586925 | X22: 821846 | Y22: 835419 | Z22: =+Z18+Z20+Z21 -> 662894 | AA22: Utilidad por actividades de operación | AB22: =+AB18+AB20+AB21 -> 1005040 | AC22: 888313 | AD22: 675898 | AE22: 667489 | AF22: 852571 | AG22: 921791 | AH22: 1082524 | AI22: 721507
R23: 0
B24: Financiero neto ingreso/(gasto) | C24: -229899 | D24: -201518 | E24: -74633 | F24: -47454 | G24: -70599 | H24: -62062 | I24: -75783 | J24: -84448 | K24: -91659 | L24: -74286 | M24: -95269 | N24: =-70381-2 -> -70383 | O24: =-66586+2 -> -66584 | P24: =-296835-O24-N24-M24 -> -64599 | Q24: -56641 | R24: -65074 | S24: -90635 | T24: -118177 | V24: Financiero neto ingreso/(gasto) | W24: -97526 | X24: -89459 | Y24: -99503 | Z24: -120273 | AA24: Financiero neto ingreso/(gasto) | AB24: -122914 | AC24: -127183 | AD24: -111664 | AE24: -122763 | AF24: -133240 | AG24: -99945 | AH24: -93017 | AI24: -87349
B25: Utilidad antes de impuestos | C25: 2233855 | D25: 1516505 | E25: 327614 | F25: 277088 | G25: 442405 | H25: 498810 | I25: 394824 | J25: 481176 | K25: 459675 | L25: 473060 | M25: =+M22+M24 -> 433479 | N25: =+N22+N24 -> 620028 | O25: =+O22+O24 -> 607316 | P25: =+P22+P24 -> 556056 | Q25: =+Q22+Q24 -> 576782 | R25: 619377 | S25: =+S22+S24 -> 330761 | T25: =+T22+T24 -> 493167 | V25: Utilidad antes de impuestos | W25: 489399 | X25: 732387 | Y25: 735916 | Z25: =+Z22+Z24 -> 542621 | AA25: Utilidad antes de impuestos | AB25: =+AB22+AB24 -> 882126 | AC25: 761130 | AD25: 564234 | AE25: 544726 | AF25: 719331 | AG25: 821846 | AH25: 989507 | AI25: 634158
B27: Provisión impuesto de renta | C27: 92395 | D27: 73797 | E27: 28846 | F27: 43637 | G27: 28184 | H27: -83905 | I27: 40505 | J27: 40894 | K27: 52631 | L27: 31200 | M27: 18262 | N27: 39554 | O27: 39993 | P27: =153929-O27-N27-M27 -> 56120 | Q27: 55178 | R27: 47961 | S27: 209811 | T27: 48182 | V27: Provisión impuesto de renta | W27: 61449 | X27: 64257 | Y27: 71616 | Z27: 112604 | AA27: Provisión impuesto de renta | AB27: 56406 | AC27: 69333 | AD27: 53836 | AE27: 114870 | AF27: 86629 | AG27: 116078 | AH27: 99911 | AI27: 60932
B28: Utilidad neta | C28: 2141460 | D28: 1442708 | E28: 298768 | F28: 233451 | G28: 414221 | H28: 582715 | I28: 354319 | J28: 440282 | K28: 407044 | L28: 441860 | M28: =+M25-M27 -> 415217 | N28: =+N25-N27 -> 580474 | O28: =+O25-O27 -> 567323 | P28: =+P25-P27 -> 499936 | Q28: =+Q25-Q27 -> 521604 | R28: 571416 | S28: =+S25-S27 -> 120950 | T28: =+T25-T27 -> 444985 | V28: Utilidad neta | W28: 427950 | X28: 668130 | Y28: 664300 | Z28: =+Z25-Z27 -> 430017 | AA28: Utilidad neta | AB28: =+AB25-AB27 -> 825720 | AC28: 691797 | AD28: 510398 | AE28: 429856 | AF28: 632702 | AG28: 705768 | AH28: 889596 | AI28: 573226
V30: EBITDA Total | W30: 658358 | X30: 873044 | Y30: 892080 | Z30: 727635 | AA30: EBITDA Total | AB30: 1080144 | AC30: 950478 | AD30: 736727 | AE30: 744369 | AF30: 935620 | AG30: 984455 | AH30: 1146964 | AI30: 799535
A32: □ | B32: ESTADOS SEPARADOS DE SITUACIÓN FINANCIERA - ISA
B33: Valores expresados en millones de pesos colombianos
W35: 1T22 | X35: 2T22 | Y35: 3T22 | Z35: 4T22 | AB35: 1T23 | AC35: 2T23 | AD35: 3T23 | AE35: =+AE7 -> 4T23 | AF35: 1T24 | AG35: 2T24 | AH35: 3T24 | AI35: =+AI7 -> 4T24
B36: ACTIVO | V36: ACTIVO | AA36: ACTIVO
B37: Activo corriente | V37: Activo corriente | AA37: Activo corriente
B38: Efectivo y equivalentes de efectivo | C38: 254496 | D38: 361188 | E38: 315607 | F38: 403075 | G38: 590299 | H38: 433807 | I38: 524315 | J38: 721146 | K38: 460247 | L38: 541371 | M38: 409376 | N38: 1060187 | O38: 1068640 | P38: 542198 | Q38: 617764 | R38: 1492654 | S38: 1205650 | T38: 545837 | V38: Efectivo y equivalentes de efectivo | W38: 914679 | X38: 1081699 | Y38: 963084 | Z38: 489038 | AA38: Efectivo y equivalentes de efectivo | AB38: 523140.5458 | AC38: 337820.439 | AD38: 652850.4087 | AE38: 635042 | AF38: 502116 | AG38: 1075230 | AH38: 826940 | AI38: 447123.4152
B39: Activos financieros | C39: 24008 | D39: 41776 | E39: 246287 | F39: 35401 | G39: 51428 | H39: 50199 | I39: 454588 | J39: 77976 | K39: 69730 | L39: 121792 | M39: 244445 | N39: 113023 | O39: 60469 | P39: 158541 | Q39: 627422 | R39: 176312 | S39: 98033 | T39: 274909 | V39: Activos financieros | W39: 310361 | X39: 185590 | Y39: 94954 | Z39: 288334 | AA39: Activos financieros | AB39: 803842.2646 | AC39: 417321.3238 | AD39: 248000.4755 | AE39: 489113 | AF39: 1024197 | AG39: 408455 | AH39: 296216 | AI39: 461340.5784
B40: Impuestos corrientes | C40: 23231 | D40: 20897 | E40: 55187 | F40: 89400 | G40: 88092 | H40: 37166 | I40: 57401 | J40: 44712 | K40: 66939 | L40: 41135 | M40: 68907 | N40: 99916 | O40: 126282 | P40: 68105 | Q40: 98117 | R40: 126604 | S40: 153369 | T40: 71331 | V40: Impuestos corrientes | W40: 78279 | X40: 89043 | Y40: 101784 | Z40: 77468 | AA40: Impuestos corrientes | AB40: 86428.22115 | AC40: 99035.85186 | AD40: 113854.1662 | AE40: 165308 | AF40: 177338 | AG40: 138036 | AH40: 156368 | AI40: 180512.2869
B41: Activos no financieros | C41: 18150 | D41: 7786 | E41: 9401 | F41: 19984 | G41: 17092 | H41: 15188 | I41: 13600 | J41: 10298 | K41: 13428 | L41: 7798 | M41: 21194 | N41: 14017 | O41: 20591 | P41: 12676 | Q41: 12054 | R41: 22986 | S41: 25172 | T41: 19436 | V41: Activos no financieros | W41: 23805 | X41: 19603 | Y41: 20260 | Z41: 34757 | AA41: Activos no financieros | AB41: 27308.01325 | AC41: 32366.72237 | AD41: 27703.43886 | AE41: 18452 | AF41: 17676 | AG41: 25906 | AH41: 34764 | AI41: 29623.88841
B42: Préstamos por cobrar partes relacionadas | C42: 38839 | D42: 210 | E42: 41275 | F42: 52291 | G42: 410 | H42: 407 | I42: 572 | J42: 1987 | K42: 913 | L42: 181 | M42: 2896 | N42: 6128 | O42: 9985 | P42: 6346 | Q42: 738 | R42: 0 | S42: 0 | T42: 0 | V42: Préstamos por cobrar partes relacionadas | W42: 0 | X42: 0 | Y42: 0 | Z42: 0 | AA42: Préstamos por cobrar partes relacionadas
B43: Total activo corriente | C43: 358724 | D43: 431857 | E43: 667757 | F43: 600151 | G43: 747321 | H43: 536767 | I43: 1050476 | J43: 856119 | K43: 611257 | L43: 712277 | M43: 746818 | N43: 1293271 | O43: 1285967 | P43: =SUM(P38:P42) -> 787866 | Q43: =SUM(Q38:Q42) -> 1356095 | R43: 1818556 | S43: =SUM(S38:S42) -> 1482224 | T43: =SUM(T38:T42) -> 911513 | V43: Total activo corriente | W43: 1327124 | X43: 1375935 | Y43: 1180082 | Z43: 889597 | AA43: Total activo corriente | AB43: 1440719.045 | AC43: 886544.337 | AD43: 1042408.489 | AE43: 1307915 | AF43: 1721328 | AG43: 1647628 | AH43: 1314288 | AI43: 1118600.169
B44: Activo no corriente | V44: Activo no corriente | X44: 0 | AA44: Activo no corriente
B45: Efectivo restringido | C45: 20298 | D45: 16901 | E45: 13702 | F45: 12561 | G45: 10373 | H45: 10461 | I45: 12641 | J45: 13644 | K45: 12190 | L45: 11029 | M45: 11664 | N45: 10374 | O45: 9013 | P45: 8529 | Q45: 99998 | R45: 78674 | S45: 9919 | T45: 13120 | V45: Efectivo restringido | W45: 14034 | X45: 10279 | Y45: 9911 | Z45: 8714 | AA45: Efectivo restringido | AB45: 9314.853491 | AC45: 9696.332946 | AD45: 9409.444124 | AE45: 11547 | AF45: 12023 | AG45: 12961 | AH45: 14295 | AI45: 12779.63124
B46: Impuestos no corrientes | C46: 0 | D46: 44649 | E46: 44649 | F46: 44649 | G46: 44649 | H46: 24955 | I46: 25449 | J46: 23993 | K46: 28677 | L46: 1405 | M46: 8927 | N46: 16307 | O46: 21020 | P46: 1023 | Q46: 7045 | R46: 10985 | S46: 15579 | T46: 679 | V46: Impuestos no corrientes | W46: 8269 | X46: 13568 | Y46: 19640 | Z46: 301 | AA46: Impuestos no corrientes | AB46: 26009.3538 | AC46: 90.50978507 | AD46: -4.01482477 | AE46: 0 | AF46: 0 | AG46: 0 | AH46: 0 | AI46: 0
B47: Inversiones en subsidiarias, asociadas y negocios conjuntos | C47: 8056601 | D47: 10216170 | E47: 9530390 | F47: 9461072 | G47: 9802592 | H47: 11013197 | I47: 10732696 | J47: 11183637 | K47: 11593893 | L47: 11224367 | M47: 11933040 | N47: 11150959 | O47: 11852674 | P47: 11435299 | Q47: 11743622 | R47: 12598674 | S47: 12219187 | T47: 12504610 | V47: Inversiones en subsidiarias, asociadas y negocios conjuntos | W47: 12810091 | X47: 13322971 | Y47: 14625215 | Z47: 16294124 | AA47: Inversiones en subsidiarias, asociadas y negocios conjuntos | AB47: 16273290.35 | AC47: 15740007.47 | AD47: 14999864.12 | AE47: 14436075 | AF47: 13946334 | AG47: 14831098 | AH47: 15910561 | AI47: 15751662.27
B48: Inversiones en instrumentos financieros | C48: 12528 | D48: 12528 | E48: 12528 | F48: 12524 | G48: 12524 | H48: 12524 | I48: 12524 | J48: 12524 | K48: 12524 | L48: 12524 | M48: 12524 | N48: 12524 | O48: 12524 | P48: 12524 | Q48: 12524 | R48: 12524 | S48: 12524 | T48: 12524 | V48: Inversiones en instrumentos financieros | W48: 13795 | X48: 13953 | Y48: 13914 | Z48: 13811 | AA48: Inversiones en instrumentos financieros | AB48: 13913.34768 | AC48: 13727.54285 | AD48: 13776.03779 | AE48: 13752 | AF48: 14461 | AG48: 14100 | AH48: 13893 | AI48: 13112.98675
B49: Activos financieros | C49: 6350 | D49: 13629 | E49: 14315 | F49: 15069 | G49: 16013 | H49: 15621 | I49: 16688 | J49: 16934 | K49: 17416 | L49: 17475 | M49: 17502 | N49: 17446 | O49: 18052 | P49: 18346 | Q49: 19342 | R49: 19218 | S49: 22110 | T49: 23116 | V49: Activos financieros | W49: 21826 | X49: 22508 | Y49: 25088 | Z49: 27363 | AA49: Activos financieros | AB49: 28367.97347 | AC49: 29832.76495 | AD49: 29918.75824 | AE49: 30002 | AF49: 32928 | AG49: 33572 | AH49: 36019 | AI49: 35132.76117
B50: Inventarios - Neto | C50: 0 | D50: 0 | E50: 0 | F50: 0 | G50: 0 | H50: 0 | I50: 0 | J50: 0 | K50: 0 | L50: 0 | M50: 0 | N50: 0 | O50: 0 | P50: 0 | Q50: 0 | R50: 0 | S50: 0 | V50: Inventarios - Neto | W50: 0 | X50: 0 | Y50: 0 | Z50: 0 | AA50: Inventarios - Neto | AB50: -8e-07 | AC50: -8e-07 | AD50: -8e-07 | AE50: 0 | AF50: 0 | AG50: 0 | AH50: 0 | AI50: 0
B51: Propiedades, planta y equipo - Neto | C51: 5066863 | D51: 5683964 | E51: 5835660 | F51: 5930332 | G51: 6084789 | H51: 6211045 | I51: 6287331 | J51: 6374734 | K51: 6480169 | L51: 6667921 | M51: 6797606 | N51: 6876688 | O51: 6981007 | P51: 7171938 | Q51: 7226974 | R51: 7249023 | S51: 7303109 | T51: 7407001 | V51: Propiedades, planta y equipo - Neto | W51: 7469551 | X51: 7564105 | Y51: 7652252 | Z51: 7974005 | AA51: Propiedades, planta y equipo - Neto | AB51: 8160088.176 | AC51: 8271110.419 | AD51: 8365657.484 | AE51: 8637613 | AF51: 8711278 | AG51: 8802064 | AH51: 8933701 | AI51: 9144235.075
B52: Propiedades de Inversión - neto | C52: 7803 | D52: 7720 | E52: 7699 | F52: 7678 | G52: 7658 | H52: 7936 | I52: 7914 | J52: 7892 | K52: 7870 | L52: 7848 | M52: 7826 | N52: 7804 | O52: 7783 | P52: 7761 | Q52: 7739 | R52: 7717 | S52: 7695 | T52: 7673 | V52: Propiedades de Inversión - neto | W52: 7651 | X52: 7630 | Y52: 7608 | Z52: 7586 | AA52: Propiedades de Inversión - neto | AB52: 7564.077612 | AC52: 7542.225808 | AD52: 7520.374002 | AE52: 7499 | AF52: 7477 | AG52: 7455 | AH52: 7433 | AI52: 7411.114969
B53: Intangibles - Neto | C53: 100716 | D53: 102263 | E53: 103689 | F53: 131067 | G53: 132314 | H53: 122692 | I53: 122010 | J53: 139118 | K53: 141132 | L53: 157983 | M53: 157003 | N53: 157771 | O53: 124695 | P53: 156725 | Q53: 155939 | R53: 209543 | S53: 210760 | T53: 212532 | V53: Intangibles - Neto | W53: 173347 | X53: 212904 | Y53: 231054 | Z53: 276223 | AA53: Intangibles - Neto | AB53: 275001.3545 | AC53: 274074.037 | AD53: 288873.9311 | AE53: 292992 | AF53: 298644 | AG53: 298706 | AH53: 297711 | AI53: 321488.5223
B54: Activos no financieros | C54: 1300 | D54: 1200 | E54: 1175 | F54: 1150 | G54: 1125 | H54: 1100 | I54: 1075 | J54: 1050 | K54: 1025 | L54: 1000 | M54: 975 | N54: 950 | O54: 925 | P54: 900 | Q54: 875 | R54: 850 | S54: 825 | T54: 800 | V54: Activos no financieros | W54: 775 | X54: 750 | Y54: 725 | Z54: 717 | AA54: Activos no financieros | AB54: 675.0000009 | AC54: 650.0000008 | AD54: 625.0000008 | AE54: 600 | AF54: 575 | AG54: 550 | AH54: 3991 | AI54: 4033.283964
B55: Impuesto diferido | C55: 0 | D55: 0 | E55: 0 | F55: 0 | G55: 0 | H55: 0 | I55: 0 | J55: 0 | K55: 0 | L55: 0 | M55: 0 | N55: 0 | O55: 0 | P55: 0 | Q55: 0 | R55: 0 | S55: 0 | V55: Impuesto diferido | W55: 0 | X55: 0 | Y55: 0 | Z55: 0 | AA55: Impuesto diferido
B56: Activos en arrendamiento financiero - Neto | C56: 0 | D56: 0 | E56: 0 | F56: 0 | G56: 0 | H56: 0 | I56: 6549 | J56: 7219 | K56: 6909 | L56: 0 | M56: 0 | N56: 0 | O56: 21615 | P56: 14945 | Q56: 14227 | R56: 0 | S56: 0 | V56: Activos en arrendamiento financiero - Neto | W56: 0 | X56: 0 | Y56: 0 | Z56: 0 | AA56: Activos en arrendamiento financiero - Neto
B57: Préstamos por cobrar partes relacionadas | C57: 209449 | D57: 195628 | E57: 182285 | F57: 190722 | G57: 135199 | H57: 147825 | I57: 103365 | J57: 104370 | K57: 101523 | L57: 96102 | M57: 313227 | N57: 289657 | O57: 298904 | P57: 187208 | Q57: 212146 | R57: 0 | S57: 0 | T57: 0 | V57: Préstamos por cobrar partes relacionadas | W57: 0 | X57: 0 | Y57: 0 | Z57: 0 | AA57: Préstamos por cobrar partes relacionadas
B58: Total activo no corriente | C58: 13481908 | D58: 16294652 | E58: 15746092 | F58: 15806824 | G58: 16247236 | H58: 17567356 | I58: =SUM(I45:I57) -> 17328242 | J58: =SUM(J45:J57) -> 17885115 | K58: =SUM(K45:K57) -> 18403328 | L58: 18197654 | M58: 19260294 | N58: 18540480 | O58: 19348212 | P58: =SUM(P45:P57) -> 19015198 | Q58: =SUM(Q45:Q57) -> 19500431 | R58: 20187208 | S58: =SUM(S45:S57) -> 19801708 | T58: =SUM(T45:T57) -> 20182055 | V58: Total activo no corriente | W58: 20519339 | X58: 21168668 | Y58: 22585407 | Z58: 24602844 | AA58: Total activo no corriente | AB58: 24794224.49 | AC58: 24346731.31 | AD58: 23715641.14 | AE58: 23430080 | AF58: 23023720 | AG58: 24000505 | AH58: 25217604 | AI58: 25289855.65
B59: TOTAL ACTIVO | C59: 13840632 | D59: 16726509 | E59: 16413849 | F59: 16406975 | G59: 16994557 | H59: 18104123 | I59: =+I58+I43 -> 18378718 | J59: =+J58+J43 -> 18741234 | K59: =+K58+K43 -> 19014585 | L59: 18909931 | M59: 20007112 | N59: 19833751 | O59: 20634179 | P59: =+P43+P58 -> 19803064 | Q59: =+Q43+Q58 -> 20856526 | R59: 22005764 | S59: =+S43+S58 -> 21283932 | T59: =+T43+T58 -> 21093568 | V59: TOTAL ACTIVO | W59: 21846463 | X59: 22544603 | Y59: 23765489 | Z59: 25492441 | AA59: TOTAL ACTIVO | AB59: 26234943.53 | AC59: 25233275.64 | AD59: 24758049.63 | AE59: 24737995 | AF59: 24745048 | AG59: 25648133 | AH59: 26531892 | AI59: 26408455.81
W60: 0 | X60: 0 | Y60: 0
B61: PASIVO MAS PATRIMONIO DE LOS ACCIONISTAS | V61: PASIVO MAS PATRIMONIO DE LOS ACCIONISTAS | AA61: PASIVO MAS PATRIMONIO DE LOS ACCIONISTAS
B62: Pasivo corriente | V62: Pasivo corriente | AA62: Pasivo corriente
B63: Pasivos financieros | C63: 146843 | D63: 113155 | E63: 151747 | F63: 130979 | G63: 151971 | H63: 137339 | I63: 152898 | J63: 169407 | K63: 189054 | L63: 214786 | M63: 232772 | N63: 207416 | O63: 219519 | P63: 151393 | Q63: 165505 | R63: 276306 | S63: 285445 | T63: 158139 | V63: Pasivos financieros | W63: 191195 | X63: 63954 | Y63: 92316 | Z63: 258214 | AA63: Pasivos financieros | AB63: 407957.9523 | AC63: 655259.6948 | AD63: 686196.0073 | AE63: 469769 | AF63: 395102 | AG63: 159961 | AH63: 202481 | AI63: 289246.6286
B64: Cuentas por pagar | C64: 70525 | D64: 120476 | E64: 702081 | F64: 669247 | G64: 365951 | H64: 90486 | I64: 672446 | J64: 722891 | K64: 363131 | L64: 110314 | M64: 836712 | N64: 796245 | O64: 441251 | P64: 111643 | Q64: 1509526 | R64: 1527771 | S64: =796294+1 -> 796295 | T64: 183100 | V64: Cuentas por pagar | W64: 991493 | X64: 983023 | Y64: 588226 | Z64: 181466 | AA64: Cuentas por pagar | AB64: 2049893.592 | AC64: 1107845.293 | AD64: 1087446.703 | AE64: 294783 | AF64: 1443929 | AG64: 1078515 | AH64: 649664 | AI64: 238466.4221
B65: Beneficios a los empleados | C65: 7387 | D65: 10159 | E65: 6589 | F65: 6947 | G65: 9175 | H65: 8405 | I65: 8346 | J65: 7357 | K65: 10434 | L65: 11689 | M65: 10529 | N65: 9821 | O65: 13886 | P65: 14041 | Q65: 12995 | R65: 11491 | S65: 13879 | T65: 13051 | V65: Beneficios a los empleados | W65: 11752 | X65: 10083 | Y65: 13434 | Z65: 12679 | AA65: Beneficios a los empleados | AB65: 12993.90261 | AC65: 12363.98026 | AD65: 17220.97342 | AE65: 17518 | AF65: 16044 | AG65: 16446 | AH65: 17416 | AI65: 16473.96897
B66: Impuestos corrientes | C66: 6977 | D66: 10271 | E66: 35229 | F66: 76011 | G66: 106833 | H66: 12548 | I66: 47609 | J66: 86618 | K66: 124779 | L66: 38109 | M66: 55911 | N66: 88659 | O66: 126399 | P66: 62985 | Q66: 113697 | R66: 125691 | S66: 183000 | T66: 60838 | V66: Impuestos corrientes | W66: 84779 | X66: 102113 | Y66: 140612 | Z66: 92908 | AA66: Impuestos corrientes | AB66: 109463.3074 | AC66: 34841.48685 | AD66: 36936.16255 | AE66: 58113 | AF66: 78092 | AG66: 77741 | AH66: 138439 | AI66: 123245.9106
B67: Provisiones | C67: 25927 | D67: 38287 | E67: 15913 | F67: 18847 | G67: 20242 | H67: 437 | I67: 6565 | J67: 5549 | K67: 8772 | L67: 1715 | M67: 0 | N67: 0 | O67: 0 | P67: 0 | Q67: 0 | R67: 0 | S67: 0 | T67: 1004 | V67: Provisiones | W67: 1016 | X67: 1009 | Y67: 1035 | Z67: 45868 | AA67: Provisiones | AB67: 46085.84299 | AC67: 51974.14867 | AD67: 46804.7589 | AE67: 61897 | AF67: 60309 | AG67: 56554 | AH67: 52008 | AI67: 41294.93371
B68: Pasivos no financieros | C68: 4115 | D68: 4040 | E68: 3680 | F68: 3626 | G68: 4581 | H68: 4025 | I68: 3877 | J68: 4607 | K68: 3716 | L68: 3798 | M68: 3979 | N68: 3511 | O68: 4355 | P68: 3570 | Q68: 3809 | R68: 4142 | S68: 2931 | T68: 4582 | V68: Pasivos no financieros | W68: 5564 | X68: 2890 | Y68: 2137 | Z68: 1955 | AA68: Pasivos no financieros | AB68: 15217.49972 | AC68: 15237.35132 | AD68: 19740.84628 | AE68: 16043 | AF68: 15875 | AG68: 15723 | AH68: 15502 | AI68: 15314.21289
B69: Otros pasivos financieros | C69: 0 | D69: 0 | E69: 219 | F69: 0 | G69: 0 | H69: 0 | I69: 0 | J69: 0 | K69: 0 | L69: 0 | M69: 0 | N69: 0 | P69: 0 | R69: 0 | V69: Otros pasivos financieros | W69: 0 | X69: 0 | Y69: 0 | Z69: 0 | AA69: Otros pasivos financieros
B70: Total pasivo corriente | C70: 261774 | D70: 296388 | E70: 915458 | F70: 905657 | G70: 658753 | H70: 253240 | I70: 891741 | J70: 996429 | K70: 699886 | L70: 380411 | M70: 1139903 | N70: 1105652 | O70: 805410 | P70: =SUM(P63:P69) -> 343632 | Q70: =SUM(Q63:Q69) -> 1805532 | R70: 1945401 | S70: =SUM(S63:S69) -> 1281550 | T70: =SUM(T63:T69) -> 420714 | V70: Total pasivo corriente | W70: 1285799 | X70: 1163072 | Y70: 837760 | Z70: 593090 | AA70: Total pasivo corriente | AB70: 2641612.097 | AC70: 1877521.955 | AD70: 1894345.452 | AE70: 918124 | AF70: 2009353 | AG70: 1404940 | AH70: 1075511 | AI70: 724042.0769
B71: Pasivo no corriente | V71: Pasivo no corriente | AA71: Pasivo no corriente
B72: Pasivos financieros | C72: 2084431 | D72: 3814421 | E72: 3767433 | F72: 3767688 | G72: 4220042 | H72: 4382795 | I72: 4490811 | J72: 4239362 | K72: 4217812 | L72: 4461883 | M72: 4495967 | N72: 4727877 | O72: 4992611 | P72: 4670715 | Q72: 4655386 | R72: 4522584 | S72: 4506824 | T72: 4620915 | V72: Pasivos financieros | W72: 4549201 | X72: 4679704 | Y72: 4816794 | Z72: 4732735 | AA72: Pasivos financieros | AB72: 4564526.239 | AC72: 4614826.538 | AD72: 4571878.169 | AE72: 5647912 | AF72: 5658561 | AG72: 6063268 | AH72: 6070005 | AI72: 6001232.522
B73: Cuentas por pagar | C73: 4568 | D73: 8099 | E73: 3006 | F73: 3011 | G73: 5901 | H73: 5465 | I73: 5398 | J73: 5995 | K73: 5744 | L73: 12490 | M73: 12244 | N73: 11939 | O73: 15120 | P73: 13377 | Q73: 13247 | R73: 13716 | S73: 12055 | T73: 9618 | V73: Cuentas por pagar | W73: 262005 | X73: 264364 | Y73: 267933 | Z73: 336795 | AA73: Cuentas por pagar | AB73: 344090.4513 | AC73: 351426.1152 | AD73: 358563.2098 | AE73: 221142 | AF73: 222957 | AG73: 224812 | AH73: 224905 | AI73: 248642.5506
B74: Préstamos por pagar partes relacionadas | C74: 288768 | D74: 300346 | E74: 303034 | F74: 305600 | G74: 308142 | H74: 310675 | I74: 313280 | J74: 315901 | K74: 318585 | L74: 321299 | M74: 324046 | N74: 326525 | O74: 328253 | P74: 329546 | Q74: 330971 | R74: 332440 | S74: 334002 | T74: 251182 | V74: Préstamos por pagar partes relacionadas | W74: 0 | X74: 0 | Y74: 0 | Z74: 0 | AA74: Préstamos por pagar partes relacionadas
B75: Beneficios a los empleados | C75: 211351 | D75: 223294 | E75: 229287 | F75: 231466 | G75: 235552 | H75: 226206 | I75: 230478 | J75: 234750 | K75: 239009 | L75: 234046 | M75: 237351 | N75: 239143 | O75: 241163 | P75: 241713 | Q75: 242734 | R75: 242824 | S75: 243374 | T75: 201185 | V75: Beneficios a los empleados | W75: 202135 | X75: 201969 | Y75: 202600 | Z75: 157939 | AA75: Beneficios a los empleados | AB75: 158979.7783 | AC75: 159119.8553 | AD75: 159418.0951 | AE75: 197727 | AF75: 198764 | AG75: 198631 | AH75: 197394 | AI75: 188187.445
B76: Provisiones | C76: 1549 | D76: 7026 | E76: 7019 | F76: 6925 | G76: 6850 | H76: 11054 | I76: 6548 | J76: 6548 | K76: 6547 | L76: 10131 | M76: 9956 | N76: 10118 | O76: 9947 | P76: 10007 | Q76: 8560 | R76: 8733 | S76: 8814 | T76: 19332 | V76: Provisiones | W76: 20878 | X76: 20851 | Y76: 19092 | Z76: 75816 | AA76: Provisiones | AB76: 99227.95176 | AC76: 97106.12893 | AD76: 95488.54016 | AE76: 188884 | AF76: 191165 | AG76: 191134 | AH76: 191722 | AI76: 194333.1668
B77: Pasivos no financieros | C77: 209605 | D77: 191812 | E77: 187364 | F77: 182916 | G77: 178468 | H77: 173232 | I77: 169114 | J77: 164997 | K77: 160879 | L77: 158331 | M77: 154477 | N77: 151612 | O77: 147221 | P77: 143464 | Q77: 137901 | R77: 133793 | S77: 131806 | T77: 129420 | V77: Pasivos no financieros | W77: 125517 | X77: 121705 | Y77: 118006 | Z77: 115163 | AA77: Pasivos no financieros | AB77: 98257.88779 | AC77: 94662.18163 | AD77: 90945.90025 | AE77: 86647 | AF77: 82842 | AG77: 79037 | AH77: 75530 | AI77: 71468.84134
B78: Pasivo por impuestos diferidos | C78: 900352 | D78: 908995 | E78: 911922 | F78: 923989 | G78: 921376 | H78: 848216 | I78: 846041 | J78: 844589 | K78: 841597 | L78: 860525 | M78: 858780 | N78: 859174 | O78: 857158 | P78: 850437 | Q78: 845842 | R78: 861643 | S78: 1004630 | T78: 1051569 | V78: Pasivo por impuestos diferidos | W78: 1056396 | X78: 1056396 | Y78: 1061998 | Z78: 1030657 | AA78: Pasivo por impuestos diferidos | AB78: 1031953.137 | AC78: 1032578.027 | AD78: 1037835.828 | AE78: 1186764 | AF78: 1189561 | AG78: 1191178 | AH78: 1192986 | AI78: 1135141.55
B79: Total pasivo no corriente | C79: 3700624 | D79: 5453993 | E79: 5409065 | F79: 5421595 | G79: 5876331 | H79: 5957643 | I79: 6061670 | J79: 5812142 | K79: 5790173 | L79: 6058705 | M79: 6092821 | N79: 6326388 | O79: 6591473 | P79: =SUM(P72:P78) -> 6259259 | Q79: =SUM(Q72:Q78) -> 6234641 | R79: 6115733 | S79: =SUM(S72:S78) -> 6241505 | T79: =SUM(T72:T78) -> 6283221 | V79: Total pasivo no corriente | W79: 6216132 | X79: 6344989 | Y79: 6486423 | Z79: 6449105 | AA79: Total pasivo no corriente | AB79: 6297035.445 | AC79: 6349718.846 | AD79: 6314129.742 | AE79: 7529076 | AF79: 7543851 | AG79: 7948060 | AH79: 7952542 | AI79: 7839006.076
B80: TOTAL PASIVO | C80: 3962398 | D80: 5750381 | E80: 6324523 | F80: 6327252 | G80: 6535084 | H80: 6210883 | I80: 6953411 | J80: 6808571 | K80: 6490059 | L80: 6439116 | M80: 7232724 | N80: 7432040 | O80: 7396883 | P80: =+P70+P79 -> 6602891 | Q80: =+Q70+Q79 -> 8040173 | R80: 8061134 | S80: =+S70+S79 -> 7523055 | T80: =+T70+T79 -> 6703935 | V80: TOTAL PASIVO | W80: 7501931 | X80: 7508061 | Y80: 7324183 | Z80: 7042195 | AA80: TOTAL PASIVO | AB80: 8938647.543 | AC80: 8227240.801 | AD80: 8208475.194 | AE80: 8447200 | AF80: 9553204 | AG80: 9353000 | AH80: 9028052 | AI80: 8563048.153
R81: 0 | W81: 0 | X81: 0 | Y81: 0
B82: Patrimonio de los accionistas | V82: Patrimonio de los accionistas | AA82: Patrimonio de los accionistas
B83: Capital suscrito y pagado | C83: 36916 | D83: 36916 | E83: 36916 | F83: 36916 | G83: 36916 | H83: 36916 | I83: 36916 | J83: 36916 | K83: 36916 | L83: 36916 | M83: 36916 | N83: 36916 | O83: 36916 | P83: 36916 | Q83: 36916 | R83: 36916 | S83: 36916 | T83: 36916 | V83: Capital suscrito y pagado | W83: 36916 | X83: 36916 | Y83: 36916 | Z83: 36916 | AA83: Capital suscrito y pagado | AB83: 36916.33493 | AC83: 36916.33493 | AD83: 36916.33493 | AE83: 36916 | AF83: 36916 | AG83: 36916 | AH83: 36916 | AI83: 36916.33493
B84: Prima en colocación de acciones | C84: 1428128 | D84: 1428128 | E84: 1428128 | F84: 1428128 | G84: 1428128 | H84: 1428128 | I84: 1428128 | J84: 1428128 | K84: 1428128 | L84: 1428128 | M84: 1428128 | N84: 1428128 | O84: 1428128 | P84: 1428128 | Q84: 1428128 | R84: 1428128 | S84: 1428128 | T84: 1428128 | V84: Prima en colocación de acciones | W84: 1428128 | X84: 1428128 | Y84: 1428128 | Z84: 1428128 | AA84: Prima en colocación de acciones | AB84: 1428127.891 | AC84: 1428127.891 | AD84: 1428127.891 | AE84: 1428128 | AF84: 1428128 | AG84: 1428128 | AH84: 1428128 | AI84: 1428127.891
B85: Reservas | C85: 1878709 | D85: 3585959 | E85: 4428306 | F85: 4428306 | G85: 4428306 | H85: 4428306 | I85: 5346023 | J85: 5346023 | K85: 5346023 | L85: 5346023 | M85: 6241845 | N85: 6241845 | O85: 6241845 | P85: 6241845 | Q85: 6861491 | R85: 6861491 | S85: 6861491 | T85: 6861491 | V85: Reservas | W85: 7690798 | X85: 7690798 | Y85: 7690798 | Z85: 7690798 | AA85: Reservas | AB85: 7952815.76 | AC85: 7952815.76 | AD85: 7952815.76 | AE85: 7952816 | AF85: 9181061 | AG85: 9181061 | AH85: 9181061 | AI85: 9181060.679
B86: Resultados retenidos | C86: 3242453 | D86: 3242453 | E86: 3242453 | F86: 3242453 | G86: 3242453 | H86: 3236320 | I86: 3236320 | J86: 3236320 | K86: 3236320 | L86: 3236320 | M86: 3236320 | N86: 3236320 | O86: 3207681 | P86: 3236320 | Q86: 3236320 | R86: 3236320 | S86: 3236320 | T86: 3236320 | V86: Resultados retenidos | W86: 3198135 | X86: 3236320 | Y86: 3236320 | Z86: 3236320 | AA86: Resultados retenidos | AB86: 3236319.505 | AC86: 3236319.505 | AD86: 3236319.505 | AE86: 3236320 | AF86: 3236320 | AG86: 3236320 | AH86: 3236320 | AI86: 3236319.505
B87: Resultado del año | C87: 2141460 | D87: 1442708 | E87: 298768 | F87: 532219 | G87: 946440 | H87: 1529155 | I87: 354319 | J87: 794601 | K87: 1201645 | L87: 1643505 | M87: 379700 | N87: 931307 | O87: 1412690 | P87: 2062950 | Q87: 507540 | R87: 1093020 | S87: 1213974 | T87: 1658959 | V87: Resultado del año | W87: 427951 | X87: 1097275 | Y87: 1761575 | Z87: 2191592 | AA87: Resultado del año | AB87: 825719.2585 | AC87: 1517514.534 | AD87: 2027912.313 | AE87: 2457767 | AF87: 632702 | AG87: 1338471 | AH87: 2228067 | AI87: 2801293.469
B88: Otro Resultado Integral | C88: 1150568 | D88: 1239964 | E88: 654755 | F88: 411701 | G88: 377230 | H88: 1234415 | I88: 1023601 | J88: 1090675 | K88: 1275494 | L88: 779923 | M88: 1451479 | N88: 527195 | O88: 910036 | P88: 194014 | Q88: 745958 | R88: 1288755 | S88: =984049-1 -> 984048 | T88: 1167819 | V88: Otro Resultado Integral | W88: 1562603 | X88: 1547105 | Y88: 2287569 | Z88: 3866492 | AA88: Otro Resultado Integral | AB88: 3816397.239 | AC88: 2834340.817 | AD88: 1867482.628 | AE88: 1178848 | AF88: 676717 | AG88: 1074237 | AH88: 1393348 | AI88: 1161689.781
B89: Total patrimonio de los accionistas | C89: 9878234 | D89: 10976128 | E89: 10089326 | F89: 10079723 | G89: 10459473 | H89: 11893240 | I89: =SUM(I83:I88) -> 11425307 | J89: =SUM(J83:J88) -> 11932663 | K89: =SUM(K83:K88) -> 12524526 | L89: 12470815 | M89: 12774388 | N89: 12401711 | O89: 13237296 | P89: =SUM(P83:P88) -> 13200173 | Q89: =SUM(Q83:Q88) -> 12816353 | R89: 13944630 | S89: =SUM(S83:S88) -> 13760877 | T89: =SUM(T83:T88) -> 14389633 | V89: Total patrimonio de los accionistas | W89: 14344531 | X89: 15036542 | Y89: 16441306 | Z89: 18450246 | AA89: Total patrimonio de los accionistas | AB89: 17296295.99 | AC89: 17006034.84 | AD89: 16549574.43 | AE89: 16290795 | AF89: 15191843 | AG89: 16295133 | AH89: 17503839 | AI89: 17845407.66
B90: TOTAL PASIVO Y PATRIMONIO DE LOS ACCIONISTAS | C90: 13840632 | D90: 16726509 | E90: 16413849 | F90: 16406975 | G90: 16994557 | H90: 18104123 | I90: =+I89+I790 -> 11425307 | J90: =+J89+J790 -> 11932663 | K90: =+K89+K790 -> 12524526 | L90: 18909931 | M90: 20007112 | N90: 19833751 | O90: 20634179 | P90: =+P80+P89 -> 19803064 | Q90: =+Q80+Q89 -> 20856526 | R90: 22005764 | S90: =+S80+S89 -> 21283932 | T90: =+T80+T89 -> 21093568 | V90: TOTAL PASIVO Y PATRIMONIO DE LOS ACCIONISTAS | W90: 21846462 | X90: 22544603 | Y90: 23765489 | Z90: 25492441 | AA90: TOTAL PASIVO Y PATRIMONIO DE LOS ACCIONISTAS | AB90: 26234943.53 | AC90: 25233275.64 | AD90: 24758049.63 | AE90: 24737995 | AF90: 24745048 | AG90: 25648133 | AH90: 26531892 | AI90: 26408455.81
C91: =+C59-C80-C89 -> 0 | D91: =+D59-D80-D89 -> 0 | E91: 0 | F91: 0 | G91: 0 | H91: 0 | I91: =+I59-I80-I89 -> 0 | J91: 0 | K91: 0 | L91: 0 | M91: 0 | N91: 0 | O91: 0 | P91: =+P90-P59 -> 0 | Q91: =+Q90-Q59 -> 0 | R91: =+R90-R59 -> 0
C92: =+C28-C87 -> 0 | D92: =+D28-D87 -> 0 | E92: =+E28-E87 -> 0 | F92: =+F28+E28-F87 -> 0 | G92: =+G28+F28+E28-G87 -> 0 | H92: =+H28+G28+F28+E28-H87 -> 0 | I92: =+I28-I87 -> 0 | J92: =+J28+I28-J87 -> 0 | K92: =+K28+J28+I28-K87 -> 0 | L92: =+L28+K28+J28+I28-L87 -> 0 | M92: =+M28-M87 -> 35517 | N92: =+N28+M28-N87 -> 64384
A94: □ | B94: ESTADOS DE RESULTADOS SEPARADOS - ISA INTERCOLOMBIA
B95: Cifras expresadas en millones de pesos colombianos
C97: 2016 | D97: 2017 | E97: 1T18 | F97: 2T18 | G97: 3T18 | H97: 4T18 | I97: 1T19 | J97: 2T19 | K97: 3T19 | L97: 4T19 | M97: 1T20 | N97: 2T20 | O97: 3T20 | P97: 4T20 | Q97: 1T21 | R97: 2T21 | S97: 3T21 | T97: 4T21 | W97: 1T22 | X97: 2T22 | Y97: 3T22 | Z97: 4T22 | AB97: 1T23 | AC97: 2T23 | AD97: 3T23 | AE97: =+AE7 -> 4T23 | AF97: 1T24 | AG97: 2T24 | AH97: 3T24 | AI97: =+AI35 -> 4T24
B99: Servicios de transmisión de energía eléctrica | C99: 1017608 | D99: 947816 | E99: 236187 | F99: 240267 | G99: 243982 | H99: 249792 | I99: 250666 | J99: 257791 | K99: 265674 | L99: 270754 | M99: 281949 | N99: 286133 | O99: 287343 | P99: 286898 | Q99: 291119 | R99: 307554 | S99: 319700 | T99: 360675 | V99: Servicios de transmisión de energía eléctrica | W99: 393343.61 | X99: 417229.5904 | Y99: 445709 | Z99: 412479 | AA99: Servicios de transmisión de energía eléctrica | AB99: 439804 | AC99: 440044 | AD99: 431789 | AE99: 492811 | AF99: 489870 | AG99: 495666 | AH99: 507778 | AI99: 522519.2893
B100: Cargos por conexión | C100: 103748 | D100: 116537 | E100: 28712 | F100: 29431 | G100: 31229 | H100: 30633 | I100: 29501 | J100: 30517 | K100: 33076 | L100: 31313 | M100: 32691 | N100: 33338 | O100: 35723 | P100: 37807 | Q100: 35749 | R100: 36302 | S100: 38802 | T100: 39023 | V100: Cargos por conexión | W100: 42612.76331 | X100: 45397.80137 | Y100: 47497 | Z100: 46695 | AA100: Cargos por conexión | AB100: 47982 | AC100: 47245 | AD100: 48317 | AE100: 53340 | AF100: 49304 | AG100: 48933 | AH100: 58417 | AI100: 58479.95201
B101: Gerenciamiento de proyectos | C101: 13564 | D101: 14655 | E101: 4037 | F101: 4771 | G101: 5463 | H101: 6263 | I101: 4507 | J101: 5088 | K101: 6103 | L101: 6957 | M101: 4849 | N101: 4212 | O101: 6011 | P101: 6.52 | Q101: 5410 | R101: 6200 | S101: 6725 | T101: 9099 | V101: Proyectos de infraestructura | W101: 5779.217564 | X101: 7285.63018 | Y101: 7849 | Z101: 8297 | AA101: Proyectos de infraestructura | AB101: 8490 | AC101: 8670 | AD101: 10362 | AE101: 11274 | AF101: 9074 | AG101: 9655 | AH101: 9953 | AI101: 12261.68022
B102: Arrendamientos de infraestructura eléctrica | C102: 5535 | D102: 5566 | E102: 1417 | F102: 1418 | G102: 1418 | H102: 1688 | I102: 1876 | J102: 1862 | K102: 1840 | L102: 1844 | M102: 1100 | N102: 2010 | O102: 1505 | P102: 1535 | Q102: 1560 | R102: 1560 | S102: 1562 | T102: 1579 | V102: Telecomunicaciones | W102: 1842.776508 | X102: 1839.359954 | Y102: 1841 | Z102: 1845 | AA102: Telecomunicaciones | AB102: 2190 | AC102: 2184 | AD102: 2182 | AE102: 2199 | AF102: 2191 | AG102: 2455 | AH102: 2543 | AI102: 2516.113874
B103: Otros ingresos operacionales | C103: 17730 | D103: 19144 | E103: 4127 | F103: 5694 | G103: 6555 | H103: 6652 | I103: 5184 | J103: 5827 | K103: 5445 | L103: 7489 | M103: 5693 | N103: 7000 | O103: 6344 | P103: 6663 | Q103: 6302 | R103: 7015 | S103: 6512 | T103: 8628 | V103: Otros ingresos operacionales | W103: 7705.584735 | X103: 9105.104712 | Y103: 10542 | Z103: 13315 | AA103: Otros ingresos operacionales | AB103: 14203 | AC103: 14095 | AD103: 16467 | AE103: 19780 | AF103: 16674 | AG103: 19148 | AH103: 19789 | AI103: 24492.2761
B104: Costos y gastos AOM | C104: 1094702 | D104: 1054887 | E104: 262624 | F104: 269268 | G104: 275919 | H104: 283929 | I104: 279650 | J104: 287769 | K104: 302186 | L104: 305298 | M104: 312532 | N104: 316528 | O104: 322980 | P104: 330632 | Q104: 325388 | R104: 343138 | S104: 357680 | T104: 405799 | V104: Costos y gastos AOM | W104: 431807.5422 | X104: 460159.7459 | Y104: 495424 | Z104: 460580 | AA104: (-) Costos y gastos AOM | AB104: 101467 | AC104: 120751 | AD104: 123415 | AE104: 143810 | AF104: 122296 | AG104: 133462 | AH104: 137511 | AI104: -146566.6794
B105: EBITDA | C105: 63483 | D105: 48831 | E105: 11856 | F105: 12313 | G105: 12728 | H105: 11099 | I105: 12084 | J105: 13316 | K105: 9952 | L105: 13059 | M105: 13750 | N105: 16165 | O105: 13946 | P105: 8791 | Q105: 14752 | R105: 15491 | S105: 15621 | T105: =+SUM(T99:T103)-T104 -> 13205 | AA105: (-) Costo distribución contratos cuentas participación | AB105: 387916 | AC105: 373502 | AD105: 365705 | AE105: 410640 | AF105: 430799 | AG105: 423708 | AH105: 389688 | AI105: -399869.3789
S106: 0 | V106: (-) Provisiones, Depreciaciones y Amortizaciones. | W106: 1129.422897 | X106: 1167.224922 | Y106: 376 | Z106: 1232 | AA106: (-) Provisiones, Depreciaciones y Amortizaciones. | AB106: 5316 | AC106: 750 | AD106: 6489 | AE106: 5680 | AF106: 211 | AG106: 312 | AH106: 52744 | AI106: -52968.93889
B107: (-) Provisiones, Depreciaciones y Amortizaciones. | C107: 20860 | D107: 6255 | E107: 786 | F107: 776 | G107: 1529 | H107: 380 | I107: 699 | J107: 856 | K107: 1047 | L107: -21 | M107: 1031 | N107: 711 | O107: 943 | P107: -3416 | Q107: 1273 | R107: 1121 | S107: 38 | T107: =-1936 -> -1936 | V107: Utilidad Bruta | W107: 18346.987 | X107: 19530.51576 | Y107: 18390 | Z107: 20819 | AA107: Utilidad Bruta | AB107: =SUM(AB99:AB103)-AB104-AB106 -> 405886 | AC107: =SUM(AC99:AC103)-SUM(AC104:AC106) -> 17235 | AD107: 13508 | AE107: 19274 | AF107: 13807 | AG107: 18375 | AH107: 18537 | AI107: 20864.31439
B108: Metodo de participación neto ingreso /(gasto) | C108: 0 | D108: 0 | E108: 0 | F108: 0 | G108: 0 | H108: 0 | I108: 0 | J108: 0 | K108: 0 | L108: 0 | M108: 0 | N108: 0 | O108: 0 | P108: 0 | Q108: 0 | R108: 0 | S108: 0 | T108: 0
B109: Otros neto ingreso /(gasto) | C109: 778 | D109: 1175 | E109: 293 | F109: 299 | G109: 358 | H109: 438 | I109: 308 | J109: 302 | K109: 1921 | L109: 350 | M109: 316 | N109: -1220 | O109: 197 | P109: -23 | Q109: 497 | R109: 352 | S109: 185 | T109: 320 | V109: Metodo de participación neto ingreso /(gasto) | AA109: Metodo de participación neto ingreso /(gasto)
B110: Utilidad por actividades de operación | C110: 43401 | D110: 43751 | E110: 11363 | F110: 11836 | G110: 11557 | H110: 11157 | I110: 11693 | J110: 12762 | K110: 10826 | L110: 13430 | M110: 13035 | N110: 14234 | O110: 13200 | P110: 12184 | Q110: 13976 | R110: 14722 | S110: 223 | T110: 15461 | V110: Otros neto ingreso /(gasto) | W110: 418.433499 | X110: 120.30626 | Y110: 609 | Z110: -3710 | AA110: Otros neto ingreso /(gasto) | AB110: 444 | AC110: 564 | AD110: 2239 | AE110: 668 | AF110: 5449 | AG110: 924 | AH110: -2606 | AI110: 1736.73759
S111: 0 | V111: Utilidad por actividades de operación | W111: 18765.4205 | X111: 19650.82202 | Y111: 18999 | Z111: 17109 | AA111: Utilidad por actividades de operación | AB111: =+AB107+AB109+AB110 -> 406330 | AC111: 17799 | AD111: 15747 | AE111: 19942 | AF111: 19256 | AG111: 19299 | AH111: 15931 | AI111: 22601.05198
B112: Financiero neto ingreso/(gasto) | C112: 236 | D112: -1324 | E112: -470 | F112: -1010 | G112: -442 | H112: -246 | I112: -725 | J112: -1309 | K112: 207 | L112: -1470 | M112: -548 | N112: -1022 | O112: -255 | P112: -188 | Q112: -914 | R112: -1205 | S112: -1843 | T112: 508
B113: Utilidad antes de impuestos | C113: 43637 | D113: 42427 | E113: 10893 | F113: 10826 | G113: 11115 | H113: 10911 | I113: 10968 | J113: 11453 | K113: 11033 | L113: 11960 | M113: 12487 | N113: 13212 | O113: 12945 | P113: 11996 | Q113: 13062 | R113: 13518 | S113: 14002 | T113: 15969 | V113: Financiero neto ingreso/(gasto) | W113: -797.625435 | X113: -848.900285 | Y113: 273 | Z113: -39 | AA113: Financiero neto ingreso/(gasto) | AB113: 1178 | AC113: 1498 | AD113: 4915 | AE113: 1577 | AF113: 3475 | AG113: 2757 | AH113: 4249 | AI113: 988.8084998
V114: Utilidad antes de impuestos | W114: 17967.79506 | X114: 18801.92173 | Y114: 19272 | Z114: 17070 | AA114: Utilidad antes de impuestos | AB114: =+AB111+AB113 -> 407508 | AC114: 19297 | AD114: 20662 | AE114: 21519 | AF114: 22731 | AG114: 22056 | AH114: 20180 | AI114: 23589.86048
B115: Provisión impuesto de renta | C115: 20008 | D115: 18005 | E115: 4189 | F115: 2264 | G115: 4363 | H115: 6451 | I115: 3396 | J115: 4552 | K115: 2844 | L115: 1679 | M115: 3913 | N115: 8604 | O115: 4572 | P115: 4127 | Q115: 3992 | R115: 4622 | S115: 600 | T115: 9244
B116: Utilidad neta | C116: 23629 | D116: 24422 | E116: 6704 | F116: 8562 | G116: 6752 | H116: 4460 | I116: 7572 | J116: 6901 | K116: 8189 | L116: 10281 | M116: 8574 | N116: 4608 | O116: 8373 | P116: 7869 | Q116: 9070 | R116: 8896 | S116: 13402 | T116: 6724.546204 | V116: Provisión impuesto de renta | W116: 6689.19116 | X116: 6943.181463 | Y116: 6240 | Z116: 5759 | AA116: Provisión impuesto de renta | AB116: 6877 | AC116: 6886 | AD116: 7300 | AE116: 7633 | AF116: 8097 | AG116: 7847 | AH116: 7100 | AI116: 8172.634861
V117: Utilidad neta | W117: 11278.6039 | X117: 11858.74027 | Y117: 13032 | Z117: 11311 | AA117: Utilidad neta | AB117: =+AB114-AB116 -> 400631 | AC117: 12411 | AD117: 13362 | AE117: 13886 | AF117: 14634 | AG117: 14209 | AH117: 13080 | AI117: 15417.22562
V119: EBITDA Total | W119: 18413 | X119: 37711 | Y119: 57469.625 | Z119: 17581.53621 | AA119: EBITDA Total | AB119: 24229 | AC119: 18927.0374 | AD119: 20939.3281 | AE119: 26541.10333 | AF119: 25812.70326 | AG119: 31157.59127 | AH119: 26748 | AI119: 34705
A120: □ | B120: ESTADOS SEPARADOS DE SITUACIÓN FINANCIERA - ISA INTERCOLOMBIA
B121: Valores expresados en millones de pesos colombianos | N121: 1000000
B124: ACTIVO | W124: 1T22 | X124: 2T22 | Y124: 3T22 | Z124: 4T22 | AB124: =+AB7 -> 1T23 | AC124: 2T23 | AD124: 3T23 | AE124: =+AE7 -> 4T23 | AF124: 1T24 | AG124: 2T24 | AH124: 3T24 | AI124: =+AI97 -> 4T24
B125: Activo corriente | V125: ACTIVO | AA125: ACTIVO
B126: Efectivo y equivalentes de efectivo | C126: 23319 | D126: 9087 | E126: 2785 | F126: 22853 | G126: 15789 | H126: 6897 | I126: 19708 | J126: 14069 | K126: 19842 | L126: 15917 | M126: 27931 | N126: 28816 | O126: 13300 | P126: 24596 | Q126: 15080 | R126: 25221 | S126: 26043 | T126: 19490 | V126: Activo corriente | AA126: Activo corriente
B127: Activos financieros | C127: 110464 | D127: 115144 | E127: 112904 | F127: 117435 | G127: 119858 | H127: 121770 | I127: 118333 | J127: 124432 | K127: 125586 | L127: 123153 | M127: 129153 | N127: 129965 | O127: 136029 | P127: 135302 | Q127: 135755 | R127: 139694 | S127: 148014 | T127: 170285 | V127: Efectivo y equivalentes de efectivo | W127: 12663 | X127: 26955 | Y127: 16619 | Z127: 15763 | AA127: Efectivo y equivalentes de efectivo | AB127: 14230 | AC127: 19255 | AD127: 15513 | AE127: 27027 | AF127: 8581 | AG127: 15441 | AH127: 15465 | AI127: 24749.03874
B128: Impuestos corrientes | C128: 13841 | D128: 14865 | E128: 20485 | F128: 32304 | G128: 21822 | H128: 8704 | I128: 17458 | J128: 19192 | K128: 23815 | L128: 14458 | M128: 18479 | N128: 16694 | O128: 10215 | P128: 456 | Q128: 4357 | R128: 12024 | S128: 15150 | T128: 214 | V128: Activos financieros | W128: 178658 | X128: 189714 | Y128: 199455 | Z128: 222450 | AA128: Activos financieros | AB128: 252401 | AC128: 260272 | AD128: 269461 | AE128: 299339 | AF128: 286013 | AG128: 292821 | AH128: 271288 | AI128: 261092.6701
B129: Inventarios - neto | C129: 3633 | D129: 3534 | E129: 4103 | F129: 4237 | G129: 3991 | H129: 3702 | I129: 3585 | J129: 3171 | K129: 2788 | L129: 2569 | M129: 4123 | N129: 4010 | O129: 3514 | P129: 3532 | Q129: 3387 | R129: 2711 | S129: 4073 | T129: 3628 | V129: Impuestos corrientes | W129: 3868 | X129: 5685 | Y129: 19497 | Z129: 706 | AA129: Impuestos corrientes | AB129: 6551 | AC129: 21403 | AD129: 654 | AE129: 590 | AF129: 910 | AG129: 12754 | AH129: 1256 | AI129: 609.063991
B130: Activos no financieros | C130: 3857 | D130: 4854 | E130: 8831 | F130: 6503 | G130: 7541 | H130: 5261 | I130: 8878 | J130: 6792 | K130: 8037 | L130: 6682 | M130: 9686 | N130: 8342 | O130: 16229 | P130: 12.24 | Q130: 16383 | R130: 10199 | S130: 17538 | T130: 14192 | V130: Inventarios - neto | W130: 3194 | X130: 4799 | Y130: 4284 | Z130: 4051 | AA130: Inventarios - neto | AB130: 3573 | AC130: 3405 | AD130: 4174 | AE130: 4061 | AF130: 3887 | AG130: 3785 | AH130: 3908 | AI130: 4086.485864
B131: Préstamos por cobrar partes relacionadas | C131: 0 | D131: 0 | E131: 0 | F131: 0 | G131: 0 | H131: 0 | I131: 0 | J131: 0 | K131: 0 | L131: 0 | M131: 0 | N131: 0 | O131: 0 | P131: 0 | Q131: 0 | R131: 0 | S131: 0 | T131: 0 | V131: Activos no financieros | W131: 25565 | X131: 15362 | Y131: 16714 | Z131: 13453 | AA131: Activos no financieros | AB131: 15017 | AC131: 22358 | AD131: 28557 | AE131: 21225 | AF131: 21979 | AG131: 16925 | AH131: 31694 | AI131: 26824.4399
B132: Total activo corriente | C132: 155114 | D132: 147484 | E132: 149108 | F132: 183332 | G132: 169001 | H132: 146334 | I132: 167962 | J132: 167656 | K132: 180068 | L132: 162779 | M132: 189372 | N132: 187827 | O132: 179287 | P132: 176126 | Q132: 174962 | R132: 189850 | S132: 210818 | T132: 207809 | V132: Préstamos por cobrar partes relacionadas | X132: 0 | AA132: Préstamos por cobrar partes relacionadas
B133: Activo no corriente | S133: 0 | V133: Total activo corriente | W133: 223948 | X133: 242515 | Y133: 256569 | Z133: =SUM(Z127:Z131) -> 256423 | AA133: Total activo corriente | AB133: =SUM(AB127:AB131) -> 291772 | AC133: 326693 | AD133: 318359 | AE133: 352242 | AF133: 321370 | AG133: 341726 | AH133: 323611 | AI133: 317361.6986
B134: Efectivo restringido | C134: 0 | D134: 0 | E134: 0 | F134: 4100 | G134: 0 | H134: 0 | I134: 0 | J134: 0 | K134: 0 | L134: 0 | M134: 0 | N134: 0 | O134: 0 | P134: 0 | Q134: 0 | S134: 0 | T134: 0 | V134: Activo no corriente | AA134: Activo no corriente
B135: Activos financieros | C135: 12703 | D135: 8145 | E135: 8834 | F135: 8901 | G135: 12927 | H135: 12138 | I135: 17314 | J135: 17776 | K135: 18126 | L135: 13711 | M135: 18066 | N135: 18557 | O135: 19417 | P135: 14997 | Q135: 16702 | R135: 20761 | S135: 17556 | T135: 17420 | V135: Efectivo restringido | W135: 0 | X135: 0 | Y135: 8400 | Z135: 8400 | AA135: Efectivo restringido | AB135: 8355 | AC135: 9295 | AD135: 9253 | AE135: 9400 | AF135: 9400 | AG135: 9029 | AH135: 8872 | AI135: 7892.242714
B136: Inventarios - Neto | C136: 42971 | D136: 44251 | E136: 44424 | F136: 44630 | G136: 43913 | H136: 43832 | I136: 44360 | J136: 45253 | K136: 45490 | L136: 46255 | M136: 46184 | N136: 46417 | O136: 47291 | P136: 51017 | Q136: 49476 | R136: 49779 | S136: 51393 | T136: 52373 | V136: Activos financieros | W136: 17354 | X136: 19917 | Y136: 21662 | Z136: 35995 | AA136: Activos financieros | AB136: 39013 | AC136: 39658 | AD136: 38629 | AE136: 37867 | AF136: 36707 | AG136: 41776 | AH136: 46902 | AI136: 62384.18107
B137: Intangibles - neto | C137: 0 | D137: 0 | E137: 0 | F137: 0 | G137: 10 | H137: 0 | I137: 14 | J137: 21 | K137: 103 | L137: 0 | M137: 0 | N137: 0 | O137: 0 | P137: 0 | R137: 0 | S137: 0 | T137: 0 | V137: Inventarios - Neto | W137: 53249 | X137: 53048 | Y137: 54443 | Z137: 54308 | AA137: Inventarios - Neto | AB137: 52997 | AC137: 53507 | AD137: 51570 | AE137: 52829 | AF137: 54829 | AG137: 54410 | AH137: 55907 | AI137: 57371.18597
B138: Impuesto diferido | C138: 24830 | D138: 28316 | E138: 28970 | F138: 29540 | G138: 29754 | H138: 25198 | I138: 25894 | J138: 26427 | K138: 27082 | L138: 25903 | M138: 26585 | N138: 27177 | O138: 25846 | P138: 25.43 | Q138: 25469 | R138: 25500 | S138: 29751 | T138: 1400 | V138: Intangibles - neto | W138: 0 | X138: 0 | Y138: 0 | Z138: 0 | AA138: Intangibles - neto | AB138: 0 | AC138: 0 | AD138: 0 | AE138: 0 | AF138: 0 | AG138: 0 | AH138: 0 | AI138: 0
B139: Otros activos financieros | C139: 0 | D139: 0 | E139: 0 | F139: 0 | G139: 0 | H139: 4100 | I139: 0 | J139: 0 | K139: 0 | L139: 4100 | M139: 647 | N139: 706 | O139: 0 | P139: 0 | Q139: 1477 | R139: 1078 | S139: 0 | T139: 0 | V139: Impuesto diferido | W139: 1448 | X139: 1488 | Y139: 1524 | Z139: 1014 | AA139: Impuesto diferido | AB139: 1065 | AC139: 1111 | AD139: 1151 | AE139: 1524 | AF139: 1587 | AG139: 1640 | AH139: 1647 | AI139: 3324.450963
B140: Activos no financieros | C140: 0 | D140: 0 | E140: 0 | F140: 0 | G140: 0 | H140: 0 | I140: 0 | J140: 0 | K140: 0 | L140: 0 | M140: 0 | N140: 0 | O140: 0 | P140: 0 | R140: 0 | S140: 0 | T140: 0 | V140: Otros activos financieros | W140: 0 | X140: 0 | Y140: 0 | Z140: 66 | AA140: Otros activos financieros | AB140: 0 | AC140: 0 | AD140: 0 | AE140: 0 | AF140: 1008 | AG140: 1254 | AH140: 1452 | AI140: 2198.658426
B141: Inversiones en instrumentos financieros | C141: 0 | D141: 0 | E141: 0 | F141: 0 | G141: 0 | H141: 0 | I141: 0 | J141: 0 | K141: 0 | L141: 0 | M141: 0 | N141: 0 | O141: 0 | P141: 0 | R141: 0 | S141: 0 | T141: 0 | V141: Activos no financieros | W141: 0 | X141: 0 | Y141: 0 | Z141: 0 | AA141: Activos no financieros | AB141: 915 | AC141: 1192 | AD141: 1032 | AE141: 1140
B142: Propiedades, planta y equipo - Neto | C142: 0 | D142: 0 | E142: 0 | F142: 0 | G142: 0 | H142: 0 | I142: 0 | J142: 0 | K142: 0 | L142: 0 | M142: 0 | N142: 0 | O142: 0 | P142: 0 | R142: 0 | S142: 0 | T142: 0 | V142: Inversiones en instrumentos financieros | W142: 0 | X142: 0 | Y142: 0 | Z142: 0 | AA142: Inversiones en instrumentos financieros | AB142: 0 | AC142: 0 | AD142: 0 | AE142: 0
B143: Propiedades de Inversión - neto | C143: 0 | D143: 0 | E143: 0 | F143: 0 | G143: 0 | H143: 0 | I143: 0 | J143: 0 | K143: 0 | L143: 0 | M143: 0 | N143: 0 | O143: 0 | P143: 0 | R143: 0 | S143: 0 | T143: 0 | V143: Propiedades, planta y equipo - Neto | W143: 0 | X143: 0 | Y143: 0 | Z143: 0 | AA143: Propiedades, planta y equipo - Neto | AB143: 0 | AC143: 0 | AD143: 0 | AE143: 0
B144: Activos en arrendamiento financiero - Neto | C144: 0 | D144: 0 | E144: 0 | F144: 0 | G144: 0 | H144: 0 | I144: 0 | J144: 0 | K144: 0 | L144: 0 | M144: 0 | N144: 0 | O144: 643 | P144: 4.68 | Q144: 483 | R144: 4151 | S144: 1184 | T144: 985 | V144: Propiedades de Inversión - neto | W144: 0 | X144: 0 | Y144: 0 | Z144: 0 | AA144: Propiedades de Inversión - neto | AB144: 0 | AC144: 0 | AD144: 0 | AE144: 0
B145: Impuestos no corrientes | C145: 0 | D145: 0 | E145: 0 | F145: 0 | G145: 0 | H145: 0 | I145: 0 | J145: 0 | K145: 0 | L145: 0 | M145: 0 | N145: 0 | O145: 0 | R145: 0 | S145: 0 | T145: 0 | V145: Activos en arrendamiento financiero - Neto | W145: 892 | X145: 808 | Y145: 702 | Z145: 0 | AA145: Activos en arrendamiento financiero - Neto | AB145: 0 | AC145: 0 | AD145: 0 | AE145: 0
B146: Préstamos por cobrar partes relacionadas | C146: 0 | D146: 0 | E146: 0 | F146: 0 | G146: 0 | H146: 0 | I146: 0 | J146: 0 | K146: 0 | L146: 0 | M146: 0 | N146: 0 | O146: 0 | R146: 0 | S146: 0 | T146: 0 | V146: Impuestos no corrientes | X146: 0 | Y146: 0 | Z146: 0 | AA146: Impuestos no corrientes | AB146: 0 | AC146: 0 | AD146: 0 | AE146: 0
B147: Total activo no corriente | C147: 80504 | D147: 80712 | E147: 82228 | F147: 87171 | G147: 86604 | H147: 85268 | I147: 87582 | J147: 89477 | K147: 90801 | L147: 89969 | M147: 91482 | N147: 92857 | O147: 93197 | P147: 96124 | Q147: 93607 | R147: 101269 | S147: 99884 | T147: 72178 | V147: Préstamos por cobrar partes relacionadas | X147: 0 | Y147: 0 | Z147: 0 | AA147: Préstamos por cobrar partes relacionadas | AB147: 0 | AC147: 0 | AD147: 0 | AE147: 0
B148: TOTAL ACTIVO | C148: 235618 | D148: 228196 | E148: 231336 | F148: 270503 | G148: 255605 | H148: 231602 | I148: 255544 | J148: 257133 | K148: 270869 | L148: 252748 | M148: 280854 | N148: 280684 | O148: 272484 | P148: 272250 | Q148: 268569 | R148: 291119 | S148: 310702 | T148: 279987 | V148: Total activo no corriente | W148: 72943 | X148: 75261 | Y148: 86731 | Z148: 100769 | AA148: Total activo no corriente | AB148: =SUM(AB135:AB147) -> 102345 | AC148: 104763 | AD148: 101635 | AE148: 102760 | AF148: 103531 | AG148: 108109 | AH148: 114780 | AI148: 133170.7191
S149: 0 | V149: TOTAL ACTIVO | W149: 296891 | X149: 317776 | Y149: 343300 | Z149: 357192 | AA149: TOTAL ACTIVO | AB149: =+AB133+AB148 -> 394117 | AC149: 431456 | AD149: 419994 | AE149: 455002 | AF149: 424901 | AG149: 449835 | AH149: 438391 | AI149: 450532.4178
B150: PASIVO MAS PATRIMONIO DE LOS ACCIONISTAS | S150: 0
B151: Pasivo corriente | S151: 0 | V151: PASIVO MAS PATRIMONIO DE LOS ACCIONISTAS | AA151: PASIVO MAS PATRIMONIO DE LOS ACCIONISTAS
B152: Cuentas por pagar | C152: 31679 | D152: 20442 | E152: 23518 | F152: 25769 | G152: 21703 | H152: 21030 | I152: 46399 | J152: 26194 | K152: 27597 | L152: 22333 | M152: 53624 | N152: 20513 | O152: 29850 | P152: 28093 | Q152: 49963 | R152: 28721 | S152: 30894 | T152: 29466 | V152: Pasivo corriente | AA152: Pasivo corriente
B153: Contrato cuentas en participación | C153: 38636 | D153: 23373 | E153: 39363 | F153: 51104 | G153: 19640 | H153: 10505 | I153: 29145 | J153: 29846 | K153: 21967 | L153: 14796 | M153: 34619 | N153: 45533 | O153: 6922 | P153: 13177 | Q153: 6913 | R153: 34539 | S153: 20268 | T153: 23085 | V153: Cuentas por pagar | W153: 96477 | X153: 91468 | Y153: 95722 | Z153: 30140 | AA153: Cuentas por pagar | AB153: 77486 | AC153: 48722 | AD153: 34467 | AE153: 36756 | AF153: 80571 | AG153: 41539 | AH153: 52566 | AI153: 39451.35725
B154: Beneficios a los empleados | C154: 13087 | D154: 15442 | E154: 13390 | F154: 14427 | G154: 17419 | H154: 13487 | I154: 12475 | J154: 11418 | K154: 17796 | L154: 14319 | M154: 13724 | N154: 13403 | O154: 20451 | P154: 16452 | Q154: 15289 | R154: 26311 | S154: 21779 | T154: 16634 | V154: Contrato cuentas en participación | W154: 0 | X154: 0 | Y154: 0 | Z154: 61420 | AA154: Contrato cuentas en participación | AB154: 79071 | AC154: 113076 | AD154: 116297 | AE154: 131170 | AF154: 99815 | AG154: 138510 | AH154: 100873 | AI154: 94171.77155
B155: Impuestos corrientes | C155: 3984 | D155: 9715 | E155: 10498 | F155: 18237 | G155: 28810 | H155: 17153 | I155: 14144 | J155: 20369 | K155: 26364 | L155: 15482 | M155: 13211 | N155: 22241 | O155: 27678 | P155: 23501 | Q155: 22811 | R155: 22177 | S155: 28885 | T155: 24142 | V155: Beneficios a los empleados | W155: 16385 | X155: 15635 | Y155: 23784 | Z155: 19065 | AA155: Beneficios a los empleados | AB155: 19850 | AC155: 18627 | AD155: 30080 | AE155: 24714 | AF155: 23484 | AG155: 22323 | AH155: 32080 | AI155: 25002.669
B156: Provisiones | C156: 135 | D156: 0 | E156: 0 | F156: 0 | G156: 0 | H156: 0 | I156: 26 | J156: 26 | K156: 0 | L156: 0 | M156: 0 | N156: 0 | O156: 0 | P156: 0 | Q156: 0 | R156: 0 | S156: 8 | T156: 0 | V156: Impuestos corrientes | W156: 20445 | X156: 25481 | Y156: 25200 | Z156: 27835 | AA156: Impuestos corrientes | AB156: 16424 | AC156: 34885 | AD156: 18384 | AE156: 26118 | AF156: 14263 | AG156: 30733 | AH156: 23951 | AI156: 39236.23128
B157: Pasivos no financieros | C157: 2208 | D157: 2503 | E157: 367 | F157: 6732 | G157: 4814 | H157: 2558 | I157: 225 | J157: 7139 | K157: 4705 | L157: 2616 | M157: 647 | N157: 7051 | O157: 4752 | P157: 2431 | Q157: 147 | R157: 6641 | S157: 6823 | T157: 2202 | V157: Provisiones | W157: 0 | X157: 0 | Y157: 0 | Z157: 5000 | AA157: Provisiones | AB157: 18727 | AC157: 13793 | AD157: 4085 | AE157: 9716 | AF157: 13302 | AG157: 0 | AH157: 0 | AI157: 0
B158: Pasivos financieros | C158: 0 | D158: 0 | E158: 0 | F158: 0 | G158: 0 | H158: 0 | I158: 0 | J158: 0 | K158: 0 | L158: 0 | M158: 0 | N158: 0 | O158: 0 | P158: 0 | Q158: 0 | R158: 0 | S158: 0 | T158: 0 | V158: Pasivos no financieros | W158: 149 | X158: 8225 | Y158: 5525 | Z158: 2912 | AA158: Pasivos no financieros | AB158: 4022 | AC158: 8253 | AD158: 7627 | AE158: 4985 | AF158: 1736 | AG158: 9214 | AH158: 8311 | AI158: 6197.557601
B159: Otros pasivos financieros | C159: 0 | D159: 0 | E159: 0 | F159: 0 | G159: 0 | H159: 0 | I159: 0 | J159: 0 | K159: 0 | L159: 0 | M159: 0 | N159: 0 | O159: 0 | P159: 0 | Q159: 0 | R159: 0 | S159: 0 | T159: 0 | V159: Pasivos financieros | W159: 0 | X159: 0 | AA159: Pasivos financieros
B160: Total pasivo corriente | C160: 89729 | D160: 71475 | E160: 87136 | F160: 116269 | G160: 92386 | H160: 64733 | I160: 102414 | J160: 94992 | K160: 98429 | L160: 69546 | M160: 115825 | N160: 108741 | O160: 89653 | P160: 83654 | Q160: 95123 | R160: 118388 | S160: 108657 | T160: 95529 | V160: Otros pasivos financieros | W160: 0 | X160: 0 | Z160: 366 | AA160: Otros pasivos financieros
B161: Pasivo no corriente | S161: 0 | V161: Total pasivo corriente | W161: 133456 | X161: 140809 | Y161: 150231 | Z161: 146738 | AA161: Total pasivo corriente | AB161: =SUM(AB153:AB158) -> 215580 | AC161: 237356 | AD161: 210940 | AE161: 233459 | AF161: 233171 | AG161: 242319 | AH161: 217781 | AI161: 204059.5867
B162: Cuentas por pagar | C162: 0 | D162: 0 | E162: 1 | F162: 0 | G162: 0 | H162: 0 | I162: 0 | J162: 0 | K162: 0 | L162: 0 | M162: 646 | N162: 390 | O162: 327 | P162: 0 | Q162: 0 | R162: 0 | S162: 532 | T162: 605 | V162: Pasivo no corriente | AA162: Pasivo no corriente
B163: Contrato cuentas en participación | C163: 5551 | D163: 6942 | E163: 6960 | F163: 7140 | G163: 7364 | H163: 7364 | I163: 7775 | J163: 7775 | K163: 7775 | L163: 7906 | M163: 7906 | N163: 8213 | O163: 8538 | P163: 8556 | Q163: 8556 | R163: 8556 | S163: 9988 | T163: 11083 | V163: Cuentas por pagar | W163: 11647 | X163: 11616 | Y163: 12872 | Z163: 12873 | AA163: Cuentas por pagar | AB163: 12873 | AC163: 0 | AD163: 0 | AE163: 0
B164: Beneficios a los empleados | C164: 63512 | D164: 70741 | E164: 73476 | F164: 74769 | G164: 76780 | H164: 75296 | I164: 77406 | J164: 79515 | K164: 81623 | L164: 82959 | M164: 85214 | N164: 87469 | O164: 89721 | P164: 92.54 | Q164: 94802 | R164: 85190 | S164: 98829 | T164: 79380 | V164: Contrato cuentas en participación | W164: 0 | X164: 0 | Y164: 0 | Z164: 0 | AA164: Contrato cuentas en participación | AB164: 0 | AC164: 14303 | AD164: 14303 | AE164: 14303 | AF164: 16813 | AG164: 16813 | AH164: 16813 | AI164: 18972.309
B165: Pasivos financieros | C165: 0 | D165: 0 | E165: 0 | F165: 0 | G165: 0 | H165: 0 | I165: 0 | J165: 0 | K165: 0 | L165: 0 | M165: 0 | N165: 0 | O165: 0 | P165: 0 | Q165: 0 | R165: 0 | S165: 0 | T165: 0 | V165: Beneficios a los empleados | W165: 81382 | X165: 83087 | Y165: 84976 | Z165: 57659 | AA165: Beneficios a los empleados | AB165: 59808 | AC165: 60863 | AD165: 61404 | AE165: 72272 | AF165: 74115 | AG165: 75249 | AH165: 75064 | AI165: 75884.40578
B166: Préstamos por pagar partes relacionadas | C166: 0 | D166: 0 | E166: 0 | F166: 0 | G166: 0 | H166: 0 | I166: 0 | J166: 0 | K166: 0 | L166: 0 | M166: 0 | N166: 0 | O166: 0 | P166: 0 | Q166: 0 | R166: 0 | S166: 0 | T166: 0 | V166: Pasivos financieros | W166: 0 | X166: 0 | Y166: 0 | Z166: 667 | AA166: Pasivos financieros | AB166: 0 | AC166: 667 | AD166: 0 | AE166: 0
B167: Provisiones | C167: 0 | D167: 0 | E167: 0 | F167: 0 | G167: 0 | H167: 0 | I167: 0 | J167: 0 | K167: 0 | L167: 0 | M167: 0 | N167: 0 | O167: 0 | P167: 0 | Q167: 0 | R167: 0 | S167: 0 | T167: 356 | V167: Préstamos por pagar partes relacionadas | W167: 0 | X167: 0 | Y167: 0 | Z167: 0 | AA167: Préstamos por pagar partes relacionadas | AB167: 0 | AC167: 0 | AD167: 0 | AE167: 0
B168: Pasivos no financieros | C168: 0 | D168: 0 | E168: 0 | F168: 0 | G168: 0 | H168: 0 | I168: 0 | J168: 0 | K168: 0 | L168: 0 | M168: 0 | N168: 0 | O168: 0 | P168: 0 | Q168: 0 | R168: 0 | S168: 0 | T168: 0 | V168: Provisiones | W168: 377 | X168: 377 | Y168: 302 | Z168: 230 | AA168: Provisiones | AB168: 5248 | AC168: 5248 | AD168: 6966 | AE168: 1858 | AF168: 194 | AG168: 194 | AH168: 501 | AI168: 441.203222
B169: Pasivo por impuestos diferidos | C169: 0 | D169: 0 | E169: 0 | F169: 0 | G169: 0 | H169: 0 | I169: 0 | J169: 0 | K169: 0 | L169: 0 | M169: 0 | N169: 0 | O169: 0 | P169: 0 | Q169: 0 | R169: 0 | S169: 0 | T169: 0 | V169: Pasivos no financieros | W169: 0 | X169: 0 | Y169: 0 | AA169: Pasivos no financieros | AB169: 0 | AC169: 0 | AD169: 0 | AE169: 0 | AF169: 0 | AG169: 443 | AH169: 334 | AI169: 230.3333507
B170: Total pasivo no corriente | C170: 69063 | D170: 77683 | E170: 80437 | F170: 81909 | G170: 84144 | H170: 82660 | I170: 85181 | J170: 87290 | K170: 89398 | L170: 90865 | M170: 93766 | N170: 96072 | O170: 98586 | P170: 101096 | Q170: 103358 | R170: 93746 | S170: 109349 | T170: 91424 | V170: Pasivo por impuestos diferidos | W170: 0 | X170: 0 | Y170: 0 | Z170: 8400 | AA170: Pasivo por impuestos diferidos | AB170: 0 | AC170: 0 | AD170: 0 | AE170: 0
B171: TOTAL PASIVO | C171: 158792 | D171: 149158 | E171: 167573 | F171: 198178 | G171: 176530 | H171: 147393 | I171: 187595 | J171: 182282 | K171: 187827 | L171: 160411 | M171: 209591 | N171: 204813 | O171: 188239 | P171: 184750 | Q171: 198481 | R171: 212134 | S171: 218006 | T171: 186953 | V171: Total pasivo no corriente | W171: 93406 | X171: 95080 | Y171: 98150 | Z171: 79829 | AA171: Total pasivo no corriente | AB171: =SUM(AB163:AB170) -> 77929 | AC171: 81081 | AD171: 82673 | AE171: 88433 | AF171: 91122 | AG171: 92699 | AH171: 92712 | AI171: 95528.25135
S172: 0 | V172: TOTAL PASIVO | W172: 226862 | X172: 235889 | Y172: 248381 | Z172: 226567 | AA172: TOTAL PASIVO | AB172: =+AB161+AB171 -> 293509 | AC172: 318437 | AD172: 293613 | AE172: 321892 | AF172: 324293 | AG172: 335018 | AH172: 310493 | AI172: 299587.838
B173: Patrimonio de los accionistas | S173: 0
B174: Capital suscrito y pagado | C174: 73050 | D174: 73050 | E174: 73050 | F174: 73050 | G174: 73050 | H174: 73050 | I174: 73050 | J174: 73050 | K174: 73050 | L174: 73050 | M174: 73050 | N174: 73050 | O174: 73050 | P174: 73050 | Q174: 73050 | R174: 73050 | S174: 73050 | T174: 73050 | V174: Patrimonio de los accionistas | AA174: Patrimonio de los accionistas
B175: Prima en colocación de acciones | C175: 0 | D175: 0 | E175: 0 | F175: 0 | G175: 0 | H175: 0 | I175: 0 | J175: 0 | K175: 0 | L175: 0 | M175: 0 | N175: 0 | O175: 0 | P175: 0 | Q175: 0 | R175: 0 | S175: 0 | T175: 0 | V175: Capital suscrito y pagado | W175: 73050 | X175: 73050 | Y175: 73050 | Z175: 73050 | AA175: Capital suscrito y pagado | AB175: 73050 | AC175: 73050 | AD175: 73050 | AE175: 73050 | AF175: 73050 | AG175: 73050 | AH175: 73050 | AI175: 73050
B176: Reservas | C176: 4962 | D176: 7325 | E176: 9767 | F176: 9767 | G176: 9767 | H176: 9767 | I176: 12414 | J176: 12414 | K176: 12414 | L176: 12414 | M176: 15709 | N176: 15709 | O176: 15709 | P176: 15709 | Q176: 18651 | R176: 18651 | S176: 18651 | T176: 18651 | V176: Prima en colocación de acciones | W176: 0 | X176: 0 | Y176: 0 | Z176: 0 | AA176: Prima en colocación de acciones
B177: Resultados retenidos | C177: -21651 | D177: -21651 | E177: -21650 | F177: -21650 | G177: -21650 | H177: -22095 | I177: -22095 | J177: -22095 | K177: -22095 | L177: -22095 | M177: -22095 | N177: -22095 | O177: -22095 | P177: -22095 | Q177: -22095 | R177: -22095 | S177: -22081 | T177: -22095 | V177: Reservas | W177: 22460 | X177: 22460 | Y177: 22460 | Z177: 22460 | AA177: Reservas | AB177: 27209 | AC177: 27209 | AD177: 27209 | AE177: 27209 | AF177: 32446 | AG177: 32446 | AH177: 32446 | AI177: 32445.94512
B178: Resultado del año | C178: 23629 | D178: 24422 | E178: 6704 | F178: 15266 | G178: 22018 | H178: 26478 | I178: 7572 | J178: 14473 | K178: 22662 | L178: 32943 | M178: 8574 | N178: 13182 | O178: 21555 | P178: 29424 | Q178: 9070 | R178: 17966 | S178: 31368 | T178: 15713 | V178: Resultados retenidos | W178: -44474 | X178: -44474 | Y178: -44474 | Z178: -44475 | AA178: Resultados retenidos | AB178: -44475 | AC178: -44475 | AD178: -44475 | AE178: -44475 | AF178: -44475 | AG178: -44474 | AH178: -44474 | AI178: -44474.47885
B179: Otro Resultado Integral | C179: -3164 | D179: -4108 | E179: -4108 | F179: -4108 | G179: -4110 | H179: -2991 | I179: -2992 | J179: -2991 | K179: -2989 | L179: -3975 | M179: -3975 | N179: -3975 | O179: -3974 | P179: -8588 | Q179: -8588 | R179: -8588 | S179: -8292 | T179: 7715 | V179: Resultado del año | W179: 11279 | X179: 23137 | Y179: 36169 | Z179: 47481.05 | AA179: Resultado del año | AB179: 12715.12985 | AC179: 25125.68906 | AD179: 38488.32431 | AE179: 52374.21228 | AF179: 14634.89126 | AG179: 28843 | AH179: 41924 | AI179: 57340.22562
B180: Total patrimonio de los accionistas | C180: 76826 | D180: 79038 | E180: 63763 | F180: 72325 | G180: 79075 | H180: 84209 | I180: 67949 | J180: 74851 | K180: 83042 | L180: 92337 | M180: 71263 | N180: 75871 | O180: 84245 | P180: 87500 | Q180: 70088 | R180: 78985 | S180: 92696 | T180: 93034 | V180: Otro Resultado Integral | W180: 7714 | X180: 7714 | Y180: 7714 | Z180: 32109 | AA180: Otro Resultado Integral | AB180: 32109 | AC180: 32109 | AD180: 32109 | AE180: 24952 | AF180: 24952 | AG180: 24952 | AH180: 24952 | AI180: 32582.88786
B181: TOTAL PASIVO Y PATRIMONIO DE LOS ACCIONISTAS | C181: 235618 | D181: 228196 | E181: 231336 | F181: 270503 | G181: 255605 | H181: 231602 | I181: 255544 | J181: 257133 | K181: 270869 | L181: 252748 | M181: 280854 | N181: 280684 | O181: 272484 | P181: 272250 | Q181: 268569 | R181: 291119 | S181: 310702 | T181: 279987 | V181: Total patrimonio de los accionistas | W181: 70029 | X181: 81887 | Y181: 94919 | Z181: 130625.05 | AA181: Total patrimonio de los accionistas | AB181: =SUM(AB175:AB180) -> 100608.1299 | AC181: 113018.6891 | AD181: 126381.3243 | AE181: 133110.2123 | AF181: 100607.8913 | AG181: 114817 | AH181: 127898 | AI181: 150944.5797
C182: =+C148-C171-C180 -> 0 | D182: =+D148-D171-D180 -> 0 | E182: 0 | F182: 0 | G182: 0 | H182: 0 | I182: 0 | J182: 0 | K182: 0 | L182: 0 | M182: 0 | N182: 0 | O182: 0 | V182: TOTAL PASIVO Y PATRIMONIO DE LOS ACCIONISTAS | W182: 296891 | X182: 317776 | Y182: 343300 | Z182: 357192.05 | AA182: TOTAL PASIVO Y PATRIMONIO DE LOS ACCIONISTAS | AB182: =+AB172+AB181 -> 394117.1299 | AC182: 431455.6891 | AD182: 419994.3243 | AE182: 455002.2123 | AF182: 424900.8913 | AG182: 449835 | AH182: 438391 | AI182: 450532.4178
C183: =+C116-C178 -> 0 | D183: =+D116-D178 -> 0 | E183: =+E116-E178 -> 0 | F183: =+F116+E116-F178 -> 0 | G183: =+G116+F116+E116-G178 -> 0 | H183: =+H116+G116+F116+E116-H178 -> 0 | I183: =+I116-I178 -> 0 | J183: =+J116+I116-J178 -> 0 | K183: =+K116+J116+I116-K178 -> 0 | L183: =+L116+K116+J116+I116-L178 -> 0 | M183: =+M116-M178 -> 0 | N183: =+N116+M116-N178 -> 0 | O183: 0
A185: □ | B185: ESTADOS DE RESULTADOS SEPARADOS - TRANSELCA
B186: Cifras expresadas en millones de pesos colombianos
C188: 2016 | D188: 2017 | E188: 1T18 | F188: 2T18 | G188: 3T18 | H188: 4T18 | I188: 1T19 | J188: 2T19 | K188: 3T19 | L188: 4T19 | M188: 1T20 | N188: 2T20 | O188: 3T20 | P188: 4T20 | Q188: 1T21 | R188: 2T21 | S188: 3T21 | T188: 4T21 | W188: 1T22 | X188: 2T22 | Y188: 3T22 | Z188: 4T22 | AB188: =+AB7 -> 1T23 | AC188: 2T23 | AD188: 3T23 | AE188: =+AE7 -> 4T23 | AF188: 1T24 | AG188: 2T24 | AH188: 3T24 | AI188: =+AI124 -> 4T24
B190: Servicios de transmisión de energía eléctrica | C190: 129114 | D190: 129681 | E190: 32993 | F190: 32961 | G190: 33349 | H190: 33847 | I190: 34073 | J190: 34509 | K190: 35213 | L190: 35723 | M190: 35290 | N190: 35995 | O190: 35693 | P190: 36252 | Q190: 36593 | R190: 38796 | S190: 40453 | T190: 41478 | V190: Servicios de transmisión de energía eléctrica | W190: 44664 | X190: 47627 | Y190: 49451 | Z190: 41565 | AA190: Servicios de transmisión de energía eléctrica | AB190: 43670 | AC190: 44599 | AD190: 43661 | AE190: 51598 | AF190: 55977 | AG190: 58663 | AH190: 59130 | AI190: 59905
B191: Cargos por conexión | C191: 105814 | D191: 105442 | E191: 26867 | F191: 27098 | G191: 27421 | H191: 29532 | I191: 28710 | J191: 29079 | K191: 29392 | L191: 30072 | M191: 29659 | N191: 29636 | O191: 29580 | P191: 30364 | Q191: 30656 | R191: 32697 | S191: 32684 | T191: 35783 | V191: Cargos por conexión | W191: 37512 | X191: 39778 | Y191: 40015 | Z191: 42875 | AA191: Cargos por conexión | AB191: 42418 | AC191: 39126 | AD191: 39049 | AE191: 44979 | AF191: 42995 | AG191: 40900 | AH191: 43501 | AI191: 48238
B192: Despacho y coordinación CND - MEM | C192: 101 | D192: 75 | E192: 18 | F192: 18 | G192: 361 | H192: -325 | I192: 18 | J192: 19 | K192: 19 | L192: 18 | M192: 19 | N192: 19 | O192: 19 | P192: 19 | Q192: 19 | R192: 20 | S192: 20 | T192: 20 | V192: Despacho y coordinación CND - MEM | W192: 21 | X192: 21 | Y192: 22 | Z192: 23 | AA192: Despacho y coordinación CND - MEM | AB192: 24 | AC192: 24 | AD192: 25 | AE192: 25 | AF192: 26 | AG192: 26 | AH192: 26 | AI192: 26
B193: Otros ingresos operacionales | C193: 8443 | D193: 8866 | E193: 2525 | F193: 2019 | G193: 1974 | H193: 2702 | I193: 1370 | J193: 2975 | K193: 2660 | L193: 3527 | M193: 1913 | N193: 2026 | O193: 2111 | P193: 2841 | Q193: 2890 | R193: 1956 | S193: 2014 | T193: 2319 | V193: Otros ingresos operacionales | W193: 1544 | X193: 4096 | Y193: 1793 | Z193: 2383 | AA193: Otros ingresos operacionales | AB193: 1995 | AC193: 2779 | AD193: 2935 | AE193: 3477 | AF193: 2978 | AG193: 2351 | AH193: 2150 | AI193: 4461
B194: Costos y gastos AOM | C194: 78240 | D194: 80724 | E194: 19907 | F194: 19822 | G194: 20044 | H194: 23718 | I194: 19579 | J194: 20953 | K194: 20303 | L194: 25693 | M194: 21797 | N194: 20844 | O194: 20757 | P194: 27753 | Q194: 21118 | R194: 22352 | S194: 21376 | T194: 30333 | V194: Costos y gastos AOM | W194: 23627 | X194: 25150 | Y194: 25515 | Z194: 34250 | AA194: Costos y gastos AOM | AB194: 28502 | AC194: 28252 | AD194: 30517 | AE194: 40574 | AF194: 35678 | AG194: 35844 | AH194: 32188 | AI194: 41817
B195: EBITDA | C195: =+C190+C191+C192+C193-C194 -> 165232 | D195: =+D190+D191+D192+D193-D194 -> 163340 | E195: 42496 | F195: 42274 | G195: 43061 | H195: 42038 | I195: 44592 | J195: 45629 | K195: 46981 | L195: 43647 | M195: 45084 | N195: 46832 | O195: 46646 | P195: 41723 | Q195: 49040 | R195: 51117 | S195: 53795 | T195: =+T190+T191+T192+T193-T194 -> 49267 | V195: (-) Provisiones, Depreciaciones y Amortizaciones. | W195: 9325 | X195: 8485 | Y195: 19507 | Z195: 3797 | AA195: (-) Provisiones, Depreciaciones y Amortizaciones. | AB195: 13022 | AC195: 9256 | AD195: 11112 | AE195: 21418 | AF195: 12073 | AG195: 14950 | AH195: 34259 | AI195: 27911
V196: Utilidad Bruta | W196: 50789 | X196: =+X190+X191+X192+X193-X194-X195 -> 57887 | Y196: 46259 | Z196: 48799 | AA196: Utilidad Bruta | AB196: =+AB190+AB191+AB192+AB193-AB194-AB195 -> 46583 | AC196: =+AC190+AC191+AC192+AC193-AC194-AC195 -> 49020 | AD196: 44041 | AE196: 38087 | AF196: 54225 | AG196: 51146 | AH196: 38360 | AI196: 42902
B197: (-) Provisiones, Depreciaciones y Amortizaciones. | C197: 60663 | D197: 43503 | E197: 10214 | F197: 10258 | G197: 10298 | H197: 11049 | I197: 10283 | J197: 10361 | K197: 10605 | L197: 10757 | M197: 9941 | N197: 9884 | O197: 8528 | P197: 18333 | Q197: 9479 | R197: 9503 | S197: 9536 | T197: 5798 | Y197: 0
B198: Metodo de participación neto ingreso /(gasto) | C198: 51858 | D198: 50752 | E198: 14600 | F198: 15412 | G198: 16495 | H198: 23021 | I198: 19715 | J198: 20515 | K198: 21108 | L198: 39996 | M198: 21539 | N198: 24125 | O198: 21737 | P198: 20279 | Q198: 22231 | R198: 22250 | S198: 24412 | T198: 24154 | V198: Metodo de participación neto ingreso /(gasto) | W198: 17689 | X198: 26748 | Y198: 29654 | Z198: 32352 | AA198: Metodo de participación neto ingreso /(gasto) | AB198: =29858+1 -> 29859 | AC198: =30922 -> 30922 | AD198: 27617 | AE198: 27413 | AF198: 29953 | AG198: 27952 | AH198: 40114 | AI198: 13010
B199: Otros neto ingreso /(gasto) | C199: 1526 | D199: 5283 | E199: 1214 | F199: 1912 | G199: -2580 | H199: -2984 | I199: -41 | J199: -782 | K199: -1807 | L199: -6778 | M199: 563 | N199: 169 | O199: -3330 | P199: -4923 | Q199: 438 | R199: -296 | S199: -2400 | T199: -3070 | V199: Otros neto ingreso /(gasto) | W199: 828 | X199: 11752 | Y199: -2010 | Z199: -10285 | AA199: Otros neto ingreso /(gasto) | AB199: 1022 | AC199: =-1598+1 -> -1597 | AD199: -1715 | AE199: 1646 | AF199: 4255 | AG199: -546 | AH199: 6333 | AI199: 564
B200: Utilidad por actividades de operación | C200: =+C195-C197+C198+C199 -> 157953 | D200: =+D195-D197+D198+D199 -> 175872 | E200: =+E195-E197+E198+E199 -> 48096 | F200: 49340 | G200: 46678 | H200: 51026 | I200: 53983 | J200: 55001 | K200: 55677 | L200: 66108 | M200: 57245 | N200: 61242 | O200: 56525 | P200: =+P195-P197+P198+P199 -> 38746 | Q200: 62230 | R200: 63568 | S200: 66271 | T200: =+T195-T197+T198+T199 -> 64553 | V200: Utilidad por actividades de operación | W200: 69306 | X200: =+X196+X198+X199 -> 96387 | Y200: 73903 | Z200: 70866 | AA200: Utilidad por actividades de operación | AB200: =+AB196+AB198+AB199 -> 77464 | AC200: =+AC196+AC198+AC199 -> 78345 | AD200: 69943 | AE200: 67146 | AF200: 88433 | AG200: 78552 | AH200: 84807 | AI200: 56476
S201: 0 | Y201: 0
B202: Financiero neto ingreso/(gasto) | C202: -43180 | D202: -29658 | E202: -7224 | F202: -6370 | G202: -6374 | H202: -5931 | I202: -4724 | J202: -5948 | K202: -7235 | L202: -6974 | M202: -6659 | N202: -9103 | O202: -6593 | P202: -5477 | Q202: -4138 | R202: -7181 | S202: -7986 | T202: -8830 | V202: Financiero neto ingreso/(gasto) | W202: -9013 | X202: -5945 | Y202: -5850 | Z202: -4999 | AA202: Financiero neto ingreso/(gasto) | AB202: -10283 | AC202: -10939 | AD202: -7882 | AE202: -9557 | AF202: -12508 | AG202: -10639 | AH202: -8675 | AI202: -14290
B203: Utilidad antes de impuestos | C203: =+C200+C202 -> 114773 | D203: =+D200+D202 -> 146214 | E203: 40872 | F203: 42970 | G203: 40304 | H203: 45095 | I203: 49259 | J203: 49053 | K203: 48442 | L203: 59134 | M203: 50586 | N203: 52139 | O203: 49932 | P203: =+P200+P202 -> 33269 | Q203: 58092 | R203: 56387 | S203: 58285 | T203: =+T200+T202 -> 55723 | V203: Utilidad antes de impuestos | W203: 60293 | X203: =+X200+X202 -> 90442 | Y203: 68053 | Z203: 65867 | AA203: Utilidad antes de impuestos | AB203: =+AB200+AB202 -> 67181 | AC203: =+AC200+AC202 -> 67406 | AD203: 62061 | AE203: 57589 | AF203: 75925 | AG203: 67913 | AH203: 76132 | AI203: 42186
B205: Provisión impuesto de renta | C205: 26011 | D205: 38236 | E205: 9756 | F205: 10072 | G205: 8319 | H205: 5310 | I205: 9609 | J205: 10092 | K205: 8936 | L205: 6632 | M205: 10350 | N205: 11503 | O205: 11416 | P205: 5842 | Q205: 11489 | R205: 11191 | S205: 11138 | T205: 10645 | V205: Provisión impuesto de renta | W205: -14488 | X205: -20579 | Y205: -16798 | Z205: -9845 | AA205: Provisión impuesto de renta | AB205: -13037 | AC205: -14439 | AD205: -13521 | AE205: -13788 | AF205: -16476 | AG205: -18615 | AH205: -13119 | AI205: -7914
B206: Utilidad neta | C206: =+C203-C205 -> 88762 | D206: =+D203-D205 -> 107978 | E206: 31116 | F206: 32898 | G206: 31985 | H206: 39785 | I206: 39650 | J206: 38961 | K206: 39506 | L206: 52502 | M206: =+M203-M205 -> 40236 | N206: 40636 | O206: 38516 | P206: =+P203-P205 -> 27427 | Q206: 46603 | R206: 45196 | S206: 47147 | T206: =+T203-T205 -> 45078 | V206: Utilidad neta | W206: 45805 | X206: =+X203+X205 -> 69863 | Y206: 51255 | Z206: 56022 | AA206: Utilidad neta | AB206: =+AB203+AB205 -> 54144 | AC206: =+AC203+AC205 -> 52967 | AD206: 48540 | AE206: 43801 | AF206: 59449 | AG206: 49298 | AH206: 63013 | AI206: 34272
V208: EBITDA Total | W208: 81127 | X208: 107310 | Y208: 86950 | Z208: 85847 | AA208: EBITDA Total | AB208: 90404 | AC208: 90553 | AD208: 83978 | AE208: 84626 | AF208: 103142 | AG208: 92345 | AH208: 99012 | AI208: 72679
A209: □ | B209: ESTADOS SEPARADOS DE SITUACIÓN FINANCIERA-TRANSELCA
B210: Valores expresados en millones de pesos colombianos
C212: 2016 | D212: 2017 | E212: 1T18 | F212: 2T18 | G212: 3T18 | H212: 4T18 | I212: 1T19 | J212: 2T19 | K212: 3T19 | L212: 4T19 | M212: 1T20 | N212: 2T20 | O212: 3T20 | P212: 4T20 | Q212: 1T21 | R212: 2T21 | S212: 3T21 | T212: 4T21 | W212: 1T22 | X212: 2T22 | Y212: 3T22 | Z212: 4T22 | AB212: =+AB7 -> 1T23 | AC212: 2T23 | AD212: 3T23 | AE212: =+AE7 -> 4T23 | AF212: 1T24 | AG212: 2T24 | AH212: 3T24 | AI212: =+AI188 -> 4T24
B213: ACTIVO | V213: ACTIVO | AA213: ACTIVO
B214: Activo corriente | V214: Activo corriente | AA214: Activo corriente
B215: Efectivo y equivalentes de efectivo | C215: 42610 | D215: 37156 | E215: 25585 | F215: 22251 | G215: 31573 | H215: 47764 | I215: 24298 | J215: 10663 | K215: 25334 | L215: 31863 | M215: 37743 | N215: 59893 | O215: 63820 | P215: 70596 | Q215: 53444 | R215: 119605 | S215: 134798 | T215: 97288 | V215: Efectivo y equivalentes de efectivo | W215: 51602 | X215: 84792 | Y215: 209084 | Z215: 200087 | AA215: Efectivo y equivalentes de efectivo | AB215: 167894 | AC215: =132684+1 -> 132685 | AD215: 33033 | AE215: 107108 | AF215: 127729 | AG215: 138439 | AH215: 102261 | AI215: 90880
B216: Activos financieros | C216: 29125 | D216: 31485 | E216: 70841 | F216: 30922 | G216: 32474 | H216: 29773 | I216: 108812 | J216: 31981 | K216: 32713 | L216: =34215+32941 -> 67156 | M216: 36460 | N216: 34033 | O216: 33819 | P216: 36713 | Q216: 88174 | R216: 37783 | S216: 36873 | T216: 38110 | V216: Activos financieros | W216: 92248 | X216: 55583 | Y216: 66097 | Z216: 51616 | AA216: Activos financieros | AB216: =173977 -> 173977 | AC216: 96784 | AD216: 75557 | AE216: 198590 | AF216: 297604 | AG216: 212020 | AH216: 201328 | AI216: 110496
B217: Impuestos corrientes | C217: 3681 | D217: 4512 | E217: 10043 | F217: 20683 | G217: 24653 | H217: 5384 | I217: 12396 | J217: 23934 | K217: 28732 | L217: 7665 | M217: 15716 | N217: 25840 | O217: 30090 | P217: 8649 | Q217: 15185 | R217: 25709 | S217: 30120 | T217: 8272 | V217: Impuestos corrientes | W217: 8978 | X217: 9030 | Y217: 10658 | Z217: 17793 | AA217: Impuestos corrientes | AB217: 22411 | AC217: 37820 | AD217: 48599 | AE217: 56309 | AF217: 59047 | AG217: 42514 | AH217: 46039 | AI217: 40693
B218: Inventario | T218: 2743 | V218: Inventario | W218: 2743 | X218: 2743 | Y218: 2743 | Z218: 2598 | AA218: Inventario | AB218: 2598 | AC218: 2598 | AD218: 1551 | AE218: 2620 | AF218: 2082 | AG218: 1305 | AH218: 1335 | AI218: 2057
B219: Activos no financieros | C219: 3480 | D219: 2318 | E219: 950 | F219: 332 | G219: 3435 | H219: 2759 | I219: 3245 | J219: 3389 | K219: 2381 | L219: 1654 | M219: 4461 | N219: 3550 | O219: 2747 | P219: 3933 | Q219: 3430 | R219: 2204 | S219: 8347 | T219: 7649 | V219: Activos no financieros | W219: 7310 | X219: 9733 | Y219: 5546 | Z219: 4685 | AA219: Activos no financieros | AB219: 8568 | AC219: 6990 | AD219: 8752 | AE219: 5486 | AF219: 4722 | AG219: 2784 | AH219: 2195 | AI219: 8801
... 55 more rows

Sheet EEFF_TE_Bra
A1: Volver al Contenido
B3: ESTADOS DE RESULTADOS CONSOLIDADO IFRS - CTEEP
B4: Cifras expresadas en miles de reales
C6: Consolidated
C7: 2016 | D7: 2017 | E7: 1Q18 | F7: 2Q18 | G7: 3Q18 | H7: 4Q18 | I7: 1Q19 | J7: 2Q19 | K7: 3Q19 | L7: 4Q19 | M7: 1Q20 | N7: 2Q20 | O7: 3Q20 | P7: 4Q20 | Q7: 1Q21 | R7: 2Q21 | S7: 3Q21 | T7: 4Q21 | U7: 1Q22 | V7: 2Q22 | W7: 3Q22 | X7: 4Q22 | Y7: 1Q23 | Z7: 2Q23 | AA7: 3Q23 | AB7: 4Q23 | AC7: 1Q24 | AD7: 2Q24 | AE7: 3Q24 | AF7: 4Q24
B8: Gross Operating Revenue | C8: 8774335.936 | D8: 3050501.919 | E8: 627253 | F8: 665797 | G8: 1290219 | H8: 1108302 | I8: 846080 | J8: 1094524 | K8: =SUM(K9:K13) -> 855963 | L8: 1018898 | M8: 979128 | N8: 1723910 | O8: 1204440 | P8: 382214 | Q8: 1260391 | R8: 1703349.049 | S8: =SUM(S9:S13) -> 1708800.347 | T8: =SUM(T9:T13) -> 1663140.766 | U8: 1537177 | V8: 1895817.285 | W8: 1394430.509 | X8: 1437634.929 | Y8: =SUM(Y9:Y13) -> 1767304.083 | Z8: 1647767.55 | AA8: =SUM(AA9:AA13) -> 1690633.207 | AB8: 1896016 | AC8: 2233331 | AD8: 1863439 | AE8: 2083970 | AF8: 2814081
B9: Infrastructure | C9: 171901.936 | D9: 247126 | E9: 80136 | F9: 113491 | G9: 80464 | H9: 113024 | I9: 72374 | J9: 145664 | K9: 178632 | L9: 411855 | M9: 193571 | N9: 198081 | O9: 207091 | P9: 583719 | Q9: 235645 | R9: 262225 | S9: 340255 | T9: 312113 | U9: 397080 | V9: 523797 | W9: 518422 | X9: 511038 | Y9: 505302 | Z9: 519329 | AA9: 672953.3987 | AB9: 862561 | AC9: 1014643 | AD9: 832384 | AE9: 1090911 | AF9: 1523929
B10: O&M | C10: 835786 | D10: 880901 | E10: 235019 | F10: 242854 | G10: 276953 | H10: 287708 | I10: 282515 | J10: 277434 | K10: 250903 | L10: 297668 | M10: 297169 | N10: 170126 | O10: 271689 | P10: 332142 | Q10: 318120 | R10: 172417.001 | S10: 358544.696 | T10: 280957.08 | U10: 293705 | V10: 343379 | W10: 420578 | X10: 374821 | Y10: 346499 | Z10: 337137 | AA10: 310503 | AB10: 339034 | AC10: 334873 | AD10: 318176 | AE10: 334276 | AF10: 376494
B11: Efficiency Gain in Infrastructure Implementation | L11: 464490 | P11: 152998 | Q11: 20922 | R11: 62233 | S11: 21169 | T11: 37862 | U11: 3914 | V11: 13030 | W11: 61447 | X11: -54372 | Y11: 39076 | Z11: 12948 | AA11: 2486.86922 | AB11: -7750 | AC11: 22807 | AD11: 20869 | AE11: 12325 | AF11: 42779
B12: Remuneration of concession assets | C12: 7743248 | D12: 1896406 | E12: 305366 | F12: 302657 | G12: 926265 | H12: 700729 | I12: 484169 | J12: 664271 | K12: 416548 | L12: -162906 | M12: 480688 | N12: 1348221 | O12: 713957 | P12: -694981 | Q12: 679010 | R12: 1187403.048 | S12: 977017.651 | T12: 1024225.686 | U12: 839064 | V12: 1010608 | W12: 385756 | X12: 598825 | Y12: 867430 | Z12: 770323 | AA12: 695402.6364 | AB12: 691971 | AC12: 854100 | AD12: 682198 | AE12: 632229 | AF12: 860044
B13: Other Revenues | C13: 23400 | D13: 26068 | E13: 6732 | F13: 6795 | G13: 6537 | H13: 6841 | I13: 7022 | J13: 7155 | K13: 9880 | L13: 7791 | M13: 7700 | N13: 7482 | O13: 11703 | P13: 8336 | Q13: 6694 | R13: 19071 | S13: 11814 | T13: 7983 | U13: 3414 | V13: 5003.28494 | W13: 8227.50925 | X13: 7322.92905 | Y13: 8997.0829 | Z13: 8030.55029 | AA13: 9287.30248 | AB13: 10199 | AC13: 6908 | AD13: 9812 | AE13: 14229 | AF13: 10835
B14: Deductions from Operating Revenue | C14: -988720 | D14: -349308 | E14: -80646 | F14: -85196 | G14: -154868 | H14: -136874 | I14: -113784 | J14: -134732 | K14: -119137 | L14: -115950 | M14: -127001 | N14: -205839 | O14: -132865 | P14: -80936 | Q14: -172373 | R14: -192213.752 | S14: -211134.469 | T14: -225830.008 | U14: -177116.1737 | V14: -229784 | W14: -201743 | X14: -205847 | Y14: -196483.1737 | Z14: -188450 | AA14: -208126 | AB14: -208023 | AC14: -255143 | AD14: -200867 | AE14: -278219 | AF14: -294010.8263
B15: Net Operating Revenue | C15: =SUM(C9:C14) -> 7785615.936 | D15: =SUM(D9:D14) -> 2701193 | E15: 546607 | F15: 580601 | G15: 1135351 | H15: 971428 | I15: 732296 | J15: 959792 | K15: 736826 | L15: 902948 | M15: 852127 | N15: 1518071 | O15: 1071575 | P15: 301278 | Q15: 1088018 | R15: =SUM(R9:R14) -> 1511135.297 | S15: =SUM(S9:S14) -> 1497665.878 | T15: =SUM(T9:T14) -> 1437310.758 | U15: 1360060.826 | V15: 1666033.285 | W15: 1192687.509 | X15: 1231787.929 | Y15: =SUM(Y9:Y14) -> 1570820.909 | Z15: 1459317.55 | AA15: =SUM(AA9:AA14) -> 1482507.207 | AB15: 1687993 | AC15: 1978188 | AD15: 1662572 | AE15: 1805751 | AF15: 2520070.174
B16: Cost and Expenses | C16: =SUM(C17:C21) -> -448802 | D16: =SUM(D17:D21) -> -723671.9903 | E16: -190804 | F16: -229809 | G16: -196145 | H16: -275125 | I16: -202375 | J16: -309539 | K16: -325485 | L16: =SUM(L17:L22) -> -336604 | M16: -268335 | N16: -321436 | O16: -375755 | P16: =SUM(P17:P22) -> 1053645 | Q16: =SUM(Q17:Q22) -> -325176 | R16: -375359.1808 | S16: =SUM(S17:S21) -> -452534.1559 | T16: =SUM(T17:T21) -> -483393.1313 | U16: -525021.2365 | V16: -636025.7873 | W16: -594262.4912 | X16: -708156.61 | Y16: -595397.2912 | Z16: -564340.0197 | AA16: -725687.6735 | AB16: -872079 | AC16: -1035560 | AD16: -863711 | AE16: -1075824 | AF16: -1618613.041
B17: Personnel | C17: -295948 | D17: -315320 | E17: -81033 | F17: -84181 | G17: -82624 | H17: -87689 | I17: -86137 | J17: -89075 | K17: -90124 | L17: -82017 | M17: -77351 | N17: -80005 | O17: -82944 | P17: -100926 | Q17: -95897 | R17: -100754.545 | S17: -103499.579 | T17: -104536.067 | U17: -105695 | V17: -105747.6075 | W17: -102697.6604 | X17: -133355 | Y17: -103628.0061 | Z17: -115727.9939 | AA17: -116830.8251 | AB17: -120290 | AC17: -123266 | AD17: -132653 | AE17: -135288 | AF17: -137065
B18: Materials | C18: -86643 | D18: -186476 | E18: -60873 | F18: -79603 | G18: -40385 | H18: -69667 | I18: -47151 | J18: -94527 | K18: -119044 | L18: -127574 | M18: -103860 | N18: -146909 | O18: -100144 | P18: -104994 | Q18: -71440 | R18: -110857 | S18: -156998.301 | T18: -174871.647 | U18: -234023 | V18: -291728.3296 | W18: -228064.6704 | X18: -223398 | Y18: -297990 | Z18: -180973 | AA18: -280805 | AB18: -268880 | AC18: -442084 | AD18: -380604 | AE18: -391226 | AF18: -511801
B19: Services | D19: -173818.9903 | E19: -37990 | F19: -53464 | G19: -59688 | H19: -90811 | I19: -48025 | J19: -93523 | K19: -92669 | L19: -82129 | M19: -63413 | N19: -71989 | O19: -121380 | P19: -155094 | Q19: -127786 | R19: -127486.4166 | S19: -130198.4079 | T19: -159511.496 | U19: -136301 | V19: -171009.846 | W19: -223895.9482 | X19: -266598.929 | Y19: -156623.4643 | Z19: -230598.1689 | AA19: -286488.3025 | AB19: -414947 | AC19: -403468 | AD19: -285330 | AE19: -509173 | AF19: -822758
B20: Depreciation | C20: 0 | D20: -9626 | F20: -2232 | G20: -2261 | H20: -2486 | I20: -5242 | J20: -5160 | K20: -5014 | L20: -4547 | M20: -4468 | N20: -4697 | O20: -5121 | P20: -5505 | Q20: -5119 | R20: -4945.947 | S20: -6214.523 | T20: -6522.911 | U20: -6921 | V20: -6573 | W20: -6774 | X20: -7230 | Y20: -6388 | Z20: -6272 | AA20: -6439 | AB20: -5788 | AC20: -8864 | AD20: -9941 | AE20: -9101 | AF20: -9451
B21: Other | C21: -66211 | D21: -38431 | E21: -10908 | F21: -10329 | G21: -11187 | H21: -24472 | I21: -15820 | J21: -27254 | K21: -18634 | L21: -13630 | M21: -19243 | N21: -17836 | O21: -66166 | P21: -57458 | Q21: -24934 | R21: -31315.27217 | S21: -55623.345 | T21: -37951.01022 | U21: -42081.23653 | V21: -60967.00411 | W21: -32830.21219 | X21: -77574.68097 | Y21: -30767.82079 | Z21: -30768.85701 | AA21: -35124.54599 | AB21: -62174 | AC21: -57878 | AD21: -55183 | AE21: -31036 | AF21: -137538.0415
B22: Revenues – Periodic Tariff Reset (RTP) | L22: -26707 | P22: 1477622 | Q22: 0 | R22: 53911 | S22: -13067 | T22: 13930 | U22: 0 | V22: 0 | W22: 1825 | X22: 0 | Y22: 0 | Z22: 0 | AA22: -3685 | AB22: 0 | AC22: 0 | AD22: 0 | AE22: 1152707 | AF22: 0
B23: Result of Service | C23: =SUM(C15:C16) -> 7336813.936 | D23: =SUM(D15:D16) -> 1977521.01 | E23: =SUM(E15:E16) -> 355803 | F23: 350792 | G23: 939206 | H23: 696303 | I23: 529921 | J23: 650253 | K23: 411341 | L23: 566344 | M23: =SUM(M15:M16) -> 583792 | N23: 1196635 | O23: 695820 | P23: =SUM(P15:P16)+P22 -> 2832545 | Q23: 762842 | R23: =SUM(R15:R16)+R22 -> 1189687.116 | S23: =((SUM(S15:S16)+S22)) -> 1032064.722 | T23: =((SUM(T15:T16)+T22)) -> 967847.6267 | U23: 835039.5898 | V23: 1030007.498 | W23: 600250.0181 | X23: =((SUM(X15:X16)+X22)) -> 523631.319 | Y23: =((SUM(Y15:Y16)+Y22)) -> 975423.618 | Z23: 894977.5305 | AA23: =((SUM(AA15:AA16)+AA22)) -> 753134.5332 | AB23: 815913 | AC23: 942628 | AD23: 798861 | AE23: 1882634 | AF23: 901457.1322
B24: Financial Income | C24: =SUM(C25:C29) -> -109929 | D24: =SUM(D25:D29) -> -66216 | E24: -35293 | F24: -25692 | G24: -49331 | H24: -31898 | I24: -54876 | J24: -49160 | K24: -34802 | L24: -46421 | M24: -49311 | N24: -27825 | O24: -54557 | P24: -77482 | Q24: -115769 | R24: -138931.641 | S24: -160000.111 | T24: -216292.4522 | U24: -230290.9028 | V24: -301284.3439 | W24: -125492.9871 | X24: =SUM(X25:X29) -> -155109.4756 | Y24: =SUM(Y25:Y29) -> -207973.7217 | Z24: -257947.5247 | AA24: =SUM(AA25:AA29) -> -149486.7536 | AB24: -180594 | AC24: -252507 | AD24: -240181 | AE24: -206051 | AF24: -263878.0535
B25: Income from Financial Investments | C25: 68032 | D25: 43907 | E25: 10929 | F25: 18347 | G25: 19329 | H25: 25950 | I25: 14183 | J25: 18601 | K25: 19911 | L25: 13050 | M25: 21983 | N25: 10446 | O25: 8539 | P25: 8279 | Q25: 9761 | R25: 15396.054 | S25: 15629.99302 | T25: 28320.83998 | U25: 25064 | V25: 35115.75325 | W25: 41059.01295 | X25: 46619.52441 | Y25: 32433.16078 | Z25: 42806.47532 | AA25: 54343.3639 | AB25: 71988 | AC25: 39858 | AD25: 49972 | AE25: 71000 | AF25: 90289
B26: Result of Liquid Monetary Variation | C26: -33902 | D26: -31989 | E26: -11252 | F26: -6447 | G26: -17390 | H26: -10500 | I26: -15154 | J26: -17631 | K26: -6225 | L26: -7350 | M26: -26159 | N26: 9032 | O26: -15182 | P26: -42922 | Q26: -68131 | R26: -71015 | S26: -75402.178 | T26: -118659.558 | U26: -100618 | V26: -168431 | W26: 6649 | X26: -33260 | Y26: -87851.88252 | Z26: -101774 | AA26: -7162.479812 | AB26: -49946 | AC26: -127410 | AD26: -70536 | AE26: -42165 | AF26: -80158
B27: Interest costs | C27: 0 | D27: -10483 | F27: -580 | G27: -599 | H27: -554 | I27: -205 | J27: -622 | K27: -626 | L27: -667 | M27: -418 | N27: -656 | O27: -613 | P27: -622 | Q27: 908 | R27: -109.729 | S27: -23.455 | T27: -155.991 | U27: 174 | V27: -159 | W27: -173 | X27: -76 | Y27: -113 | Z27: -83 | AA27: -199 | AB27: -82 | AC27: 14 | AD27: -172 | AE27: -7 | AF27: -378
B28: Interest/Charges on loans | C28: -143799 | D28: -111504 | E28: -32327 | F28: -35052 | G28: -40182 | H28: -39491 | I28: -36827 | J28: -36411 | K28: -37561 | L28: -36423 | M28: -37261 | N28: -41114 | O28: -46828 | P28: -43062 | Q28: -63097 | R28: -80114.931 | S28: -99642.703 | T28: -124744 | U28: -146339 | V28: -169482 | W28: -172124 | X28: -179372 | Y28: -175838 | Z28: -197083 | AA28: -195826 | AB28: -200778 | AC28: -163638 | AD28: -215836 | AE28: -234292 | AF28: -263162
B29: Other | C29: -260 | D29: 43853 | E29: -2643 | F29: -1960 | G29: -10489 | H29: -7303 | I29: -16873 | J29: -13097 | K29: -10301 | L29: -15031 | M29: -7456 | N29: -5533 | O29: -473 | P29: 845 | Q29: 4790 | R29: -3088.035 | S29: -561.768 | T29: -1053.74318 | U29: -8571.90281 | V29: 1671.90281 | W29: -904 | X29: 10979 | Y29: 23396 | Z29: -1814 | AA29: -642.637668 | AB29: -1776 | AC29: -1331 | AD29: -3609 | AE29: -587 | AF29: -10469.05347
B30: Operating Income | C30: =SUM(C23:C24) -> 7226884.936 | D30: =SUM(D23:D24) -> 1911305.01 | E30: =SUM(E23:E24) -> 320510 | F30: 325100 | G30: 889875 | H30: 664405 | I30: 475045 | J30: 601093 | K30: 376539 | L30: 519923 | M30: =SUM(M23:M24) -> 534481 | N30: 1168810 | O30: 641263 | P30: 2755063 | Q30: 647073 | R30: 1050755.475 | S30: 872064.6111 | T30: 751555.1745 | U30: 604748.687 | V30: 728723.1537 | W30: 474757.031 | X30: =SUM(X23:X24) -> 368521.8434 | Y30: =SUM(Y23:Y24) -> 767449.8962 | Z30: 637030.0059 | AA30: =SUM(AA23:AA24) -> 603647.7797 | AB30: 635319 | AC30: 690121 | AD30: 558680 | AE30: 1676583 | AF30: 637579.0787
B31: Equity Income | C31: 267706.064 | D31: 124806.3809 | E31: 20872 | F31: 26757 | G31: 95427 | H31: 63830 | I31: 34028 | J31: 47699 | K31: 47941 | L31: 50120 | M31: 132992 | N31: -95475 | O31: 32657 | P31: 472827 | Q31: 124176 | R31: 122379.2114 | S31: 112173.7748 | T31: 159818.9873 | U31: 127909.4421 | V31: 181871.7307 | W31: 144807.8017 | X31: 56298.60754 | Y31: 193344.6408 | Z31: 134388.5434 | AA31: 51093.52451 | AB31: 110491 | AC31: 149952 | AD31: 131156 | AE31: 67236 | AF31: 236233.627
B32: Other Operating Revenues/Expenses | C32: -27939 | D32: -55006 | E32: 4722 | F32: -32 | G32: -24446 | H32: -14980 | I32: 191 | J32: 2569 | K32: 872 | L32: -107 | M32: 4662 | N32: 146652 | O32: -4511 | P32: 23368 | Q32: -10686 | R32: 4194 | S32: -7039 | T32: -20241 | U32: -6663 | V32: 4115 | W32: -2673 | X32: -4283.587161 | Y32: -3985.160775 | Z32: 12163.52468 | AA32: -8064.057746 | AB32: -12027 | AC32: -395 | AD32: 10334 | AE32: 20362 | AF32: -9180.18579
B33: Earnings Before Taxes | C33: =SUM(C30:C32) -> 7466652 | D33: 1981105.391 | E33: 346104 | F33: 351825 | G33: 960856 | H33: 713255 | I33: 509264 | J33: 651361 | K33: 425352 | L33: 569936 | M33: =SUM(M30:M32) -> 672135 | N33: 1219987 | O33: 669409 | P33: 3251258 | Q33: 760563 | R33: 1177328.687 | S33: 977199.3859 | T33: 891133.1619 | U33: 725995.1291 | V33: 914709.8844 | W33: 616891.8327 | X33: =SUM(X30:X32) -> 420536.8638 | Y33: =SUM(Y30:Y32) -> 956809.3763 | Z33: 783582.074 | AA33: =SUM(AA30:AA32) -> 646677.2464 | AB33: 733783 | AC33: 839677 | AD33: 700170 | AE33: 1764182 | AF33: 864632.5199
B34: Income tax and Social Contribution on Earnings | C34: =SUM(C35:C36) -> -2333912 | D34: =SUM(D35:D36) -> -595645 | E34: -105696 | F34: -103759 | G34: -234270 | H34: 3714 | I34: -151873 | J34: -188680 | K34: 14067 | L34: -49976 | M34: -150055 | N34: -339481 | O34: -173636 | P34: -175216 | Q34: -176084 | R34: -323918.01 | S34: =SUM(S35:S36) -> -248772.861 | T34: =SUM(T35:T36) -> -19640.631 | U34: -172825.3967 | V34: -201533.6209 | W34: -123887.9825 | X34: 139904 | Y34: -201606 | Z34: -170456 | AA34: -160496.4685 | AB34: 304069 | AC34: -183763 | AD34: -149668 | AE34: -642837 | AF34: 360337.2927
B35: Current | C35: -79301 | D35: -354491 | E35: -176614 | F35: -167890 | G35: -152616 | H35: 89697 | I35: -114844 | J35: -132273 | K35: 4830 | L35: -34509 | M35: -77594 | N35: -69687 | O35: -234607 | P35: -34067 | Q35: -210719 | R35: -141652.127 | S35: -95938.022 | T35: 139392.138 | U35: -39982.18859 | V35: -24828.81141 | W35: -147609 | X35: 97919 | Y35: -113916 | Z35: -111388 | AA35: -188419.2927 | AB35: 349191 | AC35: -169740 | AD35: -175719 | AE35: -110327 | AF35: 396579.2927
B36: Deferred | C36: -2254611 | D36: -241154 | E36: 70918 | F36: 64131 | G36: -81654 | H36: -85983 | I36: -37029 | J36: -56407 | K36: 9237 | L36: -15467 | M36: -72461 | N36: -269794 | O36: 60971 | P36: -141149 | Q36: 34635 | R36: -182265.883 | S36: -152834.839 | T36: -159032.769 | U36: -132843.2081 | V36: -176704.8095 | W36: 23721.01755 | X36: 41985 | Y36: -87690 | Z36: -59068 | AA36: 27922.82422 | AB36: -45122 | AC36: -14022 | AD36: 26051 | AE36: -532510 | AF36: -36242
B37: EBITDA ICVM nº 527/12 | C37: 7404.8 | D37: 2059.5 | E37: 643.2 | F37: 640.0 | G37: 1013079 | H37: 748271 | I37: 570014 | J37: 706313 | K37: 465799 | L37: 621536 | M37: 609446 | N37: 609446 | O37: 609446 | P37: 609446 | Q37: 882100 | R37: 1320600 | S37: 1143424 | T37: 1113959 | U37: 963216 | V37: 1224575.228 | W37: 749158.8198 | X37: 963216 | Y37: 963216 | Z37: 1047801.599 | AA37: =SUM(AA15,AA17,AA18,AA19,AA21,AA22,AA31,AA32)+AA41 -> 802603 | AB37: 920165 | AC37: 1101048 | AD37: 950292 | AE37: 1979334 | AF37: 1137961.573
B38: Consolidated Profit/Loss for the Period before Non-Controlling Shareholder's Stake | C38: =SUM(C33:C34) -> 5132740 | D38: 1385460.391 | E38: 240408 | F38: 248066 | G38: 726586 | H38: 716969 | I38: 357391 | J38: 462681 | K38: 439419 | L38: 519960 | M38: =SUM(M33:M34) -> 522080 | N38: 880506 | O38: 495773 | P38: 3076042 | Q38: 584479 | R38: 853410.6767 | S38: 728426.5249 | T38: 871492.5308 | U38: 553169.7324 | V38: 713176.2636 | W38: 493003.8503 | X38: =SUM(X33:X34) -> 560440.8638 | Y38: =SUM(Y33:Y34) -> 755203.3763 | Z38: 613126.074 | AA38: =SUM(AA33:AA34) -> 486180.7779 | AB38: 1037851 | AC38: 655915 | AD38: 550502 | AE38: 1121345 | AF38: 1224969.813
B39: Non-Controlling Shareholder's Stake | C39: -17022 | D39: -19947.99431 | E39: -3460 | F39: -3285 | G39: -3419 | H39: -3413 | I39: -3879 | J39: -4367 | K39: -4342 | L39: -4232 | M39: -15497 | N39: -1667 | O39: -2143 | P39: -1840 | Q39: -1855 | R39: -3411 | S39: -5329 | T39: -8614.20326 | U39: -10096 | V39: -13471 | W39: -16066.7662 | X39: -17912.2338 | Y39: -6341 | Z39: -12269 | AA39: -16139 | AB39: -16496 | AC39: -12837 | AD39: -14062 | AE39: -14146 | AF39: -13270
B40: Consolidated Profit/Loss for the Period | C40: =SUM(C38:C39) -> 5115718 | D40: =SUM(D38:D39) -> 1365512.396 | E40: 236948 | F40: 244781 | G40: 723167 | H40: 713556 | I40: 353512 | J40: 458314 | K40: 435077 | L40: 515728 | M40: =SUM(M38:M39) -> 506583 | N40: 878839 | O40: 493630 | P40: 3074202 | Q40: 582624 | R40: 849999.6767 | S40: 723097.5249 | T40: 862878.3276 | U40: 543073.7324 | V40: 699705.2636 | W40: 476937.0841 | X40: =SUM(X38:X39) -> 542528.63 | Y40: =SUM(Y38:Y39) -> 748862.3763 | Z40: 600857.074 | AA40: =SUM(AA38:AA39) -> 470041.7779 | AB40: 1021355 | AC40: 643078 | AD40: 536440 | AE40: 1107199 | AF40: 1211699.813
B44: ESTADOS CONSOLIDADOS DE SITUACIÓN FINANCIERA IFRS- CTEEP
B45: Cifras expresadas en miles de reales
B47: Assets | C47: Consolidated
C48: 2016 | D48: 2017 | E48: 1Q18 | F48: 2Q18 | G48: 3Q18 | H48: 4Q18 | I48: 1Q19 | J48: 2Q19 | K48: 3Q19 | L48: 4Q19 | M48: 1Q20 | N48: 2Q20 | O48: 3Q20 | P48: 4Q20 | Q48: 1Q21 | R48: 2Q21 | S48: 3Q21 | T48: 4Q21 | U48: 1Q22 | V48: 2Q22 | W48: 3Q22 | X48: 4Q22 | Y48: 1Q23 | Z48: 2Q23 | AA48: =AA7 -> 3Q23 | AB48: 4Q23 | AC48: 1Q24 | AD48: 2Q24 | AE48: 3Q24 | AF48: 4Q24
B49: CURRENT
B50: Cash and cash equivalents | C50: 4524 | D50: 6585 | E50: 11749 | F50: 7059 | G50: 12736 | H50: 16740 | I50: 17968 | J50: 14039 | K50: 7110 | L50: 595971 | M50: 757278 | N50: 1320153 | O50: 799542 | P50: 2067337 | Q50: 853688 | R50: 1090994 | S50: 231326 | T50: 282632 | U50: 316445 | V50: 221490 | W50: 168236 | X50: 336523 | Y50: 1484897 | Z50: 724877 | AA50: 279053 | AB50: 245819 | AC50: 1266111 | AD50: 71491 | AE50: 63411 | AF50: 2914747
B51: Financial Investments | C51: 336138 | D51: 610066 | E51: 716226 | F51: 843828 | G51: 1591227 | H51: 680909 | I51: 1087284 | J51: 1330308 | K51: 1197427 | L51: 2068611 | M51: 511984 | N51: 565480 | O51: 541218 | P51: 453557 | Q51: 469733 | R51: 724512 | S51: 976131 | T51: 813634 | U51: 882793 | V51: 860842 | W51: 1185524 | X51: 907326 | Y51: 323338 | Z51: 737115 | AA51: 1577130 | AB51: 1526208 | AC51: 1479543 | AD51: 2548033 | AE51: 2448525 | AF51: 485995
B52: Concession Asset | C52: 1221016 | D52: 1924928 | E52: 1913172.718 | F52: 1916407 | G52: 2041938 | H52: 2086298 | I52: 1956862 | J52: 1983261 | K52: 2038412 | L52: 2061882 | M52: 2082903 | N52: 2598707 | O52: 2728926 | P52: 2804373 | Q52: 3057083 | R52: 1992387 | S52: 2203432 | T52: 2344141 | U52: 2481722 | V52: 2714897 | W52: 2905423 | X52: 3030059 | Y52: 3163797 | Z52: 3282217 | AA52: 3408653 | AB52: 3477877 | AC52: 3240632 | AD52: 3018457 | AE52: 3292885 | AF52: 3604640
B53: Inventories | C53: 37723 | D53: 37639 | E53: 38357 | F53: 35204 | G53: 34907 | H53: 39173 | I53: 37516 | J53: 34742 | K53: 34550 | L53: 103818 | M53: 63747 | N53: 34337 | O53: 41637 | P53: 45297 | Q53: 49717 | R53: 56604 | S53: 56578 | T53: 49817 | U53: 62340 | V53: 67483 | W53: 82896 | X53: 91236 | Y53: 93088 | Z53: 92273 | AA53: 103345 | AB53: 164941 | AC53: 106716 | AD53: 135191 | AE53: 99988 | AF53: 94384
B54: Taxes and contributions to compensate | C54: 8563 | D54: 14162 | E54: 132735 | F54: 216638 | G54: 315452 | H54: 29521 | I54: 84201 | J54: 169403 | K54: 215694 | L54: 32335 | M54: 43483 | N54: 84600 | O54: 210886 | P54: 28807 | Q54: 72195 | R54: 107737 | S54: 149271 | T54: 72150 | U54: 96648 | V54: 126437 | W54: 161365 | X54: 114235 | Y54: 138970 | Z54: 171914 | AA54: 230573 | AB54: 268730 | AC54: 303125 | AD54: 363886 | AE54: 437136 | AF54: 453046
B55: Derivative instruments | C55: 0 | D55: 2611 | E55: 0 | F55: 0 | G55: 0 | H55: 0 | I55: 0 | J55: 0 | K55: 67372 | L55: 19202 | M55: 228664 | N55: 255557 | O55: 14138 | P55: 9790 | Q55: 7507 | R55: 2259 | S55: 0 | T55: 200 | U55: 0 | V55: 0 | W55: 0 | X55: 816 | Y55: 0 | Z55: 0 | AA55: 0 | AB55: 0 | AC55: 121 | AD55: 2377 | AE55: 3678 | AF55: 41658
B56: Credits from Subsidiaries | C56: 0 | D56: 902.90506 | E56: 490.49569 | F56: 825 | G56: 423 | H56: 323 | I56: 4276 | J56: 9056 | K56: 9265 | L56: 703 | M56: 917 | N56: 1013 | O56: 580 | P56: 14994 | Q56: 14771 | R56: 15206 | S56: 9651 | T56: 78386 | U56: 78486 | V56: 78752 | W56: 78328 | X56: 89563 | Y56: 92044 | Z56: 112877 | AA56: 68834 | AB56: 107483 | AC56: 107810 | AD56: 71645 | AE56: 69722 | AF56: 142546.155
B57: Prepaid expenses | C57: 10303 | D57: 4607 | E57: 40927 | F57: 22245 | G57: 13145 | H57: 8384 | I57: 34841 | J57: 24862 | K57: 14657 | L57: 4677 | M57: 33212 | N57: 24292 | O57: 15324 | P57: 6400 | Q57: 36595 | R57: 28473 | S57: 18009 | T57: 11619 | U57: 43747 | V57: 38208 | W57: 20223 | X57: 6907 | Y57: 43208 | Z57: 31172 | AA57: 25142 | AB57: 12732 | AC57: 62059 | AD57: 38579 | AE57: 23806 | AF57: 19461
B58: Restricted Cash | C58: 0 | D58: 1141 | E58: 0 | F58: 0 | G58: 1211 | H58: 1787 | I58: 1814 | J58: 1833 | K58: 1862 | L58: 1876 | M58: 1887 | N58: 1894 | O58: 1892 | P58: 1808 | Q58: 3873 | R58: 3866 | S58: 3931 | T58: 3952 | U58: 4017 | V58: 4977 | W58: 2715 | X58: 2126 | Y58: 6199 | Z58: 6352 | AA58: 6519 | AB58: 6657 | AC58: 6846 | AD58: 0 | AE58: 0 | AF58: 0
B59: Advance to suppliers | U59: 34 | V59: 28 | W59: 56 | X59: 28 | Y59: 0 | Z59: 0 | AA59: 0 | AB59: 0 | AC59: 0 | AD59: 0 | AE59: 0 | AF59: 0
B60: Others | C60: 62077 | D60: 41067 | E60: 59156 | F60: 78695 | G60: 46824 | H60: 36509 | I60: 31529 | J60: 30564 | K60: 28009 | L60: 44373 | M60: 46416 | N60: 80603 | O60: 79333 | P60: 75495 | Q60: 66824 | R60: 81102 | S60: 90260 | T60: 91318 | U60: 88454 | V60: 106975 | W60: 131678 | X60: 91351 | Y60: 114986 | Z60: 126185 | AA60: 145255 | AB60: 167984 | AC60: 208306 | AD60: 245558 | AE60: 176350 | AF60: 182972
B61: TOTAL CURRENT ASSETS | C61: =SUM(C50:C60) -> 1680344 | D61: 2643708.905 | E61: 2912813.214 | F61: 3120901 | G61: 4057863 | H61: 2899644 | I61: 3256291 | J61: 3598068 | K61: 3614358 | L61: 4933448 | M61: 3770491 | N61: 4966636 | O61: 4433476 | P61: 5507858 | Q61: 4631986 | R61: 4103140 | S61: 3738589 | T61: 3747849 | U61: 4054686 | V61: 4220089 | W61: 4736444 | X61: =SUM(X50:X60) -> 4670170 | Y61: =SUM(Y50:Y60) -> 5460527 | Z61: =SUM(Z50:Z60) -> 5284982 | AA61: =SUM(AA50:AA60) -> 5844504 | AB61: 5978431 | AC61: 6781269 | AD61: 6495217 | AE61: 6615501 | AF61: 7939449.155
B62: NON-CURRENT
B63: Long-term Receivables
B64: Restricted Cash | C64: 0 | D64: 35674.21018 | E64: 41726 | F64: 42460 | G64: 43818 | H64: 42268 | I64: 44888 | J64: 47771 | K64: 47245 | L64: 46515 | M64: 46649 | N64: 46926 | O64: 46981 | P64: 46903 | Q64: 40249 | R64: 37057 | S64: 38409 | T64: 38968 | U64: 39521 | V64: 38263 | W64: 36716 | X64: 32173 | Y64: 19446 | Z64: 17853 | AA64: 18349 | AB64: 17578 | AC64: 17971 | AD64: 18445 | AE64: 20033 | AF64: 17862
B65: Concession Asset | C65: 10225808 | D65: 11213952 | E65: 11033751.79 | F65: 10865644 | G65: 11270412 | H65: 12047558 | I65: 12222686 | J65: 12500583 | K65: 12474048 | L65: 12599152 | M65: 12668940 | N65: 13075952 | O65: 13254427 | P65: 14167152 | Q65: 16221607 | R65: 17954227 | S65: 18477041 | T65: 19149637 | U65: 19704117 | V65: 20486333 | W65: 20666722 | X65: 20828913 | Y65: 21366576 | Z65: 21777199 | AA65: 22119334 | AB65: 22618926 | AC65: 23662679 | AD65: 24371255 | AE65: 26212666 | AF65: 27442183
B66: Amounts Receivable - Revenue Service | C66: 1150358 | D66: 1312791 | E66: 1363119 | F66: 1409142 | G66: 1425474 | H66: 1426083 | I66: 1426613 | J66: 1473391 | K66: 1518151 | L66: 1576332 | M66: 1620971 | N66: 1668555 | O66: 1724394 | P66: 1778999 | Q66: 1821503 | R66: 1868048 | S66: 1911094 | T66: 1967747 | U66: 2013021 | V66: 2065840 | W66: 2111534 | X66: 2175500 | Y66: 2219384 | Z66: 2260631 | AA66: 2314914 | AB66: 2371307 | AC66: 2414731 | AD66: 2461495 | AE66: 2509097 | AF66: 2564527
B67: Deferred Income Tax and Social Contribution | C67: 0 | D67: 0 | E67: 0 | F67: 0 | G67: 0 | H67: 9037 | I67: 7665 | J67: 11872 | K67: 7861 | L67: 1144 | M67: 0 | N67: 0 | O67: 0 | P67: 0 | Q67: 0 | R67: 0 | S67: 0 | T67: 0 | U67: 0 | V67: 0 | W67: 0 | X67: 0 | Y67: 0 | Z67: 0 | AA67: 0 | AC67: 0 | AD67: 0 | AE67: 0 | AF67: 0
B68: Pledges and Escrow | C68: 70175 | D68: 66414 | E68: 66571 | F68: 65070 | G68: 66816 | H68: 66987 | I68: 64874 | J68: 64007 | K68: 58867 | L68: 52886 | M68: 51597 | N68: 49133 | O68: 41575 | P68: 44119 | Q68: 47184 | R68: 45671 | S68: 45631 | T68: 46011 | U68: 46437 | V68: 43797 | W68: 42677 | X68: 41298 | Y68: 41756 | Z68: 41981 | AA68: 42460 | AB68: 42677 | AC68: 43067 | AD68: 42797 | AE68: 43275 | AF68: 0
B69: Inventories | C69: 32512 | D69: 37034 | E69: 22968 | F69: 18250 | G69: 18055 | H69: 13551 | I69: 11798 | J69: 11909 | K69: 14771 | L69: 13005 | M69: 23089 | N69: 16835 | O69: 11210 | P69: 9997 | Q69: 12634 | R69: 11168 | S69: 12995 | T69: 12114 | U69: 18605 | V69: 16223 | W69: 20681 | X69: 48280 | Y69: 54836 | Z69: 90803 | AA69: 129214 | AB69: 134930 | AC69: 153531 | AD69: 109024 | AE69: 140315 | AF69: 43650
B70: Employee benefits - actuarial surplus | C70: 0 | D70: 0 | E70: 0 | F70: 0 | G70: 0 | H70: 105444 | I70: 105444 | J70: 105444 | K70: 105444 | L70: 43024 | M70: 43024 | N70: 43024 | O70: 43024 | P70: 0 | Q70: 0 | R70: 0 | S70: 0 | T70: 0 | U70: 0 | V70: 0 | W70: 0 | X70: 0 | Y70: 0 | Z70: 0 | AA70: 0 | AB70: 0 | AC70: 0 | AD70: 0 | AE70: 0 | AF70: 140344
B71: Derivative instruments | C71: 0 | D71: 0 | E71: 0 | F71: 0 | G71: 11861 | H71: 2643 | I71: 10771 | J71: 0 | K71: 1962 | L71: 0 | M71: 3068 | N71: 3546 | O71: 4056 | P71: 226 | Q71: 18417 | R71: 403 | S71: 14360 | T71: 18250 | U71: 0 | V71: 2008 | W71: 0 | X71: 0 | Y71: 0 | Z71: 0 | AA71: 0 | AB71: 2615 | AC71: 72 | AD71: 52844 | AE71: 63134 | AF71: 0
B72: Other | C72: 13572 | D72: 1513 | E72: 1502 | F72: 12493 | G72: 12490 | H72: 25236 | I72: 26954 | J72: 28724 | K72: 32895 | L72: 24011 | M72: 25926 | N72: 108900 | O72: 108905 | P72: 110310 | Q72: 114129 | R72: 118801 | S72: 109649 | T72: 106982 | U72: 90063 | V72: 61751 | W72: 61742 | X72: 61733 | Y72: 60461 | Z72: 62303 | AA72: 42733 | AB72: 140385 | AC72: 128073 | AD72: 137141 | AE72: 137156 | AF72: 84715
B73: Investments | C73: 1826930 | D73: 1880845 | E73: 1915916 | F73: 1943473 | G73: 1944839 | H73: 1848092 | I73: 1917881 | J73: 1966285 | K73: 2037978 | L73: 2198004 | M73: 2360020 | N73: 2334045 | O73: 2384120 | P73: 2928478 | Q73: 3001178 | R73: 3124557 | S73: 3253229 | T73: 3299479 | U73: 3462388 | V73: 3686260 | W73: 3847568 | X73: 3794693 | Y73: 3942238 | Z73: 4053868 | AA73: 4083033 | AB73: 4022567 | AC73: 4172518 | AD73: 4278659 | AE73: 4320526 | AF73: 124936
B74: Property, Plant and Equipment | C74: 25457.257 | D74: 22879.43011 | E74: 23656 | F74: 22868 | G74: 23870 | H74: 25539 | I74: 45400 | J74: 73791 | K74: 75697 | L74: 86377 | M74: 93465 | N74: 92414 | O74: 91002 | P74: 92991 | Q74: 90195 | R74: 98435 | S74: 96878 | T74: 93265 | U74: 88965 | V74: 89864 | W74: 99988 | X74: 114932 | Y74: 116665 | Z74: 104361 | AA74: 103918 | AB74: 120104 | AC74: 127962 | AD74: 140128 | AE74: 142586 | AF74: 4354888
B75: Intangible Assets | C75: 41843.26682 | D75: 37361.56989 | E75: 35535 | F75: 34404 | G75: 31630 | H75: 30142 | I75: 28136 | J75: 26692 | K75: 25069 | L75: 25196 | M75: 24227 | N75: 25603 | O75: 25377 | P75: 24499 | Q75: 506317 | R75: 508024 | S75: 496021 | T75: 496437 | U75: 490592 | V75: 482673 | W75: 476745 | X75: 475858 | Y75: 467812 | Z75: 467236 | AA75: 464268 | AB75: 461636 | AC75: 454840 | AD75: 449185 | AE75: 443916 | AF75: 153613
B76: TOTAL NOT CURRENT ASSETS | C76: =SUM(C73:C75,C64:C72) -> 13386655.52 | D76: 14608464.21 | E76: 14504744.79 | F76: 14413804 | G76: 14849265 | H76: 15642580 | I76: 15913110 | J76: 16310469 | K76: 16399988 | L76: 16665646 | M76: 16960976 | N76: 17464933 | O76: 17735071 | P76: 19203674 | Q76: 21873413 | R76: 23766391 | S76: 24455307 | T76: =SUM(T73:T75,T63:T72) -> 25228890 | U76: 25953709 | V76: 26973012 | W76: 27364373 | X76: =SUM(X73:X75,X63:X72) -> 27573380 | Y76: =SUM(Y73:Y75,Y63:Y72) -> 28289174 | Z76: 28876235 | AA76: =SUM(AA73:AA75,AA64:AA72) -> 29318223 | AB76: 29932725 | AC76: 31175444 | AD76: 32060973 | AE76: 34032704 | AF76: 438465
B77: Total Assets | C77: =SUM(C76+C61) -> 15066999.52 | D77: 17252173.12 | E77: 17417558 | F77: 17534705 | G77: 18907128 | H77: 18542224 | I77: 19169401 | J77: 19908537 | K77: 20014346 | L77: 21599094 | M77: 20731467 | N77: 22431569 | O77: 22168547 | P77: 24711532 | Q77: 26505399 | R77: 27869531 | S77: 28193896 | T77: =SUM(T76+T61) -> 28976739 | U77: 30008395 | V77: 31193101 | W77: 32100817 | X77: =SUM(X76+X61) -> 32243550 | Y77: =SUM(Y76+Y61) -> 33749701 | Z77: 34161217 | AA77: =SUM(AA76+AA61) -> 35162727 | AB77: 35911156 | AC77: 37956713 | AD77: 38556190 | AE77: 40648205 | AF77: 35365183
AF78: 43304632.15
B79: Liabilities and Shareholders' Equity
B80: (BRL thousand) | V80: 0
B81: CURRENT
B82: Loans and financing | C82: 71679 | D82: 268588 | E82: 261786 | F82: 287106 | G82: 98254 | H82: 334067 | I82: 344159 | J82: 337582 | K82: 981588 | L82: 709928 | M82: 886355 | N82: 919444 | O82: 96334 | P82: 94628 | Q82: 461788 | R82: 1113809 | S82: 737590 | T82: 741848 | U82: 751685 | V82: 90627 | W82: 90437 | X82: 0 | Y82: 0 | AA82: 0 | AE82: 0
B83: Debentures | C83: 192368 | D83: 182852 | E83: 183773 | F83: 183474 | G83: 197107 | H83: 23707 | I83: 22436 | J83: 15931 | K83: 26097 | L83: 367508 | M83: 371913 | N83: 363141 | O83: 542316 | P83: 217948 | Q83: 245489 | R83: 242011 | S83: 96144 | T83: 59341 | U83: 108342 | V83: 79687 | W83: 178054 | X83: 78060 | Y83: 76659 | Z83: 1598935 | AA83: 1656574 | AB83: 75811 | AC83: 75449 | AD83: 80255 | AE83: 81455 | AF83: 82056
B84: Leasing | C84: 0 | D84: 0 | E84: 0 | F84: 0 | G84: 0 | H84: 0 | I84: 0 | J84: 7693 | K84: 0 | L84: 9948 | M84: 0 | N84: 0 | O84: 10601 | P84: 8795 | Q84: 7816 | R84: 11139 | S84: 12359 | T84: 11911 | U84: 11703 | V84: 12875 | W84: 13896 | X84: 88833 | Y84: 577160 | Z84: 515516 | AA84: 596288 | AB84: 570815 | AC84: 238598 | AD84: 1069225 | AE84: 1161925 | AF84: 1109914
B85: Derivative instruments | C85: 0 | D85: 0 | E85: 0 | F85: 0 | G85: 0 | H85: 0 | I85: 10565 | J85: 0 | K85: 9772 | L85: 0 | M85: 9456 | N85: 11179 | O85: 0 | P85: 0 | Q85: 0 | R85: 0 | S85: 0 | T85: 1931 | U85: 18142 | V85: 4263 | W85: 10 | X85: 14124 | Y85: 13930 | Z85: 9387 | AA85: 7835 | AB85: 6268 | AC85: 8929 | AD85: 15333 | AE85: 13526 | AF85: 12020
B86: Suppliers | C86: 41482 | D86: 69923 | E86: 49255 | F86: 58806 | G86: 68022 | H86: 88358 | I86: 72276 | J86: 70721 | K86: 72057 | L86: 167774 | M86: 167858 | N86: 139217 | O86: 112304 | P86: 153346 | Q86: 100371 | R86: 90525 | S86: 70097 | T86: 83666 | U86: 83243 | V86: 86641 | W86: 144466 | X86: 0 | Y86: 378 | Z86: 4076 | AA86: 11518 | AB86: 25926 | AC86: 24423 | AD86: 13050 | AE86: 10783 | AF86: 0
B87: Taxes and Social Charges Payable | C87: 30053 | D87: 90502 | E87: 224543 | F87: 389278 | G87: 540175 | H87: 54382 | I87: 163259 | J87: 293111 | K87: 287386 | L87: 92106 | M87: 127657 | N87: 262320 | O87: 478040 | P87: 255614 | Q87: 268737 | R87: 394093 | S87: 483446 | T87: 61025 | U87: 94811 | V87: 108631 | W87: 255968 | X87: 111557 | Y87: 95999 | Z87: 152950 | AA87: 147957 | AB87: 177986 | AC87: 264376 | AD87: 151471 | AE87: 188555 | AF87: 182169.155
B88: Tax Installments | C88: 17540 | D88: 57997 | E88: 0 | F88: 0 | G88: 0 | H88: 0 | I88: 0 | J88: 0 | K88: 0 | L88: 0 | M88: 0 | N88: 0 | O88: 0 | P88: 0 | Q88: 0 | R88: 0 | S88: 0 | T88: 0 | U88: 0 | V88: 0 | W88: 0 | X88: 197315 | Y88: 189669 | Z88: 290418 | AA88: 484779 | AB88: 115139 | AC88: 278984 | AD88: 440573 | AE88: 557232 | AF88: 139146
B89: Regulatory Charges Payable | C89: 12751 | D89: 16550 | E89: 32399 | F89: 39059 | G89: 39260 | H89: 40262 | I89: 39302 | J89: 44878 | K89: 45687 | L89: 48336 | M89: 48970 | N89: 52653 | O89: 52518 | P89: 49457 | Q89: 44836 | R89: 34900 | S89: 48778 | T89: 60851 | U89: 65207 | V89: 77913 | W89: 78654 | X89: 0 | Y89: 0 | AA89: 0 | AB89: 0 | AC89: 0 | AD89: 0 | AE89: 0 | AF89: 0
B90: Income taxes and social contribution | P90: 0 | Q90: 67260 | R90: 0 | S90: 0 | T90: 0 | U90: 0 | V90: 0 | W90: 0 | X90: 63287 | Y90: 69876 | Z90: 60026 | AA90: 55248 | AB90: 53071 | AC90: 66598 | AD90: 57766 | AE90: 63588 | AF90: 64270
B91: Interest on Shareholders' Equity/Dividends payable | C91: 139946 | D91: 3112 | E91: 3111 | F91: 5159 | G91: 5137 | H91: 7835 | I91: 7831 | J91: 7798 | K91: 8411 | L91: 102079 | M91: 9731 | N91: 10102 | O91: 10406 | P91: 500513 | Q91: 1068548 | R91: 16236 | S91: 13467 | T91: 110543 | U91: 12828 | V91: 16217 | W91: 16212 | X91: 0 | Y91: 0 | AA91: 0 | AB91: 0 | AC91: 0 | AE91: 0 | AF91: 0
B92: Labor obligations | C92: 33610 | D92: 36344 | E92: 29714 | F92: 40457 | G92: 42515 | H92: 37047 | I92: 29156 | J92: 38239 | K92: 41182 | L92: 33341 | M92: 26512 | N92: 37797 | O92: 48833 | P92: 45094 | Q92: 36212 | R92: 45062 | S92: 50475 | T92: 46507 | U92: 36651 | V92: 47483 | W92: 53028 | X92: 611207 | Y92: 611181 | Z92: 13461 | AA92: 13454 | AB92: 1247850 | AC92: 1111322 | AD92: 17296 | AE92: 9439 | AF92: 1329622
B93: Amounts Payable - Fundação CESP | C93: 5495 | D93: 2056 | E93: 3309 | F93: 4655 | G93: 3579 | H93: 4250 | I93: 5103 | J93: 4157 | K93: 3782 | L93: 2173 | M93: 2176 | N93: 2730 | O93: 868 | P93: 871 | Q93: 855 | R93: 858 | S93: 858 | T93: 858 | U93: 939 | V93: 947 | W93: 947 | X93: 53810 | Y93: 40440 | Z93: 56625 | AA93: 63271 | AB93: 63940 | AC93: 50003 | AD93: 67624 | AE93: 74655 | AF93: 71658
B94: Special obligations - Reversal/Amortization | C94: 0 | D94: 0 | E94: 0 | F94: 0 | G94: 1860 | H94: 2480 | I94: 2480 | J94: 2480 | K94: 2480 | L94: 2480 | M94: 2480 | N94: 2480 | O94: 2480 | P94: 2480 | Q94: 2480 | R94: 2480 | S94: 2480 | T94: 0 | U94: 2480 | V94: 2480 | W94: 2480 | X94: 823 | Y94: 823 | Z94: 698 | AA94: 698 | AB94: 731 | AC94: 731 | AD94: 702 | AE94: 709 | AF94: 351
B95: Other | C95: 53047 | D95: 61180 | E95: 57876.32818 | F95: 16385 | G95: 13852 | H95: 34310 | I95: 27472 | J95: 56345 | K95: 70150 | L95: 80152 | M95: 55374 | N95: 34641 | O95: 45567 | P95: 43751 | Q95: 56930 | R95: 51770 | S95: 54165 | T95: 50713 | U95: 46184 | V95: 35593 | W95: 60587 | X95: 74331 | Y95: 56511 | Z95: 41257 | AA95: 33116 | AB95: 107199 | AC95: 84476 | AD95: 55843 | AE95: 57073 | AF95: 273612
C96: =SUM(C82:C95) -> 597971 | D96: =SUM(D82:D95) -> 789104 | E96: =SUM(E82:E95) -> 845766.3282 | F96: 1024379 | G96: 1009761 | H96: 626698 | I96: 724039 | J96: 878935 | K96: =SUM(K82:K95) -> 1548592 | L96: 1615825 | M96: 1708482 | N96: =SUM(N82:N95) -> 1835704 | O96: 1400267 | P96: 1372497 | Q96: 2361322 | R96: 2002883 | S96: 1569859 | T96: 1229194 | U96: 1232215 | V96: 563357 | W96: 894739 | X96: =SUM(X82:X95) -> 1293347 | Y96: =SUM(Y82:Y95) -> 1732626 | Z96: =SUM(Z82:Z95) -> 2743349 | AA96: =SUM(AA82:AA95) -> 3070738 | AB96: 2444736 | AC96: 2203889 | AD96: 1969138 | AE96: 2218940 | AF96: 3264818.155
B97: NON-CURRENT | W97: 0
B98: Loans and financing | C98: 432472 | D98: 690541 | E98: 677182 | F98: 657248 | G98: 1258364 | H98: 1215689 | I98: 1273554 | J98: 1264267 | K98: 660197 | L98: 637448 | M98: 620011 | N98: 1248161 | O98: 1228231 | P98: 1208301 | Q98: 1182886 | R98: 1722627 | S98: 1721742 | T98: 1728681 | U98: 1953199 | V98: 1985056 | W98: 2013726 | X98: 2012601 | Y98: 2046998 | Z98: 565503 | AA98: 648252 | AB98: 633914 | AC98: 620773 | AD98: 681995 | AE98: 666069 | AF98: 651766
B99: Debentures | C99: 313931 | D99: 801007 | E99: 806204 | F99: 1420052 | G99: 1437775 | H99: 1441504 | I99: 1457692 | J99: 1475140 | K99: 1480445 | L99: 1528971 | M99: 1554166 | N99: 1545549 | O99: 1392099 | P99: 2961318 | Q99: 3664357 | R99: 3707753 | S99: 3788738 | T99: 4829761 | U99: 4938992 | V99: 5783645 | W99: 5777900 | X99: 5805235 | Y99: 6040108 | Z99: 6119491 | AA99: 6141700 | AB99: 7959755 | AC99: 9399773 | AD99: 9575897 | AE99: 9591930 | AF99: 11392559
B100: Leasing | C100: 0 | D100: 0 | E100: 0 | F100: 0 | G100: 0 | H100: 0 | I100: 0 | J100: 42872 | K100: 42449 | L100: 39948 | M100: 47616 | N100: 45547 | O100: 46627 | P100: 44742 | Q100: 42856 | R100: 49135 | S100: 47902 | T100: 45005 | U100: 42927 | V100: 39980 | W100: 45951 | X100: 42844 | Y100: 39454 | Z100: 24179 | AA100: 23148 | AB100: 22102 | AC100: 28423 | AD100: 30137 | AE100: 27559 | AF100: 25489
B101: Derivative instruments | C101: 0 | D101: 0 | E101: 0 | F101: 0 | G101: 0 | H101: 0 | I101: 9984 | J101: 2760 | K101: 0 | L101: 135 | M101: 0 | N101: 0 | O101: 0 | P101: 0 | Q101: 0 | R101: 0 | S101: 0 | T101: 0 | U101: 6561 | V101: 0 | W101: 1908 | X101: 4117 | Y101: 9655 | Z101: 20662 | AA101: 13642 | AB101: 880 | AC101: 0 | AD101: 0 | AE101: 0 | AF101: 0
B102: Suppliers | P102: 0 | Q102: 0 | R102: 14535 | S102: 32213 | T102: 6336 | U102: 6323 | V102: 6308 | W102: 6308 | X102: 6056 | Y102: 6024 | Z102: 5816 | AA102: 6225 | AB102: 1746 | AC102: 0 | AD102: 1679 | AE102: 1393 | AF102: 1393
B103: Provision for Contingencies | U103: 125711 | V103: 123481 | W103: 122579 | X103: 140759 | Y103: 139380 | Z103: 120978 | AA103: 119901 | AB103: 129803 | AC103: 131022 | AD103: 130980 | AE103: 123097 | AF103: 197271
B104: Benefit to employess - Actuarial Deficit | L104: 0 | M104: 0 | N104: 0 | O104: 0 | P104: 381977 | Q104: 394078 | R104: 406048 | S104: 417940 | T104: 465454 | U104: 481625 | V104: 497352 | W104: 512205 | X104: 153836 | Y104: 156332 | Z104: 156140 | AA104: 153379 | AB104: 401059 | AC104: 403018 | AD104: 405193 | AE104: 410313 | AF104: 0
B105: Tax Installments | C105: 119857 | D105: 0 | E105: 0 | F105: 0 | G105: 102672 | H105: 0 | I105: 0 | J105: 0 | K105: 0 | L105: 0 | M105: 0 | N105: 0 | O105: 0 | P105: 0 | Q105: 0 | R105: 0 | S105: 0 | T105: 0 | U105: 0 | V105: 0 | W105: 0 | X105: 0 | Y105: 0 | Z105: 0 | AA105: 0 | AB105: 0 | AC105: 0 | AD105: 0 | AE105: 0 | AF105: 0
B106: Deferred PIS and Cofins | C106: 989445 | D106: 1147381 | E106: 1124479 | F106: 1104911 | G106: 2343209 | H106: 1176566 | I106: 1177627 | J106: 1197183 | K106: 1192371 | L106: 1185323 | M106: 1179839 | N106: 1264433 | O106: 1256820 | P106: 1318796 | Q106: 1527911 | R106: 1578813 | S106: 1635997 | T106: 1694586 | U106: 1743514 | V106: 1812416 | W106: 1828249 | X106: 1849888 | Y106: 1902182 | Z106: 1944593 | AA106: 1989623 | AB106: 2034661 | AC106: 2148182 | AD106: 2186221 | AE106: 2369875 | AF106: 2493513
B107: Deferred Income Tax and Social Contribution | C107: 2106603 | D107: 2418125 | E107: 2347207 | F107: 2283080 | G107: 1125728 | H107: 2603438 | I107: 2638945 | J107: 2699617 | K107: 2686190 | L107: 2673970 | M107: 2742928 | N107: 3012528 | O107: 2951233 | P107: 2955826 | Q107: 3439088 | R107: 3687902 | S107: 3841197 | T107: 3987167 | U107: 4114555 | V107: 4295897 | W107: 4273008 | X107: 4357908 | Y107: 4445113 | Z107: 4503307 | AA107: 4475010 | AB107: 4436717 | AC107: 4446645 | AD107: 4442999 | AE107: 4979572 | AF107: 5175168
B108: Regulatory Charges Payable | C108: 32509 | D108: 54250 | E108: 40848 | F108: 42962 | G108: 20333 | H108: 35925 | I108: 39380 | J108: 37756 | K108: 41836 | L108: 41236 | M108: 34179 | N108: 40742 | O108: 42419 | P108: 48065 | Q108: 50331 | R108: 50036 | S108: 35141 | T108: 37211 | U108: 22461 | V108: 20532 | W108: 24671 | X108: 28142 | Y108: 31151 | Z108: 31283 | AA108: 37010 | AB108: 38163 | AC108: 38158 | AD108: 38473 | AE108: 30568 | AF108: 30763
B109: Provisions | C109: 153035 | D109: 121553 | E109: 125321 | F109: 113686 | G109: 34827 | H109: 90708 | I109: 91036 | J109: 92755 | K109: 86780 | L109: 62367 | M109: 59509 | N109: 58816 | O109: 83168 | P109: 88682 | Q109: 128730 | R109: 119037 | S109: 116588 | T109: 124758 | U109: 0 | V109: 0 | W109: 0 | X109: 0 | Y109: 0 | Z109: 0 | AA109: 0 | AB109: 0 | AC109: 0 | AD109: 0 | AE109: 0 | AF109: 0
B110: Global Reversal Reserve - RGR | C110: 0 | D110: 24053 | E110: 0 | F110: 0 | G110: 0 | H110: 19093 | I110: 18473 | J110: 17853 | K110: 17232 | L110: 16612 | M110: 15992 | N110: 15372 | O110: 14752 | P110: 14132 | Q110: 13512 | R110: 12892 | S110: 12272 | T110: 0 | U110: 0 | V110: 0 | W110: 0 | X110: 0 | Y110: 0 | Z110: 0 | AA110: 0 | AB110: 0 | AC110: 0 | AD110: 0 | AE110: 0 | AF110: 0
B111: Other | C111: 24053 | D111: 6503 | E111: 27454.67182 | F111: 53841 | G111: 34532 | H111: 33078 | I111: 33602 | J111: 34572 | K111: 35152 | L111: 35652 | M111: 46714 | N111: 48201 | O111: 93739 | P111: 77624 | Q111: 36621 | R111: 37118 | S111: 41193 | T111: 35851 | U111: 33982 | V111: 29540 | W111: 26750 | X111: 12337 | Y111: 2453 | Z111: 3209 | AA111: 3209 | AB111: 15908 | AC111: 12373 | AD111: 534 | AE111: 663 | AF111: 610
B112: Total long-term liabilities | C112: =SUM(C98:C111) -> 4171905 | D112: =SUM(D98:D111) -> 5263413 | E112: =SUM(E98:E111) -> 5148695.672 | F112: 5675780 | G112: 6357440 | H112: 6616001 | I112: 6740293 | J112: 6864775 | K112: =SUM(K98:K111) -> 6242652 | L112: 6221662 | M112: 6300954 | N112: =SUM(N98:N111) -> 7279349 | O112: 7109088 | P112: 9099463 | Q112: 10480370 | R112: 11385896 | S112: 11690923 | T112: 12954810 | U112: 13469850 | V112: 14594207 | W112: 14633255 | X112: =SUM(X98:X111) -> 14413723 | Y112: =SUM(Y98:Y111) -> 14818850 | Z112: 13495161 | AA112: =SUM(AA98:AA111) -> 13611099 | AB112: 15674708 | AC112: 17228367 | AD112: 17494108 | AE112: 18201039 | AF112: 19968532
B114: Non-Controlling Shareholder's Stake | C114: 178733 | D114: 214939 | E114: 201431 | F114: 212706 | G114: 226286 | H114: 230878 | I114: 282713 | J114: 287177 | K114: 273453 | L114: 1967288 | M114: 502442 | N114: 369210 | O114: 327872 | P114: 0 | Q114: 0 | R114: 0 | S114: 0 | T114: 0
B116: NET EQUITY
B117: Shareholders' Equity | C117: 2372437 | D117: 3590020 | E117: 3590020 | F117: 3590020 | G117: 3590020 | H117: 3590020 | I117: 3590020 | J117: 3590020 | K117: 3590020 | L117: 3590020 | M117: 3590020 | N117: 3590020 | O117: 3590020 | P117: 3590020 | Q117: 3590020 | R117: 3590020 | S117: 3590020 | T117: 3590020 | U117: 3590020 | V117: 3590020 | W117: 3590020 | X117: 0 | Y117: 0 | Z117: 0 | AA117: 0 | AB117: 0 | AC117: 0 | AD117: 3590020 | AE117: 3590020 | AF117: 3590020
B118: Capital Reserves | C118: 1217583 | D118: 666 | E118: 666 | F118: 666 | G118: 666 | H118: 666 | I118: 666 | J118: 666 | K118: 666 | L118: 666 | M118: 666 | N118: 666 | O118: 666 | P118: 666 | Q118: 666 | R118: 666 | S118: 666 | T118: 666 | U118: 666 | V118: 666 | W118: 666 | X118: 3590020 | Y118: 3590020 | Z118: 3590020 | AA118: 3590020 | AB118: 3590020 | AC118: 3590020 | AD118: 666 | AE118: 666 | AF118: 666
B119: Profits Reserve | C119: 6527704 | D119: 7394031 | E119: 7394031 | F119: 6549032 | G119: 6549032 | H119: 7404769 | I119: 7404769 | J119: 7404769 | K119: 7404769 | L119: 8172442 | M119: 8172442 | N119: 8172442 | O119: 8172442 | P119: 9863692 | Q119: 9332529 | R119: 9332529 | S119: 9332529 | T119: 11045897 | U119: 11588971 | V119: 12288676 | W119: 12765613 | X119: 666 | Y119: 666 | Z119: 666 | AA119: 666 | AB119: 666 | AC119: 666 | AD119: 15176635 | AE119: 16291684 | AF119: 15950329
B120: Actuarial Surplus | L120: 0 | P120: -364659 | Q120: -364659 | R120: -240676 | S120: -240676 | T120: 0 | U120: -283180 | V120: -277910 | W120: -282626 | X120: 12608141 | Y120: 13357003 | Z120: 13957861 | AA120: 14427903 | AB120: 13997026 | AC120: 14640103 | AD120: 0 | AE120: 0 | AF120: 0
B121: Other comprehensive results | C121: 0 | D121: 0 | E121: 236948 | F121: 482122 | G121: 1173923 | H121: 73192 | I121: 73389 | J121: 70369 | K121: 77405 | L121: 31191 | M121: 63630 | N121: 62841 | O121: 53225 | P121: 140114 | Q121: 166601 | R121: 17481 | S121: 32052 | T121: -237377 | U121: 0 | V121: 0 | W121: 0 | X121: -21376 | Y121: 0 | Z121: 0 | AA121: 0 | AB121: 0 | AC121: 0 | AD121: -162743 | AE121: -157642 | AF121: 173566
B122: Accumulated Profits and Losses | P122: 114129 | Q122: 582624 | R122: 1432623 | S122: 1828402 | T122: 0 | U122: 0 | V122: 0 | W122: 0 | X122: 0 | Y122: -27626 | Z122: -41961 | AA122: -41358 | AB122: -207572 | AC122: -214592 | AD122: 0 | AE122: 0 | AF122: 0
B123: Additional proposed dividends | C123: 0 | D123: 0 | E123: 0 | F123: 0 | G123: 0 | H123: 0 | I123: 353512 | J123: 811826 | K123: 876789 | L123: 0 | M123: 392831 | N123: 1121337 | O123: 1514967 | P123: 524450 | Q123: 0 | R123: 0 | S123: 0 | T123: 0 | U123: 0 | V123: 0 | W123: 0 | X123: 0 | Y123: 0 | Z123: 0 | AA123: 0 | AB123: 0 | AC123: 0 | AD123: 0 | AE123: 0 | AF123: 0
B124: Total Net Equity | C124: =SUM(C114:C123) -> 10296457 | D124: 11199656 | E124: 11423096 | F124: 10834546 | G124: 11539927 | H124: 11299525 | I124: 11705069 | J124: 12164827 | K124: 12223102 | L124: =SUM(L117:L123) -> 11794319 | M124: =SUM(M114:M123) -> 12722031 | N124: =SUM(N114:N123) -> 13316516 | O124: =SUM(O114:O123) -> 13659192 | P124: =SUM(P117:P123) -> 13868412 | Q124: =SUM(Q117:Q123) -> 13307781 | R124: =SUM(R117:R123) -> 14132643 | S124: =SUM(S117:S123) -> 14542993 | T124: 14399206 | U124: 14896477 | V124: 15601452 | W124: 16073673 | X124: =SUM(X117:X123) -> 16177451 | Y124: =SUM(Y117:Y123) -> 16920063 | Z124: 17506586 | AA124: =SUM(AA117:AA123) -> 17977231 | AB124: 17380140 | AC124: 18016197 | AD124: 18604578 | AE124: 19724728 | AF124: 19714581
B125: Non-controlling shareholders' share of investment funds | L125: 1967288 | P125: 371159 | Q125: 355926 | R125: 348109 | S125: 390121 | T125: 393529 | U125: 409853 | V125: 434085 | W125: 499150 | X125: 359029 | Y125: 278162 | Z125: 416121 | AA125: 503659 | AB125: 411572 | AC125: 508260 | AD125: 488366 | AE125: 503498 | AF125: 356701
B126: Total Liabilities and Shareholders' Equity | C126: =SUM(C124+C112+C96) -> 15066333 | D126: 17252173 | E126: 17417558 | F126: 17534705 | G126: 18907128 | H126: 18542224 | I126: 19169401 | J126: 19908537 | K126: 20014346 | L126: =SUM(L124+L112+L96+L125) -> 21599094 | M126: =SUM(M124+M112+M96) -> 20731467 | N126: =SUM(N124+N112+N96) -> 22431569 | O126: =SUM(O124+O112+O96) -> 22168547 | P126: =SUM(P124+P112+P96+P125) -> 24711531 | Q126: =SUM(Q124+Q112+Q96+Q125) -> 26505399 | R126: =SUM(R124+R112+R96+R125) -> 27869531 | S126: =SUM(S124+S112+S96+S125) -> 28193896 | T126: 28976739 | U126: 30008395 | V126: 31193101 | W126: 32100817 | X126: =SUM(X124+X112+X96+X125) -> 32243550 | Y126: =SUM(Y124+Y112+Y96+Y125) -> 33749701 | Z126: 34161217 | AA126: =SUM(AA124+AA112+AA96+AA125) -> 35162727 | AB126: 35911156 | AC126: 37956713 | AD126: 38556190 | AE126: 40648205 | AF126: 43304632.15
C127: =+C126-C77 -> -666.52382 | D127: =+D126-D77 -> -0.1152400002 | E127: 0 | F127: 0 | G127: 0 | H127: 0 | I127: 0 | J127: 0 | K127: 0 | L127: 0 | M127: 0 | N127: 0 | O127: 0 | P127: -1 | Q127: 0 | R127: 0 | X127: =X126-X77 -> 0
B129: ESTADOS DE RESULTADOS CONSOLIDADO REGULATORIO - CTEEP
B130: Cifras expresadas en miles de reales
B132: Result (BRL thousand) | C132: Consolidated
C133: 2016 | D133: 2017 | E133: 1Q18 | F133: 2Q18 | G133: 3Q18 | H133: 4Q18 | I133: 1Q19 | J133: 2Q19 | K133: 3Q19 | L133: 4Q19 | M133: 1Q20 | N133: 2Q20 | O133: 3Q20 | P133: 4Q20 | Q133: 1Q21 | R133: 2Q21 | S133: 3Q21 | T133: 4Q21 | U133: 1Q22 | V133: 2Q22 | W133: 3Q22 | X133: 4Q22 | Y133: 1Q23 | Z133: 2Q23 | AA133: =AA7 -> 3Q23 | AB133: 4Q23 | AC133: 1Q24 | AD133: 2Q24 | AE133: 3Q24 | AF133: 4Q24
B134: Gross Revenue | C134: 1099482.879 | D134: 2039364 | E134: =SUM(E135:E136) -> 834640 | F134: 844171 | G134: 716485 | H134: 808236 | I134: 806853 | J134: 807586 | K134: 782483 | L134: 852480 | M134: 851478 | N134: 1700533 | O134: =SUM(O135:O136) -> 956151 | P134: =P135+P136 -> 989357 | Q134: =Q135+Q136 -> 1000176 | R134: 922052.0623 | S134: =S135+S136 -> 913149.2384 | T134: =T135+T136 -> 829950 | U134: 843349 | V134: 894435 | W134: 1106247 | X134: =SUM(X135:X136) -> 1072375 | Y134: =SUM(Y135:Y136) -> 1032113 | Z134: 1031340 | AA134: =SUM(AA135:AA136) -> 1251718 | AB134: 1272147 | AC134: 1281068 | AD134: 1271772 | AE134: 1351133 | AF134: 1328559
B135: Availability of Electric Network | C135: 1076083 | D135: 2013296 | E135: 827908 | F135: 837376 | G135: 709948 | H135: 801395 | I135: 799831 | J135: 800431 | K135: 772603 | L135: 844689 | M135: 843778 | N135: 1693051 | O135: 944448 | P135: 970710 | Q135: 991025 | R135: 898410 | S135: 896986 | T135: 820516 | U135: 838279 | V135: 886683 | W135: 1095571 | X135: 1062857 | Y135: 1021616 | Z135: 1021082 | AA135: 1239253 | AB135: 1257910 | AC135: 1271020 | AD135: 1260536 | AE135: 1333644 | AF135: 1314522
B136: Others | C136: 23399.87901 | D136: 26068 | E136: 6732 | F136: 6795 | G136: 6537 | H136: 6841 | I136: 7022 | J136: 7155 | K136: 9880 | L136: 7791 | M136: 7700 | N136: 7482 | O136: 11703 | P136: 18647 | Q136: 9151 | R136: 23642.06234 | S136: 16163.23844 | T136: 9434 | U136: 5070 | V136: 7752 | W136: 10676 | X136: 9518 | Y136: 10497 | Z136: 10258 | AA136: 12465 | AB136: 14237 | AC136: 10048 | AD136: 11236 | AE136: 17489 | AF136: 14037
B137: Deductions from the Operational Revenue | C137: -148298 | D137: -261532 | E137: -102316 | F137: -104763 | G137: -110622 | H137: -118540 | I137: -112689 | J137: -115180 | K137: -123950 | L137: -123020 | M137: -117137 | N137: -203946 | O137: -134892 | P137: -150363 | Q137: -147343 | R137: -129734 | S137: -154770 | T137: -165237 | U137: -127927 | V137: -165237 | W137: -186991 | X137: -181184 | Y137: -140498 | Z137: -139624 | AA137: -159260 | AB137: -162550 | AC137: -172929 | AD137: -159387 | AE137: -171191 | AF137: -171979
B138: Net Revenue | C138: =SUM(C135:C137) -> 951184.879 | D138: =SUM(D135:D137) -> 1777832 | E138: =SUM(E135:E137) -> 732324 | F138: 739408 | G138: 605863 | H138: 689696 | I138: 694164 | J138: 692406 | K138: 658533 | L138: 729460 | M138: 734341 | N138: 1496587 | O138: 821259 | P138: 838994 | Q138: =SUM(Q135:Q137) -> 852833 | R138: =SUM(R135:R137) -> 792318.0623 | S138: =SUM(S135:S137) -> 758379.2384 | T138: =SUM(T135:T137) -> 664713 | U138: 715422 | V138: 729198 | W138: 919256 | X138: =SUM(X135:X137) -> 891191 | Y138: =SUM(Y135:Y137) -> 891615 | Z138: 891716 | AA138: =SUM(AA135:AA137) -> 1092458 | AB138: 1109597 | AC138: 1108139 | AD138: 1112385 | AE138: 1179942 | AF138: 1156580
B139: Cost and Operational Expenses | C139: =SUM(C140:C144) -> -528915.879 | D139: =SUM(D140:D144) -> -811211 | E139: =SUM(E140:E144) -> -259669 | F139: -266599.7091 | G139: -265301.6878 | H139: =SUM(H140:H144) -> -310723 | I139: -275211 | J139: -315199 | K139: -293376 | L139: -274963 | M139: =SUM(M140:M144) -> -270109 | N139: -266759 | O139: -279007 | P139: -335923 | Q139: =SUM(Q140:Q144) -> -279729 | R139: =SUM(R140:R144) -> -298611.7554 | S139: =SUM(S140:S144) -> -297045.5454 | T139: =SUM(T140:T144) -> -336565 | U139: -308650 | V139: -309209 | W139: -319621 | X139: =SUM(X140:X144) -> -391330 | Y139: =SUM(Y140:Y144) -> -332649 | Z139: -339705 | AA139: =SUM(AA140:AA144) -> -351666 | AB139: -400872 | AC139: -358673 | AD139: -383688 | AE139: -449734 | AF139: -544199.2402
B140: Personnel | C140: -275181 | D140: -302269 | E140: -77724 | F140: -79437.08491 | G140: -79695.63591 | H140: -84104 | I140: -83116 | J140: -86108 | K140: -87512 | L140: -79759 | M140: -74866 | N140: -75789 | O140: -79077 | P140: -96909 | Q140: -91145 | R140: -94312.44098 | S140: -95299.55902 | T140: -99790 | U140: -98621 | V140: -96848 | W140: -92294 | X140: -117725 | Y140: -92209 | Z140: -102392 | AA140: -102278 | AB140: -112896 | AC140: -109604 | AD140: -112506 | AE140: -114023 | AF140: -123835.7723
B141: Material | C141: -13746 | D141: -13602 | E141: -3016 | F141: -3361.64493 | G141: -3472.1449 | H141: -5460 | I141: -3151 | J141: -3661 | K141: -3935 | L141: -3392 | M141: -3005 | N141: -3973 | O141: -4052 | P141: -7293 | Q141: -3689 | R141: -5354 | S141: -3848 | T141: -6073 | U141: -4403 | V141: -5419 | W141: -5424 | X141: -8377 | Y141: -5452 | Z141: -5709 | AA141: -5979 | AB141: -8530 | AC141: -3660 | AD141: -7752 | AE141: -7356 | AF141: -7724.56083
B142: Services | C142: -124276.879 | D142: -129992 | E142: -27374 | F142: -28499.90866 | G142: -30424.87322 | H142: -50225 | I142: -26995 | J142: -60163 | K142: -38649 | L142: -36223 | M142: -30082 | N142: -26967 | O142: -31328 | P142: -52321 | Q142: -30613 | R142: -32042.27139 | S142: -33149.02939 | T142: -58873 | U142: -34775 | V142: -39454 | W142: -44017 | X142: -72721 | Y142: -43681 | Z142: -44615 | AA142: -55311 | AB142: -78372 | AC142: -43523 | AD142: -53640 | AE142: -52292 | AF142: -74230.00944
B143: Depreciation | C143: 0 | D143: -328174 | E143: -145819 | F143: -144676.1316 | G143: -143519.279 | H143: -144958 | I143: -144967 | J143: -144568 | K143: -143908 | L143: -142114 | M143: -140551 | N143: -140231 | O143: -139803 | P143: -141730 | Q143: -136891 | R143: -148054.9228 | S143: -144258.0772 | T143: -149899 | U143: -146994 | V143: -147044 | W143: -164205 | X143: -162450 | Y143: -167390 | Z143: -161939 | AA143: -168885 | AB143: -169831 | AC143: -168794 | AD143: -180060 | AE143: -258053 | AF143: -242392.8646
B144: Others | C144: -115712 | D144: -37174 | E144: -5736 | F144: -10624.93903 | G144: -8189.75474 | H144: -25976 | I144: -16982 | J144: -20699 | K144: -19372 | L144: -13475 | M144: -21605 | N144: -19799 | O144: -24747 | P144: -37670 | Q144: -17391 | R144: -18848.12019 | S144: -20490.87981 | T144: -21930 | U144: -23857 | V144: -20444 | W144: -13681 | X144: -30057 | Y144: -23917 | Z144: -25050 | AA144: -19213 | AB144: -31243 | AC144: -33092 | AD144: -29730 | AE144: -18011 | AF144: -96016.03298
B145: Result of Service | C145: =SUM(C138:C139) -> 422269 | D145: 966621 | E145: 472655 | F145: 472808.2909 | G145: 340561.3122 | H145: 378973 | I145: 418953 | J145: 377207 | K145: 365157 | L145: 454497 | M145: 464232 | N145: 1229828 | O145: 542252 | P145: 503071 | Q145: 573104 | R145: 493706.307 | S145: 461333.693 | T145: 328148 | U145: 406772 | V145: 419989 | W145: 599635 | X145: =SUM(X138:X139) -> 499861 | Y145: =SUM(Y138:Y139) -> 558966 | Z145: 552011 | AA145: =SUM(AA138:AA139) -> 740792 | AB145: 708725 | AC145: 749466 | AD145: 728697 | AE145: 730208 | AF145: 612380.7598
B146: Financial Results | C146: =SUM(C147:C151) -> -109929 | D146: =SUM(D147:D151) -> -66216 | E146: -35293 | F146: =SUM(F147:F151) -> -25692 | G146: -49331 | H146: -31898 | I146: -54493 | J146: -49190 | K146: -35369 | L146: -46970 | M146: -48618 | N146: -27897 | O146: -51135 | P146: -80333 | Q146: -116197 | R146: -138431 | S146: =SUM(S147:S151) -> -159706.975 | T146: =SUM(T147:T151) -> -215905 | U146: -232100 | V146: -301033 | W146: -125416 | X146: =SUM(X147:X151) -> -155004 | Y146: =SUM(Y147:Y151) -> -207881 | Z146: -257895 | AA146: =SUM(AA147:AA151) -> -149410 | AB146: -180532 | AC146: -252392 | AD146: -240101 | AE146: -206009 | AF146: -263824.7664
B147: Interest Receivable | C147: 68032 | D147: 43907 | E147: 10886 | F147: 18347 | G147: 19329 | H147: 25950 | I147: 14183 | J147: 18601 | K147: 19911 | L147: 13050 | M147: 21983 | N147: 10446 | O147: 8539 | P147: 8279 | Q147: 9761 | R147: 15396 | S147: 15630.02502 | T147: 28321 | U147: 25064 | V147: 35116 | W147: 41059 | X147: 46619 | Y147: 32433 | Z147: 42807 | AA147: 54343 | AB147: 71988 | AC147: 39858 | AD147: 49972 | AE147: 71000 | AF147: 90289
B148: Monetary (net) | C148: -33902 | D148: -31989 | E148: -9620 | F148: -6447 | G148: -17390 | H148: -10500 | I148: -15154 | J148: -17631 | K148: -6225 | L148: -7350 | M148: -26159 | N148: 9032 | O148: -15182 | P148: -42342 | Q148: -68620 | R148: -70977 | S148: -75290 | T148: -118492 | U148: -100473 | V148: -167148 | W148: 8202 | X148: -32067 | Y148: -86695 | Z148: -101723 | AA148: -16519 | AB148: -40446 | AC148: -127292 | AD148: -70462 | AE148: -42118 | AF148: -108808
B149: Interest Costs | C149: 0 | D149: -10483 | E149: -580 | F149: -580 | G149: -599 | H149: -554 | I149: -205 | J149: -622 | K149: -626 | L149: -667 | M149: -418 | N149: -656 | O149: -613 | P149: -622 | Q149: 908 | R149: -126 | S149: -5 | T149: -156 | U149: 174 | V149: -159 | W149: -173 | X149: -76 | Y149: -113 | Z149: -83 | AA149: -199 | AB149: -82 | AC149: 14 | AD149: -172 | AE149: -7 | AF149: -378
B150: Interest/Charges on loans | C150: -143799 | D150: -111504 | E150: -31704 | F150: -35052 | G150: -40182 | H150: -39491 | I150: -36444 | J150: -36441 | K150: -36635 | L150: -35479 | M150: -36389 | N150: -41007 | O150: -43225 | P150: -46314 | Q150: -62773 | R150: -79492 | S150: -99434 | T150: -124518 | U150: -145881 | V150: -169088 | W150: -171600 | X150: -179049 | Y150: -175503 | Z150: -197083 | AA150: -195826 | AB150: -200778 | AC150: -163638 | AD150: -215836 | AE150: -234292 | AF150: -263162
B151: Others | C151: -260 | D151: 43853 | E151: -4275 | F151: -1960 | G151: -10489 | H151: -7303 | I151: -16873 | J151: -13097 | K151: -11794 | L151: -16524 | M151: -7635 | N151: -5712 | O151: -654 | P151: 666 | Q151: 4527 | R151: -3232 | S151: -608 | T151: -1060 | U151: -10984 | V151: 246 | W151: -2904 | X151: 9569 | Y151: 21997 | Z151: -1813 | AA151: 8791 | AB151: -11214 | AC151: -1334 | AD151: -3603 | AE151: -592 | AF151: 18234.23364
B152: Operational Results | C152: =SUM(C145:C146) -> 312340 | D152: 900405 | E152: 437362 | F152: 447116.2909 | G152: 291230.3122 | H152: 347075 | I152: 364460 | J152: 328017 | K152: 329788 | L152: 407527 | M152: 415614 | N152: 1201931 | O152: 491117 | P152: 422738 | Q152: =SUM(Q145:Q146) -> 456907 | R152: =SUM(R145:R146) -> 355275.307 | S152: =SUM(S145:S146) -> 301626.718 | T152: =SUM(T145:T146) -> 112243 | U152: 174672 | V152: 118956 | W152: 474219 | X152: =SUM(X145:X146) -> 344857 | Y152: =SUM(Y145:Y146) -> 351085 | Z152: 294116 | AA152: =SUM(AA145:AA146) -> 591382 | AB152: 528193 | AC152: 497074 | AD152: 488596 | AE152: 524199 | AF152: 348555.9934
B153: Equity | C153: 30152 | D153: 18271 | E153: 19347 | F153: 22431 | G153: -2887 | H153: 7270 | I153: 16244 | J153: 10141 | K153: 16972 | L153: 26543 | M153: 20314 | N153: -63930 | O153: 16039 | P153: -32857 | Q153: 1214 | R153: 11200.69302 | S153: 1875.59474 | T153: -2491 | U153: 8123 | V153: 4148 | W153: 54841 | X153: 45241 | Y153: 57664 | Z153: 82296 | AA153: 79705 | AB153: 89572 | AC153: 79171 | AD153: 99249 | AE153: 90296 | AF153: 108356.004
B154: Other Operating Expenses/Income | C154: -26947 | D154: 35451 | E154: 4747 | F154: -564 | G154: -3244 | H154: -6993 | I154: -9562 | J154: 325 | K154: 589 | L154: -1136 | M154: -10187 | N154: 145268 | O154: -13848 | P154: -10641 | Q154: -13717 | R154: -11786 | S154: -38996.28776 | T154: -15245 | U154: -21804 | V154: -15737 | W154: -20517 | X154: -27628 | Y154: -12921 | Z154: -27145 | AA154: -33118 | AB154: -51836 | AC154: -21320 | AD154: -17757 | AE154: -29516 | AF154: -60484
B155: Results before Taxes | C155: =SUM(C152:C154) -> 315545 | D155: =SUM(D152:D154) -> 954127 | E155: =SUM(E152:E154) -> 461456 | F155: 468983.2909 | G155: 285099.3122 | H155: 347352 | I155: 371142 | J155: 338483 | K155: 347349 | L155: 432934 | M155: 425741 | N155: 1283269 | O155: 493308 | P155: 379240 | Q155: =SUM(Q152:Q154) -> 444404 | R155: =SUM(R152:R154) -> 354690 | S155: =SUM(S152:S154) -> 264506.025 | T155: =SUM(T152:T154) -> 94507 | U155: 160991 | V155: 107367 | W155: 508543 | X155: =SUM(X152:X154) -> 362470 | Y155: =SUM(Y152:Y154) -> 395828 | Z155: 349267 | AA155: =SUM(AA152:AA154) -> 637969 | AB155: 565929 | AC155: 554925 | AD155: 570088 | AE155: 584979 | AF155: 396427.9974
B156: Income tax and social contribuition | C156: =SUM(C157:C158) -> -69738 | D156: =SUM(D157:D158) -> -318705 | E156: =SUM(E157:E158) -> -156193 | F156: -126633 | G156: -93561 | H156: 103386 | I156: -137075 | J156: -98143 | K156: 67263 | L156: -83303 | M156: -103852 | N156: -362502 | O156: -90608 | P156: -2956 | Q156: -134410 | R156: -103181 | S156: =SUM(S157:S158) -> -71206 | T156: =SUM(T157:T158) -> 47469 | U156: -38365 | V156: -23507 | W156: -105749 | X156: =SUM(X157:X158) -> 18998 | Y156: =SUM(Y157:Y158) -> -83467 | Z156: -75796 | AA156: =SUM(AA157:AA158) -> -147325 | AB156: 351126 | AC156: -132843 | AD156: -130433 | AE156: -139245 | AF156: 426987
B157: Current | C157: -79299 | D157: -354491 | E157: -176614 | F157: -167891 | G157: -152616 | H157: 89697 | I157: -114844 | J157: -132273 | K157: 4830 | L157: -34509 | M157: -77594 | N157: -69687 | O157: -234607 | P157: -34067 | Q157: -210719 | R157: -141652 | S157: -95938 | T157: 139392 | U157: -39983 | V157: -24828 | W157: -147609 | X157: 97919 | Y157: -113917 | Z157: -111388 | AA157: -188420 | AB157: 349191 | AC157: -169742 | AD157: -175719 | AE157: -110327 | AF157: 396550
B158: Deferred | C158: 9561 | D158: 35786 | E158: 20421 | F158: 41258 | G158: 59055 | H158: 13689 | I158: -22231 | J158: 34130 | K158: 62433 | L158: -48794 | M158: -26258 | N158: -292815 | O158: 143999 | P158: 31111 | Q158: 76309 | R158: 38471 | S158: 24732 | T158: -91923 | U158: 1618 | V158: 1321 | W158: 41860 | X158: -78921 | Y158: 30450 | Z158: 35592 | AA158: 41095 | AB158: 1935 | AC158: 36899 | AD158: 45286 | AE158: -28918 | AF158: 30437
B159: Consolidated Income/Losses of the Period Before the participation of the non controlling shareholder | C159: =SUM(C155:C156) -> 245807 | D159: =SUM(D155:D156) -> 635422 | E159: =SUM(E155:E156) -> 305263 | F159: 342350.2909 | G159: 191538.3122 | H159: 450738 | I159: 234067 | J159: 240340 | K159: 414612 | L159: 349631 | M159: 321889 | N159: 920767 | O159: 402700 | P159: 376284 | Q159: 309994 | R159: 251509 | S159: 193300.025 | T159: =SUM(T155:T156) -> 141976 | U159: 122626 | V159: 83860 | W159: 402794 | X159: =SUM(X155:X156) -> 381468 | Y159: =SUM(Y155:Y156) -> 312361 | Z159: 273471 | AA159: =SUM(AA155:AA156) -> 490644 | AB159: 917055 | AC159: 422082 | AD159: 439655 | AE159: 445734 | AF159: 823414.9974
B160: Participation of Non Controlling Shareholder | C160: -17022 | D160: -19947.99431 | E160: -3460 | F160: -3285 | G160: -3419 | H160: -3413 | I160: -3879 | J160: -4367 | K160: -4342 | L160: -4232 | M160: -15497 | N160: -1667 | O160: -2143 | P160: -1840 | Q160: -1855 | R160: -3411 | S160: -5329 | T160: -8614 | U160: -10096 | V160: -13471 | W160: -16067 | X160: -17912 | Y160: -6341 | Z160: -12269 | AA160: -16139 | AB160: -16496 | AC160: -12837 | AD160: -14062 | AE160: -14146 | AF160: -13270
B161: Net Income | C161: =SUM(C159:C160) -> 228785 | D161: =SUM(D159:D160) -> 615474.0057 | E161: 301803 | F161: 339065.2909 | G161: 188119.3122 | H161: 447325 | I161: 230188 | J161: 235973 | K161: 410270 | L161: 345399 | M161: 306392 | N161: 919100 | O161: 400557 | P161: 374444 | Q161: 308139 | R161: 248098 | S161: 187971.025 | T161: 133362 | U161: 112530 | V161: 70389 | W161: 386727 | X161: =SUM(X159:X160) -> 363556 | Y161: =SUM(Y159:Y160) -> 306020 | Z161: 261202 | AA161: =SUM(AA159:AA160) -> 474505 | AB161: 900559 | AC161: 409245 | AD161: 425593 | AE161: 431588 | AF161: 810144.9974
B165: ESTADOS CONSOLIDADOS DE SITUACIÓN FINANCIERA REGULATORIO- CTEEP
B166: Cifras expresadas en miles de reales
B168: Assets (BRL thousand) | C168: Consolidated
C169: 2016 | D169: 2017 | E169: 1Q18 | F169: 2Q18 | G169: 3Q18 | H169: 4Q18 | I169: 1Q19 | J169: 2Q19 | K169: 3Q19 | L169: 4Q19 | M169: 1Q20 | N169: 2Q20 | O169: 3Q20 | P169: 4Q20 | Q169: 1Q21 | R169: 2Q21 | S169: 3Q21 | T169: 4Q21 | U169: 1Q22 | V169: 2Q22 | W169: 3Q22 | X169: 4Q22 | Y169: =+Y7 -> 1Q23 | Z169: 2Q23 | AA169: 3Q23 | AB169: 4Q23 | AC169: 1Q24 | AD169: 2Q24 | AE169: 3Q24 | AF169: 4Q24
B170: CURRENT ASSETS
B171: Cash and Cash Equivalents | C171: 4524 | D171: 6585 | E171: 11749 | F171: 7059 | G171: 12736 | H171: 16740 | I171: 17968 | J171: 14039 | K171: 7110 | L171: 595971 | M171: 757278 | N171: 1320153 | O171: 799542 | P171: 2067337 | Q171: 853688 | R171: 1090994 | S171: 231301 | T171: 282632 | U171: 316445 | V171: 220960 | W171: 168236 | X171: 336523 | Y171: 1485297 | Z171: 724877 | AA171: 279053 | AB171: 245819 | AC171: 1266111 | AD171: 71491 | AE171: 63411 | AF171: 2914747
B172: Financial Investments | C172: 336138 | D172: 610066 | E172: 716226 | F172: 843828 | G172: 1591227 | H172: 680909 | I172: 1087284 | J172: 1330308 | K172: 1197427 | L172: 2068611 | M172: 511984 | N172: 565480 | O172: 541218 | P172: 453557 | Q172: 469733 | R172: 724512 | S172: 976156 | T172: 813634 | U172: 882793 | V172: 861372 | W172: 1185524 | X172: 907326 | Y172: 322938 | Z172: 737115 | AA172: 1577130 | AB172: 1526208 | AC172: 1479543 | AD172: 2548033 | AE172: 2448525 | AF172: 485995
B173: Accounts Receivable | C173: 83117 | D173: 287868 | E173: 230726.7178 | F173: 315405 | G173: 246775 | H173: 270923 | I173: 276793 | J173: 293727 | K173: 248303 | L173: 256674 | M173: 281522 | N173: 1181589 | O173: 632473 | P173: 658932 | Q173: 692135 | R173: 594163 | S173: 327586 | T173: 324875 | U173: 352894 | V173: 396609 | W173: 504431 | X173: 478085 | Y173: 447842 | Z173: 392566 | AA173: 438883 | AB173: 441987 | AC173: 394010 | AD173: 317373 | AE173: 125311 | AF173: 259819
B174: Inventory | C174: 16700 | D174: 18831 | E174: 17085 | F174: 16396 | G174: 16099 | H174: 20365 | I174: 18709 | J174: 15935 | K174: 15742 | L174: 14942 | M174: 15165 | N174: 14959 | O174: 17505 | P174: 22652 | Q174: 20707 | R174: 21090 | S174: 22097 | T174: 18767 | U174: 23287 | V174: 20401 | W174: 23850 | X174: 26889 | Y174: 27497 | Z174: 27086 | AA174: 27388 | AB174: 30654 | AC174: 32594 | AD174: 36874 | AE174: 38473 | AF174: 39928
B175: Services in course | C175: 0 | D175: 4307 | E175: 0 | F175: 0 | G175: 9512 | H175: 14879 | I175: 16631 | J175: 19974 | K175: 25639 | L175: 17452 | M175: 9681 | N175: 19543 | O175: 19717 | P175: 22259 | Q175: 19330 | R175: 20505 | S175: 35823 | T175: 45134 | U175: 49667 | V175: 49466 | W175: 52484 | X175: 42955 | Y175: 46311 | Z175: 0 | AA175: 0 | AB175: 0 | AC175: 0 | AD175: 0 | AE175: 0 | AF175: 0
B176: Recoverable taxes and contributions | C176: 17531 | D176: 14162 | E176: 132735 | F176: 216638 | G176: 314092 | H176: 29521 | I176: 84201 | J176: 169403 | K176: 215694 | L176: 32335 | M176: 43483 | N176: 84600 | O176: 210886 | P176: 28807 | Q176: 72195 | R176: 107737 | S176: 149273 | T176: 72150 | U176: 96648 | V176: 126437 | W176: 161365 | X176: 114235 | Y176: 138970 | Z176: 171914 | AA176: 230573 | AB176: 268730 | AC176: 303125 | AD176: 363886 | AE176: 437136 | AF176: 453046
B177: Derivative instruments | C177: 0 | D177: 2611 | E177: 0 | F177: 0 | G177: 0 | H177: 0 | I177: 0 | J177: 0 | K177: 67372 | L177: 19202 | M177: 228664 | N177: 255557 | O177: 14138 | P177: 12368 | Q177: 7507 | R177: 2259 | S177: 0 | T177: 200 | U177: 0 | V177: 0 | W177: 0 | X177: 816 | Y177: 0 | Z177: 0 | AA177: 0 | AB177: 0 | AC177: 121 | AD177: 2377 | AE177: 3678 | AF177: 41658
B178: Income taxes and social contribution | C178: 23518 | D178: 0 | E178: 0 | F178: 0 | G178: 0 | H178: 0 | I178: 0 | J178: 0 | K178: 0 | L178: 0 | M178: 0 | N178: 0 | O178: 0 | P178: 0 | Q178: 0 | R178: 0 | S178: 0 | T178: 0 | U178: 0 | V178: 0 | W178: 0 | X178: 0 | Y178: 0 | Z178: 0 | AA178: 0 | AB178: 0 | AC178: 0 | AD178: 0 | AE178: 0 | AF178: 0
B179: Credit with controlled | C179: 18041 | D179: 902.90506 | E179: 490.49569 | F179: 825 | G179: 423 | H179: 323 | I179: 4276 | J179: 9056 | K179: 9265 | L179: 703 | M179: 917 | N179: 1013 | O179: 580 | P179: 5649 | Q179: 14771 | R179: 15206 | S179: 10966 | T179: 78913 | U179: 79038 | V179: 80325 | W179: 78676 | X179: 91373 | Y179: 89565 | Z179: 113868 | AA179: 69675 | AB179: 235642 | AC179: 109067 | AD179: 71012 | AE179: 71249 | AF179: 118989
B180: Prepaid Expenses | C180: 10303 | D180: 4607 | E180: 40927 | F180: 22245 | G180: 13145 | H180: 8384 | I180: 34841 | J180: 24862 | K180: 14657 | L180: 4677 | M180: 33212 | N180: 24292 | O180: 15324 | P180: 6400 | Q180: 36595 | R180: 28473 | S180: 18009 | T180: 11619 | U180: 43747 | V180: 38208 | W180: 20223 | X180: 6907 | Y180: 43208 | Z180: 31172 | AA180: 25142 | AB180: 12732 | AC180: 62059 | AD180: 38579 | AE180: 23806 | AF180: 19461
B181: Restricted cash | C181: 0 | D181: 1141 | E181: 0 | F181: 0 | G181: 1211 | H181: 1787 | I181: 1814 | J181: 1833 | K181: 1862 | L181: 1876 | M181: 1887 | N181: 1894 | O181: 1892 | P181: 1808 | Q181: 3873 | R181: 3866 | S181: 3931 | T181: 3952 | U181: 4017 | V181: 4977 | W181: 2715 | X181: 2126 | Y181: 6199 | Z181: 6352 | AA181: 6519 | AB181: 6657 | AC181: 6846 | AD181: 0 | AE181: 1144 | AF181: 1273
B182: Others | C182: 49486 | D182: 42433 | E182: 66666 | F182: 83296 | G182: 41921 | H182: 48818 | I182: 43681 | J182: 41017 | K182: 36844 | L182: 41133 | M182: 39483 | N182: 76935 | O182: 71323 | P182: 69415 | Q182: 56067 | R182: 72492 | S182: 65642 | T182: 59975 | U182: 54712 | V182: 72671 | W182: 93362 | X182: 59746 | Y182: 81920 | Z182: 116468 | AA182: 128070 | AB182: 217967 | AC182: 126260 | AD182: 134767 | AE182: 134081 | AF182: 221724
C183: =SUM(C171:C182) -> 559358 | D183: 993513.9051 | E183: 1216605.214 | F183: 1505692 | G183: 2247141 | H183: 1092649 | I183: 1586198 | J183: 1920154 | K183: 1839915 | L183: 3053576 | M183: 1923276 | N183: 3546015 | O183: 2324598 | P183: 3349184 | Q183: 2246601 | R183: 2681297 | S183: 1840784 | T183: 1711851 | U183: 1903248 | V183: 1871426 | W183: 2290866 | X183: =SUM(X171:X182) -> 2066981 | Y183: =SUM(Y171:Y182) -> 2689747 | Z183: 2321418 | AA183: =SUM(AA171:AA182) -> 2782433 | AB183: 2986396 | AC183: 3779736 | AD183: 3584392 | AE183: 3346814 | AF183: 4556640
B184: NON-CURRENT ASSETS
B185: Long-Term Assets
B186: Restricted cash | C186: 0 | D186: 35674 | E186: 0 | F186: 0 | G186: 43818 | H186: 42268 | I186: 44888 | J186: 47771 | K186: 47245 | L186: 46515 | M186: 46649 | N186: 46926 | O186: 46981 | P186: 46903 | Q186: 40249 | R186: 37057 | S186: 38409 | T186: 38968 | U186: 39521 | V186: 38263 | W186: 36716 | X186: 32173 | Y186: 19446 | Z186: 17853 | AA186: 18349 | AB186: 17578 | AC186: 17971 | AD186: 18445 | AE186: 18889 | AF186: 17862
B187: Accounts Receivable | C187: 9117 | D187: 20329 | E187: 14973.78646 | F187: 20664 | G187: 9769 | H187: 10575 | I187: 10666 | J187: 10594 | K187: 10663 | L187: 10679 | M187: 10700 | N187: 10726 | O187: 578837 | P187: 498309 | Q187: 417349 | R187: 336573 | S187: 551165 | T187: 524184 | U187: 497288 | V187: 1187261 | W187: 450585 | X187: 426197 | Y187: 402740 | Z187: 379553 | AA187: 365811 | AB187: 365945 | AC187: 366134 | AD187: 366366 | AE187: 647350 | AF187: 624135
B188: Accounts Receivable from the State Finance Secretariat | C188: 1150358 | D188: 1312791 | E188: 1363119 | F188: 1409142 | G188: 1425474 | H188: 1426083 | I188: 1426613 | J188: 1473391 | K188: 1518151 | L188: 1576332 | M188: 1620971 | N188: 1668555 | O188: 1724394 | P188: 1778999 | Q188: 1821503 | R188: 1868048 | S188: 1911094 | T188: 1967747 | U188: 2013021 | V188: 2065840 | W188: 2111534 | X188: 2175500 | Y188: 2219384 | Z188: 2260631 | AA188: 2314914 | AB188: 2371307 | AC188: 2414731 | AD188: 2461495 | AE188: 2509097 | AF188: 2563255
B189: Defered taxes | C189: 229085 | D189: 0 | E189: 0 | F189: 0 | G189: 0 | H189: 0 | I189: 0 | J189: 0 | K189: 0 | L189: 242 | M189: 0 | N189: 0 | O189: 0 | P189: 0 | Q189: 0 | R189: 2436 | S189: 1117 | T189: 0 | U189: 286 | V189: 49 | W189: 59 | X189: 127 | Y189: 307 | Z189: 717 | AA189: 680 | AB189: 826 | AC189: 764 | AD189: 0 | AE189: -124 | AF189: 438
B190: Income taxes and social contribution | C190: 0 | D190: 0 | E190: 0 | F190: 0 | G190: 0 | H190: 0 | I190: 76 | J190: 329 | K190: 2226 | L190: 0 | M190: 0 | N190: 0 | O190: 0 | P190: 0 | Q190: 41074 | R190: 0 | S190: 0 | T190: 0 | U190: 0 | V190: 0 | W190: 0 | X190: 0 | Y190: 0 | Z190: 0 | AA190: 0 | AB190: 0 | AC190: 0 | AD190: 0 | AE190: 0 | AF190: 0
B191: Pledges and Escrow | C191: 70175 | D191: 66414 | E191: 66571 | F191: 65070 | G191: 66816 | H191: 66987 | I191: 64874 | J191: 64007 | K191: 58867 | L191: 52886 | M191: 51597 | N191: 49133 | O191: 41575 | P191: 44119 | Q191: 47184 | R191: 45671 | S191: 45631 | T191: 46011 | U191: 46437 | V191: 43797 | W191: 42677 | X191: 41298 | Y191: 41756 | Z191: 41981 | AA191: 42460 | AB191: 42677 | AC191: 43067 | AD191: 42797 | AE191: 43275 | AF191: 43650
B192: Employee benefits - actuarial surplus | C192: 0 | D192: 0 | E192: 0 | F192: 0 | G192: 0 | H192: 105444 | I192: 105444 | J192: 105444 | K192: 105444 | L192: 43024 | M192: 43024 | N192: 43024 | O192: 43024 | P192: 0 | Q192: 0 | R192: 0 | S192: 0 | T192: 0 | U192: 0 | V192: 0 | W192: 0 | X192: 0 | Y192: 0 | Z192: 0 | AA192: 0 | AB192: 0 | AC192: 0 | AD192: 0 | AE192: 0 | AF192: 0
B193: Derivative instruments | C193: 0 | D193: 0 | E193: 0 | F193: 11861 | G193: 11861 | H193: 2643 | I193: 10771 | J193: 0 | K193: 1962 | L193: 0 | M193: 3068 | N193: 3546 | O193: 4056 | P193: 226 | Q193: 18417 | R193: 403 | S193: 14360 | T193: 18250 | U193: 0 | V193: 2008 | W193: 0 | X193: 0 | Y193: 0 | Z193: 0 | AA193: 0 | AB193: 2615 | AC193: 72 | AD193: 52844 | AE193: 63134 | AF193: 84715
B194: Ongoing service | C194: 0 | D194: 0 | E194: 0 | F194: 0 | G194: 0 | H194: 0 | I194: 0 | J194: 0 | K194: 0 | L194: 0 | M194: 12226 | N194: 5472 | O194: 5080 | P194: 7538 | Q194: 11984 | R194: 16245 | S194: 7006 | T194: 4738 | U194: 2038 | V194: 0 | W194: 0 | X194: 0 | Y194: 917 | Z194: 0 | AA194: 0 | AB194: 0 | AC194: 0 | AD194: 0 | AE194: 0 | AF194: 0
B195: Others | C195: 13572 | D195: 1000 | E195: 43228 | F195: 54956 | G195: 12490 | H195: 1476 | I195: 1467 | J195: 1458 | K195: 1449 | L195: 12693 | M195: 13700 | N195: 103428 | O195: 103825 | P195: 102772 | Q195: 102146 | R195: 102557 | S195: 102642 | T195: 102250 | U195: 88025 | V195: 61751 | W195: 61742 | X195: 70433 | Y195: 68244 | Z195: 62303 | AA195: 42732 | AB195: 109226 | AC195: 96548 | AD195: 105595 | AE195: 105588 | AF195: 93364
B196: TOTAL NON CURRENT ASSETS | C196: =SUM(C186:C195) -> 1472307 | D196: 1436208 | E196: 1487891.786 | F196: 1561693 | G196: 1570228 | H196: 1655476 | I196: 1664799 | J196: 1702994 | K196: 1746007 | L196: 1742371 | M196: 1801935 | N196: 1930810 | O196: =SUM(O186:O195) -> 2547772 | P196: 2478866 | Q196: 2499906 | R196: 2408990 | S196: 2671424 | T196: 2702148 | U196: 2686616 | V196: 3398969 | W196: 2703313 | X196: =SUM(X186:X195) -> 2745728 | Y196: =SUM(Y186:Y195) -> 2752794 | Z196: 2763038 | AA196: =SUM(AA186:AA195) -> 2784946 | AB196: 2910174 | AC196: 2939287 | AD196: 3047542 | AE196: 3387209 | AF196: 3427419
B197: Investments | C197: 1203699 | D197: 1185326 | E197: 1218871 | F197: 1242101 | G197: 1141153 | H197: 1150275 | I197: 1202280 | J197: 1213126 | K197: 1253850 | L197: 1390300 | M197: 1510113 | N197: 1515680 | O197: 1549139 | P197: 1517335 | Q197: 1537544 | R197: 1549745 | S197: 1568124 | T197: 1452061 | U197: 1495185 | V197: 1558923 | W197: 1630269 | X197: 1566341 | Y197: 1560646 | Z197: 1620179 | AA197: 1677954 | AB197: 1596572 | AC197: 1675744 | AD197: 1749979 | AE197: 1814902 | AF197: 1721387
B198: Imobilized Assets | C198: 6554702 | D198: 7203760 | E198: 7336924 | F198: 7217789 | G198: 7285026 | H198: 7095933 | I198: 7023767 | J198: 7026623 | K198: 7047922 | L198: 7156235 | M198: 7153557 | N198: 7151094 | O198: 7827146 | P198: 7912308 | Q198: 8330318 | R198: 8654330 | S198: 8790703 | T198: 8936180 | U198: 9313061 | V198: 8895514 | W198: 9904020 | X198: 10242590 | Y198: 10561192 | Z198: 10963443 | AA198: 11377651 | AB198: 11770158 | AC198: 12350974 | AD198: 12760162 | AE198: 15375725 | AF198: 16478040
B199: Intangible Assets | C199: 110936 | D199: 277941 | E199: 137603 | F199: 137790 | G199: 152216 | H199: 295698 | I199: 278554 | J199: 299428 | K199: 302226 | L199: 306071 | M199: 300500 | N199: 302412 | O199: 319989 | P199: 359753 | Q199: 1918001 | R199: 1656620 | S199: 1626388 | T199: 1614997 | U199: 1689614 | V199: 1680877 | W199: 1678109 | X199: 1678233 | Y199: 1665617 | Z199: 1642393 | AA199: 1631185 | AB199: 1626979 | AC199: 1630876 | AD199: 1642745 | AE199: 1787406 | AF199: 1782527
B200: TOTAL NO CURRENT ASSETS | C200: =SUM(C197:C199,C186:C195) -> 9341644 | D200: 10103235 | E200: 10181289.79 | F200: 10159373 | G200: 10148623 | H200: 10197382 | I200: 10169400 | J200: 10242171 | K200: 10350005 | L200: 10594977 | M200: 10766105 | N200: 10899996 | O200: =SUM(O197:O199,O186:O195) -> 12244046 | P200: 12268262 | Q200: 14285769 | R200: 14269685 | S200: 14656639 | T200: 14705386 | U200: 15184476 | V200: 15534283 | W200: 15915711 | X200: =SUM(X197:X199,X186:X195) -> 16232892 | Y200: =SUM(Y197:Y199,Y186:Y195) -> 16540249 | Z200: 16989053 | AA200: =SUM(AA197:AA199,AA186:AA195) -> 17471736 | AB200: 17903883 | AC200: 18596881 | AD200: 19200428 | AE200: 22365242 | AF200: 23409373
B201: TOTAL ASSETS | C201: =C200+C183 -> 9901002 | D201: 11096748.91 | E201: 11397895 | F201: 11665065 | G201: 12395764 | H201: 11290031 | I201: 11755598 | J201: 12162325 | K201: 12189920 | L201: 13648553 | M201: 12689381 | N201: 14446011 | O201: 14568644 | P201: 15617446 | Q201: 16532370 | R201: 16950982 | S201: 16497423 | T201: 16417237 | U201: 17087724 | V201: 17405709 | W201: 18206577 | X201: =X200+X183 -> 18299873 | Y201: =Y200+Y183 -> 19229996 | Z201: 19310471 | AA201: =AA200+AA183 -> 20254169 | AB201: 20890279 | AC201: 22376617 | AD201: 22784820 | AE201: 25712056 | AF201: 27966013
B203: Liabilities and Shareholders' Equity | C203: Consolidated
C204: 2016 | D204: 2017 | E204: 1Q18 | F204: 2Q18 | G204: 3Q18 | H204: 4Q18 | I204: 1Q19 | J204: 2Q19 | K204: 3Q19 | L204: 4Q19 | M204: 1Q20 | N204: 2Q20 | O204: 3Q20 | P204: 4Q20 | Q204: 1Q21 | R204: 2Q21 | S204: 3Q21 | T204: 4Q21 | U204: 1Q22 | V204: 2Q22 | W204: 3Q22 | X204: 4Q22 | Y204: =+Y7 -> 1Q23 | Z204: 2Q23 | AA204: 3Q23 | AB204: 4Q23 | AC204: 1Q24 | AD204: 2Q24 | AE204: 3Q24 | AF204: 4Q24
B205: CURRENT LIABILITIES | V205: 0 | W205: 0
B206: Loans and Financing | C206: 71679 | D206: 268588 | E206: 261786 | F206: 287106 | G206: 98254 | H206: 334067 | I206: 344159 | J206: 337890 | K206: 981588 | L206: 709928 | M206: 886355 | N206: 919444 | O206: 96334 | P206: 94628 | Q206: 461788 | R206: 1113809 | S206: 737590 | T206: 741848 | U206: 751685 | V206: 90627 | W206: 90437 | X206: 78060 | Y206: 76659 | Z206: 1598935 | AA206: 648252 | AB206: 75811 | AC206: 75449 | AD206: 80255 | AE206: 81455 | AF206: 82056
B207: Bonds | C207: 192368 | D207: 182852 | E207: 183773 | F207: 183474 | G207: 197107 | H207: 23707 | I207: 22436 | J207: 15931 | K207: 26097 | L207: 367508 | M207: 371913 | N207: 363141 | O207: 542316 | P207: 217948 | Q207: 245489 | R207: 242011 | S207: 96144 | T207: 59341 | U207: 108342 | V207: 79687 | W207: 178054 | X207: 88833 | Y207: 577160 | Z207: 515516 | AA207: 596288 | AB207: 570815 | AC207: 238598 | AD207: 1069225 | AE207: 1161925 | AF207: 1109914
B208: Leasing | C208: 0 | D208: 0 | E208: 0 | F208: 0 | G208: 0 | H208: 0 | I208: 0 | J208: 0 | K208: 293 | L208: 282 | M208: 240 | N208: 194 | O208: 141 | P208: 81 | Q208: 81 | R208: 63 | S208: 46 | T208: 28 | U208: 11703 | V208: 12875 | W208: 13896 | X208: 14124 | Y208: 13930 | Z208: 9387 | AA208: 7835 | AB208: 6268 | AC208: 8929 | AD208: 15333 | AE208: 13526 | AF208: 12020
B209: Derivative Instruments | L209: 0 | M209: 0 | N209: 0 | O209: 0 | P209: 2578 | Q209: 0 | R209: 0 | S209: 0 | T209: 1931 | U209: 18142 | V209: 4263 | W209: 10 | X209: 0 | Y209: 378 | Z209: 4076 | AA209: 11518 | AB209: 25926 | AC209: 24423 | AD209: 13050 | AE209: 10783 | AF209: 0
B210: Suppliers | C210: 41482 | D210: 69923 | E210: 49255 | F210: 58806 | G210: 68022 | H210: 88358 | I210: 72276 | J210: 70721 | K210: 72057 | L210: 167774 | M210: 167858 | N210: 139217 | O210: 112304 | P210: 153346 | Q210: 100371 | R210: 90525 | S210: 71377 | T210: 84465 | U210: 84169 | V210: 88701 | W210: 145342 | X210: 114962 | Y210: 95111 | Z210: 153098 | AA210: 148794 | AB210: 180007 | AC210: 265952 | AD210: 151287 | AE210: 190781 | AF210: 184644
B211: Taxes, Fees and Contributions | C211: 39021 | D211: 90502 | E211: 224543 | F211: 389278 | G211: 540175 | H211: 54382 | I211: 163232 | J211: 293084 | K211: 287359 | L211: 92106 | M211: 127657 | N211: 262320 | O211: 478040 | P211: 255614 | Q211: 268737 | R211: 394085 | S211: 483437 | T211: 60990 | U211: 94776 | V211: 108596 | W211: 255933 | X211: 197279 | Y211: 189634 | Z211: 290383 | AA211: 484743 | AB211: 115157 | AC211: 279002 | AD211: 440591 | AE211: 557250 | AF211: 139168
B212: Taxes installments - Law 11,941 | C212: 17540 | D212: 57997 | E212: 0 | F212: 0 | G212: 0 | H212: 0 | I212: 0 | J212: 0 | K212: 0 | L212: 0 | M212: 0 | N212: 0 | O212: 0 | P212: 0 | Q212: 0 | R212: 0 | T212: 6 | U212: 0 | V212: 0 | W212: 0 | X212: 0 | Y212: 0 | Z212: 0 | AA212: 0 | AB212: 0 | AC212: 0 | AD212: 0 | AE212: 0 | AF212: 0
B213: Regulatory Charges | C213: 12766 | D213: 16550 | E213: 32399 | F213: 39059 | G213: 39260 | H213: 40262 | I213: 39302 | J213: 44878 | K213: 45687 | L213: 48336 | M213: 48970 | N213: 52653 | O213: 52518 | P213: 49457 | Q213: 44836 | R213: 34900 | S213: 48778 | T213: 58371 | U213: 0 | V213: 0 | W213: 0 | X213: 0 | Y213: 0 | Z213: 0 | AA213: 0 | AB213: 53071 | AC213: 0 | AD213: 0 | AE213: 0 | AF213: 0
B214: Defered income taxes and social contribution | P214: 0 | Q214: 67260 | R214: 67330 | S214: 102 | T214: 0 | U214: 67687 | V214: 80393 | W214: 78654 | X214: 60807 | Y214: 67396 | Z214: 60026 | AA214: 55248 | AB214: 0 | AC214: 66598 | AD214: 57766 | AE214: 63588 | AF214: 66750
B215: Interest on Shareholders' Equity | C215: 139946 | D215: 3112 | E215: 3111 | F215: 5159 | G215: 5137 | H215: 7835 | I215: 7831 | J215: 7798 | K215: 8411 | L215: 102079 | M215: 9731 | N215: 10102 | O215: 10406 | P215: 500513 | Q215: 1068548 | R215: 16236 | S215: 13467 | T215: 110543 | U215: 12828 | V215: 16217 | W215: 16212 | X215: 611042 | Y215: 611181 | Z215: 13461 | AA215: 13454 | AB215: 1374021 | AC215: 1111322 | AD215: 17296 | AE215: 9439 | AF215: 1408488
... 45 more rows

Sheet Flujo RBSE
A1: Volver al Contenido
C8: 2020/2021 | D8: 2021/2022 | E8: 2022/2023 | F8: 2023/2024 | G8: 2024/2025 | H8: 2025/2026 | I8: 2026/2027 | J8: 2027/2028 | K8: 2028/2029 | L8: 2029/2030 | M8: 2030/2031 | N8: 2031/2032 | O8: 2032/2033
B9: Financial Component ex-Ke (BRL million) | C9: 941 | D9: 402 | E9: 658 | F9: 1395.8 | G9: 1395.8 | H9: 1395.8 | I9: 1395.8 | J9: 1395.8 | K9: 0 | L9: 0 | M9: 0 | N9: 0 | O9: 0
B10: Economic Component (BRL million) | C10: 777 | D10: 750 | E10: 838.9 | F10: 594.5 | G10: 594.5 | H10: 594.5 | I10: 594.5 | J10: 594.5 | K10: 110 | L10: 110 | M10: 100 | N10: 110 | O10: 110
B11: Ke (R$ million) | C11: 620 | D11: 0 | E11: 0 | F11: 0 | G11: 0 | H11: 0 | I11: 0 | J11: 0 | K11: 0 | L11: 0 | M11: 0 | N11: 0 | O11: 0
B12: Total | C12: 2338 | D12: 1152 | E12: 1496.9 | F12: 1990.3 | G12: 1990.3 | H12: 1990.3 | I12: 1990.3 | J12: 1990.3 | K12: 110 | L12: 110 | M12: 100 | N12: 110 | O12: 110

Sheet EEFF_TE_Per
A1: Volver al Contenido
A3: □ | B3: ESTADOS DE RESULTADOS SEPARADOS - CONSORCIO TRANSMANTARO
B4: Cifras expresadas en miles de dólares americanos
C7: 2016 | D7: 2017 | E7: 1T18 | F7: 2T18 | G7: 3T18 | H7: 4T18 | I7: 1T19 | J7: 2T19 | K7: 3T19 | L7: 4T19 | M7: 1T20 | N7: 2T20 | O7: 3T20 | P7: 4T20 | Q7: 1T21 | R7: 2T21 | S7: 3T21 | T7: 4T21 | W7: 1T22 | X7: 2T22 | Y7: 3T22 | Z7: 4T22 | AA7: 1T23 | AB7: 2T23 | AC7: 3T23 | AD7: 3T23 | AE7: 4T23 | AF7: 1T24 | AG7: 2T24 | AH7: 3T24 | AI7: 4T24
B9: Ingresos de construcción | C9: 283605 | D9: 156095 | E9: 21042 | F9: 15734 | G9: 11662 | H9: 10577 | I9: 5408 | J9: 4090 | K9: 7748 | L9: 27746 | M9: 24712 | N9: 30552 | O9: 54420 | P9: 46560 | Q9: 35725 | R9: 38346 | S9: 43835.22725 | T9: 56591 | V9: Ingresos de construcción | W9: 21122.73374 | X9: 28203.26626 | Y9: 55876.81001 | Z9: 54047.75272 | AA9: 35188.47146 | AB9: 14867.50525 | AC9: 12036.01194 | AD9: 12036 | AE9: 3905 | AF9: 12399 | AG9: 16534 | AH9: 6790 | AI9: 10816.13
B10: Costos de construcción | C10: 283605 | D10: 155944 | E10: 20965 | F10: 15766 | G10: 11648 | H10: 10920 | I10: 5408 | J10: 4089 | K10: 7747 | L10: 27746 | M10: 24712 | N10: 30552 | O10: 54420 | P10: 46560 | Q10: 35725 | R10: 38346 | S10: 43835.22725 | T10: 56591 | V10: Costos de construcción | W10: 21122.73374 | X10: 28203.26626 | Y10: 55876.81001 | Z10: 54047.75272 | AA10: 35188.47146 | AB10: 14867.50525 | AC10: 12036.01194 | AD10: 12036 | AE10: 3905 | AF10: 12399 | AG10: 16534 | AH10: 6790 | AI10: 10816.13
B11: EBITDA de construcción | C11: =+C9-C10 -> 0 | D11: 151 | E11: 77 | F11: -32 | G11: 14 | H11: -343 | I11: 0 | J11: 1 | K11: 1 | L11: 0 | M11: 0 | N11: 0 | O11: 0 | P11: =+P9-P10 -> 0 | Q11: =+Q9-Q10 -> 0 | R11: 0 | S11: 0 | T11: 0 | V11: Utilidad de construcción | W11: 0 | X11: 0 | Y11: 0 | Z11: 0 | AA11: 0 | AB11: 0
B13: Servicios de transmisión de energía eléctrica | C13: 121258 | D13: 125996 | E13: 42359 | F13: 43410 | G13: 42480 | H13: 43239 | I13: 46246 | J13: 47154 | K13: 46529 | L13: 46991 | M13: 44865 | N13: 47587 | O13: 49031 | P13: 48720 | Q13: 47787 | R13: 47924 | S13: 47947.75654 | T13: 47584 | V13: =+B13 -> Servicios de transmisión de energía eléctrica | W13: 48135.08075 | X13: 50917.91925 | Y13: 50292.94048 | Z13: 50709.83794 | AA13: 50564.6144 | AB13: 58907.12193 | AC13: 58705.25724 | AD13: 58705 | AE13: 61368 | AF13: 62129 | AG13: 64664 | AH13: 63832 | AI13: 64909.997
B14: Ingresos complementarios | C14: 0 | D14: 2893 | E14: 674 | F14: 757 | G14: 794 | H14: 1091 | I14: 766 | J14: 762 | K14: 740 | L14: 644 | M14: 784 | N14: 784 | O14: 1043 | P14: 802 | Q14: 808 | R14: 988 | S14: 1126.14345 | T14: 1076 | V14: =+B14 -> Ingresos complementarios | W14: 1172.79849 | X14: 1162.20151 | Y14: 1192.49409 | Z14: 1190.59143 | AA14: 1219.38864 | AB14: 1250.36911 | AC14: 1240.52716 | AD14: 1241 | AE14: 1354 | AF14: 1297 | AG14: 1498 | AH14: 1316 | AI14: 1282.187
B15: Otros ingresos operacionales | C15: 0 | D15: 0 | E15: 0 | F15: 0 | G15: 0 | H15: 0 | I15: 0 | J15: 0 | K15: 0 | L15: 0 | M15: 0 | N15: 0 | O15: 0 | P15: 67 | Q15: 0 | R15: 0 | S15: 0 | T15: 0 | V15: =+B15 -> Otros ingresos operacionales | W15: 45.04915 | X15: 18.95085 | Y15: -10.99979 | Z15: 340.22018 | AA15: 572.34968 | AB15: -163.22878 | AC15: -15.42209 | AD15: -15 | AE15: 29 | AF15: 665 | AG15: 693 | AH15: 29239 | AI15: 748.875
B16: Costos y gastos AOM | C16: 14580 | D16: 14982 | E16: 4565 | F16: 4724 | G16: 4252 | H16: 4744 | I16: 4767 | J16: 5434 | K16: 5453 | L16: =5864-17 -> 5847 | M16: 5235 | N16: 5249 | O16: 4468 | P16: 5694 | Q16: 5189 | R16: 4773 | S16: 4937.18985 | T16: 5197 | V16: =+B16 -> Costos y gastos AOM | W16: 5919.2042 | X16: 5588.7958 | Y16: 7401.6914 | Z16: 6880.11035 | AA16: 6327.91162 | AB16: 5857.40175 | AC16: 7371.08085 | AD16: 7371 | AE16: 42864 | AF16: 7009 | AG16: 6212 | AH16: 7565 | AI16: 13393.68
B17: EBITDA de Operación | C17: =+SUM(C13:C15)-C16 -> 106678 | D17: 113907 | E17: 38468 | F17: 39443 | G17: 39022 | H17: 39586 | I17: 42245 | J17: 42482 | K17: 41816 | L17: 41788 | M17: 40414 | N17: 43122 | O17: 45606 | P17: =+SUM(P13:P15)-P16 -> 43895 | Q17: =+SUM(Q13:Q15)-Q16 -> 43406 | R17: 44139 | S17: 44136.71014 | T17: =+SUM(T13:T15)-T16 -> 43463 | V17: (-) Provisiones, Depreciaciones y Amortizaciones. | W17: 13388.61721 | X17: 13394.38279 | Y17: 13389.13922 | Z17: 17503.80484 | AA17: 13960.7859 | AB17: =13933.27995+84.18771 -> 14017.46766 | AC17: =15776.60907+104.195 -> 15880.80407 | AD17: 15777 | AE17: 22215 | AF17: 16859 | AG17: 16996 | AH17: 15171 | AI17: 19283.623
B18: EBITDA Total | C18: =+C11+C17 -> 106678 | D18: 114058 | E18: 38545 | F18: 39411 | G18: 39036 | H18: 39243 | I18: 42245 | J18: 42483 | K18: 41817 | L18: 41788 | M18: 40414 | N18: 43122 | O18: 45606 | P18: =+P11+P17 -> 43895 | Q18: =+Q11+Q17 -> 43406 | R18: 44139 | S18: 44136.71014 | T18: =+T11+T17 -> 43463 | V18: Utilidad de Operación | W18: 30045.10698 | X18: 33115.89302 | Y18: 30683.60416 | Z18: =+SUM(Z13:Z15)-SUM(Z16:Z17)+Z11 -> 27856.73436 | AA18: =+SUM(AA13:AA15)-SUM(AA16:AA17)+AA11 -> 32067.6552 | AB18: =+AB11+AB13+AB14+AB15-AB16-AB17 -> 40119.39285 | AC18: =+AC11+AC13+AC14+AC15-AC16-AC17 -> 36678.47739 | AD18: 36678 | AE18: -2400 | AF18: 40223 | AG18: 43646 | AH18: 71636 | AI18: =+SUM(AI13:AI15)-SUM(AI16:AI17)+AI11 -> 34263.756
B20: (-) Provisiones, Depreciaciones y Amortizaciones. | C20: 32486 | D20: 35279 | E20: 13382 | F20: 13871 | G20: 13742 | H20: 12613 | I20: 13488 | J20: 13464 | K20: 13471 | L20: 12325 | M20: 14146 | N20: 14145 | O20: 14139 | P20: 13834 | Q20: 13369 | R20: 13640 | S20: 13426.29434 | T20: 15004
B21: Metodo de participación neto ingreso /(gasto) | C21: 0 | D21: 0 | E21: 0 | F21: 0 | G21: 0 | H21: 0 | I21: 0 | J21: 0 | K21: 0 | L21: 0 | M21: 0 | N21: 0 | O21: 0 | P21: 0 | Q21: 0 | R21: 0 | S21: 0 | T21: 0 | V21: Metodo de participación neto ingreso /(gasto) | W21: 0 | X21: 0 | Y21: 0 | Z21: 0 | AA21: 0 | AB21: 0
B22: Otros neto ingreso /(gasto) | C22: 1 | D22: -504 | E22: -142 | F22: -64 | G22: -135 | H22: -210 | I22: -30 | J22: 37 | K22: -63 | L22: -467 | M22: 76 | N22: 156 | O22: -232 | P22: =-56+111 -> 55 | Q22: 55 | R22: 132 | S22: 4.68028 | T22: =213+59 -> 272 | V22: Otros neto ingreso /(gasto) | W22: 0 | X22: 0 | Y22: 0 | Z22: 0 | AA22: 0 | AB22: 0
B23: Utilidad por actividades de operación | C23: =+C18-C20+C21+C22 -> 74193 | D23: 78275 | E23: 25021 | F23: 25476 | G23: 25159 | H23: 26420 | I23: =+I18-I20+I21+I22 -> 28727 | J23: =+J18-J20+J21+J22 -> 29056 | K23: =+K18-K20+K21+K22 -> 28283 | L23: =+L18-L20+L21+L22 -> 28996 | M23: 26344 | N23: =+N18-N20+N21+N22 -> 29133 | O23: 31235 | P23: =+P18-P20+P21+P22 -> 30116 | Q23: =+Q18-Q20+Q21+Q22 -> 30092 | R23: 30631 | S23: 30715.09608 | T23: =+T18-T20+T21+T22 -> 28731 | V23: Utilidad por actividades de operación | W23: 30045.10698 | X23: 33115.89302 | Y23: 30683.60416 | Z23: =+Z18+Z21+Z22 -> 27856.73436 | AA23: =+AA18+AA21+AA22 -> 32067.6552 | AB23: =+AB18+AB21+AB22 -> 40119.39285 | AC23: =+AC18+AC21+AC22 -> 36678.47739 | AD23: 36678 | AE23: -2400 | AF23: 40223 | AG23: 43646 | AH23: 71636 | AI23: =+AI18+AI21+AI22 -> 34263.756
X24: 0 | Y24: 0
B25: Financiero neto ingreso/(gasto) | C25: -10139 | D25: -12892 | E25: -6610 | F25: -7362 | G25: -6708 | H25: -5977 | I25: -6213 | J25: =-13819+7 -> -13812 | K25: -7203 | L25: =-5794-18 -> -5812 | M25: =-ROUND(7043.06927,0) -> -7043 | N25: -8426 | O25: -7762 | P25: -7773 | Q25: -7360 | R25: -8847 | S25: -7160.56619 | T25: -6881 | V25: Financiero neto ingreso/(gasto) | W25: -4824.06589 | X25: -7393.47892 | Y25: -7946.38578 | Z25: 3655.28037 | AA25: -2276.86041 | AB25: -2899.04643 | AC25: -4983.29497 | AD25: -4983 | AE25: -8683 | AF25: -5287 | AG25: -7072 | AH25: -4052 | AI25: -5714.641
B26: Utilidad antes de impuestos | C26: =+C23+C25 -> 64054 | D26: 65383 | E26: 18411 | F26: 18114 | G26: 18451 | H26: 20443 | I26: 22514 | J26: 15244 | K26: 21080 | L26: 23184 | M26: 19301 | N26: 20707 | O26: 23473 | P26: =+P23+P25 -> 22343 | Q26: =+Q23+Q25 -> 22732 | R26: 21784 | S26: 23554.52989 | T26: =+T23+T25 -> 21850 | V26: Utilidad antes de impuestos | W26: 25221.04109 | X26: 25722.4141 | Y26: 22737.21838 | Z26: =+Z23+Z25 -> 31512.01473 | AA26: =+AA23+AA25 -> 29790.79479 | AB26: 37220.34642 | AC26: =+AC23+AC25 -> 31695.18242 | AD26: 31695 | AE26: -11083 | AF26: 34936 | AG26: 36573 | AH26: 67584 | AI26: =+AI23+AI25 -> 28549.115
X27: 0 | Y27: 0
B28: Provisión impuesto de renta | C28: 21027 | D28: 20810 | E28: 5794 | F28: 5691 | G28: 5679 | H28: 6558 | I28: 6894 | J28: 4476 | K28: 6566 | L28: 6727 | M28: 5790 | N28: 6200 | O28: 6955 | P28: 6895 | Q28: -6707 | R28: 6436 | S28: 7217.35833 | T28: 6505 | V28: Provisión impuesto de renta | W28: 7515.38591 | X28: 7643.82706 | Y28: 6798.23828 | Z28: -54238.12619 | AA28: -9261.67537 | AB28: -11347.03409 | AC28: -9584.26108 | AD28: -9584 | AE28: 3.838 | AF28: -10481 | AG28: -11277 | AH28: -20275 | AI28: -4084.033
B29: Utilidad neta | C29: =+C26-C28 -> 43027 | D29: 44573 | E29: 12617 | F29: 12423 | G29: 12772 | H29: 13885 | I29: 15620 | J29: 10768 | K29: 14514 | L29: 16457 | M29: 13511 | N29: 14507 | O29: 16518 | P29: =+P26-P28 -> 15448 | Q29: =+Q26-Q28 -> 29439 | R29: 15348 | S29: 16337.17156 | T29: =+T26-T28 -> 15345 | V29: Utilidad neta | W29: 17705.65518 | X29: 18078.58704 | Y29: 15938.9801 | Z29: =+Z26+Z28 -> -22726.11146 | AA29: =+AA26+AA28 -> 20529.11942 | AB29: 25873.31233 | AC29: =+AC26+AC28 -> 22110.92134 | AD29: 22111 | AE29: -11079 | AF29: 24455 | AG29: 25297 | AH29: 47309 | AI29: =+AI26+AI28 -> 24465.082
X30: 0 | Y30: 0
X31: 0 | Y31: 0
V32: EBITDA TOTAL | W32: 43770.534 | X32: 46510.27581 | Y32: 44072.74338 | Z32: =+Z18+Z17 -> 45360.5392 | AA32: =+AA18+AA17 -> 46028.4411 | AB32: 54052.6728 | AC32: =+AC18+AC17-104.195 -> 52455.08646 | AD32: 52455 | AE32: 19815 | AF32: 57082 | AG32: 60642 | AH32: 86808 | AI32: =+AI18+AI17 -> 53547.379
A33: □ | B33: ESTADOS SEPARADOS DE SITUACIÓN FINANCIERA - CONSORCIO TRANSMANTARO
B34: Cifras expresadas en miles de dólares americanos
W36: =+W7 -> 1T22 | X36: =+X7 -> 2T22 | Y36: 3T22 | Z36: 4T22 | AA36: 1T23 | AB36: 2T23 | AC36: 3T23 | AD36: 3T23 | AE36: 4T23 | AF36: 1T24 | AG36: 2T24 | AH36: 3T24 | AI36: 4T24
B37: ACTIVO | V37: ACTIVO
B38: Activo corriente | V38: Activo corriente
B39: Efectivo y equivalentes de efectivo | C39: 3100.3446 | D39: 22845.06663 | E39: 70681.83107 | F39: 9464.0513 | G39: 17494.00031 | H39: 24390.45315 | I39: 26200.12637 | J39: 48222.83962 | K39: 56073.66093 | L39: 34742.533 | M39: 60515.8882 | N39: 77607.05092 | O39: 190640 | P39: 69361 | Q39: 53381 | R39: 120800 | S39: 73810.39182 | T39: 51935 | V39: Efectivo y equivalentes de efectivo | W39: 75447.9507 | X39: 25622.30203 | Y39: 32333.78908 | Z39: =(8732807/1000) -> 8732.807 | AA39: 33367.06707 | AB39: 29309.611 | AC39: 37713.426 | AD39: 37713 | AE39: 18994 | AF39: 63804 | AG39: 63925 | AH39: 89507.39 | AI39: 67104.227
B40: Cuentas por cobrar comerciales | C40: 12810.56083 | D40: 17902.029 | E40: 18674.97021 | F40: 19132.43346 | G40: 19834.96677 | H40: 22121.309 | I40: 21651.03693 | J40: 21802.44244 | K40: 21421.46577 | L40: 22929.362 | M40: 22076.11292 | N40: 23792.64202 | O40: 25650 | P40: 27395 | Q40: 29095 | R40: 31157 | S40: 32158.94639 | T40: 31603 | V40: Cuentas por cobrar comerciales | W40: 24537.46045 | X40: 26017.91766 | Y40: 24729.95785 | Z40: =(21930053/1000) -> 21930.053 | AA40: 17443.90434 | AB40: 21069.143 | AC40: 20755.478 | AD40: 20755 | AE40: 20333 | AF40: 22514 | AG40: 22035 | AH40: 23210.091 | AI40: 21117.052
B41: Otras cuentas por cobrar | C41: 49989.801 | D41: 17941.57 | E41: 16585.75104 | F41: 23471.90032 | G41: 23591.42174 | H41: 15075.039 | I41: 19694.16762 | J41: 25493.54199 | K41: 29403.13377 | L41: 22255.905 | M41: 29651.7056 | N41: 28825.33638 | O41: 12884 | P41: 19514 | Q41: 23111 | R41: 26560 | S41: 32588.31911 | T41: 27192 | V41: Otras cuentas por cobrar | W41: 30419.75098 | X41: 36487.18947 | Y41: 41794.51663 | Z41: =(33614395.16/1000) -> 33614.39516 | AA41: 1805.9747 | AB41: 1424.88 | AC41: 12.197 | AD41: 12 | AE41: 27 | AF41: 2408 | AG41: 2607 | AH41: 2593.753 | AI41: 2513.073
B42: Inventarios | C42: 5982.30083 | D42: 3611.22676 | E42: 4010.43158 | F42: 4291.69168 | G42: 4152.844 | H42: 5643.41319 | I42: 5656.23119 | J42: 5944.53103 | K42: 5872.55357 | L42: 5777.85975 | M42: 5696.31757 | N42: 5735.06658 | O42: 5988 | P42: 6263 | Q42: 6276 | R42: 6405 | S42: 6367.42354 | T42: 6506 | V42: Inventarios | W42: 6395.99304 | X42: 6375.29031 | Y42: 7104.07527 | Z42: =(6507467.5/1000) -> 6507.4675 | AA42: 38366.66828 | AB42: 40784.928 | AC42: 42418.347 | AD42: 42418 | AE42: 31320 | AF42: 28392 | AG42: 15416 | AH42: 17350.458 | AI42: 10578.492
B43: Otros activo no financieros | C43: 640.41286 | D43: 884.24046 | E43: 508.52313 | F43: 100.48341 | G43: 2835.7186 | H43: 2309.1589 | I43: 1847.03344 | J43: 1382.75173 | K43: 1438.30469 | L43: 1110.68475 | M43: 3141.85997 | N43: 2286.64739 | O43: 3247 | P43: 2535 | Q43: 1886 | R43: 855 | S43: 3241.96424 | T43: 2715 | V43: Otros activo no financieros | W43: 2535.15746 | X43: 1916.02752 | Y43: 1388.31096 | Z43: =(763219.83/1000) -> 763.21983 | AA43: 6483.10077 | AB43: 6314.723 | AC43: 6406.485 | AD43: 6406 | AE43: 7475 | AF43: 7565 | AG43: 7414 | AH43: 7073.749 | AI43: 7415.147
B44: Otros activos financieros | C44: 0 | D44: 0 | E44: 0 | F44: 0 | G44: 0 | H44: 0 | I44: 0 | J44: 0 | K44: 0 | L44: 16800 | M44: 0 | N44: 0 | O44: 0 | P44: 87162 | Q44: 101467 | R44: 0 | S44: 0 | T44: 0 | V44: Otros activos financieros | W44: 0 | X44: 0 | Y44: 0 | AA44: 0 | AB44: 0 | AC44: 0 | AD44: 0 | AE44: 0 | AG44: 0 | AH44: 0 | AI44: 0
B45: Cuentas por cobrar partes relacionadas | C45: 1199.61981 | D45: 228.60698 | E45: 14306.93379 | F45: 16859.06608 | G45: 21160.5255 | H45: 25120.71784 | I45: 25053.77264 | J45: 25293.32885 | K45: 28194.06627 | L45: 26294.862 | M45: 20390.90419 | N45: 18834.96312 | O45: 23028 | P45: 43538 | Q45: 27435 | R45: 21275 | S45: 16845.14142 | T45: 12536 | V45: Cuentas por cobrar partes relacionadas | W45: 10754.84201 | X45: 10686.7737 | Y45: 7014.17952 | Z45: =(3574501.02/1000) -> 3574.50102 | AA45: 4066.76073 | AB45: 0 | AC45: 6.305 | AD45: 6 | AE45: 0 | AG45: 6 | AH45: 0 | AI45: 0
B46: Activo por impuesto a las ganancias | C46: 0 | D46: 0 | E46: 0 | F46: 0 | G46: 0 | H46: 0 | I46: 0 | J46: 0 | K46: 0 | L46: 0 | M46: 0 | N46: 0 | O46: 0 | P46: 2104 | Q46: 2025 | R46: 390 | S46: 743.18208 | T46: 1154 | V46: Activo por impuesto a las ganancias | W46: 0 | X46: 840.81048 | Y46: 0 | AA46: 0 | AB46: 0 | AC46: 0 | AD46: 0 | AE46: 0 | AG46: 0 | AH46: 0 | AI46: 0
B47: Crédito fiscal por IGV | C47: 0 | D47: 0 | E47: 0 | F47: 0 | G47: 0 | H47: 0 | I47: 0 | J47: 0 | K47: 0 | L47: 0 | M47: 0 | N47: 0 | O47: 0 | P47: 8719 | Q47: 8579 | R47: 8579 | S47: 8578.98442 | T47: 8599 | V47: Crédito fiscal por IGV | W47: 0 | X47: 0 | Y47: 0 | Z47: =(3815981.08/1000) -> 3815.98108 | AA47: 3495.7229 | AB47: 2694.27 | AC47: 1822.91 | AD47: 1823 | AE47: 1033 | AF47: 810 | AG47: 226 | AH47: 134.873 | AI47: 2789.383
B48: Total activo corriente | C48: 73723.03993 | D48: 63412.73983 | E48: 124768.4408 | F48: 73319.62625 | G48: 89069.47692 | H48: 94660.09108 | I48: 100102.3682 | J48: 128139.4357 | K48: 142403.185 | L48: 129911.2065 | M48: 141472.7884 | N48: 157081.7064 | O48: 261437 | P48: =SUM(P39:P47) -> 266591 | Q48: =SUM(Q39:Q47) -> 253255 | R48: 216021 | S48: 174334.353 | T48: =SUM(T39:T47) -> 142240 | V48: Total activo corriente | W48: 150091.1546 | X48: 107946.3112 | Y48: 114364.8293 | Z48: =+SUM(Z39:Z47) -> 78938.42459 | AA48: =+SUM(AA39:AA47) -> 105029.1988 | AB48: 101597.555 | AC48: =+SUM(AC39:AC47) -> 109135.148 | AD48: 109135 | AE48: 79182 | AF48: 125493 | AG48: 111629 | AH48: 139870 | AI48: =+SUM(AI39:AI47) -> 111517.374
B49: Activo no corriente | V49: Activo no corriente
B50: Cuentas por cobrar comerciales | C50: 26053.38096 | D50: 25684.457 | E50: 25924.9485 | F50: 26158.25716 | G50: 25897.8928 | H50: 25359.716 | I50: 25531.86941 | J50: 25760.9635 | K50: 25469.4611 | L50: 24672.55 | M50: 24818.98717 | N50: 24840.81052 | O50: 24498 | P50: 23676 | Q50: 23314 | R50: 23126 | S50: 22737.26925 | T50: 22340 | V50: Cuentas por cobrar comerciales | W50: 21934.56265 | X50: 22659.29322 | Y50: 22198.69867 | Z50: =(21730545.99/1000) -> 21730.54599 | AA50: 21255.14714 | AB50: 22566.887 | AC50: 22003.526 | AD50: 22004 | AE50: 21434 | AF50: 20858 | AG50: 20828 | AH50: 20177 | AI50: 19521.409
B51: Otras cuentas por cobrar | C51: 69146.19952 | D51: 73285.567 | E51: 72258.83546 | F51: 69444.46109 | G51: 69033.15948 | H51: 71863.79109 | I51: 71883.73417 | J51: 72511.89531 | K51: 84611.13186 | L51: 102298.921 | M51: 112089.2162 | N51: 114768.6134 | O51: 120646 | P51: 127788 | Q51: 131110 | R51: 132757 | S51: 133600.056 | T51: 135582 | V51: Otras cuentas por cobrar | W51: 134230.511 | X51: 134124.164 | Y51: 134827.0826 | Z51: =(138823029.34/1000) -> 138823.0293 | AA51: 140474.3024 | AB51: 141559.585 | AC51: 143038.552 | AD51: 143039 | AE51: 146826 | AF51: 145500 | AG51: 146036 | AH51: 150125 | AI51: 156134.339
B52: Crédito Fiscal | C52: 17215.07232 | D52: 0 | E52: 0 | F52: 0 | G52: 0 | H52: 0 | I52: 0 | J52: 0 | K52: 0 | L52: 0 | M52: 0 | N52: 0 | O52: 0 | P52: 0 | S52: 0 | T52: 0 | V52: Crédito Fiscal | W52: 0 | X52: 0 | Y52: 0 | AA52: 0 | AB52: 0 | AD52: 0 | AE52: 0 | AG52: 5994 | AH52: 6420 | AI52: 6835.926
B53: Propiedades, planta y equipo - Neto | C53: 2521.19706 | D53: 2422.76544 | E53: 2369.98276 | F53: 2320.15734 | G53: 2271.21227 | H53: 2325.61488 | I53: 2347.1056 | J53: 2334.56151 | K53: 2338.66255 | L53: 2652.39966 | M53: 2640.64033 | N53: 2631.74235 | O53: 2702 | P53: 3277 | Q53: 3248 | R53: 3283 | S53: 3144.92567 | T53: 2953 | V53: Propiedades, planta y equipo - Neto | W53: 2951.10929 | X53: 2965.38549 | Y53: 2953.04257 | Z53: =(3075973.79/1000) -> 3075.97379 | AA53: 3046.14203 | AB53: 3016.3 | AC53: 2987.763 | AD53: 2988 | AE53: 6029 | AF53: 5997 | AG53: 1671725 | AH53: 1665828 | AI53: 1665351.385
B54: Intangibles - Neto | C54: 1131079.094 | D54: 1267725.213 | E54: 1277493.378 | F54: 1281165.172 | G54: 1281265.029 | H54: 1280264.202 | I54: 1273214.036 | J54: 1264249.699 | K54: 1259752.042 | L54: 1276788.851 | M54: 1289187.755 | N54: 1307571.615 | O54: 1350529 | P54: 1386473 | Q54: 1411638 | R54: 1439427 | S54: 1473056.346 | T54: 1519229 | V54: Intangibles - Neto | W54: 1529815.99 | X54: 1547486.381 | Y54: 1592855.922 | Z54: =(1646201016.67/1000) -> 1646201.017 | AA54: 1675354.608 | AB54: 1683486.998 | AC54: 1686055.214 | AD54: 1686055 | AE54: 1668207 | AF54: 1667933 | AG54: 0 | AH54: 0 | AI54: 0
B55: Activos no financieros | C55: 0 | D55: 0 | E55: 0 | F55: 0 | G55: 0 | H55: 0 | I55: 0 | J55: 0 | K55: 0 | L55: 0 | M55: 0 | N55: 0 | O55: 10002 | P55: 0 | R55: 0 | S55: 0 | T55: 0 | V55: Activos no financieros | W55: 0 | X55: 0 | Y55: 0 | Z55: 0 | AA55: 0 | AB55: 0 | AC55: 0 | AG55: 0 | AH55: 0 | AI55: 0
B56: Impuesto diferido | C56: 0 | D56: 0 | E56: 0 | F56: 0 | G56: 0 | H56: 0 | I56: 0 | J56: 0 | K56: 0 | L56: 0 | M56: 0 | N56: 0 | O56: 0 | P56: 0 | R56: 0 | S56: 0 | T56: 0 | V56: Impuesto diferido | W56: 0 | X56: 0 | Y56: 0 | Z56: 0 | AA56: 0 | AB56: 0 | AC56: 0
B57: Activos en arrendamiento financiero - Neto | C57: 0 | D57: 0 | E57: 0 | F57: 0 | G57: 0 | H57: 0 | I57: 0 | J57: 0 | K57: 0 | L57: 0 | M57: 0 | N57: 0 | O57: 0 | P57: 0 | R57: 0 | S57: 0 | T57: 0 | V57: Activos en arrendamiento financiero - Neto | W57: 0 | X57: 0 | Y57: 0 | Z57: 0 | AA57: 0 | AB57: 0 | AG57: 1 | AH57: -2 | AI57: 1.065
B58: Préstamos por cobrar partes relacionadas | C58: 0 | D58: 0 | E58: 0 | F58: 0 | G58: 0 | H58: 0 | I58: 0 | J58: 0 | K58: 0 | L58: 0 | M58: 0 | N58: 0 | O58: 0 | P58: 0 | R58: 0 | S58: 0 | T58: 0 | V58: Préstamos por cobrar partes relacionadas | W58: 0 | X58: 0 | Y58: 0 | Z58: 0 | AA58: 0 | AB58: 0 | AC58: 0
B59: Total activo no corriente | C59: 1246014.944 | D59: 1369118.003 | E59: 1378047.145 | F59: 1379088.048 | G59: 1378467.293 | H59: 1379813.324 | I59: 1372976.745 | J59: 1364857.12 | K59: 1372171.298 | L59: 1406412.721 | M59: 1428736.599 | N59: 1449812.781 | O59: 1508377 | P59: =SUM(P50:P58) -> 1541214 | Q59: =SUM(Q50:Q58) -> 1569310 | R59: 1598593 | S59: 1632538.597 | T59: =SUM(T50:T58) -> 1680104 | V59: Total activo no corriente | W59: 1688932.173 | X59: 1707235.224 | Y59: 1752834.746 | Z59: =+SUM(Z50:Z58) -> 1809830.566 | AA59: =+SUM(AA50:AA58) -> 1840130.199 | AB59: 1850629.77 | AC59: =+SUM(AC51:AC58) -> 1832081.529 | AD59: 1854085 | AE59: 1842497 | AF59: 1840288 | AG59: 1844585 | AH59: 1842549 | AI59: =+SUM(AI50:AI57) -> 1847844.124
B60: TOTAL ACTIVO | C60: 1319737.984 | D60: 1432530.742 | E60: 1502815.586 | F60: 1452407.674 | G60: 1467536.77 | H60: 1474473.415 | I60: 1473079.114 | J60: 1492996.555 | K60: 1514574.483 | L60: 1536323.928 | M60: 1570209.387 | N60: 1606894.487 | O60: 1769814 | P60: =P48+P59 -> 1807805 | Q60: =Q48+Q59 -> 1822565 | R60: 1814614 | S60: 1806872.95 | T60: =T48+T59 -> 1822344 | V60: TOTAL ACTIVO | W60: 1839023.328 | X60: 1815181.535 | Y60: 1867199.575 | Z60: =+Z48+Z59 -> 1888768.99 | AA60: =+AA48+AA59 -> 1945159.398 | AB60: 1952227.325 | AC60: =+AC49+AC59 -> 1832081.529 | AD60: 1963220 | AE60: 1921679 | AF60: 1965781 | AG60: 1956214 | AH60: 1982419 | AI60: =+AI48+AI59 -> 1959361.498
B62: PASIVO MAS PATRIMONIO DE LOS ACCIONISTAS | V62: PASIVO MAS PATRIMONIO DE LOS ACCIONISTAS
B63: Pasivo corriente | V63: Pasivo corriente
B64: Cuentas por pagar comerciales | C64: 4495.85586 | D64: 8379.9311 | E64: 3949.83186 | F64: 1945.86441 | G64: 2817.27684 | H64: 5854.071 | I64: 4322.35431 | J64: 1260.07046 | K64: 9281.59321 | L64: 14163.2884 | M64: 12988.08389 | N64: 8293.14683 | O64: 10073 | P64: 9299 | Q64: 6457 | R64: 6115 | S64: 5630.39653 | T64: 8627 | V64: Cuentas por pagar comerciales | W64: 5338.82664 | X64: 4159.9601 | Y64: 22865.11987 | Z64: =(15832661.02/1000) -> 15832.66102 | AA64: 13540.31729 | AB64: 14336.669 | AC64: 7381.792 | AD64: 7382 | AE64: 16766 | AF64: 13325 | AG64: 7069 | AH64: 12254 | AI64: 18886.303
B65: Otras cuentas por pagar | C65: 4734.809 | D65: 3878.778 | E65: 11361.17361 | F65: 13009.45836 | G65: 17959.3533 | H65: 6202.885 | I65: 17144.55368 | J65: 18190.77246 | K65: 26451.9186 | L65: 7624.364 | M65: 24128.54491 | N65: 13414.86086 | O65: 44110 | P65: 9934 | Q65: 11753 | R65: 5902 | S65: 12499.7444 | T65: 12501 | V65: Otras cuentas por pagar | W65: 3058.0942 | X65: 5653.02089 | Y65: 3104.52211 | Z65: =(7539595.64/1000) -> 7539.59564 | AA65: 4267.26637 | AB65: 1789.501 | AC65: 2645.685 | AD65: 2646 | AE65: 380 | AF65: 7748 | AG65: 11520 | AH65: 21349 | AI65: 16025.661
B66: Obligaciones financieras CP | C66: 120368.4211 | D66: 28206.668 | E66: 48207.599 | F66: 90491.48083 | G66: 83422.41493 | H66: 90782.82611 | I66: 63930.99522 | J66: 15000 | K66: 0 | L66: 0 | M66: 0 | N66: 100000 | O66: 0 | P66: 1504 | Q66: 47255 | R66: 84892 | S66: 96792.0983 | T66: 84691 | V66: Obligaciones financieras CP | W66: 96330.7305 | X66: 19787.03693 | Y66: 33131.56061 | Z66: =(26320472/1000) -> 26320.472 | AA66: 86747.16847 | AB66: 37684.463 | AC66: 8522.933 | AD66: 8523 | AE66: 8776 | AF66: 94898 | AG66: 37951 | AH66: 8140 | AI66: 8231.044
B67: Cuentas por pagar vinculadas | C67: 23872.60112 | D67: 15878.19933 | E67: 72533.66655 | F67: 9023.59581 | G67: 5316.52594 | H67: 8541.95377 | I67: 8397.34043 | J67: 6750.16024 | K67: 5295.83373 | L67: 17222.49683 | M67: 14317.83124 | N67: 8715.17985 | O67: 11257 | P67: 35091 | Q67: 76904 | R67: 11712 | S67: 14209.23 | T67: 17664 | V67: Cuentas por pagar vinculadas | W67: 31546.07018 | X67: 11520.52029 | Y67: 13759.98233 | Z67: =(12998115.84/1000) -> 12998.11584 | AA67: 4009.96554 | AB67: 4009.966 | AC67: 4009.966 | AD67: 4010 | AE67: 4260 | AF67: 4255 | AG67: 4254 | AH67: 2597 | AI67: 1290.165
B68: Otras provisiones | C68: 3456.252 | D68: 1676.032 | E68: 1614.67092 | F68: 1614.67092 | G68: 1614.67092 | H68: 1729.831 | I68: 1718.66992 | J68: 1718.66992 | K68: 1718.66992 | L68: 2468.507 | M68: 2441.53592 | N68: 2441.53592 | O68: 2441 | P68: 3233 | R68: 3233 | S68: 3232.68983 | T68: 1365 | V68: Otras provisiones | W68: 1365.83075 | X68: 1365.83075 | Y68: 1365.83075 | Z68: =(4009965.54/1000) -> 4009.96554 | AA68: 56695.31754 | AB68: 76465.316 | AC68: 90680.488 | AD68: 90680 | AE68: 55937 | AF68: 69777 | AG68: 86833 | AH68: 101296 | AI68: 47702.58
B69: Total pasivo corriente | C69: 156927.939 | D69: 58019.60843 | E69: 137666.9419 | F69: 116085.0703 | G69: 111130.2419 | H69: 113111.5669 | I69: 95513.91356 | J69: 42919.67308 | K69: 42748.01546 | L69: 41478.65623 | M69: 53875.99596 | N69: 132864.7235 | O69: 67881 | P69: =SUM(P64:P68) -> 59061 | Q69: =SUM(Q64:Q68) -> 142369 | R69: 111854 | S69: 132364.1591 | T69: =SUM(T64:T68) -> 124848 | V69: Total pasivo corriente | W69: 137639.5523 | X69: 42486.36896 | Y69: 74227.01567 | Z69: =+SUM(Z64:Z68) -> 66700.81004 | AA69: =+SUM(AA64:AA68) -> 165260.0352 | AB69: 134285.915 | AC69: 113240.864 | AD69: 113241 | AE69: 86119 | AF69: 190003 | AG69: 147627 | AH69: 145638 | AI69: =+SUM(AI64:AI68) -> 92135.753
B70: Pasivo no corriente | V70: Pasivo no corriente
B71: Cuentas por pagar a vinculadas LP | C71: 1051.01465 | D71: 1015.90939 | E71: 1015.90939 | F71: 919.55375 | G71: 897.07327 | H71: 874.90928 | I71: 852.77043 | J71: 830.54121 | K71: 806.86728 | L71: 783.90521 | M71: 768.68551 | N71: 737.74071 | O71: 645 | P71: 1047 | Q71: 1025 | R71: 1003 | S71: 980.5008 | T71: 957 | V71: Cuentas por pagar a vinculadas LP | W71: 925.56916 | X71: 900.14097 | Y71: 874.83058 | Z71: =(848600.53/1000) -> 848.60053 | AA71: 806.80744 | AB71: 776.576 | AC71: 0.516 | AD71: 1 | AE71: 1 | AF71: 837 | AG71: 1623 | AH71: 13 | AI71: 2461.559
B72: Obligaciones financieras LP | C72: 616277.398 | D72: 758206.6493 | E72: 793583.5462 | F72: 744631.8843 | G72: 745076.1585 | H72: 730999.5687 | I72: 724112.1655 | J72: 845118.495 | K72: 844954.2581 | L72: 845164.1277 | M72: 845402.1897 | N72: 845597.4757 | O72: 1050000 | P72: 1075668 | Q72: 1050000 | R72: 1050000 | S72: 1050000 | T72: 1050000 | V72: Obligaciones financieras LP | W72: 1050000 | X72: 1100000 | Y72: 1100000 | Z72: 1100000 | AA72: 34446.84981 | AB72: 35298.781 | AC72: 36417.588 | AD72: 36418 | AE72: 42831 | AF72: 44025 | AG72: 44087 | AH72: 16673 | AI72: 21019.194
B73: Provisiones | C73: 7618.84 | D73: 11895.88006 | E73: 14123.87842 | F73: 16316.48659 | G73: 17611.17458 | H73: 16456.04435 | I73: 17562.62907 | J73: 18339.15669 | K73: 19195.55195 | L73: 18843.48576 | M73: 20808.1102 | N73: 22633.23626 | O73: 23991 | P73: 23173 | Q73: 24338 | R73: 25379 | S73: 26340.20052 | T73: 29255 | V73: Provisiones | W73: 30025.11837 | X73: 30937.58257 | Y73: 31825.23859 | Z73: =33128218.77/1000 -> 33128.21877 | AA73: 1100000 | AB73: 1100000 | AC73: 1100000 | AD73: 1100000 | AE73: 1100000 | AF73: 1100000 | AG73: 1100000 | AH73: 1100000 | AI73: 1100000
B74: Impuesto a la renta y participación diferida | C74: 84072.864 | D74: 0 | E74: 0 | F74: 0 | G74: 0 | H74: 0 | I74: 0 | J74: 0 | K74: 0 | L74: 0 | M74: 0 | N74: 0 | O74: 0 | P74: 0 | Q74: 0 | R74: 0 | S74: 0 | T74: 0 | V74: Impuesto a la renta y participación diferida | W74: 0 | X74: 0 | Y74: 0 | AA74: 0 | AB74: 0 | AC74: 0 | AF74: 0 | AG74: 0 | AH74: 0 | AI74: 0
B75: Pasivo por impuestos diferidos | C75: 0 | D75: 104712.271 | E75: 110128.5231 | F75: 115733.9089 | G75: 121330.149 | H75: 127971.566 | I75: 134357.5945 | J75: 139341.226 | K75: 145907.778 | L75: 152635.1598 | M75: 158425.1716 | N75: 164625.5679 | O75: 170342 | P75: 176453 | Q75: 181784 | R75: 187981 | S75: 192453.6324 | T75: 197203 | V75: Pasivo por impuestos diferidos | W75: 202647.0291 | X75: 204992.4885 | Y75: 208468.8642 | Z75: =215098944.18/1000 -> 215098.9442 | AA75: 224036.1825 | AB75: 235383.217 | AC75: 244967.478 | AD75: 244967 | AE75: 231379 | AF75: 235113 | AG75: 241776 | AH75: 251689 | AI75: 250869.698
B76: Total pasivo no corriente | C76: 709020.1166 | D76: 875830.7098 | E76: 918851.8571 | F76: 877601.8335 | G76: 884914.5554 | H76: 876302.0883 | I76: 876885.1596 | J76: 1003629.419 | K76: 1010864.455 | L76: 1017426.679 | M76: 1025404.157 | N76: 1033594.021 | O76: 1244978 | P76: =SUM(P71:P75) -> 1276341 | Q76: =SUM(Q71:Q75) -> 1257147 | R76: 1264363 | S76: 1269774.334 | T76: =SUM(T71:T75) -> 1277415 | V76: Total pasivo no corriente | W76: 1283597.717 | X76: 1336830.212 | Y76: 1341168.933 | Z76: =+SUM(Z71:Z75) -> 1349075.763 | AA76: =+SUM(AA71:AA75) -> 1359289.84 | AB76: 1371458.574 | AC76: 1381385.582 | AD76: 1381386 | AE76: 1374211 | AF76: 1379975 | AG76: 1387486 | AH76: 1368374 | AI76: =+SUM(AI71:AI75) -> 1374350.451
B77: TOTAL PASIVO | C77: 865948.0557 | D77: 933850.3182 | E77: 1056518.799 | F77: 993686.9039 | G77: 996044.7973 | H77: 989413.6552 | I77: 972399.0731 | J77: 1046549.092 | K77: 1053612.471 | L77: 1058905.335 | M77: 1079280.153 | N77: 1166458.744 | O77: 1312859 | P77: =P69+P76 -> 1335402 | Q77: =Q69+Q76 -> 1399516 | R77: 1376217 | S77: 1402138.493 | T77: =T69+T76 -> 1402263 | V77: TOTAL PASIVO | W77: 1421237.269 | X77: 1379316.581 | Y77: 1415395.949 | Z77: =+Z69+Z76 -> 1415776.574 | AA77: =+AA69+AA76 -> 1524549.875 | AB77: 1505744.489 | AC77: 1494626.446 | AD77: 1494626 | AE77: 1460330 | AF77: 1569978 | AG77: 1535113 | AH77: 1514012 | AI77: =+AI69+AI76 -> 1466486.204
X78: 0 | Y78: 0
B79: Patrimonio de los accionistas | V79: Patrimonio de los accionistas
B80: Capital suscrito y pagado | C80: 265409.194 | D80: 265409.194 | E80: 265409.194 | F80: 265409.194 | G80: 265409.194 | H80: 265409.194 | I80: 265409.194 | J80: 265409.194 | K80: 265409.194 | L80: 265409.194 | M80: 265409.194 | N80: 265409.194 | O80: 265409 | P80: 265409 | Q80: 265409 | R80: 265409 | S80: 265409.194 | T80: 265409.194 | V80: Capital suscrito y pagado | W80: 265409.194 | X80: 265409.194 | Y80: 265409.194 | Z80: 265409.194 | AA80: 265409.194 | AB80: 265409.194 | AC80: 265409.194 | AD80: 265409 | AE80: 265409 | AF80: 265409 | AG80: 265409 | AH80: 265409.194 | AI80: 265409.194
B81: Prima en colocación de acciones | C81: 0 | D81: 0 | E81: 0 | F81: 0 | G81: 0 | H81: 0 | I81: 0 | J81: 0 | K81: 0 | L81: 0 | M81: 0 | N81: 0 | O81: 0 | P81: 0 | Q81: 0 | R81: 0 | S81: 0 | T81: 0 | V81: Prima en colocación de acciones | W81: 0 | X81: 0 | Y81: 0 | Z81: 0 | AA81: 0 | AB81: 0 | AC81: 0 | AF81: 0 | AH81: 0 | AI81: 0
B82: Otras reservas de capital | C82: 18213.73155 | D82: 22516.46655 | E82: 27005.51655 | F82: 27005.51655 | G82: 27005.51655 | H82: 27005.51655 | I82: 27005.517 | J82: 32175.18655 | K82: 32175.18655 | L82: 32175.18655 | M82: 37911.06955 | N82: 37911.06955 | O82: 37911 | P82: 37911 | Q82: 43910 | R82: 43910 | S82: 43909.53855 | T82: 43910 | V82: Otras reservas de capital | W82: 50177.25055 | X82: 50177.25055 | Y82: 50177.25055 | Z82: 50177.25055 | AA82: 50177.25055 | AB82: 53131.839 | AC82: 53131.839 | AD82: 53132 | AE82: 53132 | AF82: 53132 | AG82: 53132 | AH82: 53131.839 | AI82: 53131.839
B83: Resultados acumulados | C83: 127139.6525 | D83: 210754.7636 | E83: 153882.0763 | F83: 166306.0596 | G83: 179077.2623 | H83: 192645.049 | I83: 208265.3291 | J83: 148863.083 | K83: 163377.6314 | L83: 179834.2122 | M83: 187608.971 | N83: 137115.4794 | O83: 153635 | P83: 169083 | Q83: 113730 | R83: 129078 | S83: 95415.72501 | T83: 110762 | V83: Resultados acumulados | W83: 102199.6142 | X83: 120278.5098 | Y83: 136217.1813 | Z83: =157405972.36/1000 -> 157405.9724 | AA83: 105023.0787 | AB83: 127941.803 | AC83: 150052.724 | AD83: 150053 | AE83: 142808 | AF83: 77262 | AG83: 102560 | AH83: 149866.288 | AI83: 174333.96
B84: Resultado del año | C84: 43027.35035 | D84: 0 | E84: 0 | F84: 0 | G84: 0 | H84: 0 | I84: 0 | J84: 0 | K84: 0 | L84: 0 | M84: 0 | N84: 0 | O84: 0 | P84: 0 | Q84: 0 | R84: 0 | S84: 0 | T84: 0 | V84: Resultado del año | W84: 0 | X84: 0 | Y84: 0 | AA84: 0 | AB84: 0 | AC84: 0 | AF84: 0 | AH84: 0 | AI84: 0
B85: Otro Resultado Integral | C85: 0 | D85: 0 | E85: 0 | F85: 0 | G85: 0 | H85: 0 | I85: 0 | J85: 0 | K85: 0 | L85: 0 | M85: 0 | N85: 0 | O85: 0 | P85: 0 | Q85: 0 | R85: 0 | S85: 0 | T85: 0 | V85: Otro Resultado Integral | W85: 0 | X85: 0 | Y85: 0 | AA85: 0 | AB85: 0 | AC85: 0 | AF85: 0 | AH85: 0 | AI85: 0
B86: Total patrimonio de los accionistas | C86: 453789.9283 | D86: 498680.4241 | E86: 446296.7868 | F86: 458720.7701 | G86: 471491.9729 | H86: 485059.7596 | I86: 500680.0401 | J86: 446447.4635 | K86: 460962.0119 | L86: 477418.5928 | M86: 490929.2345 | N86: 440435.7429 | O86: 456955 | P86: =SUM(P80:P85) -> 472403 | Q86: =SUM(Q80:Q85) -> 423049 | R86: 438397 | S86: 404734.4575 | T86: =SUM(T80:T85) -> 420081.194 | V86: Total patrimonio de los accionistas | W86: 417786.0587 | X86: 435864.9543 | Y86: 451803.6258 | Z86: =+SUM(Z80:Z85) -> 472992.4169 | AA86: =+SUM(AA80:AA85) -> 420609.5232 | AB86: 446482.836 | AC86: 468593.757 | AD86: 468594 | AE86: 461349 | AF86: 395803 | AG86: 421101 | AH86: 468407 | AI86: =+SUM(AI80:AI85) -> 492874.993
B87: TOTAL PASIVO Y PATRIMONIO DE LOS ACCIONISTAS | C87: 1319737.984 | D87: 1432530.742 | E87: 1502815.586 | F87: 1452407.674 | G87: 1467536.77 | H87: 1474473.415 | I87: 1473079.113 | J87: 1492996.556 | K87: 1514574.483 | L87: 1536323.928 | M87: 1570209.387 | N87: 1606894.487 | O87: 1769814 | P87: =P77+P86 -> 1807805 | Q87: =Q77+Q86 -> 1822565 | R87: 1814614 | S87: 1806872.95 | T87: =T77+T86 -> 1822344.194 | V87: TOTAL PASIVO Y PATRIMONIO DE LOS ACCIONISTAS | W87: 1839023.328 | X87: 1815181.535 | Y87: 1867199.575 | Z87: =+Z77+Z86 -> 1888768.99 | AA87: =+AA77+AA86 -> 1945159.398 | AB87: 1952227.325 | AC87: 1963220.203 | AD87: 1963220 | AE87: 1921679 | AF87: 1965781 | AG87: 1956214 | AH87: 1982419 | AI87: =+AI77+AI86 -> 1959361.197
A91: □ | B91: ESTADOS DE RESULTADOS SEPARADOS - ISA REP
B92: Cifras expresadas en miles de dólares americanos
C94: 2016 | D94: 2017 | E94: 1T18 | F94: 2T18 | G94: 3T18 | H94: 4T18 | I94: 1T19 | J94: 2T19 | K94: 3T19 | L94: 4T19 | M94: 1T20 | N94: 2T20 | O94: 3T20 | P94: 4T20 | Q94: 1T21 | R94: 2T21 | S94: 3T21 | T94: 4T21 | W94: 1T22 | X94: 2T22 | Y94: 3T22 | Z94: 4T22 | AA94: =+AA7 -> 1T23 | AB94: 2T23 | AC94: 3T23 | AD94: 3T23 | AE94: 4T23 | AF94: 1T24 | AG94: 2T24 | AH94: 3T24 | AI94: 4T24
B96: Ingresos de construcción | C96: 30837 | D96: 18651 | E96: 681 | F96: 847 | G96: 985 | H96: 10662 | I96: 3583 | J96: 1753 | K96: 287 | L96: 1795 | M96: 3646 | N96: 4418 | O96: 11173 | P96: 1779 | Q96: 1264 | R96: 1363 | S96: 0.12613 | T96: 266 | V96: Ingresos de construcción | W96: 0 | X96: 24.52835 | Y96: 0 | Z96: 29.252 | AA96: 63.7627 | AB96: 191.68923 | AC96: 961.02207 | AD96: 961 | AE96: 2968 | AF96: 780 | AG96: 2404 | AH96: 5184 | AI96: 4941.468
B97: Costos de construcción | C97: 30808 | D97: 18251 | E97: 504 | F97: 943 | G97: 949 | H97: 11129 | I97: 3593 | J97: 1742 | K97: 284 | L97: 1800 | M97: 3646 | N97: 4418 | O97: 11173 | P97: 1831 | Q97: 1270 | R97: 1432 | S97: 137.73721 | T97: 48 | V97: Costos de construcción | W97: 0 | X97: 22.2985 | Y97: 0 | Z97: =26593/1000 -> 26.593 | AA97: 63.7627 | AB97: 186.82421 | AC97: 956.38409 | AD97: 956 | AE97: 2962 | AF97: 780 | AG97: 2404 | AH97: 5164 | AI97: 4779.174
B98: EBITDA de construcción | C98: =+C96-C97 -> 29 | D98: =+D96-D97 -> 400 | E98: 177 | F98: -96 | G98: 36 | H98: -467 | I98: -10 | J98: 11 | K98: 3 | L98: -5 | M98: 0 | N98: 0 | O98: 0 | P98: -52 | Q98: -6 | R98: -69 | S98: -137.86334 | T98: =+T96-T97 -> 218 | V98: Utilidad Bruta de construcción | W98: 0 | X98: 2.22985 | Y98: 0 | Z98: =+Z96-Z97 -> 2.659 | AA98: =+AA96-AA97 -> 0 | AB98: 4.86502 | AC98: 4.63798 | AD98: 5 | AE98: 6 | AF98: 0 | AG98: 0 | AH98: 20 | AI98: =+AI96-AI97 -> 162.294
B100: Servicios de Transmisión de energia | C100: 116591 | D100: 128337 | E100: 33702 | F100: 35790 | G100: 35784 | H100: 38494 | I100: 36262 | J100: 37670 | K100: 38176 | L100: 37354 | M100: 35845 | N100: 38423 | O100: 37404 | P100: 37287 | Q100: 38038 | R100: 38028 | S100: 38268.88355 | T100: 37991 | V100: Servicios de transmisión de energía eléctrica | W100: 38313.71205 | X100: 39437.62704 | Y100: 40031.74517 | Z100: =-117783+(157970645/1000) -> 40187.645 | AA100: 39194.97405 | AB100: 42571.97723 | AC100: 43675.10372 | AD100: 43675 | AE100: 45227 | AF100: 42383 | AG100: 44690 | AH100: 44459 | AI100: 46368.021
B101: Ingresos complementarios | C101: 20342 | D101: 16295 | E101: 4469 | F101: 3864 | G101: 4195 | H101: 9449 | I101: 4704 | J101: 5108 | K101: 4686 | L101: 4629 | M101: 4859 | N101: 4684 | O101: 4392 | P101: 4767 | Q101: 4764 | R101: 3902 | S101: 5903.50958 | T101: 5006 | V101: Ingresos complementarios | W101: 6159.57474 | X101: 5173.45427 | Y101: 4824.16972 | Z101: =-16157+(22110777/1000) -> 5953.777 | AA101: 4843.85949 | AB101: 6628.03691 | AC101: 6881.8466 | AD101: 6882 | AE101: 6450 | AF101: 7774 | AG101: 6212 | AH101: 6584 | AI101: 9166.141
B102: Otros ingresos operativos | C102: 0 | D102: 0 | E102: 0 | F102: 0 | G102: 0 | H102: 0 | I102: 0 | J102: 0 | K102: 0 | L102: 0 | M102: 0 | N102: 0 | O102: 0 | P102: 110 | Q102: 0 | R102: 0 | S102: 0 | T102: 0 | V102: Otros ingresos operacionales | W102: 78.27758 | X102: 68.704 | Y102: 1613.03502 | Z102: =-1760+(2398335/1000) -> 638.335 | AA102: 491.17343 | AB102: 163.60982 | AC102: 103.37775 | AD102: 103 | AE102: 411 | AF102: 200 | AG102: 628 | AH102: 11584 | AI102: 1199.78
B103: Costos y gastos AOM | C103: 44261 | D103: =41857+2222 -> 44079 | E103: 11359 | F103: 11199 | G103: 11646 | H103: 12170 | I103: 11111 | J103: 11834 | K103: 10933 | L103: 9452 | M103: 10188 | N103: 10939 | O103: 11062 | P103: 13809 | Q103: 10193 | R103: 11154 | S103: 12699.6387 | T103: 14495 | V103: Costos y gastos AOM | W103: 11742.73193 | X103: 12583.6564 | Y103: 10538.32709 | Z103: =-34865+(46800607/1000) -> 11935.607 | AA103: 12885.82668 | AB103: 12385.21962 | AC103: 13437.0127 | AD103: 13437 | AE103: 14340 | AF103: 12555 | AG103: 14196 | AH103: 17203 | AI103: 21448.224
B104: EBITDA de Operación | C104: =+SUM(C100:C102)-C103 -> 92672 | D104: 100553 | E104: 26812 | F104: 28455 | G104: 28333 | H104: 35773 | I104: 29855 | J104: 30944 | K104: 31929 | L104: 32531 | M104: 30516 | N104: 32168 | O104: 30734 | P104: 28355 | Q104: =+SUM(Q100:Q102)-Q103 -> 32609 | R104: 30776 | S104: 31472.75443 | T104: =+SUM(T100:T102)-T103 -> 28502 | V104: (-) Provisiones, Depreciaciones y Amortizaciones. | W104: 9041.47403 | X104: 9179.29168 | Y104: 9057.12918 | Z104: =-27278+(38116806/1000)+1 -> 10839.806 | AA104: 8867.28492 | AB104: =8955.04724+9.99223 -> 8965.03947 | AC104: =9084.91484+0.571770000000001 -> 9085.48661 | AD104: 9085 | AE104: 11402 | AF104: 8662 | AG104: 8653 | AH104: 7780 | AI104: 9972.825
B105: EBITDA | C105: =+C98+C104 -> 92701 | D105: =+D98+D104 -> 100953 | E105: 26989 | F105: 28359 | G105: 28369 | H105: 35306 | I105: 29845 | J105: 30955 | K105: 31932 | L105: 32526 | M105: 30516 | N105: 32168 | O105: 30734 | P105: 28303 | Q105: 32603 | R105: 30707 | S105: 31334.89109 | T105: =+T98+T104 -> 28720 | V105: Utilidad Bruta de Operación | W105: 23767.35841 | X105: 22919.06708 | Y105: 26873.49364 | Z105: =+SUM(Z100:Z102)-SUM(Z103:Z104)+Z98 -> 24007.003 | AA105: =+SUM(AA100:AA102)-SUM(AA103:AA104)+AA98 -> 22776.89537 | AB105: =+AB98+AB100+AB101+AB102-AB103-AB104 -> 28018.22989 | AC105: 28142.46674 | AD105: 28142 | AE105: 26234 | AF105: 28978 | AG105: 28681 | AH105: 37664 | AI105: =+SUM(AI100:AI102)-SUM(AI103:AI104)-(13.623)+AI98 -> 25461.564
B107: (-) Provisiones, Depreciaciones y Amortizaciones. | C107: 39467 | D107: 42909 | E107: 10593 | F107: 10578 | G107: 10546 | H107: 10617 | I107: 10571 | J107: 10974 | K107: 10897 | L107: -8660 | M107: 10418 | N107: 10487 | O107: 10439 | P107: 11202 | Q107: 10463 | R107: 10533 | S107: 10518.46731 | T107: 9731 | X107: 0 | Y107: 0
B108: Metodo de participación neto ingreso /(gasto) | C108: 0 | D108: 0 | E108: 0 | F108: 0 | G108: 0 | H108: 0 | I108: 0 | J108: 0 | K108: 0 | L108: 0 | M108: 0 | N108: 0 | O108: 0 | P108: 0 | Q108: 0 | R108: 0 | S108: 0 | T108: 0 | V108: Metodo de participación neto ingreso /(gasto) | X108: 0 | Y108: 0 | AI108: =+SUM(AE108:AH108) -> 0
B109: Otros neto ingreso /(gasto) | C109: 1312 | D109: 2222 | E109: 358 | F109: 192 | G109: 575 | H109: =1609-E109-F109-G109 -> 484 | I109: -218 | J109: -84 | K109: -267 | L109: -130 | M109: =-ROUND(161225.72/1000,0) -> -161 | N109: =-ROUND(110194.07/1000,0) -> -110 | O109: 271 | P109: 0 | Q109: 709 | R109: -309 | S109: 123.70071 | T109: 3530 | V109: Otros neto ingreso /(gasto) | W109: -3.92821 | X109: -59.42925 | Y109: -0.75295 | Z109: =64+(70594/1000) -> 134.594 | AA109: 0 | AB109: 0 | AI109: =+SUM(AE109:AH109) -> 0
B110: Utilidad por actividades de operación | C110: =+C105-C107+C108+C109 -> 54546 | D110: =+D105-D107+D108+D109 -> 60266 | E110: 16754 | F110: 17973 | G110: 18398 | H110: 25173 | I110: 19056 | J110: 19897 | K110: 20768 | L110: 41056 | M110: 19937 | N110: 21571 | O110: 20566 | P110: 17101 | Q110: 22849 | R110: 19865 | S110: 20940.12449 | T110: =+T105-T107+T108+T109 -> 22519 | V110: Utilidad por actividades de operación | W110: 23763.4302 | X110: 22859.63783 | Y110: 26872.74069 | Z110: =+Z105+Z108-Z109 -> 23872.409 | AA110: =+AA105+AA108-AA109 -> 22776.89537 | AB110: =+AB105+AB109 -> 28018.22989 | AC110: 28142.46674 | AD110: 28142 | AE110: 26234 | AF110: 28978 | AG110: 28681 | AH110: 37664 | AI110: =+AI105+AI108-AI109 -> 25461.564
S111: 0 | X111: 0 | Y111: 0
B112: Financiero neto ingreso/(gasto) | C112: -14091 | D112: -11195 | E112: -3430 | F112: -2930 | G112: -3295 | H112: -3146 | I112: -2574 | J112: -3014 | K112: -3347 | L112: =-10438-I112-J112-K112 -> -1503 | M112: -3889 | N112: -4279 | O112: -3844 | P112: -2344 | Q112: -4427 | R112: -3797 | S112: -1278.65477 | T112: -2140 | V112: Financiero neto ingreso/(gasto) | W112: -2944.68953 | X112: -1782.71799 | Y112: -2233.36976 | Z112: =6961+(-9318653/1000) -> -2357.653 | AA112: -3263.02846 | AB112: -2488.38416 | AC112: -3657.64338 | AD112: -3658 | AE112: -2918 | AF112: -2578 | AG112: -2676 | AH112: -2565 | AI112: -1986.591
B113: Utilidad antes de impuestos | C113: =+C110+C112 -> 40455 | D113: =+D110+D112 -> 49071 | E113: 13324 | F113: 15043 | G113: 15103 | H113: 22027 | I113: 16482 | J113: 16883 | K113: 17421 | L113: 39553 | M113: 16048 | N113: 17292 | O113: 16722 | P113: 14757 | Q113: 18422 | R113: 16068 | S113: 19661.46972 | T113: =+T110+T112 -> 20379 | V113: Utilidad antes de impuestos | W113: 20818.74067 | X113: 21076.91984 | Y113: 24639.37093 | Z113: =+Z110+Z112 -> 21514.756 | AA113: =+AA110+AA112 -> 19513.86691 | AB113: 25529.84573 | AC113: 24484.82336 | AD113: 24485 | AE113: 23316 | AF113: 26400 | AG113: 26005 | AH113: 35099 | AI113: =+AI110+AI112 -> 23474.973
B115: Provisión impuesto de renta | C115: 10419 | D115: 18827 | E115: 3617 | F115: 4519 | G115: 4188 | H115: 6136 | I115: 4530 | J115: 5066 | K115: 4601 | L115: 11208 | M115: 4337 | N115: 4700 | O115: 4539 | P115: 5036 | Q115: 5099 | R115: 3987 | S115: 5343.79578 | T115: 5936 | V115: Provisión impuesto de renta | W115: 5686.03796 | X115: 6132.55132 | Y115: 6516.74457 | Z115: =-18335+(-24181115/1000) -> -42516.115 | AA115: -5300.12813 | AB115: -7239.3476 | AC115: -6659.47927 | AD115: -6659 | AE115: -6464 | AF115: -7181 | AG115: -7113 | AH115: -9344 | AI115: -7361.226
B116: Utilidad neta | C116: =+C113-C115 -> 30036 | D116: =+D113-D115 -> 30244 | E116: 9707 | F116: 10524 | G116: 10915 | H116: 15891 | I116: 11952 | J116: 11817 | K116: 12820 | L116: 28345 | M116: 11711 | N116: 12592 | O116: 12183 | P116: 9721 | Q116: 13323 | R116: 12081 | S116: 14317.67394 | T116: =+T113-T115 -> 14443 | V116: Utilidad neta | W116: 15132.70271 | X116: 14944.36852 | Y116: 18122.62636 | Z116: =+Z113+Z115 -> -21001.359 | AA116: =+AA113+AA115 -> 14213.73878 | AB116: 18290.49813 | AC116: 17825.34409 | AD116: 17825 | AE116: 16852 | AF116: 19219 | AG116: 18892 | AH116: 25755 | AI116: =+AI113+AI115 -> 16113.747
A119: □ | B119: ESTADOS SEPARADOS DE SITUACIÓN FINANCIERA - ISA REP | V119: EBITDA TOTAL | W119: 32372.803 | X119: 32098.35876 | Y119: 35930.62282 | Z119: =+Z105+Z104 -> 34846.809 | AA119: =+AA105+AA104 -> 31644.18029 | AB119: 36973.27713 | AC119: 37227.38158 | AD119: 37227 | AE119: 37636 | AF119: 37640 | AG119: 37334 | AH119: 45444 | AI119: =+AI105+AI103 -> 46909.788
B120: Cifras expresadas en miles de dólares americanos
C121: 2016 | D121: 2017 | E121: 1T18 | F121: 2T18 | G121: 3T18 | H121: 4T18 | I121: 1T19 | J121: 2T19 | K121: 3T19 | L121: 4T19 | M121: 1T20 | N121: 2T20 | O121: 3T20 | P121: 4T20 | Q121: 1T21 | R121: 2T21 | S121: 3T21 | T121: 4T21 | W121: 1T22 | X121: 2T22 | Y121: 3T22 | Z121: 4T22 | AA121: =+AA7 -> 1T23 | AB121: 2T23 | AC121: 3T23 | AD121: 3T23 | AE121: 4T23 | AF121: 1T24 | AG121: 2T24 | AH121: 3T24 | AI121: 4T24
B122: ACTIVO | V122: ACTIVO
B123: Activo corriente | V123: Activo corriente
B124: Efectivo y equivalentes de efectivo | C124: 12954 | D124: 16516 | E124: 50094 | F124: 15029 | G124: 20655 | H124: 15110 | I124: 26636 | J124: 5281 | K124: 2631 | L124: 18809 | M124: 83848 | N124: 34398 | O124: 5725 | P124: 12617 | Q124: 8426 | R124: 62289 | S124: 30918.86788 | T124: 28106 | V124: Efectivo y equivalentes de efectivo | W124: 38836.30754 | X124: 13263.86871 | Y124: 37070.51816 | Z124: 41356.4386 | AA124: 53864.124 | AB124: 38589.21794 | AC124: 47448.035 | AD124: 47448 | AE124: 69514 | AF124: 51103 | AG124: 31165 | AH124: 36353 | AI124: 56239.77
B125: Cuentas por cobrar comerciales | C125: 17931 | D125: 17804 | E125: 19522 | F125: 20736 | G125: 20980 | H125: 27724 | I125: 26728 | J125: 26095 | K125: 24761 | L125: 23202 | M125: 19902 | N125: 19622 | O125: 20037 | P125: 19787 | Q125: 20524 | R125: 22466 | S125: 24814.01637 | T125: 28729 | V125: Cuentas por cobrar comerciales | W125: 29429.05409 | X125: 30997.88604 | Y125: 27684.35377 | Z125: 25386.2866 | AA125: 19860.8832 | AB125: 18350.67096 | AC125: 18354.826 | AD125: 18355 | AE125: 17053 | AF125: 19246 | AG125: 13455 | AH125: 16696 | AI125: 20960.358
B126: Cuentas por cobrar a relacionadas | C126: 769 | D126: 1477 | E126: 1270 | F126: 931 | G126: 468 | H126: 970 | I126: 709 | J126: 1948 | K126: 1181 | L126: 1259 | M126: 1568 | N126: 1159 | O126: 1634 | P126: 854 | Q126: 1610 | R126: 321 | S126: 27114.56156 | T126: 1587 | V126: Cuentas por cobrar a relacionadas | W126: 3314.32895 | X126: 3069.33658 | Y126: 8901.79142 | Z126: 6649.71763 | AA126: 8836.60048 | AB126: 11990.9295 | AC126: 10149.019 | AD126: 10149 | AE126: 9378 | AF126: 29475 | AG126: 9281 | AH126: 9233 | AI126: 11352.652
B127: Otras cuentas por cobrar | C127: 4662 | D127: 2715 | E127: 3596 | F127: 4652 | G127: 4096 | H127: 2324 | I127: 1930 | J127: 1643 | K127: 3589 | L127: 5044 | M127: 4869 | N127: 4108 | O127: 2740 | P127: 3745 | Q127: 4692 | R127: 4297 | S127: 3716.46777 | T127: 2744 | V127: Otras cuentas por cobrar | W127: 3999.0017 | X127: 4194.25502 | Y127: 2639.29522 | Z127: 2997.52487 | AA127: 2683.5073 | AB127: 3113.00806 | AC127: 3232.652 | AD127: 3233 | AE127: 2594 | AF127: 2547 | AG127: 2269 | AH127: 2505 | AI127: 2213.14
B128: Suministros y repuestos, neto | C128: 10198 | D128: 9221 | E128: 9241 | F128: 10129 | G128: 10316 | H128: 10836 | I128: 9527 | J128: 9316 | K128: 9487 | L128: 11562 | M128: 11626 | N128: 11004 | O128: 11001 | P128: 10698 | Q128: 10022 | R128: 9822 | S128: 9920.62284 | T128: 11510 | V128: Suministros y repuestos, neto | W128: 10272.08905 | X128: 10143.13326 | Y128: 9744.7218 | Z128: 12592.13445 | AA128: 12609.31641 | AB128: 12213.24932 | AC128: 15583.235 | AD128: 15583 | AE128: 13207 | AF128: 11463 | AG128: 11008 | AH128: 11555 | AI128: 11832.771
B129: Otros activos no financieros | C129: 0 | D129: 0 | E129: 0 | F129: 0 | G129: 0 | H129: 0 | I129: 0 | J129: 0 | K129: 0 | L129: 2900 | M129: 0 | N129: 0 | O129: 0 | P129: 8206 | Q129: 8516 | R129: 0 | S129: 0 | T129: 0 | V129: Otros activos financieros | W129: 0 | X129: 0 | Y129: 0 | Z129: 0 | AA129: 2031.0392 | AB129: 3779.659 | AC129: 3779.659 | AD129: 3780 | AE129: 0 | AG129: 0 | AI129: 0
B130: Gastos contratados por anticipado | C130: 93 | D130: 858 | E130: 583 | F130: 402 | G130: 2367 | H130: 1814 | I130: 1506 | J130: 1027 | K130: 541 | L130: 114 | M130: 2205 | N130: 1585 | O130: 1450 | P130: 913 | Q130: 963 | R130: 580 | S130: 2286.81672 | T130: 1833 | V130: Gastos contratados por anticipado | W130: 1799.61448 | X130: 969.98715 | Y130: 533.45786 | Z130: 137.36866 | AA130: 2469.33096 | AB130: 2018.38361 | AC130: 1683.979 | AD130: 1684 | AE130: 988 | AF130: 857 | AG130: 255 | AH130: 16 | AI130: 2048.945
B131: Total activo corriente | C131: 46607 | D131: 48591 | E131: 84306 | F131: 51879 | G131: 58882 | H131: 58778 | I131: 67036 | J131: 45310 | K131: 42190 | L131: 62890 | M131: 124018 | N131: 71876 | O131: 42587 | P131: =SUM(P124:P130) -> 56820 | Q131: =SUM(Q124:Q130) -> 54753 | R131: 99775 | S131: 98771.35314 | T131: =SUM(T124:T130) -> 74509 | V131: Total activo corriente | W131: =+SUM(W124:W130) -> 87650.39581 | X131: 62638.46676 | Y131: 86574.13823 | Z131: =+SUM(Z124:Z130) -> 89119.47081 | AA131: =+SUM(AA124:AA130) -> 102354.8016 | AB131: 90055.11839 | AC131: 100231.405 | AD131: 100231 | AE131: 112734 | AF131: 114691 | AG131: 67432 | AH131: 76357 | AI131: =+SUM(AI124:AI130) -> 104647.636
B132: Activo no corriente | V132: Activo no corriente
B133: Cuentas por cobrar comerciales, neto | C133: 0 | D133: 486 | E133: 0 | F133: 0 | G133: 0 | H133: 0 | I133: 0 | J133: 0 | K133: 0 | L133: 0 | M133: 0 | N133: 0 | O133: 0 | P133: 0 | Q133: 0 | R133: 0 | S133: 0 | T133: 0 | V133: Cuentas por cobrar comerciales, neto | X133: 0 | Y133: 0
B134: Cuentas por cobrar a relacionadas a largo plazo | C134: 1051 | D134: 965 | E134: 951 | F134: 920 | G134: 897 | H134: 875 | I134: 853 | J134: 831 | K134: 807 | L134: 784 | M134: 769 | N134: 738 | O134: 645 | P134: 1047 | Q134: 1025 | R134: 1003 | S134: 980.5008 | T134: 958 | V134: Cuentas por cobrar a relacionadas a largo plazo | W134: 925.56916 | X134: 900.14097 | Y134: 874.31497 | Z134: 848.08492 | AA134: 806.29183 | AB134: 776.06041 | AC134: 0 | AD134: 0 | AE134: 0 | AF134: 316 | AG134: 835 | AH134: 384 | AI134: 1495.465
B135: Otras cuentas por cobrar a largo plazo | C135: 5087 | D135: 4950 | E135: 4942 | F135: 4907 | G135: 4873 | H135: 4859 | I135: 4829 | J135: 4797 | K135: 4762 | L135: 4714 | M135: 4692 | N135: 4643 | O135: 4600 | P135: 4558 | Q135: 4516 | R135: 4475 | S135: 4428.88297 | T135: 4384 | V135: Otras cuentas por cobrar a largo plazo | W135: 4344.2048 | X135: 4303.95152 | Y135: 4260.53281 | Z135: 4210.41211 | AA135: 4171.19865 | AB135: 4126.33116 | AC135: 4076.412 | AD135: 4076 | AE135: 4027 | AF135: 3969 | AG135: 3912 | AH135: 3852 | AI135: 3787.598
B136: Instalaciones, muebles y equipo, neto | C136: 13915 | D136: 11392 | E136: 10908 | F136: 10443 | G136: 10194 | H136: 10130 | I136: 9757 | J136: 9412 | K136: 8981 | L136: 8688 | M136: 8547 | N136: 8619 | O136: 7495 | P136: 9982 | Q136: 9604 | R136: 9308 | S136: 9047.88689 | T136: 8908 | V136: Instalaciones, muebles y equipo, neto | W136: 8409.29635 | X136: 8185.93676 | Y136: 8002.92368 | Z136: 8285.33603 | AA136: 7925.4848 | AB136: 7566.23189 | AC136: 7714.526 | AD136: 7715 | AE136: 10863 | AF136: 10679 | AG136: 10445 | AH136: 11289 | AI136: 12419.66
B137: Arrendamientos | C137: 0 | D137: 0 | E137: 0 | F137: 0 | G137: 0 | H137: 0 | I137: 0 | J137: 0 | K137: 0 | L137: 8178 | M137: 8021 | N137: 7863 | O137: 8673 | P137: 7851 | Q137: 7658 | R137: 7464 | S137: 7270.51972 | T137: 3624 | V137: Arrendamientos | W137: 3493.70668 | X137: 3362.93096 | Y137: 3232.15524 | Z137: 3101.37952 | AA137: 2994.79122 | AB137: 3801.85976 | AC137: 3665.982 | AD137: 3666 | AE137: 3631 | AF137: 3481 | AG137: 3331 | AH137: 3181 | AI137: 376.809
B138: Activos intangibles, neto | C138: 460058 | D138: 449579 | E138: 442321 | F138: 435023 | G138: 428216 | H138: 431266 | I138: 427302 | J138: 421072 | K138: 413561 | L138: 427337 | M138: 424263 | N138: 421959 | O138: 426470 | P138: 421755 | Q138: 416129 | R138: 410580 | S138: 403773.5461 | T138: 397232 | V138: Activos intangibles, neto | W138: 390540.7117 | X138: 383619.6269 | Y138: 376739.8049 | Z138: 373377.642 | AA138: 366432.501 | AB138: 361494.918 | AC138: 359298.039 | AD138: 359298 | AE138: 355295 | AF138: 348936 | AG138: 344200 | AH138: 342206 | AI138: 338297.332
B139: Total activo no corriente | C139: 480111 | D139: 467372 | E139: 459122 | F139: 451293 | G139: 444180 | H139: 447130 | I139: 442741 | J139: 436112 | K139: 428111 | L139: 449701 | M139: 446292 | N139: 443822 | O139: 447883 | P139: =SUM(P133:P138) -> 445193 | Q139: =SUM(Q133:Q138) -> 438932 | R139: 432830 | S139: 425501.3364 | T139: =SUM(T133:T138) -> 415106 | V139: Total activo no corriente | W139: =+SUM(W134:W138) -> 407713.4887 | X139: 400372.5871 | Y139: 393109.7316 | Z139: =+SUM(Z133:Z138) -> 389822.8546 | AA139: =+SUM(AA133:AA138) -> 382330.2675 | AB139: 377765.4012 | AC139: 374754.959 | AD139: 374755 | AE139: 373816 | AF139: 367381 | AG139: 362723 | AH139: 360913 | AI139: =+SUM(AI133:AI138) -> 356376.864
B140: TOTAL ACTIVO | C140: 526718 | D140: 515963 | E140: 543428 | F140: 503172 | G140: 503062 | H140: 505908 | I140: 509777 | J140: 481422 | K140: 470301 | L140: 512591 | M140: 570310 | N140: 515698 | O140: 490470 | P140: =P131+P139 -> 502013 | Q140: =Q131+Q139 -> 493685 | R140: 532605 | S140: 524272.6896 | T140: =T131+T139 -> 489615 | V140: TOTAL ACTIVO | W140: =+W131+W139 -> 495363.8845 | X140: 463011.0538 | Y140: 479683.8698 | Z140: =+Z131+Z139 -> 478942.3254 | AA140: =+AA131+AA139 -> 484685.069 | AB140: 467820.5196 | AC140: 474986.364 | AD140: 474986 | AE140: 486550 | AF140: 482072 | AG140: 430156 | AH140: 437271 | AI140: =+AI131+AI139 -> 461024.5
S141: 0
B142: PASIVO MAS PATRIMONIO DE LOS ACCIONISTAS | V142: PASIVO MAS PATRIMONIO DE LOS ACCIONISTAS
B143: Pasivo corriente | V143: Pasivo corriente
B144: Cuentas por pagar comerciales | C144: 11450 | D144: 8714 | E144: 5921 | F144: 5349 | G144: 4755 | H144: 11309 | I144: 6822 | J144: 5120 | K144: 4322 | L144: 10451 | M144: 5498 | N144: 4317 | O144: 8840 | P144: 11085 | Q144: 5081 | R144: 5614 | S144: 7357.08979 | T144: 16320 | V144: Cuentas por pagar comerciales | W144: 9476.56042 | X144: 7943.10715 | Y144: 6644.69877 | Z144: 10473.75874 | AA144: 7837.12562 | AB144: 6774.71111 | AC144: 11477.073 | AD144: 11477 | AE144: 12818 | AF144: 7608 | AG144: 5953 | AH144: 9530 | AI144: 17467.53
B145: Cuentas por pagar a relacionadas | C145: 1777 | D145: 1424 | E145: 41547 | F145: 773 | G145: 1262 | H145: 1778 | I145: 61817 | J145: 1019 | K145: 1583 | L145: 2065 | M145: 1028 | N145: 1295 | O145: 1827 | P145: 2205 | Q145: 49069 | R145: 1050 | S145: 1699.06616 | T145: 2142 | V145: Cuentas por pagar a relacionadas | W145: 29531.44942 | X145: 1178.88773 | Y145: 1826.62789 | Z145: 1609.21143 | AA145: 3963.0536 | AB145: 10384.0542 | AC145: 10353.705 | AD145: 10354 | AE145: 5400 | AF145: 9049 | AG145: 7024 | AH145: 9627 | AI145: 8732.989
B146: Tributos y contribuciones por pagar | C146: 1523 | D146: 3723 | E146: 2826 | F146: 3633 | G146: 5398 | H146: 7378 | I146: 5283 | J146: 2407 | K146: 2818 | L146: 3276 | M146: 1293 | N146: 2946 | O146: 1655 | P146: 3914 | Q146: 0 | R146: 5435 | S146: 7756.04755 | T146: 5010 | V146: Tributos y contribuciones por pagar | W146: 0 | X146: 8032.69659 | Y146: 0 | Z146: 1092.20448 | AA146: 3196.78613 | AB146: 4512.36004 | AC146: 6402.471 | AD146: 6402 | AE146: 7000 | AF146: 3893 | AG146: 5116 | AH146: 6785 | AI146: 8359.369
B147: Otras cuentas por pagar | C147: 8344 | D147: 7385 | E147: 9019 | F147: 9011 | G147: 10392 | H147: 9223 | I147: 9244 | J147: 9188 | K147: 9847 | L147: 8502 | M147: 9283 | N147: 10035 | O147: 10974 | P147: =2875+6614 -> 9489 | Q147: 11526 | R147: 5447 | S147: 4936.0788 | T147: 6509 | V147: Otras cuentas por pagar | W147: 10435.83119 | X147: 4285.76817 | Y147: 12347.54438 | Z147: 6998.59792 | AA147: 64344.86752 | AB147: 21417.12319 | AC147: 5888.391 | AD147: 5888 | AE147: 2411 | AF147: 69581 | AG147: 1682 | AH147: 1925 | AI147: 2645.553
B148: Provisiones | C148: 10683 | D148: 13110 | E148: 13044 | F148: 13128 | G148: 12915 | H148: 15206 | I148: 15377 | J148: 15206 | K148: 14860 | L148: 16876 | M148: 16844 | N148: 16909 | O148: 16909 | P148: 16382 | Q148: 16377 | R148: 16375 | S148: 16356.30601 | T148: 13779 | V148: Provisiones | W148: 13816.14527 | X148: 13857.98672 | Y148: 13857.68172 | Z148: 12857.07385 | AA148: 12438.65684 | AB148: 12734.01771 | AC148: 13219.957 | AD148: 13220 | AE148: 12167 | AF148: 12167 | AG148: 12154 | AH148: 6105 | AI148: 6692.813
B149: Obligaciones financieras | C149: 45993 | D149: 75887 | E149: 45887 | F149: 45282 | G149: 72793 | H149: 72089 | I149: 71601 | J149: 71358 | K149: 3358 | L149: 3730 | M149: 58359 | N149: 58360 | O149: 18360 | P149: 19049 | Q149: 19156 | R149: 79568 | S149: 79895.8638 | T149: 78945 | V149: Obligaciones financieras | W149: 79331.6383 | X149: 90742.28874 | Y149: 88719.71279 | Z149: 62344.12792 | AA149: 2522.24509 | AB149: 20579.34089 | AC149: 37892.073 | AD149: 37892 | AE149: 38550 | AF149: 38066 | AG149: 38402 | AH149: 38443 | AI149: 38218.467
B150: Total pasivo corriente | C150: 79770 | D150: 110243 | E150: 118244 | F150: 77176 | G150: 107515 | H150: 116983 | I150: 170144 | J150: 104298 | K150: 36788 | L150: 44900 | M150: 92305 | N150: 93862 | O150: 58565 | P150: =SUM(P144:P149) -> 62124 | Q150: =SUM(Q144:Q149) -> 101209 | R150: 113489 | S150: 118000.4521 | T150: =SUM(T144:T149) -> 122705 | V150: Total pasivo corriente | W150: =+SUM(W144:W149) -> 142591.6246 | X150: 126040.7351 | Y150: 123396.2656 | Z150: =+SUM(Z144:Z149) -> 95374.97434 | AA150: =+SUM(AA144:AA149) -> 94302.7348 | AB150: 76401.60714 | AC150: 85233.67 | AD150: 85234 | AE150: 78346 | AF150: 140364 | AG150: 70330 | AH150: 72414 | AI150: =+SUM(AI144:AI149) -> 82116.721
B151: Pasivo no corriente | V151: Pasivo no corriente
B152: Otras cuentas por pagar a largo plazo | C152: 232 | D152: 105 | E152: 73 | F152: 32 | G152: 0 | H152: 0 | I152: 0 | J152: 0 | K152: 0 | L152: 0 | M152: 7983 | N152: 8139 | O152: 7998 | P152: 125 | Q152: 128 | R152: 277 | S152: 276.52782 | T152: 1157 | V152: Otras cuentas por pagar a largo plazo | W152: 1157.40033 | X152: 1157.40033 | Y152: 850.32982 | Z152: 876.86117 | AA152: 876.86117 | AB152: 876.86117 | AC152: 876.861 | AD152: 877 | AE152: 1037 | AF152: 1037 | AG152: 979 | AH152: 939 | AI152: 1194.361
B153: Provisiones a largo plazo | C153: 29340 | D153: 30048 | E153: 32825 | F153: 35334 | G153: 36492 | H153: 28464 | I153: 29539 | J153: 30928 | K153: 32270 | L153: 23534 | M153: 25061 | N153: 27403 | O153: 27069 | P153: 24170 | Q153: 25530 | R153: 26586 | S153: 27125.49159 | T153: 24328 | V153: Provisiones a largo plazo | W153: 23895.68989 | X153: 23215.41005 | Y153: 22731.14632 | Z153: 21729.75538 | AA153: 21779.08282 | AB153: 21239.61825 | AC153: 19155.272 | AD153: 19155 | AE153: 18239 | AF153: 16993 | AG153: 16140 | AH153: 11924 | AI153: 11316.992
B154: Obligaciones financieras a largo plazo | C154: 178724 | D154: 144712 | E154: 192993 | F154: 181203 | G154: 139125 | H154: 138123 | I154: 137475 | J154: 162768 | K154: 205251 | L154: 213549 | M154: 202051 | N154: 200788 | O154: 198685 | P154: 206497 | Q154: 189875 | R154: 202122 | S154: 198091.371 | T154: 171563 | V154: Obligaciones financieras a largo plazo | W154: 174755.8809 | X154: 151906.3255 | Y154: 151820.7923 | Z154: 191941.6078 | AA154: 257846.0309 | AB154: 240950.279 | AC154: 223378.622 | AD154: 223379 | AE154: 223482 | AF154: 205850 | AG154: 205560 | AH154: 188567 | AI154: 184816.032
B155: Instrumentos derivados de cobertura | C155: 28448 | D155: 20542 | E155: 18860 | F155: 19362 | G155: 19762 | H155: 22055 | I155: 20530 | J155: 20908 | K155: 20870 | L155: 19267 | M155: 21844 | N155: 22330 | O155: 22624 | P155: 22357 | Q155: 24249 | R155: 25420 | S155: 28475.73364 | T155: 26709 | V155: Instrumentos derivados de cobertura | W155: 22909.05456 | X155: 23720.49511 | Y155: 25284.44134 | Z155: 10019.33345 | AA155: 0 | AB155: 0 | AC155: 0 | AG155: 0 | AH155: 0 | AI155: 0
B156: Pasivo por impuesto a las ganancias diferido, neto | C156: 10484 | D156: 15944 | E156: 15025 | F156: 13794 | G156: 12820 | H156: 13423 | I156: 12892 | J156: 11867 | K156: 10985 | L156: 18035 | M156: 16639 | N156: 15711 | O156: 15289 | P156: 16334 | Q156: 15134 | R156: 14421 | S156: 13276.49436 | T156: 14976 | V156: Pasivo por impuesto a las ganancias diferido, neto | W156: 15020.0957 | X156: 14775.88827 | Y156: 14697.25183 | Z156: 19699.71349 | AA156: 19976.13698 | AB156: 20157.43318 | AC156: 20321.874 | AD156: 20322 | AE156: 22575 | AF156: 22918 | AG156: 23345 | AH156: 23870 | AI156: 25910.07
B157: Total pasivo no corriente | C157: 247228 | D157: 211351 | E157: 259776 | F157: 249725 | G157: 208199 | H157: 202065 | I157: 200436 | J157: 226471 | K157: 269376 | L157: 274385 | M157: 273578 | N157: 274371 | O157: 271665 | P157: =SUM(P152:P156) -> 269483 | Q157: =SUM(Q152:Q156) -> 254916 | R157: 268826 | S157: 267245.6184 | T157: =SUM(T152:T156) -> 238733 | V157: Total pasivo no corriente | W157: =+SUM(W152:W156) -> 237738.1213 | X157: 214775.5192 | Y157: 215383.9616 | Z157: =+SUM(Z152:Z156) -> 244267.2713 | AA157: =+SUM(AA152:AA156) -> 300478.1118 | AB157: 283224.1916 | AC157: 263732.629 | AD157: 263733 | AE157: 265333 | AF157: 246798 | AG157: 246025 | AH157: 225300 | AI157: =+SUM(AI152:AI156) -> 223237.455
B158: TOTAL PASIVO | C158: 326998 | D158: 321594 | E158: 378020 | F158: 326901 | G158: 315714 | H158: 319048 | I158: 370580 | J158: 330769 | K158: 306164 | L158: 319285 | M158: 365883 | N158: 368233 | O158: 330230 | P158: =P150+P157 -> 331607 | Q158: =Q150+Q157 -> 356125 | R158: 382315 | S158: 385246.0705 | T158: =T150+T157 -> 361438 | V158: TOTAL PASIVO | W158: =+W157+W150 -> 380329.746 | X158: 340816.2543 | Y158: 338780.2272 | Z158: =+Z157+Z150 -> 339642.2457 | AA158: =+AA157+AA150 -> 394780.8466 | AB158: 359625.7987 | AC158: 348966.299 | AD158: 348966 | AE158: 343679 | AF158: 387162 | AG158: 316354 | AH158: 297714 | AI158: =+AI157+AI150 -> 305354.176
S159: 0
B160: Patrimonio de los accionistas | V160: Patrimonio de los accionistas
B161: Capital emitido | C161: 23683 | D161: 23683 | E161: 23683 | F161: 23683 | G161: 23683 | H161: 23683 | I161: 23683 | J161: 23683 | K161: 23683 | L161: 23683 | M161: 23683 | N161: 23683 | O161: 23683 | P161: 23683 | Q161: 23683 | R161: 23683 | S161: 23682.67587 | T161: 23682.67587 | V161: Capital emitido | W161: 23682.67587 | X161: 23682.67587 | Y161: 23682.67587 | Z161: 23682.67587 | AA161: 23682.67587 | AB161: 23682.67587 | AC161: 23682.676 | AD161: 23683 | AE161: 23683 | AF161: 23683 | AG161: 23683 | AH161: 23683 | AI161: 23682.676
B162: Prima de emisión | C162: 97571 | D162: 97571 | E162: 97571 | F162: 97571 | G162: 97571 | H162: 97571 | I162: 97571 | J162: 97571 | K162: 97571 | L162: 97571 | M162: 97571 | N162: 97571 | O162: 97571 | P162: 97571 | Q162: 97571 | R162: 97571 | S162: 72571.27301 | T162: 72571.27301 | V162: Prima de emisión | W162: 72571.27301 | X162: 65571.27301 | Y162: 65571.27301 | Z162: 47271.27301 | AA162: 47271.27301 | AB162: 47271.27301 | AC162: 47271.273 | AD162: 47271 | AE162: 47271 | AF162: 47271 | AG162: 47271 | AH162: 47271 | AI162: 47271.273
B163: Otras reservas de capital | C163: 4737 | D163: 4737 | E163: 4737 | F163: 4737 | G163: 4737 | H163: 4737 | I163: 4737 | J163: 4737 | K163: 4737 | L163: 4737 | M163: 4737 | N163: 4737 | O163: 4737 | P163: 4737 | Q163: 4737 | R163: 4737 | S163: 4736.53546 | T163: 4736.53546 | V163: Otras reservas de capital | W163: 4736.53546 | X163: 4736.53546 | Y163: 4736.53546 | Z163: 4736.53546 | AA163: 4736.53546 | AB163: 4736.53546 | AC163: 4736.535 | AD163: 4737 | AE163: 4737 | AF163: 4737 | AG163: 4737 | AH163: 4737 | AI163: 4736.535
B164: Otras reservas de patrimonio | C164: -9189 | D164: -4784 | E164: -3874 | F164: -3534 | G164: -3372 | H164: -4330 | I164: -3944 | J164: -4306 | K164: -3642 | L164: -2817 | M164: -3407 | N164: -2829 | O164: -2237 | P164: -1793 | Q164: -1754 | R164: -1106 | S164: -1685.53964 | T164: -1574 | V164: Otras reservas de patrimonio | W164: -1089.04822 | X164: -1872.75545 | Y164: -1286.53886 | Z164: -385.04442 | AA164: 14213.73805 | AB164: 32504.2365 | AC164: 50329.581 | AD164: 50330 | AE164: 67180 | AF164: 19219 | AG164: 38111 | AH164: 63866 | AI164: 79979.84
B165: Resultados acumulados | C165: 82918 | D165: 73162 | E165: 43291 | F165: 53814 | G165: 64729 | H165: 65199 | I165: 17150 | J165: 28968 | K165: 41788 | L165: 70132 | M165: 81843 | N165: 24303 | O165: 36486 | P165: 46208 | Q165: 13323 | R165: 25405 | S165: 39721.6744 | T165: 28761 | V165: Resultados acumulados | W165: 15132.70245 | X165: 30077.07109 | Y165: 48199.69719 | Z165: 63994.63981 | AA165: 0 | AC165: 0 | AG165: 0 | AH165: 0 | AI165: 0
B166: Total patrimonio de los accionistas | C166: 199720 | D166: 194369 | E166: 165408 | F166: 176271 | G166: 187348 | H166: 186860 | I166: 139197 | J166: 150653 | K166: 164137 | L166: 193306 | M166: 204427 | N166: 147465 | O166: 160240 | P166: =SUM(P161:P165) -> 170406 | Q166: =SUM(Q161:Q165) -> 137560 | R166: 150290 | S166: 139026.6191 | T166: =SUM(T161:T165) -> 128177.4843 | V166: Total patrimonio de los accionistas | W166: =+SUM(W161:W165) -> 115034.1386 | X166: 122194.8 | Y166: 140903.6427 | Z166: =+SUM(Z161:Z165) -> 139300.0797 | AA166: =+SUM(AA161:AA165) -> 89904.22239 | AB166: 108194.7208 | AC166: 126020.065 | AD166: 126020 | AE166: 142871 | AF166: 94910 | AG166: 113801 | AH166: 139557 | AI166: =+SUM(AI161:AI165) -> 155670.324
B167: TOTAL PASIVO Y PATRIMONIO DE LOS ACCIONISTAS | C167: 526718 | D167: 515963 | E167: 543428 | F167: 503172 | G167: 503062 | H167: 505908 | I167: 509777 | J167: 481422 | K167: 470301 | L167: 512591 | M167: 570310 | N167: 515698 | O167: 490470 | P167: =P158+P166 -> 502013 | Q167: =Q158+Q166 -> 493685 | R167: 532605 | S167: 524272.6896 | T167: =T158+T166 -> 489615.4843 | V167: TOTAL PASIVO Y PATRIMONIO DE LOS ACCIONISTAS | W167: =+W166+W158 -> 495363.8845 | X167: 463011.0543 | Y167: 479683.8698 | Z167: =+Z166+Z158 -> 478942.3254 | AA167: =+AA166+AA158 -> 484685.069 | AB167: 467820.5196 | AC167: 474986.364 | AD167: 474986 | AE167: 486550 | AF167: 482072 | AG167: 430156 | AH167: 437271 | AI167: =+AI166+AI158 -> 461024.5
C168: =+C140-C158-C166 -> 0 | D168: =+D140-D158-D166 -> 0 | E168: 0 | F168: 0 | G168: 0 | H168: 0 | I168: 0 | J168: 0 | K168: 0 | L168: 0 | M168: 0 | N168: 0 | O168: 0 | P168: 0 | Q168: 0 | R168: 0 | S168: 0
A171: □ | B171: ESTADOS DE RESULTADOS SEPARADOS - ISA PERÚ
B172: Cifras expresadas en miles de dólares americanos
C173: =8328-C190 -> 0 | D173: =9521-D190 -> 0
C174: 2016 | D174: 2017 | E174: 1T18 | F174: 2T18 | G174: 3T18 | H174: 4T18 | I174: 1T19 | J174: 2T19 | K174: 3T19 | L174: 4T19 | M174: 1T20 | N174: 2T20 | O174: 3T20 | P174: 4T20 | Q174: 1T21 | R174: 2T21 | S174: 3T21 | T174: 4T21 | W174: =+W121 -> 1T22 | X174: =+X121 -> 2T22 | Y174: 3T22 | Z174: 4T22 | AA174: 1T23 | AB174: 2T23 | AC174: 3T23 | AD174: 3T23 | AE174: 4T23 | AF174: 1T24 | AG174: 2T24 | AH174: 3T24 | AI174: 4T24
B176: Ingresos de construcción | C176: 19784 | D176: 32 | E176: 0 | F176: 0 | G176: 0 | H176: 0 | I176: 0 | J176: 0 | K176: 0 | L176: 0 | M176: 0 | N176: 0 | O176: 0 | P176: 0 | Q176: 0 | R176: 0 | S176: 0 | T176: 0 | V176: Ingresos de construcción | W176: 0 | X176: 0 | Y176: 0 | Z176: 0 | AA176: 0 | AB176: 0 | AC176: 0 | AD176: 0 | AE176: 417 | AF176: 0 | AG176: 0 | AH176: 0 | AI176: 0
B177: Costos de construcción | C177: 19784 | D177: 32 | E177: 0 | F177: 0 | G177: 0 | H177: 0 | I177: 0 | J177: 0 | K177: 0 | L177: 0 | M177: 0 | N177: 0 | O177: 0 | P177: 0 | Q177: 0 | R177: 0 | S177: 0 | T177: 0 | V177: Costos de construcción | W177: 0 | X177: 0 | Y177: 0 | Z177: 0 | AA177: 0 | AB177: 0 | AC177: 0 | AD177: 0 | AE177: 0 | AF177: 0 | AG177: 0 | AH177: 0 | AI177: 0
B178: EBITDA de construcción | C178: =+C176-C177 -> 0 | D178: 0 | E178: 0 | F178: 0 | G178: 0 | H178: 0 | I178: 0 | J178: 0 | K178: 0 | L178: 0 | M178: 0 | N178: 0 | O178: 0 | P178: 0 | Q178: 0 | R178: 0 | S178: 0 | T178: 0 | V178: Utilidad Bruta de construcción | W178: =+W176-W177 -> 0 | X178: 0 | Y178: 0 | Z178: 0 | AA178: 0 | AB178: 0 | AC178: 0 | AD178: 0 | AE178: 417 | AF178: 0 | AG178: 0 | AH178: 0 | AI178: =+AI176-AI177 -> 0
B180: Servicios de Transmisión de energia | C180: 13606 | D180: 15366 | E180: 3791 | F180: 4173 | G180: 4437 | H180: 4492 | I180: 4679 | J180: 4737 | K180: 4226 | L180: 4536 | M180: 4398 | N180: 4633 | O180: 4692 | P180: 4711 | Q180: 7593 | R180: 7354 | S180: 7548.18483 | T180: 7589 | V180: Servicios de transmisión de energía eléctrica | W180: 7772.3032 | X180: 7925.21195 | Y180: 7821.88408 | Z180: =-23519+(31529553/1000)-1 -> 8009.553 | AA180: 8003.34944 | AB180: 7802.66367 | AC180: 7997.97452 | AD180: 7998 | AE180: 8030 | AF180: 7949 | AG180: 7683 | AH180: 7975 | AI180: 8016.748
B181: Ingresos complementarios | C181: 121 | D181: 163 | E181: 25 | F181: 25 | G181: 25 | H181: 30 | I181: 21 | J181: 30 | K181: 25 | L181: 30 | M181: 30 | N181: 27 | O181: 25 | P181: 36 | Q181: 101 | R181: 587 | S181: -39.90233 | T181: 178 | V181: Ingresos complementarios | W181: 213.55482 | X181: 166.42483 | Y181: 192.12483 | Z181: =-572+(745782/1000)-1 -> 172.782 | AA181: 167.3026 | AB181: 170.29805 | AC181: 149.51301 | AD181: 150 | AE181: 222 | AF181: 173 | AG181: 223 | AH181: 192 | AI181: 195.199
B182: Otros ingresos operativos | C182: 0 | D182: 0 | E182: 0 | F182: 0 | G182: 0 | H182: 0 | I182: 0 | J182: 0 | K182: 0 | L182: 0 | M182: 0 | N182: 0 | O182: 0 | P182: 0 | Q182: 0 | R182: 0 | S182: 0 | T182: 0 | V182: Otros ingresos operacionales | W182: 12.39727 | X182: 0.00517 | Y182: 1.82713 | Z182: =-14+(107921/1000) -> 93.921 | AA182: 150.3607 | AB182: 0.50506 | AC182: 57.07788 | AD182: 57 | AE182: 41 | AF182: 38 | AG182: 30 | AH182: 1606 | AI182: 21.014
B183: Costos y gastos AOM | C183: 1637 | D183: 1842 | E183: 387 | F183: 462 | G183: 573 | H183: 591 | I183: 504 | J183: 493 | K183: 636 | L183: 701 | M183: 661 | N183: 695 | O183: 1758 | P183: 782 | Q183: 900 | R183: 1045 | S183: 1483.42384 | T183: 1403 | V183: Costos y gastos AOM | W183: 1422.24434 | X183: 1116.25668 | Y183: 1245.38824 | Z183: =-3784+(5311) -> 1527 | AA183: 1077.64228 | AB183: 1408.48779 | AC183: 1877.6551 | AD183: 1878 | AE183: 2602 | AF183: 1219 | AG183: 1282 | AH183: 1967 | AI183: 2787.477
B184: EBITDA de Operación | C184: =+SUM(C180:C182)-C183 -> 12090 | D184: 13687 | E184: 3429 | F184: 3736 | G184: 3889 | H184: 3931 | I184: 4196 | J184: 4274 | K184: 3615 | L184: 3865 | M184: 3767 | N184: 3965 | O184: 2959 | P184: =+SUM(P180:P182)-P183 -> 3965 | Q184: =+SUM(Q180:Q182)-Q183 -> 6794 | R184: 6896 | S184: 6024.85866 | T184: =+SUM(T180:T182)-T183 -> 6364 | V184: (-) Provisiones, Depreciaciones y Amortizaciones. | W184: 1123.8709 | X184: 1168.10413 | Y184: 1101.61935 | Z184: =-3394+4748-1 -> 1353 | AA184: 1218.06037 | AB184: 1220.57257 | AC184: 1164.02761 | AD184: 1164 | AE184: 1270 | AF184: 1153 | AG184: 1075 | AH184: 984 | AI184: 1192.706
B185: EBITDA | C185: =+C178+C184 -> 12090 | D185: 13687 | E185: 3429 | F185: 3736 | G185: 3889 | H185: 3931 | I185: 4196 | J185: 4274 | K185: 3615 | L185: 3865 | M185: 3767 | N185: 3965 | O185: 2959 | P185: 3965 | Q185: 6794 | R185: 6896 | S185: 6024.85866 | T185: =+T178+T184 -> 6364 | V185: Utilidad Bruta de Operación | W185: =+SUM(W180:W182)-SUM(W183:W184)+W178 -> 5452.14005 | X185: 5807.28114 | Y185: 5668.82845 | Z185: =+SUM(Z180:Z182)-SUM(Z183:Z184)+Z178 -> 5396.256 | AA185: =+SUM(AA180:AA182)-SUM(AA183:AA184)+AA178 -> 6025.31009 | AB185: 5344.40642 | AC185: 5162.8827 | AD185: 5163 | AE185: 4838 | AF185: 5788 | AG185: 5579 | AH185: 6822 | AI185: =+SUM(AI180:AI182)-SUM(AI183:AI184)+AI178 -> 4252.778
B187: (-) Provisiones, Depreciaciones y Amortizaciones. | C187: 3601 | D187: 4089 | E187: 975 | F187: 977 | G187: 975 | H187: 976 | I187: 901 | J187: 901 | K187: 900 | L187: -596 | M187: 915 | N187: 915 | O187: 915 | P187: 972 | Q187: 1141 | R187: 1139 | S187: 1375.67679 | T187: 1178 | X187: 0 | Y187: 0 | Z187: 0 | AA187: 0 | AB187: 0 | AC187: 0
B188: Metodo de participación neto ingreso /(gasto) | C188: 0 | D188: 0 | E188: 0 | F188: 0 | G188: 0 | H188: 0 | I188: 0 | J188: 0 | K188: 0 | L188: 0 | M188: 0 | N188: 0 | O188: 0 | P188: 0 | Q188: 0 | R188: 0 | S188: 0 | T188: 0 | V188: Metodo de participación neto ingreso /(gasto) | X188: 0 | Y188: 0 | Z188: 0 | AA188: 0 | AB188: 0 | AC188: 0
B189: Otros neto ingreso /(gasto) | C189: -161 | D189: -77 | E189: -17 | F189: -15 | G189: 0 | H189: -22 | I189: 1 | J189: 0 | K189: -1 | L189: -3 | M189: 0 | N189: -21 | O189: 54 | P189: 2 | Q189: 5 | R189: 1 | S189: 0.46404 | T189: 4 | V189: Otros neto ingreso /(gasto) | X189: 0 | Y189: 0 | Z189: 0 | AA189: 0 | AB189: 0 | AC189: 0
B190: Utilidad por actividades de operación | C190: =C185-C187+C188+C189 -> 8328 | D190: 9521 | E190: 2437 | F190: 2744 | G190: 2914 | H190: 2933 | I190: 3296 | J190: 3373 | K190: 2714 | L190: 4458 | M190: 2852 | N190: 3029 | O190: 2098 | P190: 2995 | Q190: 5658 | R190: 5758 | S190: 4649.64591 | T190: =T185-T187+T188+T189 -> 5190 | V190: Utilidad por actividades de operación | W190: =+W185+W188+W189 -> 5452.14005 | X190: 5807.28114 | Y190: 5668.82845 | Z190: =+Z185+Z188+Z189 -> 5396.256 | AA190: =+AA185+AA188+AA189 -> 6025.31009 | AB190: =+AB185+AB188+AB189 -> 5344.40642 | AC190: 5162.8827 | AD190: 5163 | AE190: 4838 | AF190: 5788 | AG190: 5579 | AH190: 6822 | AI190: =+AI185+AI188+AI189 -> 4252.778
S191: 0 | X191: 0 | Y191: 0
B192: Financiero neto ingreso/(gasto) | C192: -541 | D192: -1453 | E192: -355 | F192: -399 | G192: -365 | H192: =-1368-E192-F192+-G192 -> -249 | I192: -286 | J192: -223 | K192: -308 | L192: -35 | M192: -259 | N192: -290 | O192: -497 | P192: 863 | Q192: -1072 | R192: -1075 | S192: -625.01676 | T192: -1741 | V192: Financiero neto ingreso/(gasto) | W192: -5520.81689 | X192: -1906.48528 | Y192: -2601.01292 | Z192: =10028-11692 -> -1664 | AA192: -2313.12436 | AB192: -2183.78293 | AC192: -2446.31034 | AD192: -2446 | AE192: -2281 | AF192: -2320 | AG192: -2441 | AH192: -2188 | AI192: -2257.8
B193: Utilidad antes de impuestos | C193: =+C190+C192 -> 7787 | D193: =+D190+D192 -> 8068 | E193: 2082 | F193: 2345 | G193: 2549 | H193: 2684 | I193: 3010 | J193: 3150 | K193: 2406 | L193: 4423 | M193: 2593 | N193: 2739 | O193: 1601 | P193: 3858 | Q193: 4586 | R193: 4683 | S193: 4024.62915 | T193: =+T190+T192 -> 3449 | V193: Utilidad antes de impuestos | W193: =+W190+W192 -> -68.67684 | X193: 3900.79586 | Y193: 3067.81553 | Z193: =+Z190+Z192 -> 3732.256 | AA193: =+AA190+AA192 -> 3712.18573 | AB193: =+AB190+AB192 -> 3160.62349 | AC193: 2716.57236 | AD193: 2717 | AE193: 2557 | AF193: 3468 | AG193: 3138 | AH193: 4634 | AI193: =+AI190+AI192 -> 1994.978
B195: Provisión impuesto de renta | C195: 1728 | D195: 2015 | E195: 456 | F195: 517 | G195: 701 | H195: 558 | I195: 666 | J195: 742 | K195: 528 | L195: 959 | M195: 570 | N195: 679 | O195: 255 | P195: 449 | Q195: 1009 | R195: 1060 | S195: 901.42271 | T195: 752 | V195: Provisión impuesto de renta | W195: 586.40123 | X195: 209.41186 | Y195: 1048.61919 | Z195: =-1844-2505 -> -4349 | AA195: -862.90866 | AB195: -675.44087 | AC195: -605.95346 | AD195: -606 | AE195: -45 | AF195: 763 | AG195: -911 | AH195: -1162 | AI195: -337.038
B196: Utilidad neta | C196: =+C193-C195 -> 6059 | D196: =+D193-D195 -> 6053 | E196: 1626 | F196: 1828 | G196: 1848 | H196: 2126 | I196: 2344 | J196: 2408 | K196: 1878 | L196: 3464 | M196: 2023 | N196: 2060 | O196: 1346 | P196: 3409 | Q196: 3577 | R196: 3623 | S196: 3123.20644 | T196: =+T193-T195 -> 2697 | V196: Utilidad neta | W196: =+W193-W195 -> -655.07807 | X196: 3691.384 | Y196: 2019.19634 | Z196: =+Z193+Z195 -> -616.744 | AA196: =+AA193+AA195 -> 2849.27707 | AB196: 2485.18262 | AC196: 2110.6189 | AD196: 2111 | AE196: 2512 | AF196: 4231 | AG196: 2227 | AH196: 3471 | AI196: =+AI193+AI195 -> 1657.94
AI198: =+AI185+AI184 -> 5445.484
A199: □ | B199: ESTADOS SEPARADOS DE SITUACIÓN FINANCIERA - ISA PERÚ | V199: EBITDA TOTAL | W199: 6728.468 | X199: 6975.38527 | Y199: 6770.4478 | Z199: =+Z185+Z184 -> 6749.256 | AA199: =+AA185+AA184 -> 7243.37046 | AB199: 6564.97899 | AC199: 6326.91031 | AD199: 6327 | AE199: 6108 | AF199: 6941 | AG199: 6654 | AH199: 7806
B200: Cifras expresadas en miles de dólares
C201: 2016 | D201: 2017 | E201: 1T18 | F201: 2T18 | G201: 3T18 | H201: 4T18 | I201: 1T19 | J201: 2T19 | K201: 3T19 | L201: 4T19 | M201: 1T20 | N201: 2T20 | O201: 3T20 | P201: 4T20 | Q201: 1T21 | R201: 2T21 | S201: 3T21 | T201: 4T21 | W201: =+W174 -> 1T22 | X201: =+X174 -> 2T22 | Y201: 3T22 | Z201: 4T22 | AA201: 1T23 | AB201: 2T23 | AC201: 3T23 | AD201: 3T23 | AE201: 4T23 | AF201: 1T24 | AG201: 2T24 | AH201: 3T24 | AI201: 4T24
B202: ACTIVO | V202: ACTIVO
B203: Activo corriente | V203: Activo corriente
B204: Efectivo y Equivalentes al Efectivo | C204: 4811.087 | D204: 7632.47079 | E204: 2960.34373 | F204: 4209.69833 | G204: 5845.46955 | H204: 6241.02843 | I204: 4340.34958 | J204: 0 | K204: 820.54024 | L204: 4524.85167 | M204: 6892.57691 | N204: 2431.46566 | O204: 2740 | P204: 1225 | Q204: 2886 | R204: 2455 | S204: 3020.46731 | T204: 4206 | V204: Efectivo y Equivalentes al Efectivo | W204: 2894.22097 | X204: 7301.94305 | Y204: 10438.90957 | Z204: 5479.54877 | AA204: 4314.99271 | AB204: 5357.071 | AC204: 8835.297 | AD204: 8835 | AE204: 1808 | AF204: 3660 | AG204: 4566 | AH204: 8542 | AI204: 4633.698
B205: Cuentas por Cobrar Comerciales (neto) | C205: 1794.219 | D205: 1689.659 | E205: 1757.05223 | F205: 2214.33592 | G205: 2150.41778 | H205: 2119.57794 | I205: 2170.3915 | J205: 2461.74839 | K205: 1860.96514 | L205: 1303.07732 | M205: 1222.07732 | N205: 1601.59224 | O205: 1589 | P205: 1419 | Q205: 2723 | R205: 3414 | S205: 3716.70655 | T205: 3516 | V205: Cuentas por Cobrar Comerciales (neto) | W205: 4000.86151 | X205: 4444.41466 | Y205: 2597.73407 | Z205: 3227.62467 | AA205: 3064.15008 | AB205: 2613.676 | AC205: 1963.361 | AD205: 1963 | AE205: 2092 | AF205: 2534 | AG205: 1930 | AH205: 1877 | AI205: 1744.583
B206: Otras Cuentas por Cobrar (neto) | C206: 1525.71242 | D206: 26.759 | E206: 1407.26495 | F206: 26.09155 | G206: 98.80035 | H206: 94.0473 | I206: 101.66051 | J206: 85.84848 | K206: 63.20027 | L206: 74.42937 | M206: 68.62822 | N206: 147.84022 | O206: 218 | P206: 204 | Q206: 303 | R206: 290 | S206: 136.37516 | T206: 121 | V206: Otras Cuentas por Cobrar (neto) | W206: 125.93649 | X206: 215.61842 | Y206: 126.97026 | Z206: 123.26941 | AA206: 518.54823 | AB206: 132.856 | AC206: 126.551 | AD206: 127 | AE206: 331 | AF206: 281 | AG206: 208 | AH206: 794 | AI206: 570.561
B207: Cuentas por Cobrar a Entidades Relacionadas | C207: 1.459 | D207: 0 | E207: 0.50731 | F207: 0 | G207: 0 | H207: 0 | I207: 0 | J207: 5.6842 | K207: 5.16753 | L207: 14.87211 | M207: -3.11834 | N207: 7.86308 | O207: 10 | P207: 19 | Q207: 3 | R207: 2 | S207: 8.44056 | T207: 8 | V207: Cuentas por Cobrar a Entidades Relacionadas | W207: 29.35829 | X207: 0.11179 | Y207: 24 | Z207: 31.11754 | AA207: 42.59187 | AB207: 37.387 | AC207: 17.95 | AD207: 18 | AE207: 10 | AF207: 32 | AG207: 12 | AH207: 16 | AI207: 15.091
B208: Inventarios | C208: 1129.095 | D208: 1147.74508 | E208: 1158.82708 | F208: 1204.07171 | G208: 1224.74643 | H208: 1335.04156 | I208: 1327.07656 | J208: 1327.07656 | K208: 1323.52453 | L208: 1204.74016 | M208: 1204.74016 | N208: 1194.74016 | O208: 1195 | P208: 1169 | Q208: 1569 | R208: 1541 | S208: 1543.00649 | T208: 1830 | V208: Inventarios | W208: 1804.62805 | X208: 1825.36484 | Y208: 2067.01219 | Z208: 1859.47309 | AA208: 2373.22041 | AB208: 2394.943 | AC208: 0 | AD208: 2171 | AE208: 1936 | AF208: 1911 | AG208: 1968 | AH208: 0 | AI208: 0
B209: Activos por Impuestos a las Ganancias | C209: 36.01658 | D209: 0 | E209: 0 | F209: 0 | G209: 0 | H209: 0 | I209: 0 | J209: 0 | K209: 0 | L209: 0 | M209: 0 | N209: 0 | O209: 0 | P209: 0 | Q209: 151 | R209: 0 | S209: 0 | T209: 0 | V209: Activos por Impuestos a las Ganancias | W209: 0 | X209: 0 | Y209: 0 | Z209: 905.95204 | AA209: 954.51674 | AB209: 612.385 | AC209: 2171.19 | AD209: 0 | AE209: 366 | AF209: 312 | AG209: 504 | AH209: 2118 | AI209: 2035.334
B210: Otros Activos no financieros | C210: 3.938 | D210: 79.57317 | E210: 18.14013 | F210: 8.12529 | G210: 189.06744 | H210: 155.42836 | I210: 122.40894 | J210: 81.9048 | K210: 42.55077 | L210: 35.40275 | M210: 187.86412 | N210: 145.20313 | O210: 97 | P210: 117 | Q210: 1948 | R210: 0 | S210: 353.2814 | T210: 309 | V210: Otros Activos no financieros | W210: 168.48072 | X210: 438.09733 | Y210: 288.40713 | Z210: 0 | AB210: 0 | AC210: 0 | AD210: 0 | AE210: 0 | AF210: 0 | AG210: 0 | AI210: 0
B211: Otros activos financieros | C211: 0 | D211: 0 | E211: 0 | F211: 0 | G211: 0 | H211: 0 | I211: 0 | J211: 0 | K211: 0 | L211: 0 | M211: 0 | N211: 0 | O211: 0 | P211: 3342 | Q211: 113 | R211: 72 | S211: 0 | T211: 0 | V211: Otros activos financieros | W211: 0 | X211: 0 | Y211: 0 | Z211: 80.98092 | AA211: 387.06169 | AB211: 570.422 | AC211: 390.347 | AD211: 390 | AE211: 192 | AF211: 522 | AG211: 307 | AH211: 161 | AI211: 369.956
B212: Total activo corriente | C212: =+SUM(C204:C211) -> 9301.527 | D212: =+SUM(D204:D211) -> 10576.20704 | E212: 7302.13543 | F212: 7662.3228 | G212: 9508.50155 | H212: 9945.12359 | I212: 8061.88709 | J212: 3962.26243 | K212: 4115.94848 | L212: 7157.37338 | M212: 9572.76839 | N212: 5528.70449 | O212: 5849 | P212: 7495 | Q212: 9696 | R212: 7774 | S212: 8778.27747 | T212: =SUM(T204:T211) -> 9990 | V212: Total activo corriente | W212: 9023.48603 | X212: 14225.55009 | Y212: 15543.03322 | Z212: =+SUM(Z204:Z211) -> 11707.96644 | AA212: =+SUM(AA204:AA211) -> 11655.08173 | AB212: 11718.74 | AC212: 13504.696 | AD212: 13505 | AE212: 6735 | AF212: 9252 | AG212: 9494 | AH212: 13507 | AI212: =+SUM(AI204:AI211) -> 9369.223
B213: Activo no corriente | V213: Activo no corriente
B214: Cuentas por Cobrar Comerciales | L214: 0 | M214: 0 | N214: 0 | O214: 0 | P214: 0 | Q214: 0 | R214: 0 | S214: 0 | T214: 0 | V214: Cuentas por Cobrar Comerciales | W214: 0 | X214: 0 | Y214: 0 | AH214: 0 | AI214: 0
B215: Inversiones Financieras | C215: 703 | D215: 223766 | E215: 178545 | F215: 169563 | G215: 170979 | H215: 144942 | I215: 134420 | J215: 123710 | K215: 100456 | L215: 133484 | M215: 129849 | N215: 162269 | O215: 158463 | P215: 160069 | Q215: 0 | R215: 0 | S215: 0.164 | V215: Inversiones Financieras | W215: 0.174 | X215: 0 | Y215: 0.142 | Z215: 0.144 | AA215: 0.198 | AB215: 0.167 | AC215: 0.201 | AD215: 0 | AE215: 0 | AF215: 0 | AG215: 0 | AH215: 0 | AI215: 0.212
B216: Propiedades, Planta y Equipo (neto) | C216: 49.704 | D216: 47.05189 | E216: 46.38879 | F216: 45.7257 | G216: 45.06261 | H216: 44.39952 | I216: 43.73642 | J216: 43.07333 | K216: 42.41024 | L216: 52.99715 | M216: 52.33405 | N216: 51.67096 | O216: 51 | P216: 58 | Q216: 21909 | R216: 21841 | S216: 26252.61139 | T216: 27167 | V216: Propiedades, Planta y Equipo (neto) | W216: 26861.84884 | X216: 26530.98829 | Y216: 26210.70711 | Z216: 27688.81528 | AA216: 27401.93052 | AB216: 27142.896 | AC216: 26982.759 | AD216: 26983 | AE216: 28720 | AF216: 28579 | AG216: 28582 | AH216: 28382 | AI216: 29828.772
B217: Activos intangibles | C217: 56040.738 | D217: 52615.10554 | E217: 51750.8875 | F217: 50886.66944 | G217: 50022.45142 | H217: 49158.23339 | I217: 48294.01535 | J217: 47425.46784 | K217: 46561.30833 | L217: 47570.88661 | M217: 46841.21167 | N217: 46111.53702 | O217: 45382 | P217: 44652 | Q217: 219568 | R217: 218871 | S217: 205646.0103 | T217: 204551 | V217: Activos intangibles | W217: 203849.7569 | X217: 203148.7813 | Y217: 202447.8057 | Z217: 201688.288 | AA217: 200963.0304 | AB217: 201050.651 | AC217: 200331.074 | AD217: 200331 | AE217: 199585 | AF217: 198838 | AG217: 198092 | AH217: 197345 | AI217: 196596.355
B218: Activos por Impuestos a las Ganancias Diferido | C218: 871.413 | D218: 535.50527 | E218: 565.41669 | F218: 744.12061 | G218: 636.98601 | H218: 645.24162 | I218: 652.8723 | J218: 653.5722 | K218: 602.31506 | L218: 228.2998 | M218: 237.64405 | N218: 233.39692 | O218: 347 | P218: 278 | Q218: 288 | R218: 291 | S218: 230.43534 | T218: 137 | V218: Activos por Impuestos a las Ganancias Diferido | W218: 569.55512 | X218: 6086.61247 | Y218: -7e-05 | Z218: 0.00029 | AA218: 0.00029 | AB218: 0 | AC218: 0 | AF218: 2 | AG218: 0 | AH218: 0 | AI218: 0
B219: Total activo no corriente | C219: =+SUM(C215:C218) -> 57664.855 | D219: =+SUM(D215:D218) -> 276963.6627 | E219: 230907.693 | F219: 221239.5158 | G219: 221683.5 | H219: 194789.8745 | I219: 183410.6241 | J219: 171832.1134 | K219: 147662.0336 | L219: 181336.1836 | M219: 176980.1898 | N219: 208665.6049 | O219: 204243 | P219: 205057 | Q219: 241765 | R219: 241003 | S219: 232129.221 | T219: =SUM(T214:T218) -> 231855 | V219: Total activo no corriente | W219: 231281.3349 | X219: 235766.382 | Y219: 228658.6548 | Z219: =+SUM(Z214:Z218) -> 229377.2476 | AA219: =+SUM(AA214:AA218) -> 228365.1592 | AB219: 228193.714 | AC219: 227314.034 | AD219: 227314 | AE219: 228305 | AF219: 227419 | AG219: 226675 | AH219: 225727 | AI219: =+SUM(AI214:AI218) -> 226425.339
B220: TOTAL ACTIVO | C220: =+C212+C219 -> 66966.382 | D220: =+D212+D219 -> 287539.8697 | E220: 238209.8284 | F220: 228901.8386 | G220: 231192.0016 | H220: 204734.9981 | I220: 191472.5112 | J220: 175794.3758 | K220: 151777.9821 | L220: 188493.5569 | M220: 186552.9582 | N220: 214194.3094 | O220: 210092 | P220: 212552 | Q220: 251461 | R220: 248777 | S220: 240907.4985 | T220: =+T212+T219 -> 241845 | V220: TOTAL ACTIVO | W220: 240304.8209 | X220: 249991.9321 | Y220: 244201.688 | Z220: =+Z212+Z219 -> 241085.214 | AA220: =+AA212+AA219 -> 240020.241 | AB220: 239912.454 | AC220: 240818.73 | AD220: 240819 | AE220: 235040 | AF220: 236671 | AG220: 236169 | AH220: 239234 | AI220: =+AI212+AI219 -> 235794.562
S221: 0
B222: PASIVO MAS PATRIMONIO DE LOS ACCIONISTAS | V222: PASIVO MAS PATRIMONIO DE LOS ACCIONISTAS
B223: Pasivo corriente | V223: Pasivo corriente
B224: Sobregiros bancarios | C224: 0 | D224: 0 | E224: 0 | F224: 0 | G224: 0 | H224: 0 | I224: 0 | J224: 1240.66305 | K224: 0 | L224: 0 | M224: 0 | N224: 0 | O224: 0 | P224: 0 | Q224: 0 | R224: 0 | S224: 0 | T224: 0 | V224: Sobregiros bancarios | W224: 0 | X224: 0 | Y224: 0 | AC224: 0 | AH224: 0 | AI224: 0
B225: Cuentas por Pagar Comerciales | C225: 2089.972 | D225: 262.15837 | E225: 100.83333 | F225: 104.45219 | G225: 107.15575 | H225: 127.10474 | I225: 115.89826 | J225: 52.31188 | K225: 111.28141 | L225: 227.55152 | M225: 247.11226 | N225: 121.59957 | O225: 389 | P225: 479 | Q225: 147 | R225: 380 | S225: 617.20747 | T225: 1643 | V225: Cuentas por Pagar Comerciales | W225: 332.61835 | X225: 797.42798 | Y225: 682.12342 | Z225: 913.68897 | AA225: 984.76679 | AB225: 1128.991 | AC225: 629.62 | AD225: 630 | AE225: 1955 | AF225: 941 | AG225: 272 | AH225: 984 | AI225: 2152.692
... 27 more rows

Sheet EEFF_TE_Chi
A1: Volver al Contenido
B3: ESTADOS DE RESULTADOS - ISA INTERCHILE
B4: Cifras expresadas en millones de dólares
C7: 2016 | D7: 2017 | E7: 1T18 | F7: 2T18 | G7: 3T18 | H7: 4T18 | I7: 1T19 | J7: 2T19 | K7: 3T19 | L7: 4T19 | M7: 1T20 | N7: 2T20 | O7: 3T20 | P7: 4T20 | Q7: 1T21 | R7: 2T21 | S7: 3T21 | T7: 4T21 | W7: 1T22 | X7: 2T22 | Y7: 3T22 | Z7: 4T22 | AA7: 1T23 | AB7: 2T23 | AC7: 3T23 | AD7: 4T23 | AE7: 1T24 | AF7: 2T24 | AG7: 3T24 | AH7: 4T24
B9: Ingresos por servicios de transmisión de energía eléctrica | C9: 0 | D9: 5 | E9: 6 | F9: 1 | G9: 20 | H9: 8 | I9: 11 | J9: 21 | K9: 21 | L9: 19 | M9: 19 | N9: 21 | O9: 19 | P9: 20 | Q9: 20 | R9: 21 | S9: 22 | T9: 23 | V9: =+B9 -> Ingresos por servicios de transmisión de energía eléctrica | W9: 23 | X9: 24 | Y9: 23 | Z9: =94-W9-X9-Y9 -> 24 | AA9: 24 | AB9: 25 | AC9: 25 | AD9: 28 | AE9: 26 | AF9: 26 | AG9: 27 | AH9: 27
B10: Ingresos por cargos de conexión | C10: 0 | D10: 0 | E10: 0 | F10: 0 | G10: 0 | H10: 0 | I10: 0 | J10: 0 | K10: 0 | L10: 0 | M10: 0 | N10: 0 | O10: 0 | P10: 0 | R10: 0 | S10: 0 | T10: 0 | V10: =+B10 -> Ingresos por cargos de conexión | W10: 0 | X10: 0 | Y10: 0 | Z10: 0 | AA10: 0 | AB10: 0 | AC10: 0 | AD10: 0 | AE10: 0 | AF10: 0 | AG10: 0
B11: Otros ingresos operacionales | C11: 0 | D11: 0 | E11: 0 | F11: 0 | G11: 0 | H11: 0 | I11: 0 | J11: 0 | K11: 0 | L11: 0 | M11: 0 | N11: 0 | O11: 0 | P11: 0 | R11: 0 | S11: 0 | T11: 0 | V11: =+B11 -> Otros ingresos operacionales | W11: 0 | X11: 0 | Y11: 0 | Z11: 0 | AA11: 0 | AB11: 0 | AC11: 0 | AD11: 0 | AE11: 0 | AF11: 0 | AG11: 0
B12: Costos y gastos AOM | C12: 3 | D12: 6 | E12: 1 | F12: 1 | G12: 3 | H12: 3 | I12: 7 | J12: -2 | K12: 2 | L12: 3 | M12: 2 | N12: 2 | O12: 3 | P12: 3 | Q12: 4 | R12: 4 | S12: 6 | T12: 8 | V12: =+B12 -> Costos y gastos AOM | W12: 10 | X12: 4 | Y12: 1 | Z12: 11 | AA12: 5 | AB12: 6 | AC12: 5 | AD12: 12 | AE12: 3 | AG12: 6 | AH12: 6
B13: EBITDA | C13: -3 | D13: -1 | E13: 5 | F13: 0 | G13: 17 | H13: 5 | I13: 4 | J13: 23 | K13: 19 | L13: 16 | M13: 17 | N13: 19 | O13: 16 | P13: 17 | Q13: 16 | R13: 17 | S13: 16 | T13: 15 | V13: (-) Provisiones, Depreciaciones y Amortizaciones. | W13: 10 | X13: 8 | Y13: 5 | AA13: 8 | AB13: 8 | AC13: 9 | AD13: 8 | AE13: 8 | AG13: 8 | AH13: 7
V14: Utilidad Bruta | W14: 3 | X14: 12 | Y14: 17 | Z14: =+Z9-Z12-Z13 -> 13 | AA14: =+AA9-AA12-AA13 -> 11 | AB14: 11 | AC14: 11 | AD14: =+AD9-AD12-AD13 -> 8 | AE14: 15 | AF14: 26 | AG14: 13 | AH14: =+AH9-AH12-AH13 -> 14
B15: (-) Provisiones, Depreciaciones y Amortizaciones. | C15: 0 | D15: 1 | E15: 1 | F15: 0 | G15: 1 | H15: 7 | I15: 3 | J15: 3 | K15: 7 | L15: 7 | M15: 7 | N15: 9 | O15: 6 | P15: 7 | Q15: 7 | R15: 8 | S15: 9 | T15: 8
B16: Metodo de participación neto ingreso /(gasto) | C16: 0 | D16: 0 | E16: 0 | F16: 0 | G16: 0 | H16: 0 | I16: 0 | J16: 0 | K16: 0 | L16: 0 | M16: 0 | N16: 0 | O16: 0 | P16: 0 | R16: 0 | S16: 0 | T16: 0 | V16: =+B16 -> Metodo de participación neto ingreso /(gasto) | W16: 0 | X16: 0 | Y16: 0 | Z16: 0 | AA16: 0 | AB16: 0
B17: Otros neto ingreso /(gasto) | C17: 0 | D17: 0 | E17: 0 | F17: 0 | G17: 0 | H17: 1 | I17: 0 | J17: 0 | K17: 0 | L17: 0 | M17: 0 | N17: 0 | O17: 0 | P17: 0 | R17: 0 | S17: 0 | T17: 0 | V17: =+B17 -> Otros neto ingreso /(gasto) | W17: 0 | X17: 0 | Y17: 0 | Z17: 0 | AA17: 0 | AB17: 0
B18: Utilidad por actividades de operación | C18: -3 | D18: -2 | E18: 4 | F18: 0 | G18: 16 | H18: -1 | I18: 1 | J18: 20 | K18: 12 | L18: 9 | M18: 10 | N18: 10 | O18: 10 | P18: 10 | Q18: 9 | R18: 9 | S18: 7 | T18: 7 | V18: Utilidad por actividades de operación | W18: 3 | X18: 12 | Y18: 17 | Z18: =+Z14 -> 13 | AA18: =+AA14 -> 11 | AB18: 11 | AC18: 11 | AD18: =+AD14 -> 8 | AE18: 15 | AF18: 26 | AG18: 13 | AH18: =+AH14 -> 14
R19: 0 | S19: 0 | T19: 0 | Z19: =+AA19-W19-X19-Y19 -> 0
B20: Financiero neto ingreso/(gasto) | C20: 6 | D20: -3 | E20: 0 | F20: -4 | G20: -2 | H20: -6 | I20: -4 | J20: -7 | K20: -10 | L20: -6 | M20: -12 | N20: -9 | O20: -9 | P20: -6 | Q20: -8 | R20: -8 | S20: -6 | T20: -2 | V20: =+B20 -> Financiero neto ingreso/(gasto) | W20: -2 | X20: -19 | Y20: -19 | Z20: -11 | AA20: -9 | AB20: -1 | AC20: -6 | AD20: 11 | AE20: -10 | AF20: -16 | AG20: -8 | AH20: -12
B21: Utilidad antes de impuestos | C21: 3 | D21: -5 | E21: 4 | F21: -4 | G21: 14 | H21: -7 | I21: -3 | J21: 13 | K21: 2 | L21: 3 | M21: -2 | N21: 1 | O21: 1 | P21: 4 | Q21: 1 | R21: 1 | S21: 1 | T21: 5 | V21: =+B21 -> Utilidad antes de impuestos | W21: 1 | X21: -7 | Y21: -2 | Z21: =+Z18+Z20 -> 2 | AA21: =+AA18+AA20 -> 2 | AB21: 10 | AC21: 5 | AD21: =+AD18+AD20 -> 19 | AE21: 5 | AF21: 10 | AG21: 5 | AH21: =+AH18+AH20 -> 2
B23: Provisión impuesto de renta | C23: 1 | D23: -1 | E23: 4 | F23: -1 | G23: 6 | H23: -13 | I23: -5 | J23: -6 | K23: -5 | L23: 19 | M23: 0 | N23: 0 | O23: 0 | P23: 0 | Q23: 0 | R23: 0 | S23: 0 | T23: 0 | V23: =+B23 -> Provisión impuesto de renta | W23: 0 | X23: -2 | Y23: 0 | Z23: 0 | AA23: 0 | AB23: 0 | AE23: 1 | AF23: 3 | AG23: 1 | AH23: 0
B24: Utilidad neta | C24: 2 | D24: -4 | E24: 0 | F24: -3 | G24: 8 | H24: 6 | I24: 2 | J24: 19 | K24: 7 | L24: -16 | M24: -2 | N24: 1 | O24: 1 | P24: 4 | Q24: 1 | R24: 1 | S24: 1 | T24: 5 | V24: =+B24 -> Utilidad neta | W24: 1 | X24: -5 | Y24: -2 | Z24: 2 | AA24: 2 | AB24: 2 | AC24: 5 | AD24: =+AD21-AD23 -> 19 | AE24: 4 | AF24: 7 | AG24: 4 | AH24: =+AH21-AH23 -> 2
